Workbook

Sheet MENU
L4: =+TABLAS!A95 -> 1-2-3-T--------
L5: =+TABLAS!A129 -> 1-2-3-T--------
L6: =+TABLAS!A163 -> 1-2-3-T--------
L7: =+TABLAS!A198 -> 1-2-3-T--------
L8: =+TABLAS!A233 -> 1-2-3-T--------
L9: =+TABLAS!A268 -> 1-2-3-T--------
L10: =+TABLAS!A298 -> 1-2-3-T--------
L11: =+TABLAS!A328 -> 1-2-3-T--------
L12: =+TABLAS!A358 -> 1-2-3-T--------
L13: =+TABLAS!A389 -> 1-2-3-T--------
L14: =+TABLAS!A419 -> 1-2-3-T-------- | R14: -
L15: =+TABLAS!A450 -> 1-2-3-T--------
L16: =+TABLAS!A480 -> 1-2-3-T--------
H27: CONTROL DE MESES
H29: =+TABLAS!A95 -> 1-2-3-T--------
C30: =+PPoR_1001!H15 -> __ENE_MAR_2025

Sheet Datos (hidden)
B9: ANO | D9: MESES | F9: COD_RED | G9: DESC_RED | H9: CONCATENAR | J9: COD_RED | K9: COD_MIC | L9: DESC_MICRO | M9: CONCATENAR | O9: COD_ESTAB | P9: DESC_ESTAB | Q9: COD_RED | R9: COD_MIC | S9: COD_PROV | T9: COD_DIST | U9: REDMIC | V9: CONCATENAR | X9: COD_PROV | Y9: DESC_PROV | Z9: CONCATENAR | AB9: COD_PROV | AC9: COD_DIST | AD9: DESC_DIST | AE9: PROVDIST | AF9: CONCATENAR
B10: 2025 | D10: 01-Enero | F10: 00 | G10: NO TIENE ASIGNADO NINGUNA RED | H10: =CONCATENATE(F10," - ",G10) -> 00 - NO TIENE ASIGNADO NINGUNA RED | J10: 00 | K10: 00 | L10: NO PERTENECE A NINGUNA MICRORED | M10: =CONCATENATE(J10,K10," - ",L10) -> 0000 - NO PERTENECE A NINGUNA MICRORED | O10: 000000000 | P10: (All) | Q10: 00 | R10: 00 | U10: =CONCATENATE(Q10,R10) -> 0000 | V10: =CONCATENATE(O10," - ",P10) -> 000000000 - (All) | X10: 00 | Y10: (All) | Z10: =CONCATENATE(X10," - ",Y10) -> 00 - (All) | AB10: 01 | AC10: 00 | AD10: (All) | AE10: =CONCATENATE(AB10,AC10) -> 0100 | AF10: =CONCATENATE(AB10,AC10," - ",AD10) -> 0100 - (All)
D11: 02-Febrero | F11: 01 | G11: CUSCO SUR | H11: =CONCATENATE(F11," - ",G11) -> 01 - CUSCO SUR | J11: 00 | K11: 99 | L11: (All) | M11: 0099 - (All) | N11: 1 | O11: 000002289 | P11: HOSPITAL DE APOYO DEPARTAMENTAL CUSCO | Q11: 00 | R11: 00 | S11: 01 | T11: 01 | U11: =CONCATENATE(Q11,R11) -> 0000 | V11: =CONCATENATE(O11," - ",P11) -> 000002289 - HOSPITAL DE APOYO DEPARTAMENTAL CUSCO | X11: 01 | Y11: CUSCO | Z11: =CONCATENATE(X11," - ",Y11) -> 01 - CUSCO | AB11: 01 | AC11: 01 | AD11: CUSCO | AE11: =CONCATENATE(AB11,AC11) -> 0101 | AF11: =CONCATENATE(AB11,AC11," - ",AD11) -> 0101 - CUSCO
D12: 03-Marzo | F12: 02 | G12: CUSCO NORTE | H12: 02 - CUSCO NORTE | J12: 01 | K12: 00 | L12: NO PERTENECE A NINGUNA MICRORED | M12: 0100 - NO PERTENECE A NINGUNA MICRORED | N12: =+N11+1 -> 2 | O12: 000002305 | P12: ANTONIO LORENA DEL CUSCO | Q12: 00 | R12: 00 | S12: 01 | T12: 06 | U12: 0000 | V12: 000002305 - ANTONIO LORENA DEL CUSCO | X12: 02 | Y12: ACOMAYO | Z12: =CONCATENATE(X12," - ",Y12) -> 02 - ACOMAYO | AB12: 01 | AC12: 02 | AD12: CCORCA | AE12: 0102 | AF12: 0102 - CCORCA
D13: 04-Abril | F13: 03 | G13: LA CONVENCION | H13: 03 - LA CONVENCION | J13: 01 | K13: 16 | L13: CUSCO | M13: 0116 - CUSCO | N13: =+N12+1 -> 3 | O13: 999999999 | P13: (All) | Q13: 00 | R13: 99 | U13: 0099 | V13: 999999999 - (All) | X13: 03 | Y13: ANTA | Z13: 03 - ANTA | AB13: 01 | AC13: 03 | AD13: POROY | AE13: 0103 | AF13: 0103 - POROY
D14: 05-Mayo | F14: 04 | G14: CANAS-CANCHIS-ESPINAR | H14: 04 - CANAS-CANCHIS-ESPINAR | J14: 01 | K14: 03 | L14: PARURO | M14: 0103 - PARURO | O14: 000025210 | P14: TUPAC AMARU | Q14: 01 | R14: 00 | S14: 01 | T14: 05 | U14: 0100 | V14: 000025210 - TUPAC AMARU | X14: 04 | Y14: CALCA | Z14: 04 - CALCA | AB14: 01 | AC14: 04 | AD14: SAN JERONIMO | AE14: 0104 | AF14: 0104 - SAN JERONIMO
D15: 06-Junio | F15: 05 | G15: KIMBIRI PICHARI | H15: 05 - KIMBIRI PICHARI | J15: 01 | K15: 06 | L15: PAUCARTAMBO | M15: 0106 - PAUCARTAMBO | N15: =+N13+1 -> 4 | O15: 000000000 | P15: (All) | Q15: 01 | R15: 03 | U15: 0103 | V15: 000000000 - (All) | X15: 05 | Y15: CANAS | Z15: 05 - CANAS | AB15: 01 | AC15: 05 | AD15: SAN SEBASTIAN | AE15: 0105 | AF15: 0105 - SAN SEBASTIAN
D16: 07-Julio | F16: 06 | G16: CHUMBIVILCAS | H16: 06 - CHUMBIVILCAS | J16: 01 | K16: 12 | L16: URCOS | M16: 0112 - URCOS | O16: 000002499 | P16: PARURO | Q16: 01 | R16: 03 | S16: 10 | T16: 01 | U16: 0103 | V16: 000002499 - PARURO | X16: 06 | Y16: CANCHIS | Z16: 06 - CANCHIS | AB16: 01 | AC16: 06 | AD16: SANTIAGO | AE16: 0106 | AF16: 0106 - SANTIAGO
D17: 08-Agosto | F17: 99 | G17: (All) | H17: 99 - (All) | J17: 01 | K17: 13 | L17: ACOMAYO | M17: 0113 - ACOMAYO | N17: =+N15+1 -> 5 | O17: 000002500 | P17: ACCHA | Q17: 01 | R17: 03 | S17: 10 | T17: 02 | U17: 0103 | V17: 000002500 - ACCHA | X17: 07 | Y17: CHUMBIVILCAS | Z17: 07 - CHUMBIVILCAS | AB17: 01 | AC17: 07 | AD17: SAYLLA | AE17: 0107 | AF17: 0107 - SAYLLA
D18: 09-Setiembre | J18: 01 | K18: 15 | L18: OCONGATE | M18: 0115 - OCONGATE | N18: 6 | O18: 000002501 | P18: CCAPI | Q18: 01 | R18: 03 | S18: 10 | T18: 03 | U18: 0103 | V18: 000002501 - CCAPI | X18: 08 | Y18: ESPINAR | Z18: 08 - ESPINAR | AB18: 01 | AC18: 08 | AD18: WANCHAQ | AE18: 0108 | AF18: 0108 - WANCHAQ
D19: 10-Octubre | J19: 01 | K19: 99 | L19: (All) | M19: 0199 - (All) | N19: 7 | O19: 000002502 | P19: CCOYABAMBA | Q19: 01 | R19: 03 | S19: 10 | T19: 03 | U19: 0103 | V19: 000002502 - CCOYABAMBA | X19: 09 | Y19: LA CONVENCION | Z19: 09 - LA CONVENCION | AB19: 02 | AC19: 00 | AD19: (All) | AE19: 0200 | AF19: 0200 - (All)
D20: 11-Noviembre | F20: EJECUTORAS | J20: 02 | K20: 01 | L20: BELEMPAMPA | M20: 0201 - BELEMPAMPA | N20: 8 | O20: 000002503 | P20: COLCHA | Q20: 01 | R20: 03 | S20: 10 | T20: 04 | U20: 0103 | V20: 000002503 - COLCHA | X20: 10 | Y20: PARURO | Z20: 10 - PARURO | AB20: 02 | AC20: 01 | AD20: ACOMAYO | AE20: 0201 | AF20: 0201 - ACOMAYO
D21: 12-Diciembre | F21: COD_RED | G21: DESC_RED | H21: CONCATENAR | J21: 02 | K21: 02 | L21: WANCHAQ | M21: 0202 - WANCHAQ | N21: 9 | O21: 000006978 | P21: CCOCHIRIHUAY | Q21: 01 | R21: 03 | S21: 10 | T21: 04 | U21: 0103 | V21: 000006978 - CCOCHIRIHUAY | X21: 11 | Y21: PAUCARTAMBO | Z21: 11 - PAUCARTAMBO | AB21: 02 | AC21: 02 | AD21: ACOPIA | AE21: 0202 | AF21: 0202 - ACOPIA
F22: 01 | G22: HOSPITAL REGIONAL CUSCO | H22: =CONCATENATE(F22," - ",G22) -> 01 - HOSPITAL REGIONAL CUSCO | J22: 02 | K22: 03 | L22: ANTA | M22: 0203 - ANTA | N22: 10 | O22: 000002504 | P22: HUANOQUITE | Q22: 01 | R22: 03 | S22: 10 | T22: 05 | U22: 0103 | V22: 000002504 - HUANOQUITE | X22: 12 | Y22: QUISPICANCHI | Z22: 12 - QUISPICANCHI | AB22: 02 | AC22: 03 | AD22: ACOS | AE22: 0203 | AF22: 0203 - ACOS
F23: 02 | G23: HOSPITAL ANTONIO LORENA | H23: =CONCATENATE(F23," - ",G23) -> 02 - HOSPITAL ANTONIO LORENA | J23: 02 | K23: 04 | L23: LIMATAMBO | M23: 0204 - LIMATAMBO | N23: 11 | O23: 000002505 | P23: OMACHA | Q23: 01 | R23: 03 | S23: 10 | T23: 06 | U23: 0103 | V23: 000002505 - OMACHA | X23: 13 | Y23: URUBAMBA | Z23: 13 - URUBAMBA | AB23: 02 | AC23: 04 | AD23: MOSOC LLACTA | AE23: 0204 | AF23: 0204 - MOSOC LLACTA
F24: 03 | G24: CUSCO NORTE | H24: 03 - CUSCO NORTE | J24: 02 | K24: 05 | L24: PISAC | M24: 0205 - PISAC | N24: 12 | O24: 000002506 | P24: ANTAPALLPA | Q24: 01 | R24: 03 | S24: 10 | T24: 06 | U24: 0103 | V24: 000002506 - ANTAPALLPA | AB24: 02 | AC24: 05 | AD24: POMACANCHI | AE24: 0205 | AF24: 0205 - POMACANCHI
F25: 04 | G25: CUSCO SUR | H25: 04 - CUSCO SUR | J25: 02 | K25: 06 | L25: CALCA | M25: 0206 - CALCA | N25: 13 | O25: 000007147 | P25: PUESTO DE SALUD DE HUASQUILLAY | Q25: 01 | R25: 03 | S25: 10 | T25: 06 | U25: 0103 | V25: 000007147 - PUESTO DE SALUD DE HUASQUILLAY | AB25: 02 | AC25: 06 | AD25: RONDOCAN | AE25: 0206 | AF25: 0206 - RONDOCAN
F26: 05 | G26: LA CONVENCION | H26: 05 - LA CONVENCION | J26: 02 | K26: 07 | L26: URUBAMBA | M26: 0207 - URUBAMBA | N26: 14 | O26: 000012924 | P26: SAHUA SAHUA | Q26: 01 | R26: 03 | S26: 10 | T26: 06 | U26: 0103 | V26: 000012924 - SAHUA SAHUA | AB26: 02 | AC26: 07 | AD26: SANGARARA | AE26: 0207 | AF26: 0207 - SANGARARA
F27: 06 | G27: HOSPITAL QUILLABAMBA | H27: 06 - HOSPITAL QUILLABAMBA | J27: 02 | K27: 08 | L27: YANATILE | M27: 0208 - YANATILE | N27: 15 | O27: 000002507 | P27: PACCARECTAMBO | Q27: 01 | R27: 03 | S27: 10 | T27: 07 | U27: 0103 | V27: 000002507 - PACCARECTAMBO | AB27: 03 | AC27: 00 | AD27: (All) | AE27: 0300 | AF27: 0300 - (All)
F28: 07 | G28: CANAS CANCHIS ESPINAR | H28: 07 - CANAS CANCHIS ESPINAR | J28: 02 | K28: 09 | L28: SIETE CUARTONES | M28: 0209 - SIETE CUARTONES | N28: 16 | O28: 000002509 | P28: YAURISQUE | Q28: 01 | R28: 03 | S28: 10 | T28: 09 | U28: 0103 | V28: 000002509 - YAURISQUE | AB28: 03 | AC28: 01 | AD28: ANTA | AE28: 0301 | AF28: 0301 - ANTA
F29: 08 | G29: HOSPITAL SICUANI | H29: 08 - HOSPITAL SICUANI | J29: 02 | K29: 99 | L29: (All) | M29: 0299 - (All) | N29: 17 | O29: 000000000 | P29: (All) | Q29: 01 | R29: 06 | U29: 0106 | V29: 000000000 - (All) | AB29: 03 | AC29: 02 | AD29: ANCAHUASI | AE29: 0302 | AF29: 0302 - ANCAHUASI
F30: 09 | G30: HOSPITAL ESPINAR | H30: 09 - HOSPITAL ESPINAR | J30: 03 | K30: 00 | L30: NO PERTENECE A NINGUNA MICRORED | M30: 0300 - NO PERTENECE A NINGUNA MICRORED | O30: 000002520 | P30: HUANCARANI | Q30: 01 | R30: 06 | S30: 11 | T30: 05 | U30: 0106 | V30: 000002520 - HUANCARANI | AB30: 03 | AC30: 03 | AD30: CACHIMAYO | AE30: 0303 | AF30: 0303 - CACHIMAYO
F31: 10 | G31: KIMBIRI PICHARI | H31: 10 - KIMBIRI PICHARI | J31: 03 | K31: 01 | L31: SANTA ANA | M31: 0301 - SANTA ANA | N31: =+N29+1 -> 18 | O31: 000002521 | P31: PILCOPATA | Q31: 01 | R31: 06 | S31: 11 | T31: 06 | U31: 0106 | V31: 000002521 - PILCOPATA | AB31: 03 | AC31: 04 | AD31: CHINCHAYPUJIO | AE31: 0304 | AF31: 0304 - CHINCHAYPUJIO
F32: 11 | G32: CHUMBIVILCAS | H32: 11 - CHUMBIVILCAS | J32: 03 | K32: 02 | L32: MARANURA | M32: 0302 - MARANURA | N32: 19 | O32: 000002522 | P32: PATRIA | Q32: 01 | R32: 06 | S32: 11 | T32: 06 | U32: 0106 | V32: 000002522 - PATRIA | AB32: 03 | AC32: 05 | AD32: HUAROCONDO | AE32: 0305 | AF32: 0305 - HUAROCONDO
F33: 99 | G33: (ALL) | H33: =CONCATENATE(F33," - ",G33) -> 99 - (ALL) | J33: 03 | K33: 03 | L33: QUELLOUNO | M33: 0303 - QUELLOUNO | N33: 20 | O33: 000002510 | P33: PAUCARTAMBO | Q33: 01 | R33: 06 | S33: 11 | T33: 01 | U33: 0106 | V33: 000002510 - PAUCARTAMBO | AB33: 03 | AC33: 06 | AD33: LIMATAMBO | AE33: 0306 | AF33: 0306 - LIMATAMBO
J34: 03 | K34: 04 | L34: KITENI | M34: 0304 - KITENI | N34: 21 | O34: 000002511 | P34: MOLLOMARCA | Q34: 01 | R34: 06 | S34: 11 | T34: 01 | U34: 0106 | V34: 000002511 - MOLLOMARCA | AB34: 03 | AC34: 07 | AD34: MOLLEPATA | AE34: 0307 | AF34: 0307 - MOLLEPATA
J35: 03 | K35: 05 | L35: KAMISEA | M35: 0305 - KAMISEA | N35: 22 | O35: 000010077 | P35: PAUCARTAMBO -ESSALUD | Q35: 01 | R35: 06 | S35: 11 | T35: 01 | U35: 0106 | V35: 000010077 - PAUCARTAMBO -ESSALUD | AB35: 03 | AC35: 08 | AD35: PUCYURA | AE35: 0308 | AF35: 0308 - PUCYURA
F36: SECTORES | J36: 03 | K36: 06 | L36: PUCYURA | M36: 0306 - PUCYURA | N36: 23 | O36: 000033777 | P36: MENTAL COMUNITARIO VIRGEN DEL ROSARIO | Q36: 01 | R36: 06 | S36: 11 | T36: 01 | U36: 0106 | V36: 000033777 - MENTAL COMUNITARIO VIRGEN DEL ROSARIO | AB36: 03 | AC36: 09 | AD36: ZURITE | AE36: 0309 | AF36: 0309 - ZURITE
F37: COD_SECTOR | G37: DESC_RED | H37: CONCATENAR | J37: 03 | K37: 07 | L37: PALMA REAL | M37: 0307 - PALMA REAL | N37: 24 | O37: 000002512 | P37: CAICAY | Q37: 01 | R37: 06 | S37: 11 | T37: 02 | U37: 0106 | V37: 000002512 - CAICAY | AB37: 04 | AC37: 00 | AD37: (All) | AE37: 0400 | AF37: 0400 - (All)
F38: 1 | G38: GORE | H38: =CONCATENATE(F38," - ",G38) -> 1 - GORE | J38: 03 | K38: 99 | L38: (All) | M38: 0399 - (All) | N38: 25 | O38: 000002513 | P38: HUASAC | Q38: 01 | R38: 06 | S38: 11 | T38: 02 | U38: 0106 | V38: 000002513 - HUASAC | AB38: 04 | AC38: 01 | AD38: CALCA | AE38: 0401 | AF38: 0401 - CALCA
F39: 2 | G39: ESSALUD | H39: =CONCATENATE(F39," - ",G39) -> 2 - ESSALUD | J39: 04 | K39: 00 | L39: NO PERTENECE A NINGUNA MICRORED | M39: 0400 - NO PERTENECE A NINGUNA MICRORED | N39: 26 | O39: 000002514 | P39: CHALLABAMBA | Q39: 01 | R39: 06 | S39: 11 | T39: 03 | U39: 0106 | V39: 000002514 - CHALLABAMBA | AB39: 04 | AC39: 02 | AD39: COYA | AE39: 0402 | AF39: 0402 - COYA
F40: 3 | G40: OTROS | H40: =CONCATENATE(F40," - ",G40) -> 3 - OTROS | J40: 04 | K40: 01 | L40: YANAOCA | M40: 0401 - YANAOCA | N40: 27 | O40: 000002516 | P40: COLQUEPATA | Q40: 01 | R40: 06 | S40: 11 | T40: 04 | U40: 0106 | V40: 000002516 - COLQUEPATA | AB40: 04 | AC40: 03 | AD40: LAMAY | AE40: 0403 | AF40: 0403 - LAMAY
F41: 99 | G41: (ALL) | H41: =CONCATENATE(F41," - ",G41) -> 99 - (ALL) | J41: 04 | K41: 02 | L41: EL DESCANSO | M41: 0402 - EL DESCANSO | N41: 28 | O41: 000002517 | P41: PICHIHUA COLQUEPATA | Q41: 01 | R41: 06 | S41: 11 | T41: 04 | U41: 0106 | V41: 000002517 - PICHIHUA COLQUEPATA | AB41: 04 | AC41: 04 | AD41: LARES | AE41: 0404 | AF41: 0404 - LARES
J42: 04 | K42: 03 | L42: COMBAPATA | M42: 0403 - COMBAPATA | N42: 29 | O42: 000002518 | P42: VIZCOCHONI | Q42: 01 | R42: 06 | S42: 11 | T42: 04 | U42: 0106 | V42: 000002518 - VIZCOCHONI | AB42: 04 | AC42: 05 | AD42: PISAC | AE42: 0405 | AF42: 0405 - PISAC
J43: 04 | K43: 04 | L43: TECHO OBRERO | M43: 0404 - TECHO OBRERO | N43: 30 | O43: 000002519 | P43: AYRE | Q43: 01 | R43: 06 | S43: 11 | T43: 04 | U43: 0106 | V43: 000002519 - AYRE | AB43: 04 | AC43: 06 | AD43: SAN SALVADOR | AE43: 0406 | AF43: 0406 - SAN SALVADOR
J44: 04 | K44: 05 | L44: PAMPAPHALLA | M44: 0405 - PAMPAPHALLA | N44: 31 | O44: 000006979 | P44: TOCRA | Q44: 01 | R44: 06 | S44: 11 | T44: 04 | U44: 0106 | V44: 000006979 - TOCRA | AB44: 04 | AC44: 07 | AD44: TARAY | AE44: 0407 | AF44: 0407 - TARAY
J45: 04 | K45: 06 | L45: YAURI | M45: 0406 - YAURI | N45: 32 | O45: 000000000 | P45: (All) | Q45: 01 | R45: 12 | U45: 0112 | V45: 000000000 - (All) | AB45: 04 | AC45: 08 | AD45: YANATILE | AE45: 0408 | AF45: 0408 - YANATILE
J46: 04 | K46: 99 | L46: (All) | M46: 0499 - (All) | O46: 000002523 | P46: URCOS | Q46: 01 | R46: 12 | S46: 12 | T46: 01 | U46: 0112 | V46: 000002523 - URCOS | AB46: 05 | AC46: 00 | AD46: (All) | AE46: 0500 | AF46: 0500 - (All)
J47: 05 | K47: 00 | L47: NO PERTENECE A NINGUNA MICRORED | M47: 0500 - NO PERTENECE A NINGUNA MICRORED | N47: =+N45+1 -> 33 | O47: 000026385 | P47: ESSALUD-URCOS | Q47: 01 | R47: 12 | S47: 12 | T47: 01 | U47: 0112 | V47: 000026385 - ESSALUD-URCOS | AB47: 05 | AC47: 01 | AD47: YANAOCA | AE47: 0501 | AF47: 0501 - YANAOCA
J48: 05 | K48: 01 | L48: KIMBIRI | M48: 0501 - KIMBIRI | N48: 34 | O48: 000002525 | P48: ANDAHUAYLILLAS | Q48: 01 | R48: 12 | S48: 12 | T48: 02 | U48: 0112 | V48: 000002525 - ANDAHUAYLILLAS | AB48: 05 | AC48: 02 | AD48: CHECCA | AE48: 0502 | AF48: 0502 - CHECCA
J49: 05 | K49: 02 | L49: PICHARI | M49: 0502 - PICHARI | N49: 35 | O49: 000008911 | P49: HUARA HUARA | Q49: 01 | R49: 12 | S49: 12 | T49: 05 | U49: 0112 | V49: 000008911 - HUARA HUARA | AB49: 05 | AC49: 03 | AD49: KUNTURKANKI | AE49: 0503 | AF49: 0503 - KUNTURKANKI
J50: 05 | K50: 99 | L50: (All) | M50: 0599 - (All) | N50: 36 | O50: 000002530 | P50: CUSIPATA | Q50: 01 | R50: 12 | S50: 12 | T50: 06 | U50: 0112 | V50: 000002530 - CUSIPATA | AB50: 05 | AC50: 04 | AD50: LANGUI | AE50: 0504 | AF50: 0504 - LANGUI
J51: 06 | K51: 00 | L51: NO PERTENECE A NINGUNA MICRORED | M51: 0600 - NO PERTENECE A NINGUNA MICRORED | N51: 37 | O51: 000006980 | P51: CHILLIHUANI | Q51: 01 | R51: 12 | S51: 12 | T51: 06 | U51: 0112 | V51: 000006980 - CHILLIHUANI | AB51: 05 | AC51: 05 | AD51: LAYO | AE51: 0505 | AF51: 0505 - LAYO
J52: 06 | K52: 09 | L52: SANTO TOMAS | M52: 0609 - SANTO TOMAS | N52: 38 | O52: 000002532 | P52: HUARO | Q52: 01 | R52: 12 | S52: 12 | T52: 07 | U52: 0112 | V52: 000002532 - HUARO | AB52: 05 | AC52: 06 | AD52: PAMPAMARCA | AE52: 0506 | AF52: 0506 - PAMPAMARCA
J53: 06 | K53: 01 | L53: LIVITACA | M53: 0601 - LIVITACA | N53: 39 | O53: 000002533 | P53: URPAY | Q53: 01 | R53: 12 | S53: 12 | T53: 07 | U53: 0112 | V53: 000002533 - URPAY | AB53: 05 | AC53: 07 | AD53: QUEHUE | AE53: 0507 | AF53: 0507 - QUEHUE
J54: 06 | K54: 99 | L54: (All) | M54: 0699 - (All) | N54: 40 | O54: 000011747 | P54: POSTA MEDICA POLICIAL PUCUTO | Q54: 01 | R54: 12 | S54: 12 | T54: 07 | U54: 0112 | V54: 000011747 - POSTA MEDICA POLICIAL PUCUTO | AB54: 05 | AC54: 08 | AD54: TUPAC AMARU | AE54: 0508 | AF54: 0508 - TUPAC AMARU
J55: 99 | K55: 99 | L55: (All) | M55: 9999 - (All) | N55: 41 | O55: 000030708 | P55: MENTAL COMUNITARIO HUARO | Q55: 01 | R55: 12 | S55: 12 | T55: 07 | U55: 0112 | V55: 000030708 - MENTAL COMUNITARIO HUARO | AB55: 06 | AC55: 00 | AD55: (All) | AE55: 0600 | AF55: 0600 - (All)
N56: 42 | O56: 000002534 | P56: LUCRE | Q56: 01 | R56: 12 | S56: 12 | T56: 08 | U56: 0112 | V56: 000002534 - LUCRE | AB56: 06 | AC56: 01 | AD56: SICUANI | AE56: 0601 | AF56: 0601 - SICUANI
N57: 43 | O57: 000002537 | P57: OROPESA | Q57: 01 | R57: 12 | S57: 12 | T57: 11 | U57: 0112 | V57: 000002537 - OROPESA | AB57: 06 | AC57: 02 | AD57: CHECACUPE | AE57: 0602 | AF57: 0602 - CHECACUPE
N58: 44 | O58: 000002538 | P58: QUIQUIJANA | Q58: 01 | R58: 12 | S58: 12 | T58: 12 | U58: 0112 | V58: 000002538 - QUIQUIJANA | AB58: 06 | AC58: 03 | AD58: COMBAPATA | AE58: 0603 | AF58: 0603 - COMBAPATA
N59: 45 | O59: 000002539 | P59: CCOLCA | Q59: 01 | R59: 12 | S59: 12 | T59: 12 | U59: 0112 | V59: 000002539 - CCOLCA | AB59: 06 | AC59: 04 | AD59: MARANGANI | AE59: 0604 | AF59: 0604 - MARANGANI
N60: 46 | O60: 000000000 | P60: (All) | Q60: 01 | R60: 13 | U60: 0113 | V60: 000000000 - (All) | AB60: 06 | AC60: 05 | AD60: PITUMARCA | AE60: 0605 | AF60: 0605 - PITUMARCA
O61: 000002317 | P61: ACOMAYO | Q61: 01 | R61: 13 | S61: 02 | T61: 01 | U61: 0113 | V61: 000002317 - ACOMAYO | AB61: 06 | AC61: 06 | AD61: SAN PABLO | AE61: 0606 | AF61: 0606 - SAN PABLO
N62: =+N60+1 -> 47 | O62: 000010076 | P62: ACOMAYO - ESSALUD | Q62: 01 | R62: 13 | S62: 02 | T62: 01 | U62: 0113 | V62: 000010076 - ACOMAYO - ESSALUD | AB62: 06 | AC62: 07 | AD62: SAN PEDRO | AE62: 0607 | AF62: 0607 - SAN PEDRO
N63: 48 | O63: 000002318 | P63: ACOPIA | Q63: 01 | R63: 13 | S63: 02 | T63: 02 | U63: 0113 | V63: 000002318 - ACOPIA | AB63: 06 | AC63: 08 | AD63: TINTA | AE63: 0608 | AF63: 0608 - TINTA
N64: 49 | O64: 000002319 | P64: ACOS | Q64: 01 | R64: 13 | S64: 02 | T64: 03 | U64: 0113 | V64: 000002319 - ACOS | AB64: 07 | AC64: 00 | AD64: (All) | AE64: 0700 | AF64: 0700 - (All)
N65: 50 | O65: 000002321 | P65: POMACANCHI | Q65: 01 | R65: 13 | S65: 02 | T65: 05 | U65: 0113 | V65: 000002321 - POMACANCHI | AB65: 07 | AC65: 01 | AD65: SANTO TOMAS | AE65: 0701 | AF65: 0701 - SANTO TOMAS
N66: 51 | O66: 000002322 | P66: SAN JUAN DE POMACANCHI | Q66: 01 | R66: 13 | S66: 02 | T66: 05 | U66: 0113 | V66: 000002322 - SAN JUAN DE POMACANCHI | AB66: 07 | AC66: 02 | AD66: CAPACMARCA | AE66: 0702 | AF66: 0702 - CAPACMARCA
N67: 52 | O67: 000012926 | P67: SANTA LUCIA | Q67: 01 | R67: 13 | S67: 02 | T67: 05 | U67: 0113 | V67: 000012926 - SANTA LUCIA | AB67: 07 | AC67: 03 | AD67: CHAMACA | AE67: 0703 | AF67: 0703 - CHAMACA
N68: 53 | O68: 000002324 | P68: PUESTO DE SALUD SANGARARA | Q68: 01 | R68: 13 | S68: 02 | T68: 07 | U68: 0113 | V68: 000002324 - PUESTO DE SALUD SANGARARA | AB68: 07 | AC68: 04 | AD68: COLQUEMARCA | AE68: 0704 | AF68: 0704 - COLQUEMARCA
N69: 54 | O69: 000002325 | P69: PUESTO DE SALUD MARCACONGA | Q69: 01 | R69: 13 | S69: 02 | T69: 07 | U69: 0113 | V69: 000002325 - PUESTO DE SALUD MARCACONGA | AB69: 07 | AC69: 05 | AD69: LIVITACA | AE69: 0705 | AF69: 0705 - LIVITACA
N70: 55 | O70: 000002508 | P70: PILLPINTO | Q70: 01 | R70: 13 | S70: 10 | T70: 08 | U70: 0113 | V70: 000002508 - PILLPINTO | AB70: 07 | AC70: 06 | AD70: LLUSCO | AE70: 0706 | AF70: 0706 - LLUSCO
N71: 56 | O71: 000000000 | P71: (All) | Q71: 01 | R71: 15 | U71: 0115 | V71: 000000000 - (All) | AB71: 07 | AC71: 07 | AD71: QUIÑOTA | AE71: 0707 | AF71: 0707 - QUIÑOTA
O72: 000002526 | P72: QUINCE MIL | Q72: 01 | R72: 15 | S72: 12 | T72: 03 | U72: 0115 | V72: 000002526 - QUINCE MIL | AB72: 07 | AC72: 08 | AD72: VELILLE | AE72: 0708 | AF72: 0708 - VELILLE
N73: =+N71+1 -> 57 | O73: 000002527 | P73: CCARHUAYO | Q73: 01 | R73: 15 | S73: 12 | T73: 04 | U73: 0115 | V73: 000002527 - CCARHUAYO | AB73: 08 | AC73: 00 | AD73: (All) | AE73: 0800 | AF73: 0800 - (All)
N74: 58 | O74: 000002524 | P74: PAMPACAMARA | Q74: 01 | R74: 15 | S74: 12 | T74: 05 | U74: 0115 | V74: 000002524 - PAMPACAMARA | AB74: 08 | AC74: 01 | AD74: ESPINAR | AE74: 0801 | AF74: 0801 - ESPINAR
N75: 59 | O75: 000002528 | P75: CCATCCA | Q75: 01 | R75: 15 | S75: 12 | T75: 05 | U75: 0115 | V75: 000002528 - CCATCCA | AB75: 08 | AC75: 02 | AD75: CONDOROMA | AE75: =CONCATENATE(AB75,AC75) -> 0802 | AF75: =CONCATENATE(AB75,AC75," - ",AD75) -> 0802 - CONDOROMA
N76: 60 | O76: 000002529 | P76: KCAURY | Q76: 01 | R76: 15 | S76: 12 | T76: 05 | U76: 0115 | V76: 000002529 - KCAURY | AB76: 08 | AC76: 03 | AD76: COPORAQUE | AE76: 0803 | AF76: 0803 - COPORAQUE
N77: =+N76+1 -> 61 | O77: 000012931 | P77: CHICHINA | Q77: 01 | R77: 15 | S77: 12 | T77: 05 | U77: 0115 | V77: 000012931 - CHICHINA | AB77: 08 | AC77: 04 | AD77: OCORURO | AE77: 0804 | AF77: 0804 - OCORURO
N78: 62 | O78: 000016335 | P78: CCAPANA | Q78: 01 | R78: 15 | S78: 12 | T78: 05 | U78: 0115 | V78: 000016335 - CCAPANA | AB78: 08 | AC78: 05 | AD78: PALLPATA | AE78: 0805 | AF78: 0805 - PALLPATA
N79: 63 | O79: 000002535 | P79: MARCAPATA | Q79: 01 | R79: 15 | S79: 12 | T79: 09 | U79: 0115 | V79: 000002535 - MARCAPATA | AB79: 08 | AC79: 06 | AD79: PICHIGUA | AE79: 0806 | AF79: 0806 - PICHIGUA
N80: 64 | O80: 000007110 | P80: INCACANCHA | Q80: 01 | R80: 15 | S80: 12 | T80: 09 | U80: =CONCATENATE(Q80,R80) -> 0115 | V80: =CONCATENATE(O80," - ",P80) -> 000007110 - INCACANCHA | AB80: 08 | AC80: 07 | AD80: SUYCKUTAMBO | AE80: 0807 | AF80: 0807 - SUYCKUTAMBO
N81: 65 | O81: 000002536 | P81: OCONGATE | Q81: 01 | R81: 15 | S81: 12 | T81: 10 | U81: 0115 | V81: 000002536 - OCONGATE | AB81: 08 | AC81: 08 | AD81: ALTO PICHIGUA | AE81: 0808 | AF81: 0808 - ALTO PICHIGUA
N82: 66 | O82: 000006977 | P82: TINKI | Q82: 01 | R82: 15 | S82: 12 | T82: 10 | U82: 0115 | V82: 000006977 - TINKI | AB82: 09 | AC82: 00 | AD82: (All) | AE82: 0900 | AF82: 0900 - (All)
N83: 67 | O83: 000000000 | P83: (All) | Q83: 01 | R83: 16 | U83: 0116 | V83: 000000000 - (All) | AB83: 09 | AC83: 01 | AD83: SANTA ANA | AE83: 0901 | AF83: 0901 - SANTA ANA
O84: 000002300 | P84: SAN JERONIMO | Q84: 01 | R84: 16 | S84: 01 | T84: 04 | U84: 0116 | V84: 000002300 - SAN JERONIMO | AB84: 09 | AC84: 02 | AD84: ECHARATE | AE84: 0902 | AF84: 0902 - ECHARATE
N85: =+N83+1 -> 68 | O85: 000007699 | P85: CONCHACALLE | Q85: 01 | R85: 16 | S85: 01 | T85: 04 | U85: 0116 | V85: 000007699 - CONCHACALLE | AB85: 09 | AC85: 03 | AD85: HUAYOPATA | AE85: 0903 | AF85: 0903 - HUAYOPATA
N86: 69 | O86: 000018926 | P86: ESTABLECIMIENTO PENITENCIARIO CUSCO VARONES | Q86: 01 | R86: 16 | S86: 01 | T86: 04 | U86: 0116 | V86: 000018926 - ESTABLECIMIENTO PENITENCIARIO CUSCO VARONES | AB86: 09 | AC86: 04 | AD86: MARANURA | AE86: 0904 | AF86: 0904 - MARANURA
N87: 70 | O87: 000021187 | P87: ESTABLECIMIENTO PENITENCIARIO CUSCO MUJERES | Q87: 01 | R87: 16 | S87: 01 | T87: 04 | U87: 0116 | V87: 000021187 - ESTABLECIMIENTO PENITENCIARIO CUSCO MUJERES | AB87: 09 | AC87: 05 | AD87: OCOBAMBA | AE87: 0905 | AF87: 0905 - OCOBAMBA
N88: 71 | O88: 000030727 | P88: PATRÓN SAN SEBASTIAN | Q88: 01 | R88: 16 | S88: 01 | T88: 04 | U88: 0116 | V88: 000030727 - PATRÓN SAN SEBASTIAN | AB88: 09 | AC88: 06 | AD88: QUELLOUNO | AE88: 0906 | AF88: 0906 - QUELLOUNO
N89: 72 | O89: 000002301 | P89: SAN SEBASTIAN | Q89: 01 | R89: 16 | S89: 01 | T89: 05 | U89: 0116 | V89: 000002301 - SAN SEBASTIAN | AB89: 09 | AC89: 07 | AD89: KIMBIRI | AE89: 0907 | AF89: 0907 - KIMBIRI
N90: 73 | O90: 000002303 | P90: SANTA ROSA | Q90: 01 | R90: 16 | S90: 01 | T90: 05 | U90: 0116 | V90: 000002303 - SANTA ROSA | AB90: 09 | AC90: 08 | AD90: SANTA TERESA | AE90: 0908 | AF90: 0908 - SANTA TERESA
N91: 74 | O91: 000010065 | P91: SAN SEBASTIAN ESSALUD | Q91: 01 | R91: 16 | S91: 01 | T91: 05 | U91: 0116 | V91: 000010065 - SAN SEBASTIAN ESSALUD | AB91: 09 | AC91: 09 | AD91: VILCABAMBA | AE91: 0909 | AF91: 0909 - VILCABAMBA
N92: 75 | O92: 000011743 | P92: POLICIAL "SANTA ROSA" CUSCO | Q92: 01 | R92: 16 | S92: 01 | T92: 05 | U92: 0116 | V92: 000011743 - POLICIAL "SANTA ROSA" CUSCO | AB92: 09 | AC92: 10 | AD92: PICHARI | AE92: 0910 | AF92: 0910 - PICHARI
N93: 76 | O93: 000026181 | P93: MENTAL SAN SEBASTIAN | Q93: 01 | R93: 16 | S93: 01 | T93: 05 | U93: 0116 | V93: 000026181 - MENTAL SAN SEBASTIAN | AB93: 09 | AC93: 11 | AD93: INKAWASI | AE93: 0911 | AF93: 0911 - INKAWASI
N94: 77 | O94: 000002314 | P94: SAYLLA | Q94: 01 | R94: 16 | S94: 01 | T94: 07 | U94: 0116 | V94: 000002314 - SAYLLA | AB94: 09 | AC94: 12 | AD94: VILLA VIRGEN | AE94: 0912 | AF94: 0912 - VILLA VIRGEN
N95: 78 | O95: 000002323 | P95: RONDOCAN | Q95: 01 | R95: 16 | S95: 02 | T95: 06 | U95: 0116 | V95: 000002323 - RONDOCAN | AB95: 09 | AC95: 13 | AD95: VILLA KINTIARINA | AE95: 0913 | AF95: 0913 - VILLA KINTIARINA
N96: 79 | O96: 999999999 | P96: (All) | Q96: 01 | R96: 99 | U96: 0199 | V96: 999999999 - (All) | AB96: 09 | AC96: 14 | AD96: MEGANTONI | AE96: 0914 | AF96: 0914 - MEGANTONI
O97: 000000000 | P97: (All) | Q97: 02 | R97: 01 | U97: 0201 | V97: 000000000 - (All) | AB97: 09 | AC97: 15 | AD97: KUMPIRUSHIATO | AE97: 0915 | AF97: 0915 - KUMPIRUSHIATO
O98: 000002292 | P98: INDEPENDENCIA | Q98: 02 | R98: 01 | S98: 01 | T98: 01 | U98: 0201 | V98: 000002292 - INDEPENDENCIA | AB98: 09 | AC98: 16 | AD98: CIELO PUNCO | AE98: 0916 | AF98: 0916 - CIELO PUNCO
N99: =+N96+1 -> 80 | O99: 000002297 | P99: CCORCCA | Q99: 02 | R99: 01 | S99: 01 | T99: 02 | U99: 0201 | V99: 000002297 - CCORCCA | AB99: 09 | AC99: 17 | AD99: MANITEA | AE99: 0917 | AF99: 0917 - MANITEA
N100: 81 | O100: 000002306 | P100: BELEMPAMPA | Q100: 02 | R100: 01 | S100: 01 | T100: 06 | U100: 0201 | V100: 000002306 - BELEMPAMPA | AB100: 09 | AC100: 18 | AD100: UNION ASHANINKA | AE100: 0918 | AF100: 0918 - UNION ASHANINKA
N101: 82 | O101: 000002308 | P101: ZARZUELA ALTA | Q101: 02 | R101: 01 | S101: 01 | T101: 06 | U101: 0201 | V101: 000002308 - ZARZUELA ALTA | AB101: 09 | AC101: 00 | AD101: (All) | AE101: 0900 | AF101: 0900 - (All)
N102: 83 | O102: 000002309 | P102: DIGNIDAD NACIONAL | Q102: 02 | R102: 01 | S102: 01 | T102: 06 | U102: 0201 | V102: 000002309 - DIGNIDAD NACIONAL | AB102: 10 | AC102: 01 | AD102: PARURO | AE102: 1001 | AF102: 1001 - PARURO
N103: 84 | O103: 000002313 | P103: OCCOPATA | Q103: 02 | R103: 01 | S103: 01 | T103: 06 | U103: 0201 | V103: 000002313 - OCCOPATA | AB103: 10 | AC103: 02 | AD103: ACCHA | AE103: 1002 | AF103: 1002 - ACCHA
N104: 85 | O104: 000010920 | P104: QUINTA BRIGADA DE MONTAÑA | Q104: 02 | R104: 01 | S104: 01 | T104: 06 | U104: 0201 | V104: 000010920 - QUINTA BRIGADA DE MONTAÑA | AB104: 10 | AC104: 03 | AD104: CCAPI | AE104: 1003 | AF104: 1003 - CCAPI
N105: 86 | O105: 000026182 | P105: MENTAL SANTIAGO | Q105: 02 | R105: 01 | S105: 01 | T105: 06 | U105: 0201 | V105: 000026182 - MENTAL SANTIAGO | AB105: 10 | AC105: 04 | AD105: COLCHA | AE105: 1004 | AF105: 1004 - COLCHA
N106: 87 | O106: 000034933 | P106: SANTIAGO ESSALUD | Q106: 02 | R106: 01 | S106: 01 | T106: 06 | U106: 0201 | V106: 000034933 - SANTIAGO ESSALUD | AB106: 10 | AC106: 05 | AD106: HUANOQUITE | AE106: 1005 | AF106: 1005 - HUANOQUITE
N107: 88 | O107: 000023721 | P107: EJERCITO-PERUANO 5TA BM | Q107: 02 | R107: 01 | S107: 01 | T107: 06 | U107: 0201 | V107: 000023721 - EJERCITO-PERUANO 5TA BM | AB107: 10 | AC107: 06 | AD107: OMACHA | AE107: 1006 | AF107: 1006 - OMACHA
O108: 000000000 | P108: (All) | Q108: 02 | R108: 02 | U108: 0202 | V108: 000000000 - (All) | AB108: 10 | AC108: 07 | AD108: PACCARITAMBO | AE108: 1007 | AF108: 1007 - PACCARITAMBO
N109: =+N107+1 -> 89 | O109: 000034419 | P109: MENTAL COMUNITARIO CUSCO | Q109: 02 | R109: 02 | S109: 01 | T109: 01 | U109: 0202 | V109: 000034419 - MENTAL COMUNITARIO CUSCO | AB109: 10 | AC109: 08 | AD109: PILLPINTO | AE109: 1008 | AF109: 1008 - PILLPINTO
N110: 90 | O110: 000002302 | P110: CCORAO | Q110: 02 | R110: 02 | S110: 01 | T110: 05 | U110: 0202 | V110: 000002302 - CCORAO | AB110: 10 | AC110: 09 | AD110: YAURISQUE | AE110: 1009 | AF110: 1009 - YAURISQUE
N111: 91 | O111: 000002307 | P111: MANCO CAPAC | Q111: 02 | R111: 02 | S111: 01 | T111: 06 | U111: 0202 | V111: 000002307 - MANCO CAPAC | AB111: 11 | AC111: 00 | AD111: (All) | AE111: 1100 | AF111: 1100 - (All)
N112: 92 | O112: 000002310 | P112: CHOCCO | Q112: 02 | R112: 02 | S112: 01 | T112: 06 | U112: 0202 | V112: 000002310 - CHOCCO | AB112: 11 | AC112: 01 | AD112: PAUCARTAMBO | AE112: 1101 | AF112: 1101 - PAUCARTAMBO
N113: 93 | O113: 000002315 | P113: WANCHAQ | Q113: 02 | R113: 02 | S113: 01 | T113: 08 | U113: 0202 | V113: 000002315 - WANCHAQ | AB113: 11 | AC113: 02 | AD113: CAICAY | AE113: 1102 | AF113: 1102 - CAICAY
N114: 94 | O114: 000002316 | P114: TTIO | Q114: 02 | R114: 02 | S114: 01 | T114: 08 | U114: 0202 | V114: 000002316 - TTIO | AB114: 11 | AC114: 03 | AD114: CHALLABAMBA | AE114: 1103 | AF114: 1103 - CHALLABAMBA
N115: 95 | O115: 000010041 | P115: ADOLFO GUEVARA VELASCO | Q115: 02 | R115: 02 | S115: 01 | T115: 08 | U115: 0202 | V115: 000010041 - ADOLFO GUEVARA VELASCO | AB115: 11 | AC115: 04 | AD115: COLQUEPATA | AE115: 1104 | AF115: 1104 - COLQUEPATA
N116: 96 | O116: 000026183 | P116: METROPOLITANO | Q116: 02 | R116: 02 | S116: 01 | T116: 08 | U116: 0202 | V116: 000026183 - METROPOLITANO | AB116: 11 | AC116: 05 | AD116: HUANCARANI | AE116: 1105 | AF116: 1105 - HUANCARANI
O117: 000030730 | P117: PATRON SANTIAGO | Q117: 02 | R117: 02 | S117: 01 | T117: 08 | U117: 0202 | V117: 000030730 - PATRON SANTIAGO | AB117: 11 | AC117: 06 | AD117: KOSÑIPATA | AE117: 1106 | AF117: 1106 - KOSÑIPATA
N118: =+N116+1 -> 97 | O118: 000000000 | P118: (All) | Q118: 02 | R118: 03 | U118: 0203 | V118: 000000000 - (All) | AB118: 12 | AC118: 00 | AD118: (All) | AE118: 1200 | AF118: 1200 - (All)
N119: 98 | O119: 000002326 | P119: ANTA | Q119: 02 | R119: 03 | S119: 03 | T119: 01 | U119: 0203 | V119: 000002326 - ANTA | AB119: 12 | AC119: 01 | AD119: URCOS | AE119: 1201 | AF119: 1201 - URCOS
N120: 99 | O120: 000002328 | P120: COMPONE | Q120: 02 | R120: 03 | S120: 03 | T120: 01 | U120: 0203 | V120: 000002328 - COMPONE | AB120: 12 | AC120: 02 | AD120: ANDAHUAYLILLAS | AE120: 1202 | AF120: 1202 - ANDAHUAYLILLAS
N121: 100 | O121: 000002329 | P121: CONCHACALLA | Q121: 02 | R121: 03 | S121: 03 | T121: 01 | U121: 0203 | V121: 000002329 - CONCHACALLA | AB121: 12 | AC121: 03 | AD121: CAMANTI | AE121: 1203 | AF121: 1203 - CAMANTI
N122: 101 | O122: 000027790 | P122: MENTAL COMUNITARIO ANTA | Q122: 02 | R122: 03 | S122: 03 | T122: 01 | U122: 0203 | V122: 000027790 - MENTAL COMUNITARIO ANTA | AB122: 12 | AC122: 04 | AD122: CCARHUAYO | AE122: 1204 | AF122: 1204 - CCARHUAYO
N123: 102 | O123: 000029514 | P123: ESSALUD ANTA | Q123: 02 | R123: 03 | S123: 03 | T123: 01 | U123: 0203 | V123: 000029514 - ESSALUD ANTA | AB123: 12 | AC123: 05 | AD123: CCATCA | AE123: 1205 | AF123: 1205 - CCATCA
N124: 103 | O124: 000002330 | P124: ANCAHUASI | Q124: 02 | R124: 03 | S124: 03 | T124: 02 | U124: 0203 | V124: 000002330 - ANCAHUASI | AB124: 12 | AC124: 06 | AD124: CUSIPATA | AE124: 1206 | AF124: 1206 - CUSIPATA
N125: 104 | O125: 000002331 | P125: CACHIMAYO | Q125: 02 | R125: 03 | S125: 03 | T125: 03 | U125: 0203 | V125: 000002331 - CACHIMAYO | AB125: 12 | AC125: 07 | AD125: HUARO | AE125: 1207 | AF125: 1207 - HUARO
N126: 105 | O126: 000006972 | P126: PANTIPATA | Q126: 02 | R126: 03 | S126: 03 | T126: 04 | U126: 0203 | V126: 000006972 - PANTIPATA | AB126: 12 | AC126: 08 | AD126: LUCRE | AE126: 1208 | AF126: 1208 - LUCRE
N127: 106 | O127: 000036240 | P127: CHINCHAYPUJIO | Q127: 02 | R127: 03 | S127: 03 | T127: 04 | U127: 0203 | V127: 000036240 - CHINCHAYPUJIO | AB127: 12 | AC127: 09 | AD127: MARCAPATA | AE127: 1209 | AF127: 1209 - MARCAPATA
N128: 107 | O128: 000035838 | P128: PARCCOTICA | Q128: 02 | R128: 03 | S128: 03 | T128: 04 | U128: 0203 | V128: 000035838 - PARCCOTICA | AB128: 12 | AC128: 10 | AD128: OCONGATE | AE128: 1210 | AF128: 1210 - OCONGATE
N129: 108 | O129: 000002333 | P129: HUAROCONDO | Q129: 02 | R129: 03 | S129: 03 | T129: 05 | U129: 0203 | V129: 000002333 - HUAROCONDO | AB129: 12 | AC129: 11 | AD129: OROPESA | AE129: 1211 | AF129: 1211 - OROPESA
N130: 109 | O130: 000002334 | P130: HUAYLLACOCHA | Q130: 02 | R130: 03 | S130: 03 | T130: 05 | U130: 0203 | V130: 000002334 - HUAYLLACOCHA | AB130: 12 | AC130: 12 | AD130: QUIQUIJANA | AE130: 1212 | AF130: 1212 - QUIQUIJANA
N131: 110 | O131: 000002339 | P131: PUCYURA ANTA | Q131: 02 | R131: 03 | S131: 03 | T131: 08 | U131: 0203 | V131: 000002339 - PUCYURA ANTA | AB131: 13 | AC131: 00 | AD131: (All) | AE131: 1300 | AF131: 1300 - (All)
O132: 000002340 | P132: ZURITE | Q132: 02 | R132: 03 | S132: 03 | T132: 09 | U132: 0203 | V132: 000002340 - ZURITE | AB132: 13 | AC132: 01 | AD132: URUBAMBA | AE132: 1301 | AF132: 1301 - URUBAMBA
N133: =+N131+1 -> 111 | O133: 000002327 | P133: CHACAN | Q133: 02 | R133: 03 | S133: 03 | T133: 01 | U133: 0203 | V133: 000002327 - CHACAN | AB133: 13 | AC133: 02 | AD133: CHINCHERO | AE133: 1302 | AF133: 1302 - CHINCHERO
N134: 112 | O134: 000000000 | P134: (All) | Q134: 02 | R134: 04 | U134: 0204 | V134: 000000000 - (All) | AB134: 13 | AC134: 03 | AD134: HUAYLLABAMBA | AE134: 1303 | AF134: 1303 - HUAYLLABAMBA
N135: 113 | O135: 000002336 | P135: LIMATAMBO | Q135: 02 | R135: 04 | S135: 03 | T135: 06 | U135: 0204 | V135: 000002336 - LIMATAMBO | AB135: 13 | AC135: 04 | AD135: MACHUPICCHU | AE135: 1304 | AF135: 1304 - MACHUPICCHU
N136: 114 | O136: 000002337 | P136: PAMPACONGA | Q136: 02 | R136: 04 | S136: 03 | T136: 06 | U136: 0204 | V136: 000002337 - PAMPACONGA | AB136: 13 | AC136: 05 | AD136: MARAS | AE136: 1305 | AF136: 1305 - MARAS
N137: 115 | O137: 000010761 | P137: URATARI | Q137: 02 | R137: 04 | S137: 03 | T137: 06 | U137: 0204 | V137: 000010761 - URATARI | AB137: 13 | AC137: 06 | AD137: OLLANTAYTAMBO | AE137: 1306 | AF137: 1306 - OLLANTAYTAMBO
O138: 000002338 | P138: MOLLEPATA | Q138: 02 | R138: 04 | S138: 03 | T138: 07 | U138: 0204 | V138: 000002338 - MOLLEPATA | AB138: 13 | AC138: 07 | AD138: YUCAY | AE138: =CONCATENATE(AB138,AC138) -> 1307 | AF138: 1307 - YUCAY
N139: =+N137+1 -> 116 | O139: 000021061 | P139: HUAMANPATA | Q139: 02 | R139: 04 | S139: 03 | T139: 07 | U139: 0204 | V139: 000021061 - HUAMANPATA | AB139: 00 | AC139: 00 | AD139: (All) | AE139: =CONCATENATE(AB139,AC139) -> 0000 | AF139: 0000 - (All)
N140: 117 | O140: 000000000 | P140: (All) | Q140: 02 | R140: 05 | U140: 0205 | V140: 000000000 - (All)
N141: =+N140+1 -> 118 | O141: 000002343 | P141: COYA | Q141: 02 | R141: 05 | S141: 04 | T141: 02 | U141: 0205 | V141: 000002343 - COYA
N142: 119 | O142: 000002344 | P142: LAMAY | Q142: 02 | R142: 05 | S142: 04 | T142: 03 | U142: 0205 | V142: 000002344 - LAMAY
N143: 120 | O143: 000006975 | P143: SAYLLAFAYA | Q143: 02 | R143: 05 | S143: 04 | T143: 03 | U143: 0205 | V143: 000006975 - SAYLLAFAYA
N144: 121 | O144: 000007145 | P144: HUAMA | Q144: 02 | R144: 05 | S144: 04 | T144: 03 | U144: 0205 | V144: 000007145 - HUAMA
N145: 122 | O145: 000007146 | P145: POQUES | Q145: 02 | R145: 05 | S145: 04 | T145: 03 | U145: 0205 | V145: 000007146 - POQUES
N146: 123 | O146: 000036012 | P146: HUARQUI | Q146: 02 | R146: 05 | S146: 04 | T146: 03 | U146: 0205 | V146: 000036012 - HUARQUI
N147: 124 | O147: 000002348 | P147: PISAC | Q147: 02 | R147: 05 | S147: 04 | T147: 05 | U147: 0205 | V147: 000002348 - PISAC
N148: 125 | O148: 000002349 | P148: CUYO CHICO | Q148: 02 | R148: 05 | S148: 04 | T148: 05 | U148: 0205 | V148: 000002349 - CUYO CHICO
N149: 126 | O149: 000002350 | P149: CUYO GRANDE | Q149: 02 | R149: 05 | S149: 04 | T149: 05 | U149: 0205 | V149: 000002350 - CUYO GRANDE
N150: 127 | O150: 000002351 | P150: QUELLO QUELLO | Q150: 02 | R150: 05 | S150: 04 | T150: 05 | U150: =CONCATENATE(Q150,R150) -> 0205 | V150: =CONCATENATE(O150," - ",P150) -> 000002351 - QUELLO QUELLO
N151: 128 | O151: 000002352 | P151: SAN SALVADOR | Q151: 02 | R151: 05 | S151: 04 | T151: 06 | U151: 0205 | V151: 000002352 - SAN SALVADOR
N152: 129 | O152: 000036087 | P152: TIRACANCHA | Q152: 02 | R152: 05 | S152: 04 | T152: 06 | U152: 0205 | V152: 000036087 - TIRACANCHA
O153: 000002353 | P153: TARAY | Q153: 02 | R153: 05 | S153: 04 | T153: 07 | U153: 0205 | V153: 000002353 - TARAY
N154: =+N152+1 -> 130 | O154: 000002354 | P154: HUANCALLE | Q154: 02 | R154: 05 | S154: 04 | T154: 07 | U154: 0205 | V154: 000002354 - HUANCALLE
N155: 131 | O155: 000000000 | P155: (All) | Q155: 02 | R155: 06 | U155: 0206 | V155: 000000000 - (All)
N156: 132 | O156: 000002341 | P156: CALCA | Q156: 02 | R156: 06 | S156: 04 | T156: 01 | U156: 0206 | V156: 000002341 - CALCA
N157: 133 | O157: 000010069 | P157: ESSALUD CALCA | Q157: 02 | R157: 06 | S157: 04 | T157: 01 | U157: 0206 | V157: 000010069 - ESSALUD CALCA
N158: 134 | O158: 000010759 | P158: HUARAN | Q158: 02 | R158: 06 | S158: 04 | T158: 01 | U158: 0206 | V158: 000010759 - HUARAN
N159: 135 | O159: 000010762 | P159: ACCHA ALTA - PAMPALLACTA | Q159: 02 | R159: 06 | S159: 04 | T159: 01 | U159: 0206 | V159: 000010762 - ACCHA ALTA - PAMPALLACTA
N160: 136 | O160: 000026273 | P160: MENTAL COMUNITARIO VIRGEN ASUNTA DE CALCA | Q160: 02 | R160: 06 | S160: 04 | T160: 01 | U160: 0206 | V160: 000026273 - MENTAL COMUNITARIO VIRGEN ASUNTA DE CALCA
N161: 137 | O161: 000002342 | P161: AMPARAES | Q161: 02 | R161: 06 | S161: 04 | T161: 04 | U161: 0206 | V161: 000002342 - AMPARAES
N162: 138 | O162: 000002345 | P162: CCACHIN | Q162: 02 | R162: 06 | S162: 04 | T162: 04 | U162: 0206 | V162: 000002345 - CCACHIN
N163: 139 | O163: 000002346 | P163: CHOQUECANCHA | Q163: 02 | R163: 06 | S163: 04 | T163: 04 | U163: 0206 | V163: 000002346 - CHOQUECANCHA
N164: 140 | O164: 000002347 | P164: LARES | Q164: 02 | R164: 06 | S164: 04 | T164: 04 | U164: 0206 | V164: 000002347 - LARES
N165: 141 | O165: 000002361 | P165: SUYO | Q165: 02 | R165: 06 | S165: 04 | T165: 04 | U165: 0206 | V165: 000002361 - SUYO
N166: 142 | O166: 000007144 | P166: PATABAMBA | Q166: 02 | R166: 06 | S166: 04 | T166: 07 | U166: 0206 | V166: 000007144 - PATABAMBA
N167: 143 | O167: 000002515 | P167: PAROBAMBA | Q167: 02 | R167: 06 | S167: 11 | T167: 03 | U167: 0206 | V167: 000002515 - PAROBAMBA
N168: 144 | O168: 000007143 | P168: OTOCANI | Q168: 02 | R168: 06 | S168: 11 | T168: 03 | U168: 0206 | V168: 000007143 - OTOCANI
N169: 145 | O169: 000000000 | P169: (All) | Q169: 02 | R169: 07 | U169: 0207 | V169: 000000000 - (All)
N170: 146 | O170: 000002540 | P170: URUBAMBA | Q170: 02 | R170: 07 | S170: 13 | T170: 01 | U170: 0207 | V170: 000002540 - URUBAMBA
N171: 147 | O171: 000002541 | P171: YANAHUARA | Q171: 02 | R171: 07 | S171: 13 | T171: 01 | U171: 0207 | V171: 000002541 - YANAHUARA
N172: 148 | O172: 000010060 | P172: CAS URUBAMBA -ESSALUD | Q172: 02 | R172: 07 | S172: 13 | T172: 01 | U172: 0207 | V172: 000010060 - CAS URUBAMBA -ESSALUD
N173: 149 | O173: 000030666 | P173: MENTAL COMUNITARIO URUBAMBA | Q173: 02 | R173: 07 | S173: 13 | T173: 01 | U173: 0207 | V173: 000030666 - MENTAL COMUNITARIO URUBAMBA
N174: 150 | O174: 000035851 | P174: URUBAMBA - ESSALUD | Q174: 02 | R174: 07 | S174: 13 | T174: 01 | U174: 0207 | V174: 000035851 - URUBAMBA - ESSALUD
N175: 151 | O175: 000002543 | P175: CHINCHERO | Q175: 02 | R175: 07 | S175: 13 | T175: 02 | U175: 0207 | V175: 000002543 - CHINCHERO
N176: 152 | O176: 000002544 | P176: OCCOTUAN | Q176: 02 | R176: 07 | S176: 13 | T176: 02 | U176: 0207 | V176: 000002544 - OCCOTUAN
N177: 153 | O177: 000002545 | P177: HUAYLLABAMBA | Q177: 02 | R177: 07 | S177: 13 | T177: 03 | U177: 0207 | V177: 000002545 - HUAYLLABAMBA
N178: 154 | O178: 000002546 | P178: MACHUPICCHU | Q178: 02 | R178: 07 | S178: 13 | T178: 04 | U178: 0207 | V178: 000002546 - MACHUPICCHU
N179: 155 | O179: 000002547 | P179: COLLPANI | Q179: 02 | R179: 07 | S179: 13 | T179: 04 | U179: 0207 | V179: 000002547 - COLLPANI
N180: 156 | O180: 000006974 | P180: CAMINO INCA HUAYLLABAMBA | Q180: 02 | R180: 07 | S180: 13 | T180: 04 | U180: 0207 | V180: 000006974 - CAMINO INCA HUAYLLABAMBA
N181: 157 | O181: 000010073 | P181: MACHU PICCHU - ESSALUD | Q181: 02 | R181: 07 | S181: 13 | T181: 04 | U181: 0207 | V181: 000010073 - MACHU PICCHU - ESSALUD
N182: 158 | O182: 000002548 | P182: MARAS | Q182: 02 | R182: 07 | S182: 13 | T182: 05 | U182: 0207 | V182: 000002548 - MARAS
N183: 159 | O183: 000010758 | P183: CRUZPATA | Q183: 02 | R183: 07 | S183: 13 | T183: 05 | U183: 0207 | V183: 000010758 - CRUZPATA
N184: 160 | O184: 000002549 | P184: OLLANTAYTAMBO | Q184: 02 | R184: 07 | S184: 13 | T184: 06 | U184: 0207 | V184: 000002549 - OLLANTAYTAMBO
N185: 161 | O185: 000002550 | P185: CHILLCA | Q185: 02 | R185: 07 | S185: 13 | T185: 06 | U185: 0207 | V185: 000002550 - CHILLCA
N186: 162 | O186: 000010760 | P186: PATACANCHA | Q186: 02 | R186: 07 | S186: 13 | T186: 06 | U186: 0207 | V186: 000010760 - PATACANCHA
N187: 163 | O187: 000002551 | P187: YUCAY | Q187: 02 | R187: 07 | S187: 13 | T187: 07 | U187: 0207 | V187: 000002551 - YUCAY
N188: 164 | O188: 000000000 | P188: (All) | Q188: 02 | R188: 08 | U188: 0208 | V188: 000000000 - (All)
N189: 165 | O189: 000002355 | P189: LA QUEBRADA | Q189: 02 | R189: 08 | S189: 04 | T189: 08 | U189: 0208 | V189: 000002355 - LA QUEBRADA
N190: 166 | O190: 000002356 | P190: CCORIMAYO | Q190: 02 | R190: 08 | S190: 04 | T190: 08 | U190: 0208 | V190: 000002356 - CCORIMAYO
N191: 167 | O191: 000002357 | P191: COLCCA YANATILE | Q191: 02 | R191: 08 | S191: 04 | T191: 08 | U191: 0208 | V191: 000002357 - COLCCA YANATILE
N192: 168 | O192: 000002358 | P192: MUYUPAY | Q192: 02 | R192: 08 | S192: 04 | T192: 08 | U192: 0208 | V192: 000002358 - MUYUPAY
N193: 169 | O193: 000002359 | P193: PUTUCUSI | Q193: 02 | R193: 08 | S193: 04 | T193: 08 | U193: 0208 | V193: 000002359 - PUTUCUSI
N194: 170 | O194: 000002360 | P194: QUESQUENTO | Q194: 02 | R194: 08 | S194: 04 | T194: 08 | U194: 0208 | V194: 000002360 - QUESQUENTO
N195: 171 | O195: 000002362 | P195: HUACHIBAMBA | Q195: 02 | R195: 08 | S195: 04 | T195: 08 | U195: 0208 | V195: 000002362 - HUACHIBAMBA
N196: 172 | O196: 000006971 | P196: COMBAPATA YANATILE | Q196: 02 | R196: 08 | S196: 04 | T196: 08 | U196: 0208 | V196: 000006971 - COMBAPATA YANATILE
N197: 173 | O197: 000006973 | P197: BELLAVISTA | Q197: 02 | R197: 08 | S197: 04 | T197: 08 | U197: 0208 | V197: 000006973 - BELLAVISTA
N198: 174 | O198: 000007142 | P198: CHANCAMAYO | Q198: 02 | R198: 08 | S198: 04 | T198: 08 | U198: 0208 | V198: 000007142 - CHANCAMAYO
N199: 175 | O199: 000002464 | P199: VERSALLES | Q199: 02 | R199: 08 | S199: 09 | T199: 05 | U199: 0208 | V199: 000002464 - VERSALLES
N200: 176 | O200: 000002467 | P200: PUENTE SANTIAGO | Q200: 02 | R200: 08 | S200: 09 | T200: 06 | U200: 0208 | V200: 000002467 - PUENTE SANTIAGO
N201: 177 | O201: 000000000 | P201: (All) | Q201: 02 | R201: 09 | U201: 0209 | V201: 000000000 - (All)
N202: 178 | O202: 000002290 | P202: SAN PEDRO CUSCO | Q202: 02 | R202: 09 | S202: 01 | T202: 01 | U202: 0209 | V202: 000002290 - SAN PEDRO CUSCO
N203: 179 | O203: 000002291 | P203: SIETE CUARTONES | Q203: 02 | R203: 09 | S203: 01 | T203: 01 | U203: 0209 | V203: 000002291 - SIETE CUARTONES
N204: 180 | O204: 000002293 | P204: MIRAFLORES | Q204: 02 | R204: 09 | S204: 01 | T204: 01 | U204: 0209 | V204: 000002293 - MIRAFLORES
N205: =+N204+1 -> 181 | O205: 000002294 | P205: PICCHU LA RINCONADA | Q205: 02 | R205: 09 | S205: 01 | T205: 01 | U205: 0209 | V205: 000002294 - PICCHU LA RINCONADA
N206: 182 | O206: 000002295 | P206: BUENA VISTA | Q206: 02 | R206: 09 | S206: 01 | T206: 01 | U206: 0209 | V206: 000002295 - BUENA VISTA
N207: 183 | O207: 000002299 | P207: POROY | Q207: 02 | R207: 09 | S207: 01 | T207: 03 | U207: 0209 | V207: 000002299 - POROY
N208: 184 | O208: 999999999 | P208: (All) | Q208: 02 | R208: 99 | U208: 0299 | V208: 999999999 - (All)
... 246 more rows

Sheet TABLAS (hidden)
C8: Valores | I8: Tabla | J8: =IF(I9="(Todas)","CUSCO ","") -> 
C9: RED | D9: 03 - LA CONVENCION | I9: =IF(MID(D9,1,2)="99","(All)",MID(D9,1,2)) -> 03 | J9: =IF(I9="(All)"," ",I9) -> 03 | M9: =LEN(MID(D9,5,90)) -> 14 | O9: =IF(MID(D9,6,5)="(All)","",D9) -> 03 - LA CONVENCION
C10: Micro RED | D10: 0399 - (All) | I10: =IF(MID(D10,3,2)="99","(All)",MID(D10,1,4)) -> (All) | M10: =LEN(MID(D10,7,90)) -> 6 | O10: =IF(MID(D10,8,5)="(All)","",D10) -> 
C11: Establecimiento | D11: 999999999 - (All) | I11: =IF(OR(MID(D11,1,9)="999999999",MID(D11,1,9)="000000000"),"(All)",MID(D11,1,9)) -> (All) | M11: =LEN(MID(D11,12,90)) -> 6 | O11: =IF(MID(D11,13,5)="(All)","",D11) -> 
C12: Provincia | D12: 00 - (All) | I12: =IF(MID(D12,1,2)="00","(All)",MID(D12,1,2)) -> (All) | M12: =LEN(MID(D12,6,90)) -> 5 | O12: =IF(MID(D12,6,5)="(All)","",D12) -> 
C13: Distrito | D13: 0000 - (All) | I13: =IF(OR(MID(D13,1,4)="0000",MID(D13,3,2)="00"),"(All)",MID(D13,1,4)) -> (All) | M13: =LEN(MID(D13,8,90)) -> 5 | O13: =IF(MID(D13,8,5)="(All)","",D13) -> 
C14: Ejecutora | D14: 99 - (ALL) | I14: =IF(MID(D14,1,2)="99","(All)",MID(D14,1,2)) -> (All) | M14: =LEN(MID(D14,5,90)) -> 6 | O14: =IF(MID(D14,6,5)="(All)","",D14) -> 
C16: Año | D16: 2025 | I16: =+D16 -> 2025 | J16: =IF(I16="(Todas)"," ",I16) -> 2025
B20: 1 | C20: 1 | D20: 1 | E20: 0 | F20: 0 | G20: 0 | H20: 0 | I20: 0 | J20: 0 | K20: 0 | L20: 0 | M20: 0 | N20: =SUM(B20:M20) -> 3
B21: =IF(B20=1,"ENERO","") -> ENERO | C21: =IF(C20=1,"FEBRERO","") -> FEBRERO | D21: =IF(D20=1,"MARZO","") -> MARZO | E21: =IF(E20=1,"ABRIL","") ->  | F21: =IF(F20=1,"MAYO","") ->  | G21: =IF(G20=1,"JUNIO","") ->  | H21: =IF(H20=1,"JULIO","") ->  | I21: =IF(I20=1,"AGOSTO","") ->  | J21: =IF(J20=1,"SETIEMBRE","") ->  | K21: =IF(K20=1,"OCTUBRE","") ->  | L21: =IF(L20=1,"NOVIEMBRE","") ->  | M21: =IF(M20=1,"DICIEMBRE","") ->  | N21: =IF(B20=1,B21,IF(C20=1,C21,IF(D20=1,D21,IF(E20=1,E21,IF(F20=1,F21,IF(G20=1,G21,IF(H20=1,H21,IF(I20=1,I21,IF(J20=1,J21,IF(K20=1,K21,IF(L20=1,L21,IF(M20=1,M21,"")))))))))))) -> ENERO
N22: =IF(N20=1,N21,"") -> 
B23: 2 | C23: 4 | D23: 6 | N23: =MIN(B23:M23) -> 2 | O23: =MAX(B23:M23) -> 6 | P23: =MAX(C23:N23) -> 6
B24: =IF(B23=2,"ENE","") -> ENE | C24: =IF(C23=4,"FEB","") -> FEB | D24: =IF(D23=6,"MAR","") -> MAR | E24: =IF(E23=8,"ABR","") ->  | F24: =IF(F23=10,"MAY","") ->  | G24: =IF(G23=12,"JUN","") ->  | H24: =IF(H23=14,"JUL","") ->  | I24: =IF(I23=16,"AGO","") ->  | J24: =IF(J23=18,"SET","") ->  | K24: =IF(K23=20,"OCT","") ->  | L24: =IF(L23=22,"NOV","") ->  | M24: =IF(M23=24,"DIC","") ->  | N24: =IF(N23=B23,B24,IF(N23=C23,C24,IF(N23=D23,D24,IF(N23=E23,E24,IF(N23=F23,F24,IF(N23=G23,G24,IF(N23=H23,H24,IF(N23=I23,I24,IF(N23=J23,J24,IF(N23=K23,K24,IF(N23=L23,L24,IF(N23=M23,M24,"")))))))))))) -> ENE | O24: =IF(O23=C23,C24,IF(O23=D23,D24,IF(O23=E23,E24,IF(O23=F23,F24,IF(O23=G23,G24,IF(O23=H23,H24,IF(O23=I23,I24,IF(O23=J23,J24,IF(O23=K23,K24,IF(O23=L23,L24,IF(O23=M23,M24,""))))))))))) -> MAR | P24: =IF(P23=D23,D24,IF(P23=E23,E24,IF(P23=F23,F24,IF(P23=G23,G24,IF(P23=H23,H24,IF(P23=I23,I24,IF(P23=J23,J24,IF(P23=K23,K24,IF(P23=L23,L24,IF(P23=M23,M24,IF(P23=N23,N24,""))))))))))) -> MAR
N25: =CONCATENATE(N24," - ",O24) -> ENE - MAR
N26: =IF(N23=O23,N22,N25) -> ENE - MAR
A66: PproD_001-1
A67: ANNO | B67: 2025
A68: cod_red | B68: 03
A69: codmic | B69: (Todas)
A70: cod_prov | B70: (Todas)
A71: coddist | B71: (Todas)
A72: cod_estab | B72: (Todas)
A73: cod_eje | B73: (Todas)
AK74: d_du | AL74: d_du | AM74: d_du | AN74: d_du | AO74: d_du | AP74: t_du | AQ74: t_du | AR74: t_du | AS74: t_du | AT74: t_du | AU74: c_du | AV74: c_du | AW74: ct_du | AX74: ct_du
B75: Valores
A76: Etiquetas de fila | B76: BAS001 | C76: BAS002 | D76: BAS003 | E76: BAS004 | F76: BAS005 | G76: BAS006 | H76: BAS007 | I76: BAS008 | J76: BAS009 | K76: BAS010 | L76: BAS011 | M76: BAS012 | N76: BAS013 | O76: BAS014 | P76: BAS015 | Q76: BAS016 | R76: BAS017 | S76: BAS018 | T76: BAS019 | U76: BAS020 | V76: BAS021 | W76: BAS022 | X76: BAS023 | Y76: BAS024 | Z76: BAS025 | AA76: BAS026 | AB76: BAS027 | AC76: BAS028 | AD76: BAS029 | AE76: BAS030 | AF76: BAS031 | AG76: BAS032 | AH76: BAS033 | AI76: BAS034 | AJ76: BAS035 | AK76: BAS036 | AL76: BAS037 | AM76: BAS038 | AN76: BAS039 | AO76: BAS040 | AP76: BAS041 | AQ76: BAS042 | AR76: BAS043 | AS76: BAS044 | AT76: BAS045 | AU76: BAS046 | AV76: BAS047 | AW76: BAS048 | AX76: BAS049 | AY76: BAS050 | AZ76: BAS051 | BA76: BAS052 | BB76: BAS053 | BC76: BAS054 | BD76: BAS055 | BE76: BAS056 | BF76: BAS057 | BG76: BAS058 | BH76: BAS059 | BI76: BAS060 | BJ76: BAS061 | BK76: BAS062 | BL76: BAS063 | BM76: BAS064 | BN76: BAS065 | BO76: BAS066 | BP76: BAS067 | BQ76: BAS068 | BR76: BAS069 | BS76: BAS070 | BT76: BAS071 | BU76: BAS072 | BV76: BAS073 | BW76: BAS074 | BX76: BAS075 | BY76: BAS076 | BZ76: BAS077 | CA76: BAS078 | CB76: BAS079 | CC76: BAS080 | CD76: BAS081 | CE76: BAS082 | CF76: BAS083 | CG76: BAS084 | CH76: BAS085 | CI76: BAS086 | CJ76: BAS087 | CK76: BAS088 | CL76: BAS089 | CM76: BAS090 | CN76: BAS091 | CO76: BAS092 | CP76: BAS093 | CQ76: BAS094 | CR76: BAS095 | CS76: BAS096 | CT76: BAS097 | CU76: BAS098 | CV76: BAS099 | CW76: BAS100 | CX76: BAS101 | CY76: BAS102 | CZ76: BAS103 | DA76: BAS104 | DB76: BAS105 | DC76: BAS106 | DD76: BAS107 | DE76: BAS108 | DF76: BAS109 | DG76: BAS110 | DH76: BAS111 | DI76: BAS112 | DJ76: BAS113 | DK76: BAS114 | DL76: BAS115 | DM76: BAS116 | DN76: BAS117 | DO76: BAS118 | DP76: BAS119 | DQ76: BAS120 | DR76: BAS121 | DS76: BAS122 | DT76: BAS123 | DU76: BAS124 | DV76: BAS125 | DW76: BAS126 | DX76: BAS127 | DY76: BAS128 | DZ76: BAS129 | EA76: BAS130 | EB76: BAS131 | EC76: BAS132 | ED76: BAS133 | EE76: BAS134 | EF76: BAS135 | EG76: BAS136 | EH76: BAS137 | EI76: BAS138 | EJ76: BAS139 | EK76: BAS140 | EL76: BAS141 | EM76: BAS142 | EN76: BAS143 | EO76: BAS144 | EP76: BAS145 | EQ76: BAS146 | ER76: BAS147 | ES76: BAS148 | ET76: BAS149 | EU76: BAS150 | EV76: BAS151 | EW76: BAS152 | EX76: BAS153 | EY76: BAS154 | EZ76: BAS155 | FA76: BAS156 | FB76: BAS157 | FC76: BAS158 | FD76: BAS159 | FE76: BAS160 | FF76: BAS161 | FG76: BAS162 | FH76: BAS163 | FI76: BAS164 | FJ76: BAS165 | FK76: BAS166 | FL76: BAS167 | FM76: BAS168 | FN76: BAS169 | FO76: BAS170 | FP76: BAS171 | FQ76: BAS172 | FR76: BAS173 | FS76: BAS174 | FT76: BAS175 | FU76: BAS176 | FV76: BAS177 | FW76: BAS178 | FX76: BAS179 | FY76: BAS180 | FZ76: BAS181 | GA76: BAS182 | GB76: BAS183 | GC76: BAS184 | GD76: BAS185 | GE76: BAS186 | GF76: BAS187 | GG76: BAS188 | GH76: BAS189 | GI76: BAS190 | GJ76: BAS191 | GK76: BAS192 | GL76: BAS193 | GM76: BAS194 | GN76: BAS195 | GO76: BAS196 | GP76: BAS197 | GQ76: BAS198 | GR76: BAS199 | GS76: BAS200 | GT76: BAS201 | GU76: BAS202 | GV76: BAS203 | GW76: BAS204 | GX76: BAS205 | GY76: BAS206 | GZ76: BAS207 | HA76: BAS208 | HB76: BAS209 | HC76: BAS210 | HD76: BAS211 | HE76: BAS212 | HF76: BAS213 | HG76: BAS214 | HH76: BAS215 | HI76: BAS216 | HJ76: BAS217 | HK76: BAS218 | HL76: BAS219 | HM76: BAS220 | HN76: BAS221 | HO76: BAS222 | HP76: BAS223 | HQ76: BAS224 | HR76: BAS225 | HS76: BAS226 | HT76: BAS227 | HU76: BAS228 | HV76: BAS229 | HW76: BAS230
A77: 1 | B77: 3 | C77: 4 | D77: 0 | E77: 0 | F77: 1 | G77: 1 | H77: 0 | I77: 0 | J77: 0 | K77: 0 | L77: 1 | M77: 0 | N77: 0 | O77: 0 | P77: 0 | Q77: 0 | R77: 0 | S77: 0 | T77: 40 | U77: 52 | V77: 36 | W77: 48 | X77: 0 | Y77: 4 | Z77: 6 | AA77: 8 | AB77: 24 | AC77: 27 | AD77: 79 | AE77: 42 | AF77: 54 | AG77: 29 | AH77: 51 | AI77: 37 | AJ77: 26 | AK77: 25 | AL77: 9 | AM77: 1 | AN77: 3 | AO77: 2 | AP77: 1 | AQ77: 4 | AR77: 1 | AS77: 20 | AT77: 6 | AU77: 19 | AV77: 1 | AW77: 20 | AX77: 1 | AY77: 20 | AZ77: 1 | BA77: 20 | BB77: 1 | BC77: 20 | BD77: 0 | BE77: 0 | BF77: 0 | BG77: 0 | BH77: 0 | BI77: 0 | BJ77: 0 | BK77: 0 | BL77: 0 | BM77: 0 | BN77: 0 | BO77: 0 | BP77: 0 | BQ77: 0 | BR77: 0 | BS77: 0 | BT77: 0 | BU77: 0 | BV77: 0 | BW77: 0 | BX77: 0 | BY77: 0 | BZ77: 0 | CA77: 0 | CB77: 0 | CC77: 0 | CD77: 0 | CE77: 0 | CF77: 0 | CG77: 0 | CH77: 1 | CI77: 15 | CJ77: 0 | CK77: 0 | CL77: 0 | CM77: 0 | CN77: 1 | CO77: 15 | CP77: 0 | CQ77: 0 | CR77: 0 | CS77: 0 | CT77: 0 | CU77: 0 | CV77: 0 | CW77: 0 | CX77: 0 | CY77: 0 | CZ77: 0 | DA77: 0 | DB77: 0 | DC77: 0 | DD77: 0 | DE77: 0 | DF77: 0 | DG77: 0 | DH77: 0 | DI77: 0 | DJ77: 0 | DK77: 0 | DL77: 1 | DM77: 6 | DN77: 4 | DO77: 29 | DP77: 1 | DQ77: 30 | DR77: 1 | DS77: 30 | DT77: 0 | DU77: 0 | DV77: 1 | DW77: 30 | DX77: 1 | DY77: 30 | DZ77: 0 | EA77: 0 | EB77: 1 | EC77: 30 | ED77: 1 | EE77: 30 | EF77: 0 | EG77: 0 | EH77: 0 | EI77: 0 | EJ77: 0 | EK77: 0 | EL77: 0 | EM77: 0 | EN77: 0 | EO77: 0 | EP77: 0 | EQ77: 0 | ER77: 0 | ES77: 0 | ET77: 0 | EU77: 0 | EV77: 0 | EW77: 0 | EX77: 0 | EY77: 0 | EZ77: 0 | FA77: 0 | FB77: 0 | FC77: 0 | FD77: 0 | FE77: 0 | FF77: 0 | FG77: 0 | FH77: 0 | FI77: 0 | FJ77: 0 | FK77: 0 | FL77: 0 | FM77: 0 | FN77: 0 | FO77: 0 | FP77: 0 | FQ77: 0 | FR77: 0 | FS77: 0 | FT77: 0 | FU77: 0 | FV77: 7 | FW77: 0 | FX77: 0 | FY77: 30 | FZ77: 0 | GA77: 0 | GB77: 0 | GC77: 0 | GD77: 0 | GE77: 0 | GF77: 0 | GG77: 0 | GH77: 0 | GI77: 0 | GJ77: 0 | GK77: 0 | GL77: 0 | GM77: 0 | GN77: 0 | GO77: 0 | GP77: 0 | GQ77: 0 | GR77: 0 | GS77: 0 | GT77: 0 | GU77: 0 | GV77: 0 | GW77: 0 | GX77: 0 | GY77: 0 | GZ77: 0 | HA77: 0 | HB77: 0 | HC77: 0 | HD77: 0 | HE77: 0 | HF77: 0 | HG77: 0 | HH77: 0 | HI77: 0 | HJ77: 0 | HK77: 0 | HL77: 0 | HM77: 0 | HN77: 0 | HO77: 0 | HP77: 0 | HQ77: 0 | HR77: 0 | HS77: 0 | HT77: 0 | HU77: 0 | HV77: 0 | HW77: 0
A78: 2 | B78: 15 | C78: 10 | D78: 7 | E78: 4 | F78: 0 | G78: 1 | H78: 3 | I78: 0 | J78: 0 | K78: 0 | L78: 0 | M78: 0 | N78: 1 | O78: 1 | P78: 0 | Q78: 0 | R78: 0 | S78: 0 | T78: 46 | U78: 59 | V78: 41 | W78: 51 | X78: 3 | Y78: 4 | Z78: 9 | AA78: 10 | AB78: 25 | AC78: 15 | AD78: 67 | AE78: 48 | AF78: 40 | AG78: 39 | AH78: 27 | AI78: 41 | AJ78: 31 | AK78: 20 | AL78: 2 | AM78: 3 | AN78: 0 | AO78: 4 | AP78: 3 | AQ78: 2 | AR78: 4 | AS78: 13 | AT78: 6 | AU78: 29 | AV78: 0 | AW78: 0 | AX78: 0 | AY78: 0 | AZ78: 0 | BA78: 0 | BB78: 0 | BC78: 0 | BD78: 0 | BE78: 0 | BF78: 0 | BG78: 0 | BH78: 0 | BI78: 0 | BJ78: 0 | BK78: 0 | BL78: 0 | BM78: 0 | BN78: 0 | BO78: 0 | BP78: 0 | BQ78: 0 | BR78: 0 | BS78: 0 | BT78: 0 | BU78: 0 | BV78: 0 | BW78: 0 | BX78: 0 | BY78: 0 | BZ78: 0 | CA78: 0 | CB78: 0 | CC78: 0 | CD78: 0 | CE78: 0 | CF78: 2 | CG78: 14 | CH78: 4 | CI78: 33 | CJ78: 4 | CK78: 43 | CL78: 0 | CM78: 0 | CN78: 4 | CO78: 33 | CP78: 4 | CQ78: 43 | CR78: 0 | CS78: 0 | CT78: 0 | CU78: 0 | CV78: 0 | CW78: 0 | CX78: 0 | CY78: 0 | CZ78: 0 | DA78: 0 | DB78: 0 | DC78: 0 | DD78: 0 | DE78: 0 | DF78: 0 | DG78: 0 | DH78: 0 | DI78: 0 | DJ78: 0 | DK78: 0 | DL78: 4 | DM78: 41 | DN78: 37 | DO78: 239 | DP78: 6 | DQ78: 36 | DR78: 2 | DS78: 12 | DT78: 1 | DU78: 5 | DV78: 2 | DW78: 10 | DX78: 2 | DY78: 17 | DZ78: 2 | EA78: 17 | EB78: 1 | EC78: 12 | ED78: 4 | EE78: 24 | EF78: 0 | EG78: 0 | EH78: 0 | EI78: 0 | EJ78: 0 | EK78: 0 | EL78: 2 | EM78: 10 | EN78: 2 | EO78: 10 | EP78: 2 | EQ78: 10 | ER78: 0 | ES78: 0 | ET78: 0 | EU78: 0 | EV78: 0 | EW78: 0 | EX78: 0 | EY78: 0 | EZ78: 0 | FA78: 0 | FB78: 2 | FC78: 38 | FD78: 37 | FE78: 1 | FF78: 5 | FG78: 5 | FH78: 1 | FI78: 3 | FJ78: 0 | FK78: 0 | FL78: 1 | FM78: 4 | FN78: 1 | FO78: 4 | FP78: 0 | FQ78: 0 | FR78: 0 | FS78: 0 | FT78: 0 | FU78: 0 | FV78: 25 | FW78: 0 | FX78: 0 | FY78: 36 | FZ78: 0 | GA78: 0 | GB78: 0 | GC78: 0 | GD78: 0 | GE78: 0 | GF78: 0 | GG78: 0 | GH78: 0 | GI78: 0 | GJ78: 0 | GK78: 0 | GL78: 0 | GM78: 0 | GN78: 0 | GO78: 0 | GP78: 0 | GQ78: 0 | GR78: 0 | GS78: 0 | GT78: 0 | GU78: 0 | GV78: 0 | GW78: 0 | GX78: 0 | GY78: 0 | GZ78: 0 | HA78: 0 | HB78: 0 | HC78: 0 | HD78: 0 | HE78: 0 | HF78: 0 | HG78: 0 | HH78: 0 | HI78: 0 | HJ78: 0 | HK78: 0 | HL78: 0 | HM78: 0 | HN78: 0 | HO78: 0 | HP78: 0 | HQ78: 0 | HR78: 0 | HS78: 0 | HT78: 0 | HU78: 0 | HV78: 0 | HW78: 0
A79: 3 | B79: 45 | C79: 34 | D79: 0 | E79: 2 | F79: 6 | G79: 15 | H79: 0 | I79: 0 | J79: 0 | K79: 0 | L79: 0 | M79: 0 | N79: 32 | O79: 28 | P79: 0 | Q79: 0 | R79: 6 | S79: 10 | T79: 53 | U79: 60 | V79: 49 | W79: 56 | X79: 1 | Y79: 1 | Z79: 5 | AA79: 6 | AB79: 16 | AC79: 18 | AD79: 65 | AE79: 47 | AF79: 41 | AG79: 29 | AH79: 29 | AI79: 27 | AJ79: 28 | AK79: 24 | AL79: 5 | AM79: 1 | AN79: 2 | AO79: 2 | AP79: 4 | AQ79: 2 | AR79: 0 | AS79: 0 | AT79: 2 | AU79: 4 | AV79: 1 | AW79: 1 | AX79: 0 | AY79: 0 | AZ79: 0 | BA79: 0 | BB79: 0 | BC79: 0 | BD79: 0 | BE79: 0 | BF79: 0 | BG79: 0 | BH79: 0 | BI79: 0 | BJ79: 0 | BK79: 0 | BL79: 0 | BM79: 0 | BN79: 0 | BO79: 0 | BP79: 0 | BQ79: 0 | BR79: 0 | BS79: 0 | BT79: 0 | BU79: 0 | BV79: 0 | BW79: 0 | BX79: 0 | BY79: 0 | BZ79: 0 | CA79: 0 | CB79: 0 | CC79: 0 | CD79: 0 | CE79: 0 | CF79: 1 | CG79: 10 | CH79: 2 | CI79: 20 | CJ79: 1 | CK79: 10 | CL79: 0 | CM79: 0 | CN79: 2 | CO79: 20 | CP79: 1 | CQ79: 10 | CR79: 0 | CS79: 0 | CT79: 0 | CU79: 0 | CV79: 0 | CW79: 0 | CX79: 0 | CY79: 0 | CZ79: 0 | DA79: 0 | DB79: 0 | DC79: 0 | DD79: 0 | DE79: 0 | DF79: 0 | DG79: 0 | DH79: 0 | DI79: 0 | DJ79: 0 | DK79: 0 | DL79: 3 | DM79: 58 | DN79: 13 | DO79: 74 | DP79: 3 | DQ79: 66 | DR79: 2 | DS79: 10 | DT79: 0 | DU79: 0 | DV79: 4 | DW79: 19 | DX79: 3 | DY79: 5 | DZ79: 1 | EA79: 10 | EB79: 0 | EC79: 0 | ED79: 2 | EE79: 11 | EF79: 2 | EG79: 14 | EH79: 2 | EI79: 14 | EJ79: 1 | EK79: 12 | EL79: 2 | EM79: 11 | EN79: 3 | EO79: 12 | EP79: 2 | EQ79: 7 | ER79: 0 | ES79: 0 | ET79: 1 | EU79: 6 | EV79: 1 | EW79: 6 | EX79: 0 | EY79: 0 | EZ79: 0 | FA79: 0 | FB79: 1 | FC79: 18 | FD79: 17 | FE79: 4 | FF79: 28 | FG79: 26 | FH79: 0 | FI79: 0 | FJ79: 1 | FK79: 1 | FL79: 15 | FM79: 105 | FN79: 6 | FO79: 51 | FP79: 1 | FQ79: 18 | FR79: 0 | FS79: 0 | FT79: 1 | FU79: 3 | FV79: 79 | FW79: 0 | FX79: 0 | FY79: 66 | FZ79: 3 | GA79: 0 | GB79: 0 | GC79: 0 | GD79: 0 | GE79: 0 | GF79: 0 | GG79: 0 | GH79: 0 | GI79: 0 | GJ79: 0 | GK79: 0 | GL79: 0 | GM79: 0 | GN79: 0 | GO79: 0 | GP79: 0 | GQ79: 0 | GR79: 0 | GS79: 0 | GT79: 0 | GU79: 0 | GV79: 0 | GW79: 0 | GX79: 0 | GY79: 0 | GZ79: 0 | HA79: 0 | HB79: 0 | HC79: 0 | HD79: 0 | HE79: 0 | HF79: 0 | HG79: 0 | HH79: 0 | HI79: 0 | HJ79: 0 | HK79: 0 | HL79: 0 | HM79: 0 | HN79: 0 | HO79: 0 | HP79: 0 | HQ79: 0 | HR79: 0 | HS79: 0 | HT79: 0 | HU79: 0 | HV79: 0 | HW79: 0
A80: T | B80: 63 | C80: 48 | D80: 7 | E80: 6 | F80: 7 | G80: 17 | H80: 3 | I80: 0 | J80: 0 | K80: 0 | L80: 1 | M80: 0 | N80: 33 | O80: 29 | P80: 0 | Q80: 0 | R80: 6 | S80: 10 | T80: 139 | U80: 171 | V80: 126 | W80: 155 | X80: 4 | Y80: 9 | Z80: 20 | AA80: 24 | AB80: 65 | AC80: 60 | AD80: 211 | AE80: 137 | AF80: 135 | AG80: 97 | AH80: 107 | AI80: 105 | AJ80: 85 | AK80: 69 | AL80: 16 | AM80: 5 | AN80: 5 | AO80: 8 | AP80: 8 | AQ80: 8 | AR80: 5 | AS80: 33 | AT80: 14 | AU80: 52 | AV80: 2 | AW80: 21 | AX80: 1 | AY80: 20 | AZ80: 1 | BA80: 20 | BB80: 1 | BC80: 20 | BD80: 0 | BE80: 0 | BF80: 0 | BG80: 0 | BH80: 0 | BI80: 0 | BJ80: 0 | BK80: 0 | BL80: 0 | BM80: 0 | BN80: 0 | BO80: 0 | BP80: 0 | BQ80: 0 | BR80: 0 | BS80: 0 | BT80: 0 | BU80: 0 | BV80: 0 | BW80: 0 | BX80: 0 | BY80: 0 | BZ80: 0 | CA80: 0 | CB80: 0 | CC80: 0 | CD80: 0 | CE80: 0 | CF80: 3 | CG80: 24 | CH80: 7 | CI80: 68 | CJ80: 5 | CK80: 53 | CL80: 0 | CM80: 0 | CN80: 7 | CO80: 68 | CP80: 5 | CQ80: 53 | CR80: 0 | CS80: 0 | CT80: 0 | CU80: 0 | CV80: 0 | CW80: 0 | CX80: 0 | CY80: 0 | CZ80: 0 | DA80: 0 | DB80: 0 | DC80: 0 | DD80: 0 | DE80: 0 | DF80: 0 | DG80: 0 | DH80: 0 | DI80: 0 | DJ80: 0 | DK80: 0 | DL80: 8 | DM80: 105 | DN80: 54 | DO80: 342 | DP80: 10 | DQ80: 132 | DR80: 5 | DS80: 52 | DT80: 1 | DU80: 5 | DV80: 7 | DW80: 59 | DX80: 6 | DY80: 52 | DZ80: 3 | EA80: 27 | EB80: 2 | EC80: 42 | ED80: 7 | EE80: 65 | EF80: 2 | EG80: 14 | EH80: 2 | EI80: 14 | EJ80: 1 | EK80: 12 | EL80: 4 | EM80: 21 | EN80: 5 | EO80: 22 | EP80: 4 | EQ80: 17 | ER80: 0 | ES80: 0 | ET80: 1 | EU80: 6 | EV80: 1 | EW80: 6 | EX80: 0 | EY80: 0 | EZ80: 0 | FA80: 0 | FB80: 3 | FC80: 56 | FD80: 54 | FE80: 5 | FF80: 33 | FG80: 31 | FH80: 1 | FI80: 3 | FJ80: 1 | FK80: 1 | FL80: 16 | FM80: 109 | FN80: 7 | FO80: 55 | FP80: 1 | FQ80: 18 | FR80: 0 | FS80: 0 | FT80: 1 | FU80: 3 | FV80: 111 | FW80: 0 | FX80: 0 | FY80: 132 | FZ80: 3 | GA80: 0 | GB80: 0 | GC80: 0 | GD80: 0 | GE80: 0 | GF80: 0 | GG80: 0 | GH80: 0 | GI80: 0 | GJ80: 0 | GK80: 0 | GL80: 0 | GM80: 0 | GN80: 0 | GO80: 0 | GP80: 0 | GQ80: 0 | GR80: 0 | GS80: 0 | GT80: 0 | GU80: 0 | GV80: 0 | GW80: 0 | GX80: 0 | GY80: 0 | GZ80: 0 | HA80: 0 | HB80: 0 | HC80: 0 | HD80: 0 | HE80: 0 | HF80: 0 | HG80: 0 | HH80: 0 | HI80: 0 | HJ80: 0 | HK80: 0 | HL80: 0 | HM80: 0 | HN80: 0 | HO80: 0 | HP80: 0 | HQ80: 0 | HR80: 0 | HS80: 0 | HT80: 0 | HU80: 0 | HV80: 0 | HW80: 0
A93: TOTAL
A94: =COUNT(A77:A91) -> 3 | B94: =SUM(B77:B91) -> 126 | C94: =SUM(C77:C91) -> 96 | D94: 14 | E94: 12 | F94: 14 | G94: 34 | H94: 6 | I94: 0 | J94: 0 | K94: 0 | L94: 2 | M94: 0 | N94: 66 | O94: 58 | P94: 0 | Q94: 0 | R94: 12 | S94: 20 | T94: 278 | U94: 342 | V94: 252 | W94: 310 | X94: 8 | Y94: 18 | Z94: 40 | AA94: 48 | AB94: 130 | AC94: 120 | AD94: 422 | AE94: 274 | AF94: 270 | AG94: 194 | AH94: 214 | AI94: 210 | AJ94: 170 | AK94: 138 | AL94: 32 | AM94: 10 | AN94: 10 | AO94: 16 | AP94: 16 | AQ94: 16 | AR94: 10 | AS94: 66 | AT94: 28 | AU94: 104 | AV94: 4 | AW94: 42 | AX94: 2 | AY94: 40 | AZ94: 2 | BA94: 40 | BB94: 2 | BC94: 40 | BD94: 0 | BE94: 0 | BF94: 0 | BG94: 0 | BH94: 0 | BI94: 0 | BJ94: 0 | BK94: 0 | BL94: 0 | BM94: 0 | BN94: 0 | BO94: =SUM(BO77:BO91) -> 0 | BP94: 0 | BQ94: 0 | BR94: 0 | BS94: 0 | BT94: 0 | BU94: 0 | BV94: 0 | BW94: 0 | BX94: 0 | BY94: 0 | BZ94: 0 | CA94: 0 | CB94: 0 | CC94: 0 | CD94: 0 | CE94: 0 | CF94: 6 | CG94: 48 | CH94: 14 | CI94: 136 | CJ94: 10 | CK94: 106 | CL94: 0 | CM94: 0 | CN94: 14 | CO94: 136 | CP94: 10 | CQ94: 106 | CR94: 0 | CS94: 0 | CT94: 0 | CU94: 0 | CV94: 0 | CW94: 0 | CX94: 0 | CY94: 0 | CZ94: 0 | DA94: 0 | DB94: 0 | DC94: 0 | DD94: 0 | DE94: 0 | DF94: 0 | DG94: 0 | DH94: 0 | DI94: 0 | DJ94: 0 | DK94: 0 | DL94: 16 | DM94: 210 | DN94: 108 | DO94: 684 | DP94: 20 | DQ94: 264 | DR94: 10 | DS94: 104 | DT94: 2 | DU94: 10 | DV94: 14 | DW94: 118 | DX94: 12 | DY94: 104 | DZ94: 6 | EA94: =SUM(EA77:EA91) -> 54 | EB94: 4 | EC94: 84 | ED94: 14 | EE94: 130 | EF94: 4 | EG94: 28 | EH94: 4 | EI94: 28 | EJ94: 2 | EK94: 24 | EL94: 8 | EM94: 42 | EN94: 10 | EO94: 44 | EP94: 8 | EQ94: 34 | ER94: 0 | ES94: 0 | ET94: 2 | EU94: 12 | EV94: 2 | EW94: 12 | EX94: 0 | EY94: 0 | EZ94: 0 | FA94: 0 | FB94: 6 | FC94: 112 | FD94: 108 | FE94: 10 | FF94: 66 | FG94: 62 | FH94: 2 | FI94: 6 | FJ94: 2 | FK94: 2 | FL94: 32 | FM94: 218 | FN94: 14 | FO94: 110 | FP94: 2 | FQ94: 36 | FR94: 0 | FS94: 0 | FT94: 2 | FU94: 6 | FV94: 222 | FW94: 0 | FX94: 0 | FY94: 264 | FZ94: 6 | GA94: 0 | GB94: 0 | GC94: 0 | GD94: 0 | GE94: 0 | GF94: 0 | GG94: 0 | GH94: 0 | GI94: 0 | GJ94: 0 | GK94: 0 | GL94: 0 | GM94: =SUM(GM77:GM91) -> 0 | GN94: 0 | GO94: 0 | GP94: 0 | GQ94: 0 | GR94: 0 | GS94: 0 | GT94: 0 | GU94: 0 | GV94: 0 | GW94: 0 | GX94: 0 | GY94: 0 | GZ94: 0 | HA94: 0 | HB94: 0 | HC94: 0 | HD94: 0 | HE94: 0 | HF94: 0 | HG94: 0 | HH94: 0 | HI94: 0 | HJ94: 0 | HK94: 0 | HL94: 0 | HM94: 0 | HN94: 0 | HO94: =SUM(HO77:HO91) -> 0 | HP94: 0 | HQ94: 0 | HR94: 0 | HS94: 0 | HT94: 0 | HU94: 0 | HV94: 0 | HW94: 0
A95: =CONCATENATE(A77,"-",A78,"-",A79,"-",A80,"-",A81,"-",A82,"-",A83,"-",A84,"-",A85,"-",A86,"-",A87,"-",A88) -> 1-2-3-T--------
B96: BAS001 | C96: BAS002 | D96: BAS003 | E96: BAS004 | F96: BAS005 | G96: BAS006 | H96: BAS007 | I96: BAS008 | J96: BAS009 | K96: BAS010 | L96: BAS011 | M96: BAS012 | N96: BAS013 | O96: BAS014 | P96: BAS015 | Q96: BAS016 | R96: BAS017 | S96: BAS018 | T96: BAS019 | U96: BAS020 | V96: BAS021 | W96: BAS022 | X96: BAS023 | Y96: BAS024 | Z96: BAS025 | AA96: BAS026 | AB96: BAS027 | AC96: BAS028 | AD96: BAS029 | AE96: BAS030 | AF96: BAS031 | AG96: BAS032 | AH96: BAS033 | AI96: BAS034 | AJ96: BAS035 | AK96: BAS036 | AL96: BAS037 | AM96: BAS038 | AN96: BAS039 | AO96: BAS040 | AP96: BAS041 | AQ96: BAS042 | AR96: BAS043 | AS96: BAS044 | AT96: BAS045 | AU96: BAS046 | AV96: BAS047 | AW96: BAS048 | AX96: BAS049 | AY96: BAS050 | AZ96: BAS051 | BA96: BAS052 | BB96: BAS053 | BC96: BAS054 | BD96: BAS055 | BE96: BAS056 | BF96: BAS057 | BG96: BAS058 | BH96: BAS059 | BI96: BAS060 | BJ96: BAS061 | BK96: BAS062 | BL96: BAS063 | BM96: BAS064 | BN96: BAS065 | BO96: BAS066 | BP96: BAS067 | BQ96: BAS068 | BR96: BAS069 | BS96: BAS070 | BT96: BAS071 | BU96: BAS072 | BV96: BAS073 | BW96: BAS074 | BX96: BAS075 | BY96: BAS076 | BZ96: BAS077 | CA96: BAS078 | CB96: BAS079 | CC96: BAS080 | CD96: BAS081 | CE96: BAS082 | CF96: BAS083 | CG96: BAS084 | CH96: BAS085 | CI96: BAS086 | CJ96: BAS087 | CK96: BAS088 | CL96: BAS089 | CM96: BAS090 | CN96: BAS091 | CO96: BAS092 | CP96: BAS093 | CQ96: BAS094 | CR96: BAS095 | CS96: BAS096 | CT96: BAS097 | CU96: BAS098 | CV96: BAS099 | CW96: BAS100 | CX96: BAS101 | CY96: BAS102 | CZ96: BAS103 | DA96: BAS104 | DB96: BAS105 | DC96: BAS106 | DD96: BAS107 | DE96: BAS108 | DF96: BAS109 | DG96: BAS110 | DH96: BAS111 | DI96: BAS112 | DJ96: BAS113 | DK96: BAS114 | DL96: BAS115 | DM96: BAS116 | DN96: BAS117 | DO96: BAS118 | DP96: BAS119 | DQ96: BAS120 | DR96: BAS121 | DS96: BAS122 | DT96: BAS123 | DU96: BAS124 | DV96: BAS125 | DW96: BAS126 | DX96: BAS127 | DY96: BAS128 | DZ96: BAS129 | EA96: BAS130 | EB96: BAS131 | EC96: BAS132 | ED96: BAS133 | EE96: BAS134 | EF96: BAS135 | EG96: BAS136 | EH96: BAS137 | EI96: BAS138 | EJ96: BAS139 | EK96: BAS140 | EL96: BAS141 | EM96: BAS142 | EN96: BAS143 | EO96: BAS144 | EP96: BAS145 | EQ96: BAS146 | ER96: BAS147 | ES96: BAS148 | ET96: BAS149 | EU96: BAS150 | EV96: BAS151 | EW96: BAS152 | EX96: BAS153 | EY96: BAS154 | EZ96: BAS155 | FA96: BAS156 | FB96: BAS157 | FC96: BAS158 | FD96: BAS159 | FE96: BAS160 | FF96: BAS161 | FG96: BAS162 | FH96: BAS163 | FI96: BAS164 | FJ96: BAS165 | FK96: BAS166 | FL96: BAS167 | FM96: BAS168 | FN96: BAS169 | FO96: BAS170 | FP96: BAS171 | FQ96: BAS172 | FR96: BAS173 | FS96: BAS174 | FT96: BAS175 | FU96: BAS176 | FV96: BAS177 | FW96: BAS178 | FX96: BAS179 | FY96: BAS180 | FZ96: BAS181 | GA96: BAS182 | GB96: BAS183 | GC96: BAS184 | GD96: BAS185 | GE96: BAS186 | GF96: BAS187 | GG96: BAS188 | GH96: BAS189 | GI96: BAS190 | GJ96: BAS191 | GK96: BAS192 | GL96: BAS193 | GM96: BAS194 | GN96: BAS195 | GO96: BAS196 | GP96: BAS197 | GQ96: BAS198 | GR96: BAS199 | GS96: BAS200 | GT96: BAS201 | GU96: BAS202 | GV96: BAS203 | GW96: BAS204 | GX96: BAS205 | GY96: BAS206 | GZ96: BAS207 | HA96: BAS208 | HB96: BAS209 | HC96: BAS210 | HD96: BAS211 | HE96: BAS212 | HF96: BAS213 | HG96: BAS214 | HH96: BAS215 | HI96: BAS216 | HJ96: BAS217 | HK96: BAS218 | HL96: BAS219 | HM96: BAS220 | HN96: BAS221 | HO96: BAS222 | HP96: BAS223 | HQ96: BAS224 | HR96: BAS225 | HS96: BAS226 | HT96: BAS227 | HU96: BAS228 | HV96: BAS229 | HW96: BAS230
B97: =IF(B96=B76,"SI","NO") -> SI | C97: =IF(C96=C76,"SI","NO") -> SI | D97: SI | E97: SI | F97: SI | G97: SI | H97: SI | I97: SI | J97: SI | K97: SI | L97: SI | M97: SI | N97: SI | O97: SI | P97: SI | Q97: SI | R97: SI | S97: SI | T97: SI | U97: SI | V97: SI | W97: SI | X97: SI | Y97: SI | Z97: SI | AA97: SI | AB97: SI | AC97: SI | AD97: SI | AE97: SI | AF97: SI | AG97: SI | AH97: SI | AI97: SI | AJ97: SI | AK97: SI | AL97: SI | AM97: SI | AN97: SI | AO97: SI | AP97: SI | AQ97: SI | AR97: SI | AS97: SI | AT97: SI | AU97: SI | AV97: SI | AW97: SI | AX97: SI | AY97: SI | AZ97: SI | BA97: SI | BB97: SI | BC97: SI | BD97: SI | BE97: SI | BF97: SI | BG97: SI | BH97: SI | BI97: SI | BJ97: SI | BK97: SI | BL97: SI | BM97: SI | BN97: SI | BO97: =IF(BO96=BO76,"SI","NO") -> SI | BP97: SI | BQ97: SI | BR97: SI | BS97: SI | BT97: SI | BU97: SI | BV97: SI | BW97: SI | BX97: SI | BY97: SI | BZ97: SI | CA97: SI | CB97: SI | CC97: SI | CD97: SI | CE97: SI | CF97: SI | CG97: SI | CH97: SI | CI97: SI | CJ97: SI | CK97: SI | CL97: SI | CM97: SI | CN97: SI | CO97: SI | CP97: SI | CQ97: SI | CR97: SI | CS97: SI | CT97: SI | CU97: SI | CV97: SI | CW97: SI | CX97: SI | CY97: SI | CZ97: SI | DA97: SI | DB97: SI | DC97: SI | DD97: SI | DE97: SI | DF97: SI | DG97: SI | DH97: SI | DI97: SI | DJ97: SI | DK97: SI | DL97: SI | DM97: SI | DN97: SI | DO97: SI | DP97: SI | DQ97: SI | DR97: SI | DS97: SI | DT97: SI | DU97: SI | DV97: SI | DW97: SI | DX97: SI | DY97: SI | DZ97: SI | EA97: =IF(EA96=EA76,"SI","NO") -> SI | EB97: SI | EC97: SI | ED97: SI | EE97: SI | EF97: SI | EG97: SI | EH97: SI | EI97: SI | EJ97: SI | EK97: SI | EL97: SI | EM97: SI | EN97: SI | EO97: SI | EP97: SI | EQ97: SI | ER97: SI | ES97: SI | ET97: SI | EU97: SI | EV97: SI | EW97: SI | EX97: SI | EY97: SI | EZ97: SI | FA97: SI | FB97: SI | FC97: SI | FD97: SI | FE97: SI | FF97: SI | FG97: SI | FH97: SI | FI97: SI | FJ97: SI | FK97: SI | FL97: SI | FM97: SI | FN97: SI | FO97: SI | FP97: SI | FQ97: SI | FR97: SI | FS97: SI | FT97: SI | FU97: SI | FV97: SI | FW97: SI | FX97: SI | FY97: SI | FZ97: SI | GA97: SI | GB97: SI | GC97: SI | GD97: SI | GE97: SI | GF97: SI | GG97: SI | GH97: SI | GI97: SI | GJ97: SI | GK97: SI | GL97: SI | GM97: =IF(GM96=GM76,"SI","NO") -> SI | GN97: SI | GO97: SI | GP97: SI | GQ97: SI | GR97: SI | GS97: SI | GT97: SI | GU97: SI | GV97: SI | GW97: SI | GX97: SI | GY97: SI | GZ97: SI | HA97: SI | HB97: SI | HC97: SI | HD97: SI | HE97: SI | HF97: SI | HG97: SI | HH97: SI | HI97: SI | HJ97: SI | HK97: SI | HL97: SI | HM97: SI | HN97: SI | HO97: =IF(HO96=HO76,"SI","NO") -> SI | HP97: SI | HQ97: SI | HR97: SI | HS97: SI | HT97: SI | HU97: SI | HV97: SI | HW97: SI
A99: PP002-2
A100: ANNO | B100: 2025
A101: cod_red | B101: 03
A102: codmic | B102: (Todas)
A103: cod_prov | B103: (Todas)
A104: coddist | B104: (Todas)
A105: cod_estab | B105: (Todas)
A106: cod_eje | B106: (Todas)
B108: Valores
A109: Etiquetas de fila | B109: BAS001 | C109: BAS002 | D109: BAS003 | E109: BAS004 | F109: BAS005 | G109: BAS006 | H109: BAS007 | I109: BAS008 | J109: BAS009 | K109: BAS010 | L109: BAS011 | M109: BAS012 | N109: BAS013 | O109: BAS014 | P109: BAS015 | Q109: BAS016 | R109: BAS017 | S109: BAS018 | T109: BAS019 | U109: BAS020 | V109: BAS021 | W109: BAS022 | X109: BAS023 | Y109: BAS024 | Z109: BAS025 | AA109: BAS026 | AB109: BAS027 | AC109: BAS028 | AD109: BAS029 | AE109: BAS030 | AF109: BAS031 | AG109: BAS032 | AH109: BAS033 | AI109: BAS034 | AJ109: BAS035 | AK109: BAS036 | AL109: BAS037 | AM109: BAS038 | AN109: BAS039 | AO109: BAS040 | AP109: BAS041 | AQ109: BAS042 | AR109: BAS043 | AS109: BAS044 | AT109: BAS045 | AU109: BAS046 | AV109: BAS047 | AW109: BAS048 | AX109: BAS049 | AY109: BAS050 | AZ109: BAS051 | BA109: BAS052 | BB109: BAS053 | BC109: BAS054 | BD109: BAS055 | BE109: BAS056 | BF109: BAS057 | BG109: BAS058 | BH109: BAS059 | BI109: BAS060 | BJ109: BAS061 | BK109: BAS062 | BL109: BAS063 | BM109: BAS064 | BN109: BAS065 | BO109: BAS066 | BP109: BAS067 | BQ109: BAS068 | BR109: BAS069 | BS109: BAS070 | BT109: BAS071 | BU109: BAS072 | BV109: BAS073 | BW109: BAS074 | BX109: BAS075 | BY109: BAS076 | BZ109: BAS077 | CA109: BAS078 | CB109: BAS079 | CC109: BAS080 | CD109: BAS081 | CE109: BAS082 | CF109: BAS083 | CG109: BAS084 | CH109: BAS085 | CI109: BAS086 | CJ109: BAS087 | CK109: BAS088 | CL109: BAS089 | CM109: BAS090 | CN109: BAS091 | CO109: BAS092 | CP109: BAS093 | CQ109: BAS094 | CR109: BAS095 | CS109: BAS096 | CT109: BAS097 | CU109: BAS098 | CV109: BAS099 | CW109: BAS100 | CX109: BAS101 | CY109: BAS102 | CZ109: BAS103 | DA109: BAS104 | DB109: BAS105 | DC109: BAS106 | DD109: BAS107 | DE109: BAS108 | DF109: BAS109 | DG109: BAS110 | DH109: BAS111 | DI109: BAS112 | DJ109: BAS113 | DK109: BAS114 | DL109: BAS115 | DM109: BAS116 | DN109: BAS117 | DO109: BAS118 | DP109: BAS119 | DQ109: BAS120 | DR109: BAS121 | DS109: BAS122 | DT109: BAS123 | DU109: BAS124 | DV109: BAS125 | DW109: BAS126 | DX109: BAS127 | DY109: BAS128 | DZ109: BAS129 | EA109: BAS130 | EB109: BAS131 | EC109: BAS132 | ED109: BAS133 | EE109: BAS134 | EF109: BAS135 | EG109: BAS136 | EH109: BAS137 | EI109: BAS138 | EJ109: BAS139 | EK109: BAS140 | EL109: BAS141 | EM109: BAS142 | EN109: BAS143 | EO109: BAS144 | EP109: BAS145 | EQ109: BAS146 | ER109: BAS147 | ES109: BAS148 | ET109: BAS149 | EU109: BAS150 | EV109: BAS151 | EW109: BAS152 | EX109: BAS153 | EY109: BAS154 | EZ109: BAS155 | FA109: BAS156 | FB109: BAS157 | FC109: BAS158 | FD109: BAS159 | FE109: BAS160 | FF109: BAS161 | FG109: BAS162 | FH109: BAS163 | FI109: BAS164 | FJ109: BAS165 | FK109: BAS166 | FL109: BAS167 | FM109: BAS168 | FN109: BAS169 | FO109: BAS170 | FP109: BAS171 | FQ109: BAS172 | FR109: BAS173 | FS109: BAS174 | FT109: BAS175 | FU109: BAS176 | FV109: BAS177 | FW109: BAS178 | FX109: BAS179 | FY109: BAS180 | FZ109: BAS181 | GA109: BAS182 | GB109: BAS183 | GC109: BAS184 | GD109: BAS185 | GE109: BAS186 | GF109: BAS187 | GG109: BAS188 | GH109: BAS189 | GI109: BAS190 | GJ109: BAS191 | GK109: BAS192 | GL109: BAS193 | GM109: BAS194 | GN109: BAS195 | GO109: BAS196 | GP109: BAS197 | GQ109: BAS198 | GR109: BAS199 | GS109: BAS200 | GT109: BAS201 | GU109: BAS202 | GV109: BAS203 | GW109: BAS204 | GX109: BAS205 | GY109: BAS206 | GZ109: BAS207 | HA109: BAS208 | HB109: BAS209 | HC109: BAS210 | HD109: BAS211 | HE109: BAS212 | HF109: BAS213 | HG109: BAS214 | HH109: BAS215 | HI109: BAS216 | HJ109: BAS217 | HK109: BAS218 | HL109: BAS219 | HM109: BAS220 | HN109: BAS221 | HO109: BAS222 | HP109: BAS223 | HQ109: BAS224 | HR109: BAS225 | HS109: BAS226 | HT109: BAS227 | HU109: BAS228 | HV109: BAS229 | HW109: BAS230
A110: 1 | B110: 7 | C110: 60 | D110: 67 | E110: 2 | F110: 1 | G110: 3 | H110: 0 | I110: 49 | J110: 50 | K110: 0 | L110: 3 | M110: 4 | N110: 0 | O110: 0 | P110: 0 | Q110: 0 | R110: 0 | S110: 0 | T110: 0 | U110: 0 | V110: 0 | W110: 0 | X110: 0 | Y110: 0 | Z110: 93 | AA110: 205 | AB110: 76 | AC110: 165 | AD110: 12 | AE110: 75 | AF110: 8 | AG110: 65 | AH110: 5 | AI110: 45 | AJ110: 5 | AK110: 42 | AL110: 2 | AM110: 26 | AN110: 0 | AO110: 0 | AP110: 0 | AQ110: 0 | AR110: 0 | AS110: 0 | AT110: 0 | AU110: 0 | AV110: 0 | AW110: 0 | AX110: 0 | AY110: 0 | AZ110: 0 | BA110: 0 | BB110: 0 | BC110: 0 | BD110: 0 | BE110: 0 | BF110: 0 | BG110: 0 | BH110: 0 | BI110: 0 | BJ110: 0 | BK110: 0 | BL110: 0 | BM110: 0 | BN110: 0 | BO110: 0 | BP110: 0 | BQ110: 0 | BR110: 0 | BS110: 0 | BT110: 0 | BU110: 0 | BV110: 0 | BW110: 0 | BX110: 0 | BY110: 0 | BZ110: 0 | CA110: 0 | CB110: 0 | CC110: 0 | CD110: 0 | CE110: 0 | CF110: 0 | CG110: 0 | CH110: 1 | CI110: 0 | CJ110: 0 | CK110: 0 | CL110: 0 | CM110: 0 | CN110: 1 | CO110: 16 | CP110: 0 | CQ110: 0 | CR110: 0 | CS110: 0 | CT110: 0 | CU110: 0 | CV110: 0 | CW110: 0 | CX110: 0 | CY110: 0 | CZ110: 0 | DA110: 0 | DB110: 0 | DC110: 0 | DD110: 67 | DE110: 0 | DF110: 2 | DG110: 0 | DH110: 0 | DI110: 0 | DJ110: 0 | DK110: 0 | DL110: 0 | DM110: 0 | DN110: 0 | DO110: 0 | DP110: 0 | DQ110: 0 | DR110: 0 | DS110: 0 | DT110: 0 | DU110: 0 | DV110: 0 | DW110: 0 | DX110: 0 | DY110: 0 | DZ110: 0 | EA110: 0 | EB110: 0 | EC110: 0 | ED110: 0 | EE110: 0 | EF110: 0 | EG110: 0 | EH110: 0 | EI110: 0 | EJ110: 0 | EK110: 0 | EL110: 0 | EM110: 0 | EN110: 0 | EO110: 0 | EP110: 0 | EQ110: 0 | ER110: 0 | ES110: 0 | ET110: 0 | EU110: 0 | EV110: 0 | EW110: 0 | EX110: 0 | EY110: 0 | EZ110: 0 | FA110: 0 | FB110: 0 | FC110: 0 | FD110: 0 | FE110: 0 | FF110: 0 | FG110: 0 | FH110: 0 | FI110: 0 | FJ110: 0 | FK110: 0 | FL110: 0 | FM110: 0 | FN110: 0 | FO110: 0 | FP110: 0 | FQ110: 0 | FR110: 0 | FS110: 0 | FT110: 0 | FU110: 0 | FV110: 0 | FW110: 0 | FX110: 0 | FY110: 0 | FZ110: 0 | GA110: 0 | GB110: 0 | GC110: 0 | GD110: 0 | GE110: 0 | GF110: 0 | GG110: 0 | GH110: 0 | GI110: 0 | GJ110: 0 | GK110: 0 | GL110: 0 | GM110: 0 | GN110: 0 | GO110: 0 | GP110: 0 | GQ110: 0 | GR110: 0 | GS110: 0 | GT110: 0 | GU110: 0 | GV110: 0 | GW110: 0 | GX110: 0 | GY110: 0 | GZ110: 0 | HA110: 0 | HB110: 0 | HC110: 0 | HD110: 0 | HE110: 0 | HF110: 0 | HG110: 0 | HH110: 0 | HI110: 0 | HJ110: 0 | HK110: 0 | HL110: 0 | HM110: 0 | HN110: 0 | HO110: 0 | HP110: 0 | HQ110: 0 | HR110: 0 | HS110: 0 | HT110: 0 | HU110: 0 | HV110: 0 | HW110: 0
A111: 2 | B111: 2 | C111: 46 | D111: 63 | E111: 2 | F111: 0 | G111: 2 | H111: 0 | I111: 49 | J111: 35 | K111: 0 | L111: 0 | M111: 0 | N111: 0 | O111: 0 | P111: 0 | Q111: 0 | R111: 0 | S111: 0 | T111: 2 | U111: 8 | V111: 2 | W111: 8 | X111: 1 | Y111: 1 | Z111: 93 | AA111: 155 | AB111: 81 | AC111: 130 | AD111: 31 | AE111: 45 | AF111: 34 | AG111: 53 | AH111: 7 | AI111: 35 | AJ111: 7 | AK111: 35 | AL111: 5 | AM111: 29 | AN111: 0 | AO111: 0 | AP111: 2 | AQ111: 6 | AR111: 0 | AS111: 0 | AT111: 0 | AU111: 0 | AV111: 0 | AW111: 0 | AX111: 0 | AY111: 0 | AZ111: 0 | BA111: 0 | BB111: 0 | BC111: 0 | BD111: 0 | BE111: 0 | BF111: 0 | BG111: 0 | BH111: 0 | BI111: 0 | BJ111: 0 | BK111: 0 | BL111: 0 | BM111: 0 | BN111: 0 | BO111: 0 | BP111: 0 | BQ111: 0 | BR111: 0 | BS111: 0 | BT111: 0 | BU111: 0 | BV111: 0 | BW111: 0 | BX111: 0 | BY111: 0 | BZ111: 0 | CA111: 0 | CB111: 0 | CC111: 0 | CD111: 0 | CE111: 0 | CF111: 0 | CG111: 0 | CH111: 1 | CI111: 0 | CJ111: 1 | CK111: 0 | CL111: 0 | CM111: 0 | CN111: 1 | CO111: 7 | CP111: 0 | CQ111: 0 | CR111: 0 | CS111: 0 | CT111: 0 | CU111: 0 | CV111: 0 | CW111: 0 | CX111: 0 | CY111: 0 | CZ111: 0 | DA111: 0 | DB111: 0 | DC111: 0 | DD111: 63 | DE111: 0 | DF111: 5 | DG111: 0 | DH111: 0 | DI111: 0 | DJ111: 0 | DK111: 0 | DL111: 0 | DM111: 0 | DN111: 0 | DO111: 0 | DP111: 0 | DQ111: 0 | DR111: 0 | DS111: 0 | DT111: 0 | DU111: 0 | DV111: 0 | DW111: 0 | DX111: 0 | DY111: 0 | DZ111: 0 | EA111: 0 | EB111: 0 | EC111: 0 | ED111: 0 | EE111: 0 | EF111: 0 | EG111: 0 | EH111: 0 | EI111: 0 | EJ111: 0 | EK111: 0 | EL111: 0 | EM111: 0 | EN111: 0 | EO111: 0 | EP111: 0 | EQ111: 0 | ER111: 0 | ES111: 0 | ET111: 0 | EU111: 0 | EV111: 0 | EW111: 0 | EX111: 0 | EY111: 0 | EZ111: 0 | FA111: 0 | FB111: 0 | FC111: 0 | FD111: 0 | FE111: 0 | FF111: 0 | FG111: 0 | FH111: 0 | FI111: 0 | FJ111: 0 | FK111: 0 | FL111: 0 | FM111: 0 | FN111: 0 | FO111: 0 | FP111: 0 | FQ111: 0 | FR111: 0 | FS111: 0 | FT111: 0 | FU111: 0 | FV111: 0 | FW111: 0 | FX111: 0 | FY111: 0 | FZ111: 0 | GA111: 0 | GB111: 0 | GC111: 0 | GD111: 0 | GE111: 0 | GF111: 0 | GG111: 0 | GH111: 0 | GI111: 0 | GJ111: 0 | GK111: 0 | GL111: 0 | GM111: 0 | GN111: 0 | GO111: 0 | GP111: 0 | GQ111: 0 | GR111: 0 | GS111: 0 | GT111: 0 | GU111: 0 | GV111: 0 | GW111: 0 | GX111: 0 | GY111: 0 | GZ111: 0 | HA111: 0 | HB111: 0 | HC111: 0 | HD111: 0 | HE111: 0 | HF111: 0 | HG111: 0 | HH111: 0 | HI111: 0 | HJ111: 0 | HK111: 0 | HL111: 0 | HM111: 0 | HN111: 0 | HO111: 0 | HP111: 0 | HQ111: 0 | HR111: 0 | HS111: 0 | HT111: 0 | HU111: 0 | HV111: 0 | HW111: 0
A112: 3 | B112: 1 | C112: 55 | D112: 50 | E112: 0 | F112: 2 | G112: 1 | H112: 0 | I112: 47 | J112: 54 | K112: 0 | L112: 0 | M112: 0 | N112: 0 | O112: 0 | P112: 0 | Q112: 0 | R112: 0 | S112: 0 | T112: 3 | U112: 18 | V112: 1 | W112: 2 | X112: 0 | Y112: 0 | Z112: 77 | AA112: 128 | AB112: 75 | AC112: 117 | AD112: 39 | AE112: 58 | AF112: 34 | AG112: 51 | AH112: 6 | AI112: 10 | AJ112: 6 | AK112: 10 | AL112: 4 | AM112: 12 | AN112: 0 | AO112: 0 | AP112: 9 | AQ112: 28 | AR112: 4 | AS112: 14 | AT112: 2 | AU112: 2 | AV112: 4 | AW112: 14 | AX112: 3 | AY112: 4 | AZ112: 1 | BA112: 9 | BB112: 0 | BC112: 0 | BD112: 1 | BE112: 9 | BF112: 0 | BG112: 0 | BH112: 0 | BI112: 0 | BJ112: 1 | BK112: 15 | BL112: 0 | BM112: 0 | BN112: 1 | BO112: 15 | BP112: 1 | BQ112: 28 | BR112: 0 | BS112: 0 | BT112: 0 | BU112: 0 | BV112: 0 | BW112: 0 | BX112: 0 | BY112: 0 | BZ112: 0 | CA112: 0 | CB112: 0 | CC112: 0 | CD112: 0 | CE112: 0 | CF112: 0 | CG112: 0 | CH112: 2 | CI112: 0 | CJ112: 1 | CK112: 0 | CL112: 2 | CM112: 0 | CN112: 1 | CO112: 10 | CP112: 1 | CQ112: 10 | CR112: 0 | CS112: 0 | CT112: 0 | CU112: 0 | CV112: 0 | CW112: 0 | CX112: 0 | CY112: 0 | CZ112: 0 | DA112: 0 | DB112: 0 | DC112: 0 | DD112: 50 | DE112: 0 | DF112: 4 | DG112: 0 | DH112: 0 | DI112: 0 | DJ112: 0 | DK112: 0 | DL112: 0 | DM112: 0 | DN112: 0 | DO112: 0 | DP112: 0 | DQ112: 0 | DR112: 0 | DS112: 0 | DT112: 0 | DU112: 0 | DV112: 0 | DW112: 0 | DX112: 0 | DY112: 0 | DZ112: 0 | EA112: 0 | EB112: 0 | EC112: 0 | ED112: 0 | EE112: 0 | EF112: 0 | EG112: 0 | EH112: 0 | EI112: 0 | EJ112: 0 | EK112: 0 | EL112: 0 | EM112: 0 | EN112: 0 | EO112: 0 | EP112: 0 | EQ112: 0 | ER112: 0 | ES112: 0 | ET112: 0 | EU112: 0 | EV112: 0 | EW112: 0 | EX112: 0 | EY112: 0 | EZ112: 0 | FA112: 0 | FB112: 0 | FC112: 0 | FD112: 0 | FE112: 0 | FF112: 0 | FG112: 0 | FH112: 0 | FI112: 0 | FJ112: 0 | FK112: 0 | FL112: 0 | FM112: 0 | FN112: 0 | FO112: 0 | FP112: 0 | FQ112: 0 | FR112: 0 | FS112: 0 | FT112: 0 | FU112: 0 | FV112: 0 | FW112: 0 | FX112: 0 | FY112: 0 | FZ112: 0 | GA112: 0 | GB112: 0 | GC112: 0 | GD112: 0 | GE112: 0 | GF112: 0 | GG112: 0 | GH112: 0 | GI112: 0 | GJ112: 0 | GK112: 0 | GL112: 0 | GM112: 0 | GN112: 0 | GO112: 0 | GP112: 0 | GQ112: 0 | GR112: 0 | GS112: 0 | GT112: 0 | GU112: 0 | GV112: 0 | GW112: 0 | GX112: 0 | GY112: 0 | GZ112: 0 | HA112: 0 | HB112: 0 | HC112: 0 | HD112: 0 | HE112: 0 | HF112: 0 | HG112: 0 | HH112: 0 | HI112: 0 | HJ112: 0 | HK112: 0 | HL112: 0 | HM112: 0 | HN112: 0 | HO112: 0 | HP112: 0 | HQ112: 0 | HR112: 0 | HS112: 0 | HT112: 0 | HU112: 0 | HV112: 0 | HW112: 0
A113: T | B113: 10 | C113: 161 | D113: 180 | E113: 4 | F113: 3 | G113: 6 | H113: 0 | I113: 145 | J113: 139 | K113: 0 | L113: 3 | M113: 4 | N113: 0 | O113: 0 | P113: 0 | Q113: 0 | R113: 0 | S113: 0 | T113: 5 | U113: 26 | V113: 3 | W113: 10 | X113: 1 | Y113: 1 | Z113: 263 | AA113: 488 | AB113: 232 | AC113: 412 | AD113: 82 | AE113: 178 | AF113: 76 | AG113: 169 | AH113: 18 | AI113: 90 | AJ113: 18 | AK113: 87 | AL113: 11 | AM113: 67 | AN113: 0 | AO113: 0 | AP113: 11 | AQ113: 34 | AR113: 4 | AS113: 14 | AT113: 2 | AU113: 2 | AV113: 4 | AW113: 14 | AX113: 3 | AY113: 4 | AZ113: 1 | BA113: 9 | BB113: 0 | BC113: 0 | BD113: 1 | BE113: 9 | BF113: 0 | BG113: 0 | BH113: 0 | BI113: 0 | BJ113: 1 | BK113: 15 | BL113: 0 | BM113: 0 | BN113: 1 | BO113: 15 | BP113: 1 | BQ113: 28 | BR113: 0 | BS113: 0 | BT113: 0 | BU113: 0 | BV113: 0 | BW113: 0 | BX113: 0 | BY113: 0 | BZ113: 0 | CA113: 0 | CB113: 0 | CC113: 0 | CD113: 0 | CE113: 0 | CF113: 0 | CG113: 0 | CH113: 4 | CI113: 0 | CJ113: 2 | CK113: 0 | CL113: 2 | CM113: 0 | CN113: 3 | CO113: 33 | CP113: 1 | CQ113: 10 | CR113: 0 | CS113: 0 | CT113: 0 | CU113: 0 | CV113: 0 | CW113: 0 | CX113: 0 | CY113: 0 | CZ113: 0 | DA113: 0 | DB113: 0 | DC113: 0 | DD113: 180 | DE113: 0 | DF113: 11 | DG113: 0 | DH113: 0 | DI113: 0 | DJ113: 0 | DK113: 0 | DL113: 0 | DM113: 0 | DN113: 0 | DO113: 0 | DP113: 0 | DQ113: 0 | DR113: 0 | DS113: 0 | DT113: 0 | DU113: 0 | DV113: 0 | DW113: 0 | DX113: 0 | DY113: 0 | DZ113: 0 | EA113: 0 | EB113: 0 | EC113: 0 | ED113: 0 | EE113: 0 | EF113: 0 | EG113: 0 | EH113: 0 | EI113: 0 | EJ113: 0 | EK113: 0 | EL113: 0 | EM113: 0 | EN113: 0 | EO113: 0 | EP113: 0 | EQ113: 0 | ER113: 0 | ES113: 0 | ET113: 0 | EU113: 0 | EV113: 0 | EW113: 0 | EX113: 0 | EY113: 0 | EZ113: 0 | FA113: 0 | FB113: 0 | FC113: 0 | FD113: 0 | FE113: 0 | FF113: 0 | FG113: 0 | FH113: 0 | FI113: 0 | FJ113: 0 | FK113: 0 | FL113: 0 | FM113: 0 | FN113: 0 | FO113: 0 | FP113: 0 | FQ113: 0 | FR113: 0 | FS113: 0 | FT113: 0 | FU113: 0 | FV113: 0 | FW113: 0 | FX113: 0 | FY113: 0 | FZ113: 0 | GA113: 0 | GB113: 0 | GC113: 0 | GD113: 0 | GE113: 0 | GF113: 0 | GG113: 0 | GH113: 0 | GI113: 0 | GJ113: 0 | GK113: 0 | GL113: 0 | GM113: 0 | GN113: 0 | GO113: 0 | GP113: 0 | GQ113: 0 | GR113: 0 | GS113: 0 | GT113: 0 | GU113: 0 | GV113: 0 | GW113: 0 | GX113: 0 | GY113: 0 | GZ113: 0 | HA113: 0 | HB113: 0 | HC113: 0 | HD113: 0 | HE113: 0 | HF113: 0 | HG113: 0 | HH113: 0 | HI113: 0 | HJ113: 0 | HK113: 0 | HL113: 0 | HM113: 0 | HN113: 0 | HO113: 0 | HP113: 0 | HQ113: 0 | HR113: 0 | HS113: 0 | HT113: 0 | HU113: 0 | HV113: 0 | HW113: 0
A127: TOTAL
A128: =COUNT(A110:A125) -> 3 | B128: =SUM(B110:B125) -> 20 | C128: =SUM(C110:C125) -> 322 | D128: 360 | E128: 8 | F128: 6 | G128: 12 | H128: 0 | I128: 290 | J128: 278 | K128: 0 | L128: 6 | M128: 8 | N128: 0 | O128: 0 | P128: 0 | Q128: 0 | R128: 0 | S128: 0 | T128: 10 | U128: 52 | V128: 6 | W128: 20 | X128: 2 | Y128: 2 | Z128: 526 | AA128: 976 | AB128: 464 | AC128: 824 | AD128: 164 | AE128: 356 | AF128: 152 | AG128: 338 | AH128: 36 | AI128: 180 | AJ128: 36 | AK128: 174 | AL128: 22 | AM128: 134 | AN128: 0 | AO128: 0 | AP128: 22 | AQ128: 68 | AR128: 8 | AS128: 28 | AT128: 4 | AU128: 4 | AV128: 8 | AW128: 28 | AX128: 6 | AY128: 8 | AZ128: 2 | BA128: 18 | BB128: 0 | BC128: 0 | BD128: 2 | BE128: 18 | BF128: 0 | BG128: 0 | BH128: 0 | BI128: 0 | BJ128: 2 | BK128: 30 | BL128: 0 | BM128: 0 | BN128: 2 | BO128: =SUM(BO110:BO125) -> 30 | BP128: 2 | BQ128: 56 | BR128: 0 | BS128: 0 | BT128: 0 | BU128: 0 | BV128: 0 | BW128: 0 | BX128: 0 | BY128: 0 | BZ128: 0 | CA128: 0 | CB128: 0 | CC128: 0 | CD128: 0 | CE128: 0 | CF128: 0 | CG128: 0 | CH128: 8 | CI128: 0 | CJ128: 4 | CK128: 0 | CL128: 4 | CM128: 0 | CN128: 6 | CO128: 66 | CP128: 2 | CQ128: 20 | CR128: 0 | CS128: 0 | CT128: 0 | CU128: 0 | CV128: 0 | CW128: 0 | CX128: 0 | CY128: 0 | CZ128: 0 | DA128: 0 | DB128: 0 | DC128: 0 | DD128: 360 | DE128: 0 | DF128: 22 | DG128: 0 | DH128: 0 | DI128: 0 | DJ128: 0 | DK128: 0 | DL128: 0 | DM128: 0 | DN128: 0 | DO128: 0 | DP128: 0 | DQ128: 0 | DR128: 0 | DS128: 0 | DT128: 0 | DU128: 0 | DV128: 0 | DW128: 0 | DX128: 0 | DY128: 0 | DZ128: 0 | EA128: =SUM(EA110:EA125) -> 0 | EB128: 0 | EC128: 0 | ED128: 0 | EE128: 0 | EF128: 0 | EG128: 0 | EH128: 0 | EI128: 0 | EJ128: 0 | EK128: 0 | EL128: 0 | EM128: 0 | EN128: 0 | EO128: 0 | EP128: 0 | EQ128: 0 | ER128: 0 | ES128: 0 | ET128: 0 | EU128: 0 | EV128: 0 | EW128: 0 | EX128: 0 | EY128: 0 | EZ128: 0 | FA128: 0 | FB128: 0 | FC128: 0 | FD128: 0 | FE128: 0 | FF128: 0 | FG128: 0 | FH128: 0 | FI128: 0 | FJ128: 0 | FK128: 0 | FL128: 0 | FM128: 0 | FN128: 0 | FO128: 0 | FP128: 0 | FQ128: 0 | FR128: 0 | FS128: 0 | FT128: 0 | FU128: 0 | FV128: 0 | FW128: 0 | FX128: 0 | FY128: 0 | FZ128: 0 | GA128: 0 | GB128: 0 | GC128: 0 | GD128: 0 | GE128: 0 | GF128: 0 | GG128: 0 | GH128: 0 | GI128: 0 | GJ128: 0 | GK128: 0 | GL128: 0 | GM128: =SUM(GM110:GM125) -> 0 | GN128: 0 | GO128: 0 | GP128: 0 | GQ128: 0 | GR128: 0 | GS128: 0 | GT128: 0 | GU128: 0 | GV128: 0 | GW128: 0 | GX128: 0 | GY128: 0 | GZ128: 0 | HA128: 0 | HB128: 0 | HC128: 0 | HD128: 0 | HE128: 0 | HF128: 0 | HG128: 0 | HH128: 0 | HI128: 0 | HJ128: 0 | HK128: 0 | HL128: 0 | HM128: 0 | HN128: 0 | HO128: =SUM(HO110:HO125) -> 0 | HP128: 0 | HQ128: 0 | HR128: 0 | HS128: 0 | HT128: 0 | HU128: 0 | HV128: 0 | HW128: =SUM(HW110:HW125) -> 0
A129: =CONCATENATE(A110,"-",A111,"-",A112,"-",A113,"-",A114,"-",A115,"-",A116,"-",A117,"-",A118,"-",A119,"-",A120,"-",A121) -> 1-2-3-T--------
B130: BAS001 | C130: BAS002 | D130: BAS003 | E130: BAS004 | F130: BAS005 | G130: BAS006 | H130: BAS007 | I130: BAS008 | J130: BAS009 | K130: BAS010 | L130: BAS011 | M130: BAS012 | N130: BAS013 | O130: BAS014 | P130: BAS015 | Q130: BAS016 | R130: BAS017 | S130: BAS018 | T130: BAS019 | U130: BAS020 | V130: BAS021 | W130: BAS022 | X130: BAS023 | Y130: BAS024 | Z130: BAS025 | AA130: BAS026 | AB130: BAS027 | AC130: BAS028 | AD130: BAS029 | AE130: BAS030 | AF130: BAS031 | AG130: BAS032 | AH130: BAS033 | AI130: BAS034 | AJ130: BAS035 | AK130: BAS036 | AL130: BAS037 | AM130: BAS038 | AN130: BAS039 | AO130: BAS040 | AP130: BAS041 | AQ130: BAS042 | AR130: BAS043 | AS130: BAS044 | AT130: BAS045 | AU130: BAS046 | AV130: BAS047 | AW130: BAS048 | AX130: BAS049 | AY130: BAS050 | AZ130: BAS051 | BA130: BAS052 | BB130: BAS053 | BC130: BAS054 | BD130: BAS055 | BE130: BAS056 | BF130: BAS057 | BG130: BAS058 | BH130: BAS059 | BI130: BAS060 | BJ130: BAS061 | BK130: BAS062 | BL130: BAS063 | BM130: BAS064 | BN130: BAS065 | BO130: BAS066 | BP130: BAS067 | BQ130: BAS068 | BR130: BAS069 | BS130: BAS070 | BT130: BAS071 | BU130: BAS072 | BV130: BAS073 | BW130: BAS074 | BX130: BAS075 | BY130: BAS076 | BZ130: BAS077 | CA130: BAS078 | CB130: BAS079 | CC130: BAS080 | CD130: BAS081 | CE130: BAS082 | CF130: BAS083 | CG130: BAS084 | CH130: BAS085 | CI130: BAS086 | CJ130: BAS087 | CK130: BAS088 | CL130: BAS089 | CM130: BAS090 | CN130: BAS091 | CO130: BAS092 | CP130: BAS093 | CQ130: BAS094 | CR130: BAS095 | CS130: BAS096 | CT130: BAS097 | CU130: BAS098 | CV130: BAS099 | CW130: BAS100 | CX130: BAS101 | CY130: BAS102 | CZ130: BAS103 | DA130: BAS104 | DB130: BAS105 | DC130: BAS106 | DD130: BAS107 | DE130: BAS108 | DF130: BAS109 | DG130: BAS110 | DH130: BAS111 | DI130: BAS112 | DJ130: BAS113 | DK130: BAS114 | DL130: BAS115 | DM130: BAS116 | DN130: BAS117 | DO130: BAS118 | DP130: BAS119 | DQ130: BAS120 | DR130: BAS121 | DS130: BAS122 | DT130: BAS123 | DU130: BAS124 | DV130: BAS125 | DW130: BAS126 | DX130: BAS127 | DY130: BAS128 | DZ130: BAS129 | EA130: BAS130 | EB130: BAS131 | EC130: BAS132 | ED130: BAS133 | EE130: BAS134 | EF130: BAS135 | EG130: BAS136 | EH130: BAS137 | EI130: BAS138 | EJ130: BAS139 | EK130: BAS140 | EL130: BAS141 | EM130: BAS142 | EN130: BAS143 | EO130: BAS144 | EP130: BAS145 | EQ130: BAS146 | ER130: BAS147 | ES130: BAS148 | ET130: BAS149 | EU130: BAS150 | EV130: BAS151 | EW130: BAS152 | EX130: BAS153 | EY130: BAS154 | EZ130: BAS155 | FA130: BAS156 | FB130: BAS157 | FC130: BAS158 | FD130: BAS159 | FE130: BAS160 | FF130: BAS161 | FG130: BAS162 | FH130: BAS163 | FI130: BAS164 | FJ130: BAS165 | FK130: BAS166 | FL130: BAS167 | FM130: BAS168 | FN130: BAS169 | FO130: BAS170 | FP130: BAS171 | FQ130: BAS172 | FR130: BAS173 | FS130: BAS174 | FT130: BAS175 | FU130: BAS176 | FV130: BAS177 | FW130: BAS178 | FX130: BAS179 | FY130: BAS180 | FZ130: BAS181 | GA130: BAS182 | GB130: BAS183 | GC130: BAS184 | GD130: BAS185 | GE130: BAS186 | GF130: BAS187 | GG130: BAS188 | GH130: BAS189 | GI130: BAS190 | GJ130: BAS191 | GK130: BAS192 | GL130: BAS193 | GM130: BAS194 | GN130: BAS195 | GO130: BAS196 | GP130: BAS197 | GQ130: BAS198 | GR130: BAS199 | GS130: BAS200 | GT130: BAS201 | GU130: BAS202 | GV130: BAS203 | GW130: BAS204 | GX130: BAS205 | GY130: BAS206 | GZ130: BAS207 | HA130: BAS208 | HB130: BAS209 | HC130: BAS210 | HD130: BAS211 | HE130: BAS212 | HF130: BAS213 | HG130: BAS214 | HH130: BAS215 | HI130: BAS216 | HJ130: BAS217 | HK130: BAS218 | HL130: BAS219 | HM130: BAS220 | HN130: BAS221 | HO130: BAS222 | HP130: BAS223 | HQ130: BAS224 | HR130: BAS225 | HS130: BAS226 | HT130: BAS227 | HU130: BAS228 | HV130: BAS229 | HW130: BAS230
B131: =IF(B130=B109,"SI","NO") -> SI | C131: =IF(C130=C109,"SI","NO") -> SI | D131: SI | E131: SI | F131: SI | G131: SI | H131: SI | I131: SI | J131: SI | K131: SI | L131: SI | M131: SI | N131: SI | O131: SI | P131: SI | Q131: SI | R131: SI | S131: SI | T131: SI | U131: SI | V131: SI | W131: SI | X131: SI | Y131: SI | Z131: SI | AA131: SI | AB131: SI | AC131: SI | AD131: SI | AE131: SI | AF131: SI | AG131: SI | AH131: SI | AI131: SI | AJ131: SI | AK131: SI | AL131: SI | AM131: SI | AN131: SI | AO131: SI | AP131: SI | AQ131: SI | AR131: SI | AS131: SI | AT131: SI | AU131: SI | AV131: SI | AW131: SI | AX131: SI | AY131: SI | AZ131: SI | BA131: SI | BB131: SI | BC131: SI | BD131: SI | BE131: SI | BF131: SI | BG131: SI | BH131: SI | BI131: SI | BJ131: SI | BK131: SI | BL131: SI | BM131: SI | BN131: SI | BO131: =IF(BO130=BO109,"SI","NO") -> SI | BP131: SI | BQ131: SI | BR131: SI | BS131: SI | BT131: SI | BU131: SI | BV131: SI | BW131: SI | BX131: SI | BY131: SI | BZ131: SI | CA131: SI | CB131: SI | CC131: SI | CD131: SI | CE131: SI | CF131: SI | CG131: SI | CH131: SI | CI131: SI | CJ131: SI | CK131: SI | CL131: SI | CM131: SI | CN131: SI | CO131: SI | CP131: SI | CQ131: SI | CR131: SI | CS131: SI | CT131: SI | CU131: SI | CV131: SI | CW131: SI | CX131: SI | CY131: SI | CZ131: SI | DA131: SI | DB131: SI | DC131: SI | DD131: SI | DE131: SI | DF131: SI | DG131: SI | DH131: SI | DI131: SI | DJ131: SI | DK131: SI | DL131: SI | DM131: SI | DN131: SI | DO131: SI | DP131: SI | DQ131: SI | DR131: SI | DS131: SI | DT131: SI | DU131: SI | DV131: SI | DW131: SI | DX131: SI | DY131: SI | DZ131: SI | EA131: =IF(EA130=EA109,"SI","NO") -> SI | EB131: SI | EC131: SI | ED131: SI | EE131: SI | EF131: SI | EG131: SI | EH131: SI | EI131: SI | EJ131: SI | EK131: SI | EL131: SI | EM131: SI | EN131: SI | EO131: SI | EP131: SI | EQ131: SI | ER131: SI | ES131: SI | ET131: SI | EU131: SI | EV131: SI | EW131: SI | EX131: SI | EY131: SI | EZ131: SI | FA131: SI | FB131: SI | FC131: SI | FD131: SI | FE131: SI | FF131: SI | FG131: SI | FH131: SI | FI131: SI | FJ131: SI | FK131: SI | FL131: SI | FM131: SI | FN131: SI | FO131: SI | FP131: SI | FQ131: SI | FR131: SI | FS131: SI | FT131: SI | FU131: SI | FV131: SI | FW131: SI | FX131: SI | FY131: SI | FZ131: SI | GA131: SI | GB131: SI | GC131: SI | GD131: SI | GE131: SI | GF131: SI | GG131: SI | GH131: SI | GI131: SI | GJ131: SI | GK131: SI | GL131: SI | GM131: =IF(GM130=GM109,"SI","NO") -> SI | GN131: SI | GO131: SI | GP131: SI | GQ131: SI | GR131: SI | GS131: SI | GT131: SI | GU131: SI | GV131: SI | GW131: SI | GX131: SI | GY131: SI | GZ131: SI | HA131: SI | HB131: SI | HC131: SI | HD131: SI | HE131: SI | HF131: SI | HG131: SI | HH131: SI | HI131: SI | HJ131: SI | HK131: SI | HL131: SI | HM131: SI | HN131: SI | HO131: =IF(HO130=HO109,"SI","NO") -> SI | HP131: SI | HQ131: SI | HR131: SI | HS131: SI | HT131: SI | HU131: SI | HV131: SI | HW131: =IF(HW130=HW109,"SI","NO") -> SI
A133: PP016 - 3
A134: ANNO | B134: 2025
A135: cod_red | B135: 03
A136: codmic | B136: (Todas)
A137: cod_prov | B137: (Todas)
A138: coddist | B138: (Todas)
A139: cod_estab | B139: (Todas)
A140: cod_eje | B140: (Todas)
B142: Valores
A143: Etiquetas de fila | B143: BAS001 | C143: BAS002 | D143: BAS003 | E143: BAS004 | F143: BAS005 | G143: BAS006 | H143: BAS007 | I143: BAS008 | J143: BAS009 | K143: BAS010 | L143: BAS011 | M143: BAS012 | N143: BAS013 | O143: BAS014 | P143: BAS015 | Q143: BAS016 | R143: BAS017 | S143: BAS018 | T143: BAS019 | U143: BAS020 | V143: BAS021 | W143: BAS022 | X143: BAS023 | Y143: BAS024 | Z143: BAS025 | AA143: BAS026 | AB143: BAS027 | AC143: BAS028 | AD143: BAS029 | AE143: BAS030 | AF143: BAS031 | AG143: BAS032 | AH143: BAS033 | AI143: BAS034 | AJ143: BAS035 | AK143: BAS036 | AL143: BAS037 | AM143: BAS038 | AN143: BAS039 | AO143: BAS040 | AP143: BAS041 | AQ143: BAS042 | AR143: BAS043 | AS143: BAS044 | AT143: BAS045 | AU143: BAS046 | AV143: BAS047 | AW143: BAS048 | AX143: BAS049 | AY143: BAS050 | AZ143: BAS051 | BA143: BAS052 | BB143: BAS053 | BC143: BAS054 | BD143: BAS055 | BE143: BAS056 | BF143: BAS057 | BG143: BAS058 | BH143: BAS059 | BI143: BAS060 | BJ143: BAS061 | BK143: BAS062 | BL143: BAS063 | BM143: BAS064 | BN143: BAS065 | BO143: BAS066 | BP143: BAS067 | BQ143: BAS068 | BR143: BAS069 | BS143: BAS070 | BT143: BAS071 | BU143: BAS072 | BV143: BAS073 | BW143: BAS074 | BX143: BAS075 | BY143: BAS076 | BZ143: BAS077 | CA143: BAS078 | CB143: BAS079 | CC143: BAS080 | CD143: BAS081 | CE143: BAS082 | CF143: BAS083 | CG143: BAS084 | CH143: BAS085 | CI143: BAS086 | CJ143: BAS087 | CK143: BAS088 | CL143: BAS089 | CM143: BAS090 | CN143: BAS091 | CO143: BAS092 | CP143: BAS093 | CQ143: BAS094 | CR143: BAS095 | CS143: BAS096 | CT143: BAS097 | CU143: BAS098 | CV143: BAS099 | CW143: BAS100 | CX143: BAS101 | CY143: BAS102 | CZ143: BAS103 | DA143: BAS104 | DB143: BAS105 | DC143: BAS106 | DD143: BAS107 | DE143: BAS108 | DF143: BAS109 | DG143: BAS110 | DH143: BAS111 | DI143: BAS112 | DJ143: BAS113 | DK143: BAS114 | DL143: BAS115 | DM143: BAS116 | DN143: BAS117 | DO143: BAS118 | DP143: BAS119 | DQ143: BAS120 | DR143: BAS121 | DS143: BAS122 | DT143: BAS123 | DU143: BAS124 | DV143: BAS125 | DW143: BAS126 | DX143: BAS127 | DY143: BAS128 | DZ143: BAS129 | EA143: BAS130 | EB143: BAS131 | EC143: BAS132 | ED143: BAS133 | EE143: BAS134 | EF143: BAS135 | EG143: BAS136 | EH143: BAS137 | EI143: BAS138 | EJ143: BAS139 | EK143: BAS140 | EL143: BAS141 | EM143: BAS142 | EN143: BAS143 | EO143: BAS144 | EP143: BAS145 | EQ143: BAS146 | ER143: BAS147 | ES143: BAS148 | ET143: BAS149 | EU143: BAS150 | EV143: BAS151 | EW143: BAS152 | EX143: BAS153 | EY143: BAS154 | EZ143: BAS155 | FA143: BAS156 | FB143: BAS157 | FC143: BAS158 | FD143: BAS159 | FE143: BAS160 | FF143: BAS161 | FG143: BAS162 | FH143: BAS163 | FI143: BAS164 | FJ143: BAS165 | FK143: BAS166 | FL143: BAS167 | FM143: BAS168 | FN143: BAS169 | FO143: BAS170 | FP143: BAS171 | FQ143: BAS172 | FR143: BAS173 | FS143: BAS174 | FT143: BAS175 | FU143: BAS176 | FV143: BAS177 | FW143: BAS178 | FX143: BAS179 | FY143: BAS180 | FZ143: BAS181 | GA143: BAS182 | GB143: BAS183 | GC143: BAS184 | GD143: BAS185 | GE143: BAS186 | GF143: BAS187 | GG143: BAS188 | GH143: BAS189 | GI143: BAS190 | GJ143: BAS191 | GK143: BAS192 | GL143: BAS193 | GM143: BAS194 | GN143: BAS195 | GO143: BAS196 | GP143: BAS197 | GQ143: BAS198 | GR143: BAS199 | GS143: BAS200 | GT143: BAS201 | GU143: BAS202 | GV143: BAS203 | GW143: BAS204 | GX143: BAS205 | GY143: BAS206 | GZ143: BAS207 | HA143: BAS208 | HB143: BAS209 | HC143: BAS210 | HD143: BAS211 | HE143: BAS212 | HF143: BAS213 | HG143: BAS214 | HH143: BAS215 | HI143: BAS216 | HJ143: BAS217 | HK143: BAS218 | HL143: BAS219 | HM143: BAS220 | HN143: BAS221 | HO143: BAS222 | HP143: BAS223 | HQ143: BAS224 | HR143: BAS225 | HS143: BAS226 | HT143: BAS227 | HU143: BAS228 | HV143: BAS229 | HW143: BAS230
A144: 1 | B144: 1358 | C144: 10 | D144: 0 | E144: 0 | F144: 1610 | G144: 14 | H144: 0 | I144: 0 | J144: 244 | K144: 830 | L144: 237 | M144: 748 | N144: 3 | O144: 38 | P144: 3 | Q144: 38 | R144: 0 | S144: 0 | T144: 0 | U144: 0 | V144: 0 | W144: 0 | X144: 0 | Y144: 0 | Z144: 0 | AA144: 0 | AB144: 0 | AC144: 0 | AD144: 0 | AE144: 0 | AF144: 0 | AG144: 0 | AH144: 0 | AI144: 0 | AJ144: 0 | AK144: 0 | AL144: 0 | AM144: 0 | AN144: 0 | AO144: 0 | AP144: 0 | AQ144: 0 | AR144: 0 | AS144: 0 | AT144: 43 | AU144: 0 | AV144: 39 | AW144: 0 | AX144: 18 | AY144: 46 | AZ144: 20 | BA144: 71 | BB144: 2 | BC144: 0 | BD144: 2 | BE144: 0 | BF144: 1 | BG144: 0 | BH144: 3 | BI144: 0 | BJ144: 7 | BK144: 63 | BL144: 0 | BM144: 0 | BN144: 7 | BO144: 62 | BP144: 0 | BQ144: 0 | BR144: 0 | BS144: 0 | BT144: 0 | BU144: 0 | BV144: 0 | BW144: 0 | BX144: 0 | BY144: 0 | BZ144: 51 | CA144: 139 | CB144: 51 | CC144: 149 | CD144: 0 | CE144: 0 | CF144: 0 | CG144: 0 | CH144: 0 | CI144: 0 | CJ144: 0 | CK144: 0 | CL144: 0 | CM144: 0 | CN144: 0 | CO144: 0 | CP144: 0 | CQ144: 0 | CR144: 0 | CS144: 0 | CT144: 1 | CU144: 0 | CV144: 0 | CW144: 0 | CX144: 0 | CY144: 0 | CZ144: 0 | DA144: 0 | DB144: 0 | DC144: 0 | DD144: 0 | DE144: 0 | DF144: 0 | DG144: 0 | DH144: 0 | DI144: 0 | DJ144: 0 | DK144: 0 | DL144: 0 | DM144: 0 | DN144: 0 | DO144: 0 | DP144: 0 | DQ144: 0 | DR144: 0 | DS144: 0 | DT144: 0 | DU144: 0 | DV144: 0 | DW144: 0 | DX144: 0 | DY144: 0 | DZ144: 0 | EA144: 0 | EB144: 0 | EC144: 0 | ED144: 10 | EE144: 38 | EF144: 0 | EG144: 0 | EH144: 0 | EI144: 0 | EJ144: 0 | EK144: 0 | EL144: 0 | EM144: 0 | EN144: 0 | EO144: 0 | EP144: 0 | EQ144: 0 | ER144: 0 | ES144: 0 | ET144: 0 | EU144: 0 | EV144: 0 | EW144: 0 | EX144: 0 | EY144: 0 | EZ144: 0 | FA144: 0 | FB144: 0 | FC144: 0 | FD144: 0 | FE144: 0 | FF144: 0 | FG144: 0 | FH144: 0 | FI144: 0 | FJ144: 0 | FK144: 0 | FL144: 0 | FM144: 0 | FN144: 0 | FO144: 0 | FP144: 0 | FQ144: 0 | FR144: 0 | FS144: 0 | FT144: 0 | FU144: 0 | FV144: 0 | FW144: 0 | FX144: 0 | FY144: 0 | FZ144: 0 | GA144: 0 | GB144: 0 | GC144: 0 | GD144: 0 | GE144: 0 | GF144: 0 | GG144: 0 | GH144: 0 | GI144: 0 | GJ144: 0 | GK144: 0 | GL144: 0 | GM144: 0 | GN144: 0 | GO144: 0 | GP144: 0 | GQ144: 0 | GR144: 0 | GS144: 0 | GT144: 0 | GU144: 0 | GV144: 0 | GW144: 0 | GX144: 0 | GY144: 0 | GZ144: 0 | HA144: 0 | HB144: 0 | HC144: 0 | HD144: 0 | HE144: 0 | HF144: 0 | HG144: 0 | HH144: 0 | HI144: 0 | HJ144: 0 | HK144: 0 | HL144: 0 | HM144: 0 | HN144: 0 | HO144: 0 | HP144: 0 | HQ144: 0 | HR144: 0 | HS144: 0 | HT144: 0 | HU144: 0 | HV144: 0 | HW144: 0
A145: 2 | B145: 1233 | C145: 492 | D145: 0 | E145: 0 | F145: 1302 | G145: 461 | H145: 0 | I145: 1 | J145: 232 | K145: 723 | L145: 228 | M145: 697 | N145: 113 | O145: 348 | P145: 116 | Q145: 361 | R145: 1 | S145: 4 | T145: 1 | U145: 4 | V145: 0 | W145: 0 | X145: 0 | Y145: 0 | Z145: 0 | AA145: 0 | AB145: 0 | AC145: 0 | AD145: 0 | AE145: 0 | AF145: 0 | AG145: 0 | AH145: 0 | AI145: 0 | AJ145: 0 | AK145: 0 | AL145: 0 | AM145: 0 | AN145: 0 | AO145: 0 | AP145: 0 | AQ145: 0 | AR145: 0 | AS145: 0 | AT145: 38 | AU145: 0 | AV145: 33 | AW145: 0 | AX145: 19 | AY145: 35 | AZ145: 18 | BA145: 196 | BB145: 1 | BC145: 0 | BD145: 0 | BE145: 0 | BF145: 2 | BG145: 0 | BH145: 2 | BI145: 0 | BJ145: 10 | BK145: 21 | BL145: 9 | BM145: 18 | BN145: 12 | BO145: 26 | BP145: 9 | BQ145: 18 | BR145: 1 | BS145: 6 | BT145: 0 | BU145: 0 | BV145: 0 | BW145: 0 | BX145: 0 | BY145: 0 | BZ145: 45 | CA145: 88 | CB145: 40 | CC145: 79 | CD145: 1 | CE145: 4 | CF145: 1 | CG145: 4 | CH145: 0 | CI145: 0 | CJ145: 0 | CK145: 0 | CL145: 0 | CM145: 0 | CN145: 0 | CO145: 0 | CP145: 0 | CQ145: 0 | CR145: 0 | CS145: 0 | CT145: 2 | CU145: 2 | CV145: 0 | CW145: 0 | CX145: 0 | CY145: 0 | CZ145: 0 | DA145: 0 | DB145: 0 | DC145: 0 | DD145: 0 | DE145: 0 | DF145: 0 | DG145: 0 | DH145: 0 | DI145: 0 | DJ145: 0 | DK145: 0 | DL145: 0 | DM145: 0 | DN145: 0 | DO145: 0 | DP145: 0 | DQ145: 0 | DR145: 0 | DS145: 0 | DT145: 0 | DU145: 0 | DV145: 0 | DW145: 0 | DX145: 0 | DY145: 0 | DZ145: 0 | EA145: 0 | EB145: 0 | EC145: 0 | ED145: 492 | EE145: 348 | EF145: 0 | EG145: 0 | EH145: 0 | EI145: 0 | EJ145: 0 | EK145: 0 | EL145: 0 | EM145: 0 | EN145: 0 | EO145: 0 | EP145: 0 | EQ145: 0 | ER145: 0 | ES145: 0 | ET145: 0 | EU145: 0 | EV145: 0 | EW145: 0 | EX145: 0 | EY145: 0 | EZ145: 0 | FA145: 0 | FB145: 0 | FC145: 0 | FD145: 0 | FE145: 0 | FF145: 0 | FG145: 0 | FH145: 0 | FI145: 0 | FJ145: 0 | FK145: 0 | FL145: 0 | FM145: 0 | FN145: 0 | FO145: 0 | FP145: 0 | FQ145: 0 | FR145: 0 | FS145: 0 | FT145: 0 | FU145: 0 | FV145: 0 | FW145: 0 | FX145: 0 | FY145: 0 | FZ145: 0 | GA145: 0 | GB145: 0 | GC145: 0 | GD145: 0 | GE145: 0 | GF145: 0 | GG145: 0 | GH145: 0 | GI145: 0 | GJ145: 0 | GK145: 0 | GL145: 0 | GM145: 0 | GN145: 0 | GO145: 0 | GP145: 0 | GQ145: 0 | GR145: 0 | GS145: 0 | GT145: 0 | GU145: 0 | GV145: 0 | GW145: 0 | GX145: 0 | GY145: 0 | GZ145: 0 | HA145: 0 | HB145: 0 | HC145: 0 | HD145: 0 | HE145: 0 | HF145: 0 | HG145: 0 | HH145: 0 | HI145: 0 | HJ145: 0 | HK145: 0 | HL145: 0 | HM145: 0 | HN145: 0 | HO145: 0 | HP145: 0 | HQ145: 0 | HR145: 0 | HS145: 0 | HT145: 0 | HU145: 0 | HV145: 0 | HW145: 0
A146: 3 | B146: 981 | C146: 472 | D146: 0 | E146: 0 | F146: 1071 | G146: 441 | H146: 0 | I146: 0 | J146: 190 | K146: 860 | L146: 167 | M146: 720 | N146: 93 | O146: 266 | P146: 80 | Q146: 247 | R146: 44 | S146: 94 | T146: 19 | U146: 57 | V146: 3 | W146: 27 | X146: 3 | Y146: 17 | Z146: 3 | AA146: 14 | AB146: 3 | AC146: 17 | AD146: 1 | AE146: 2 | AF146: 0 | AG146: 0 | AH146: 0 | AI146: 0 | AJ146: 0 | AK146: 0 | AL146: 0 | AM146: 0 | AN146: 0 | AO146: 0 | AP146: 0 | AQ146: 0 | AR146: 0 | AS146: 0 | AT146: 22 | AU146: 0 | AV146: 21 | AW146: 0 | AX146: 8 | AY146: 10 | AZ146: 7 | BA146: 7 | BB146: 3 | BC146: 0 | BD146: 2 | BE146: 0 | BF146: 2 | BG146: 0 | BH146: 2 | BI146: 0 | BJ146: 13 | BK146: 75 | BL146: 15 | BM146: 72 | BN146: 11 | BO146: 63 | BP146: 13 | BQ146: 77 | BR146: 0 | BS146: 0 | BT146: 2 | BU146: 68 | BV146: 0 | BW146: 0 | BX146: 0 | BY146: 0 | BZ146: 23 | CA146: 50 | CB146: 21 | CC146: 47 | CD146: 0 | CE146: 0 | CF146: 0 | CG146: 0 | CH146: 0 | CI146: 0 | CJ146: 0 | CK146: 0 | CL146: 0 | CM146: 0 | CN146: 0 | CO146: 0 | CP146: 0 | CQ146: 0 | CR146: 0 | CS146: 0 | CT146: 1 | CU146: 1 | CV146: 1 | CW146: 1 | CX146: 0 | CY146: 0 | CZ146: 0 | DA146: 0 | DB146: 0 | DC146: 0 | DD146: 0 | DE146: 0 | DF146: 0 | DG146: 0 | DH146: 0 | DI146: 0 | DJ146: 0 | DK146: 0 | DL146: 0 | DM146: 0 | DN146: 0 | DO146: 0 | DP146: 0 | DQ146: 0 | DR146: 0 | DS146: 0 | DT146: 0 | DU146: 0 | DV146: 0 | DW146: 0 | DX146: 0 | DY146: 0 | DZ146: 0 | EA146: 0 | EB146: 0 | EC146: 0 | ED146: 471 | EE146: 266 | EF146: 44 | EG146: 0 | EH146: 0 | EI146: 0 | EJ146: 0 | EK146: 0 | EL146: 0 | EM146: 0 | EN146: 0 | EO146: 0 | EP146: 0 | EQ146: 0 | ER146: 0 | ES146: 0 | ET146: 0 | EU146: 0 | EV146: 0 | EW146: 0 | EX146: 0 | EY146: 0 | EZ146: 0 | FA146: 0 | FB146: 0 | FC146: 0 | FD146: 0 | FE146: 0 | FF146: 0 | FG146: 0 | FH146: 0 | FI146: 0 | FJ146: 0 | FK146: 0 | FL146: 0 | FM146: 0 | FN146: 0 | FO146: 0 | FP146: 0 | FQ146: 0 | FR146: 0 | FS146: 0 | FT146: 0 | FU146: 0 | FV146: 0 | FW146: 0 | FX146: 0 | FY146: 0 | FZ146: 0 | GA146: 0 | GB146: 0 | GC146: 0 | GD146: 0 | GE146: 0 | GF146: 0 | GG146: 0 | GH146: 0 | GI146: 0 | GJ146: 0 | GK146: 0 | GL146: 0 | GM146: 0 | GN146: 0 | GO146: 0 | GP146: 0 | GQ146: 0 | GR146: 0 | GS146: 0 | GT146: 0 | GU146: 0 | GV146: 0 | GW146: 0 | GX146: 0 | GY146: 0 | GZ146: 0 | HA146: 0 | HB146: 0 | HC146: 0 | HD146: 0 | HE146: 0 | HF146: 0 | HG146: 0 | HH146: 0 | HI146: 0 | HJ146: 0 | HK146: 0 | HL146: 0 | HM146: 0 | HN146: 0 | HO146: 0 | HP146: 0 | HQ146: 0 | HR146: 0 | HS146: 0 | HT146: 0 | HU146: 0 | HV146: 0 | HW146: 0
A147: T | B147: 3572 | C147: 974 | D147: 0 | E147: 0 | F147: 3983 | G147: 916 | H147: 0 | I147: 1 | J147: 666 | K147: 2413 | L147: 632 | M147: 2165 | N147: 209 | O147: 652 | P147: 199 | Q147: 646 | R147: 45 | S147: 98 | T147: 20 | U147: 61 | V147: 3 | W147: 27 | X147: 3 | Y147: 17 | Z147: 3 | AA147: 14 | AB147: 3 | AC147: 17 | AD147: 1 | AE147: 2 | AF147: 0 | AG147: 0 | AH147: 0 | AI147: 0 | AJ147: 0 | AK147: 0 | AL147: 0 | AM147: 0 | AN147: 0 | AO147: 0 | AP147: 0 | AQ147: 0 | AR147: 0 | AS147: 0 | AT147: 103 | AU147: 0 | AV147: 93 | AW147: 0 | AX147: 45 | AY147: 91 | AZ147: 45 | BA147: 274 | BB147: 6 | BC147: 0 | BD147: 4 | BE147: 0 | BF147: 5 | BG147: 0 | BH147: 7 | BI147: 0 | BJ147: 30 | BK147: 159 | BL147: 24 | BM147: 90 | BN147: 30 | BO147: 151 | BP147: 22 | BQ147: 95 | BR147: 1 | BS147: 6 | BT147: 2 | BU147: 68 | BV147: 0 | BW147: 0 | BX147: 0 | BY147: 0 | BZ147: 119 | CA147: 277 | CB147: 112 | CC147: 275 | CD147: 1 | CE147: 4 | CF147: 1 | CG147: 4 | CH147: 0 | CI147: 0 | CJ147: 0 | CK147: 0 | CL147: 0 | CM147: 0 | CN147: 0 | CO147: 0 | CP147: 0 | CQ147: 0 | CR147: 0 | CS147: 0 | CT147: 4 | CU147: 3 | CV147: 1 | CW147: 1 | CX147: 0 | CY147: 0 | CZ147: 0 | DA147: 0 | DB147: 0 | DC147: 0 | DD147: 0 | DE147: 0 | DF147: 0 | DG147: 0 | DH147: 0 | DI147: 0 | DJ147: 0 | DK147: 0 | DL147: 0 | DM147: 0 | DN147: 0 | DO147: 0 | DP147: 0 | DQ147: 0 | DR147: 0 | DS147: 0 | DT147: 0 | DU147: 0 | DV147: 0 | DW147: 0 | DX147: 0 | DY147: 0 | DZ147: 0 | EA147: 0 | EB147: 0 | EC147: 0 | ED147: 973 | EE147: 652 | EF147: 44 | EG147: 0 | EH147: 0 | EI147: 0 | EJ147: 0 | EK147: 0 | EL147: 0 | EM147: 0 | EN147: 0 | EO147: 0 | EP147: 0 | EQ147: 0 | ER147: 0 | ES147: 0 | ET147: 0 | EU147: 0 | EV147: 0 | EW147: 0 | EX147: 0 | EY147: 0 | EZ147: 0 | FA147: 0 | FB147: 0 | FC147: 0 | FD147: 0 | FE147: 0 | FF147: 0 | FG147: 0 | FH147: 0 | FI147: 0 | FJ147: 0 | FK147: 0 | FL147: 0 | FM147: 0 | FN147: 0 | FO147: 0 | FP147: 0 | FQ147: 0 | FR147: 0 | FS147: 0 | FT147: 0 | FU147: 0 | FV147: 0 | FW147: 0 | FX147: 0 | FY147: 0 | FZ147: 0 | GA147: 0 | GB147: 0 | GC147: 0 | GD147: 0 | GE147: 0 | GF147: 0 | GG147: 0 | GH147: 0 | GI147: 0 | GJ147: 0 | GK147: 0 | GL147: 0 | GM147: 0 | GN147: 0 | GO147: 0 | GP147: 0 | GQ147: 0 | GR147: 0 | GS147: 0 | GT147: 0 | GU147: 0 | GV147: 0 | GW147: 0 | GX147: 0 | GY147: 0 | GZ147: 0 | HA147: 0 | HB147: 0 | HC147: 0 | HD147: 0 | HE147: 0 | HF147: 0 | HG147: 0 | HH147: 0 | HI147: 0 | HJ147: 0 | HK147: 0 | HL147: 0 | HM147: 0 | HN147: 0 | HO147: 0 | HP147: 0 | HQ147: 0 | HR147: 0 | HS147: 0 | HT147: 0 | HU147: 0 | HV147: 0 | HW147: 0
A161: TOTAL
A162: =COUNT(A144:A159) -> 3 | B162: =SUM(B144:B159) -> 7144 | C162: =SUM(C144:C159) -> 1948 | D162: 0 | E162: 0 | F162: 7966 | G162: 1832 | H162: 0 | I162: 2 | J162: 1332 | K162: 4826 | L162: 1264 | M162: 4330 | N162: 418 | O162: 1304 | P162: 398 | Q162: 1292 | R162: 90 | S162: 196 | T162: 40 | U162: 122 | V162: 6 | W162: 54 | X162: 6 | Y162: 34 | Z162: 6 | AA162: 28 | AB162: 6 | AC162: 34 | AD162: 2 | AE162: 4 | AF162: 0 | AG162: 0 | AH162: 0 | AI162: 0 | AJ162: 0 | AK162: 0 | AL162: 0 | AM162: 0 | AN162: 0 | AO162: 0 | AP162: 0 | AQ162: 0 | AR162: 0 | AS162: 0 | AT162: 206 | AU162: 0 | AV162: 186 | AW162: 0 | AX162: 90 | AY162: 182 | AZ162: 90 | BA162: 548 | BB162: 12 | BC162: 0 | BD162: 8 | BE162: 0 | BF162: 10 | BG162: 0 | BH162: 14 | BI162: 0 | BJ162: 60 | BK162: 318 | BL162: 48 | BM162: 180 | BN162: 60 | BO162: =SUM(BO144:BO159) -> 302 | BP162: 44 | BQ162: 190 | BR162: 2 | BS162: 12 | BT162: 4 | BU162: 136 | BV162: 0 | BW162: 0 | BX162: 0 | BY162: 0 | BZ162: 238 | CA162: 554 | CB162: 224 | CC162: 550 | CD162: 2 | CE162: 8 | CF162: 2 | CG162: 8 | CH162: 0 | CI162: 0 | CJ162: 0 | CK162: 0 | CL162: 0 | CM162: 0 | CN162: 0 | CO162: 0 | CP162: 0 | CQ162: 0 | CR162: 0 | CS162: 0 | CT162: 8 | CU162: 6 | CV162: 2 | CW162: 2 | CX162: 0 | CY162: 0 | CZ162: 0 | DA162: 0 | DB162: 0 | DC162: 0 | DD162: 0 | DE162: 0 | DF162: 0 | DG162: 0 | DH162: 0 | DI162: 0 | DJ162: 0 | DK162: 0 | DL162: 0 | DM162: 0 | DN162: 0 | DO162: 0 | DP162: 0 | DQ162: 0 | DR162: 0 | DS162: 0 | DT162: 0 | DU162: 0 | DV162: 0 | DW162: 0 | DX162: 0 | DY162: 0 | DZ162: 0 | EA162: =SUM(EA144:EA159) -> 0 | EB162: 0 | EC162: 0 | ED162: 1946 | EE162: 1304 | EF162: 88 | EG162: 0 | EH162: 0 | EI162: 0 | EJ162: 0 | EK162: 0 | EL162: 0 | EM162: 0 | EN162: 0 | EO162: 0 | EP162: 0 | EQ162: 0 | ER162: 0 | ES162: 0 | ET162: 0 | EU162: 0 | EV162: 0 | EW162: 0 | EX162: 0 | EY162: 0 | EZ162: 0 | FA162: 0 | FB162: 0 | FC162: 0 | FD162: 0 | FE162: 0 | FF162: 0 | FG162: 0 | FH162: 0 | FI162: 0 | FJ162: 0 | FK162: 0 | FL162: 0 | FM162: 0 | FN162: 0 | FO162: 0 | FP162: 0 | FQ162: 0 | FR162: 0 | FS162: 0 | FT162: 0 | FU162: 0 | FV162: 0 | FW162: 0 | FX162: 0 | FY162: 0 | FZ162: 0 | GA162: 0 | GB162: 0 | GC162: 0 | GD162: 0 | GE162: 0 | GF162: 0 | GG162: 0 | GH162: 0 | GI162: 0 | GJ162: 0 | GK162: 0 | GL162: 0 | GM162: =SUM(GM144:GM159) -> 0 | GN162: 0 | GO162: 0 | GP162: 0 | GQ162: 0 | GR162: 0 | GS162: 0 | GT162: 0 | GU162: 0 | GV162: 0 | GW162: 0 | GX162: 0 | GY162: 0 | GZ162: 0 | HA162: 0 | HB162: 0 | HC162: 0 | HD162: 0 | HE162: 0 | HF162: 0 | HG162: 0 | HH162: 0 | HI162: 0 | HJ162: 0 | HK162: 0 | HL162: 0 | HM162: 0 | HN162: 0 | HO162: =SUM(HO144:HO159) -> 0 | HP162: 0 | HQ162: 0 | HR162: 0 | HS162: 0 | HT162: 0 | HU162: 0 | HV162: 0 | HW162: 0
A163: =CONCATENATE(A144,"-",A145,"-",A146,"-",A147,"-",A148,"-",A149,"-",A150,"-",A151,"-",A152,"-",A153,"-",A154,"-",A155) -> 1-2-3-T--------
B164: BAS001 | C164: BAS002 | D164: BAS003 | E164: BAS004 | F164: BAS005 | G164: BAS006 | H164: BAS007 | I164: BAS008 | J164: BAS009 | K164: BAS010 | L164: BAS011 | M164: BAS012 | N164: BAS013 | O164: BAS014 | P164: BAS015 | Q164: BAS016 | R164: BAS017 | S164: BAS018 | T164: BAS019 | U164: BAS020 | V164: BAS021 | W164: BAS022 | X164: BAS023 | Y164: BAS024 | Z164: BAS025 | AA164: BAS026 | AB164: BAS027 | AC164: BAS028 | AD164: BAS029 | AE164: BAS030 | AF164: BAS031 | AG164: BAS032 | AH164: BAS033 | AI164: BAS034 | AJ164: BAS035 | AK164: BAS036 | AL164: BAS037 | AM164: BAS038 | AN164: BAS039 | AO164: BAS040 | AP164: BAS041 | AQ164: BAS042 | AR164: BAS043 | AS164: BAS044 | AT164: BAS045 | AU164: BAS046 | AV164: BAS047 | AW164: BAS048 | AX164: BAS049 | AY164: BAS050 | AZ164: BAS051 | BA164: BAS052 | BB164: BAS053 | BC164: BAS054 | BD164: BAS055 | BE164: BAS056 | BF164: BAS057 | BG164: BAS058 | BH164: BAS059 | BI164: BAS060 | BJ164: BAS061 | BK164: BAS062 | BL164: BAS063 | BM164: BAS064 | BN164: BAS065 | BO164: BAS066 | BP164: BAS067 | BQ164: BAS068 | BR164: BAS069 | BS164: BAS070 | BT164: BAS071 | BU164: BAS072 | BV164: BAS073 | BW164: BAS074 | BX164: BAS075 | BY164: BAS076 | BZ164: BAS077 | CA164: BAS078 | CB164: BAS079 | CC164: BAS080 | CD164: BAS081 | CE164: BAS082 | CF164: BAS083 | CG164: BAS084 | CH164: BAS085 | CI164: BAS086 | CJ164: BAS087 | CK164: BAS088 | CL164: BAS089 | CM164: BAS090 | CN164: BAS091 | CO164: BAS092 | CP164: BAS093 | CQ164: BAS094 | CR164: BAS095 | CS164: BAS096 | CT164: BAS097 | CU164: BAS098 | CV164: BAS099 | CW164: BAS100 | CX164: BAS101 | CY164: BAS102 | CZ164: BAS103 | DA164: BAS104 | DB164: BAS105 | DC164: BAS106 | DD164: BAS107 | DE164: BAS108 | DF164: BAS109 | DG164: BAS110 | DH164: BAS111 | DI164: BAS112 | DJ164: BAS113 | DK164: BAS114 | DL164: BAS115 | DM164: BAS116 | DN164: BAS117 | DO164: BAS118 | DP164: BAS119 | DQ164: BAS120 | DR164: BAS121 | DS164: BAS122 | DT164: BAS123 | DU164: BAS124 | DV164: BAS125 | DW164: BAS126 | DX164: BAS127 | DY164: BAS128 | DZ164: BAS129 | EA164: BAS130 | EB164: BAS131 | EC164: BAS132 | ED164: BAS133 | EE164: BAS134 | EF164: BAS135 | EG164: BAS136 | EH164: BAS137 | EI164: BAS138 | EJ164: BAS139 | EK164: BAS140 | EL164: BAS141 | EM164: BAS142 | EN164: BAS143 | EO164: BAS144 | EP164: BAS145 | EQ164: BAS146 | ER164: BAS147 | ES164: BAS148 | ET164: BAS149 | EU164: BAS150 | EV164: BAS151 | EW164: BAS152 | EX164: BAS153 | EY164: BAS154 | EZ164: BAS155 | FA164: BAS156 | FB164: BAS157 | FC164: BAS158 | FD164: BAS159 | FE164: BAS160 | FF164: BAS161 | FG164: BAS162 | FH164: BAS163 | FI164: BAS164 | FJ164: BAS165 | FK164: BAS166 | FL164: BAS167 | FM164: BAS168 | FN164: BAS169 | FO164: BAS170 | FP164: BAS171 | FQ164: BAS172 | FR164: BAS173 | FS164: BAS174 | FT164: BAS175 | FU164: BAS176 | FV164: BAS177 | FW164: BAS178 | FX164: BAS179 | FY164: BAS180 | FZ164: BAS181 | GA164: BAS182 | GB164: BAS183 | GC164: BAS184 | GD164: BAS185 | GE164: BAS186 | GF164: BAS187 | GG164: BAS188 | GH164: BAS189 | GI164: BAS190 | GJ164: BAS191 | GK164: BAS192 | GL164: BAS193 | GM164: BAS194 | GN164: BAS195 | GO164: BAS196 | GP164: BAS197 | GQ164: BAS198 | GR164: BAS199 | GS164: BAS200 | GT164: BAS201 | GU164: BAS202 | GV164: BAS203 | GW164: BAS204 | GX164: BAS205 | GY164: BAS206 | GZ164: BAS207 | HA164: BAS208 | HB164: BAS209 | HC164: BAS210 | HD164: BAS211 | HE164: BAS212 | HF164: BAS213 | HG164: BAS214 | HH164: BAS215 | HI164: BAS216 | HJ164: BAS217 | HK164: BAS218 | HL164: BAS219 | HM164: BAS220 | HN164: BAS221 | HO164: BAS222 | HP164: BAS223 | HQ164: BAS224 | HR164: BAS225 | HS164: BAS226 | HT164: BAS227 | HU164: BAS228 | HV164: BAS229 | HW164: BAS230
B165: =IF(B164=B143,"SI","NO") -> SI | C165: =IF(C164=C143,"SI","NO") -> SI | D165: SI | E165: SI | F165: SI | G165: SI | H165: SI | I165: SI | J165: SI | K165: SI | L165: SI | M165: SI | N165: SI | O165: SI | P165: SI | Q165: SI | R165: SI | S165: SI | T165: SI | U165: SI | V165: SI | W165: SI | X165: SI | Y165: SI | Z165: SI | AA165: SI | AB165: SI | AC165: SI | AD165: SI | AE165: SI | AF165: SI | AG165: SI | AH165: SI | AI165: SI | AJ165: SI | AK165: SI | AL165: SI | AM165: SI | AN165: SI | AO165: SI | AP165: SI | AQ165: SI | AR165: SI | AS165: SI | AT165: SI | AU165: SI | AV165: SI | AW165: SI | AX165: SI | AY165: SI | AZ165: SI | BA165: SI | BB165: SI | BC165: SI | BD165: SI | BE165: SI | BF165: SI | BG165: SI | BH165: SI | BI165: SI | BJ165: SI | BK165: SI | BL165: SI | BM165: SI | BN165: SI | BO165: =IF(BO164=BO143,"SI","NO") -> SI | BP165: SI | BQ165: SI | BR165: SI | BS165: SI | BT165: SI | BU165: SI | BV165: SI | BW165: SI | BX165: SI | BY165: SI | BZ165: SI | CA165: SI | CB165: SI | CC165: SI | CD165: SI | CE165: SI | CF165: SI | CG165: SI | CH165: SI | CI165: SI | CJ165: SI | CK165: SI | CL165: SI | CM165: SI | CN165: SI | CO165: SI | CP165: SI | CQ165: SI | CR165: SI | CS165: SI | CT165: SI | CU165: SI | CV165: SI | CW165: SI | CX165: SI | CY165: SI | CZ165: SI | DA165: SI | DB165: SI | DC165: SI | DD165: SI | DE165: SI | DF165: SI | DG165: SI | DH165: SI | DI165: SI | DJ165: SI | DK165: SI | DL165: SI | DM165: SI | DN165: SI | DO165: SI | DP165: SI | DQ165: SI | DR165: SI | DS165: SI | DT165: SI | DU165: SI | DV165: SI | DW165: SI | DX165: SI | DY165: SI | DZ165: SI | EA165: =IF(EA164=EA143,"SI","NO") -> SI | EB165: SI | EC165: SI | ED165: SI | EE165: SI | EF165: SI | EG165: SI | EH165: SI | EI165: SI | EJ165: SI | EK165: SI | EL165: SI | EM165: SI | EN165: SI | EO165: SI | EP165: SI | EQ165: SI | ER165: SI | ES165: SI | ET165: SI | EU165: SI | EV165: SI | EW165: SI | EX165: SI | EY165: SI | EZ165: SI | FA165: SI | FB165: SI | FC165: SI | FD165: SI | FE165: SI | FF165: SI | FG165: SI | FH165: SI | FI165: SI | FJ165: SI | FK165: SI | FL165: SI | FM165: SI | FN165: SI | FO165: SI | FP165: SI | FQ165: SI | FR165: SI | FS165: SI | FT165: SI | FU165: SI | FV165: SI | FW165: SI | FX165: SI | FY165: SI | FZ165: SI | GA165: SI | GB165: SI | GC165: SI | GD165: SI | GE165: SI | GF165: SI | GG165: SI | GH165: SI | GI165: SI | GJ165: SI | GK165: SI | GL165: SI | GM165: =IF(GM164=GM143,"SI","NO") -> SI | GN165: SI | GO165: SI | GP165: SI | GQ165: SI | GR165: SI | GS165: SI | GT165: SI | GU165: SI | GV165: SI | GW165: SI | GX165: SI | GY165: SI | GZ165: SI | HA165: SI | HB165: SI | HC165: SI | HD165: SI | HE165: SI | HF165: SI | HG165: SI | HH165: SI | HI165: SI | HJ165: SI | HK165: SI | HL165: SI | HM165: SI | HN165: SI | HO165: =IF(HO164=HO143,"SI","NO") -> SI | HP165: SI | HQ165: SI | HR165: SI | HS165: SI | HT165: SI | HU165: SI | HV165: SI | HW165: SI
A167: PP017-9
A168: ANNO | B168: 2025
A169: cod_red | B169: 03
A170: codmic | B170: (Todas)
A171: cod_prov | B171: (Todas)
A172: coddist | B172: (Todas)
A173: cod_estab | B173: (Todas)
A174: cod_eje | B174: (Todas)
B176: Valores
A177: Etiquetas de fila | B177: BAS001 | C177: BAS002 | D177: BAS003 | E177: BAS004 | F177: BAS005 | G177: BAS006 | H177: BAS007 | I177: BAS008 | J177: BAS009 | K177: BAS010 | L177: BAS011 | M177: BAS012 | N177: BAS013 | O177: BAS014 | P177: BAS015 | Q177: BAS016 | R177: BAS017 | S177: BAS018 | T177: BAS019 | U177: BAS020 | V177: BAS021 | W177: BAS022 | X177: BAS023 | Y177: BAS024 | Z177: BAS025 | AA177: BAS026 | AB177: BAS027 | AC177: BAS028 | AD177: BAS029 | AE177: BAS030 | AF177: BAS031 | AG177: BAS032 | AH177: BAS033 | AI177: BAS034 | AJ177: BAS035 | AK177: BAS036 | AL177: BAS037 | AM177: BAS038 | AN177: BAS039 | AO177: BAS040 | AP177: BAS041 | AQ177: BAS042 | AR177: BAS043 | AS177: BAS044 | AT177: BAS045 | AU177: BAS046 | AV177: BAS047 | AW177: BAS048 | AX177: BAS049 | AY177: BAS050 | AZ177: BAS051 | BA177: BAS052 | BB177: BAS053 | BC177: BAS054 | BD177: BAS055 | BE177: BAS056 | BF177: BAS057 | BG177: BAS058 | BH177: BAS059 | BI177: BAS060 | BJ177: BAS061 | BK177: BAS062 | BL177: BAS063 | BM177: BAS064 | BN177: BAS065 | BO177: BAS066 | BP177: BAS067 | BQ177: BAS068 | BR177: BAS069 | BS177: BAS070 | BT177: BAS071 | BU177: BAS072 | BV177: BAS073 | BW177: BAS074 | BX177: BAS075 | BY177: BAS076 | BZ177: BAS077 | CA177: BAS078 | CB177: BAS079 | CC177: BAS080 | CD177: BAS081 | CE177: BAS082 | CF177: BAS083 | CG177: BAS084 | CH177: BAS085 | CI177: BAS086 | CJ177: BAS087 | CK177: BAS088 | CL177: BAS089 | CM177: BAS090 | CN177: BAS091 | CO177: BAS092 | CP177: BAS093 | CQ177: BAS094 | CR177: BAS095 | CS177: BAS096 | CT177: BAS097 | CU177: BAS098 | CV177: BAS099 | CW177: BAS100 | CX177: BAS101 | CY177: BAS102 | CZ177: BAS103 | DA177: BAS104 | DB177: BAS105 | DC177: BAS106 | DD177: BAS107 | DE177: BAS108 | DF177: BAS109 | DG177: BAS110 | DH177: BAS111 | DI177: BAS112 | DJ177: BAS113 | DK177: BAS114 | DL177: BAS115 | DM177: BAS116 | DN177: BAS117 | DO177: BAS118 | DP177: BAS119 | DQ177: BAS120 | DR177: BAS121 | DS177: BAS122 | DT177: BAS123 | DU177: BAS124 | DV177: BAS125 | DW177: BAS126 | DX177: BAS127 | DY177: BAS128 | DZ177: BAS129 | EA177: BAS130 | EB177: BAS131 | EC177: BAS132 | ED177: BAS133 | EE177: BAS134 | EF177: BAS135 | EG177: BAS136 | EH177: BAS137 | EI177: BAS138 | EJ177: BAS139 | EK177: BAS140 | EL177: BAS141 | EM177: BAS142 | EN177: BAS143 | EO177: BAS144 | EP177: BAS145 | EQ177: BAS146 | ER177: BAS147 | ES177: BAS148 | ET177: BAS149 | EU177: BAS150 | EV177: BAS151 | EW177: BAS152 | EX177: BAS153 | EY177: BAS154 | EZ177: BAS155 | FA177: BAS156 | FB177: BAS157 | FC177: BAS158 | FD177: BAS159 | FE177: BAS160 | FF177: BAS161 | FG177: BAS162 | FH177: BAS163 | FI177: BAS164 | FJ177: BAS165 | FK177: BAS166 | FL177: BAS167 | FM177: BAS168 | FN177: BAS169 | FO177: BAS170 | FP177: BAS171 | FQ177: BAS172 | FR177: BAS173 | FS177: BAS174 | FT177: BAS175 | FU177: BAS176 | FV177: BAS177 | FW177: BAS178 | FX177: BAS179 | FY177: BAS180 | FZ177: BAS181 | GA177: BAS182 | GB177: BAS183 | GC177: BAS184 | GD177: BAS185 | GE177: BAS186 | GF177: BAS187 | GG177: BAS188 | GH177: BAS189 | GI177: BAS190 | GJ177: BAS191 | GK177: BAS192 | GL177: BAS193 | GM177: BAS194 | GN177: BAS195 | GO177: BAS196 | GP177: BAS197 | GQ177: BAS198 | GR177: BAS199 | GS177: BAS200 | GT177: BAS201 | GU177: BAS202 | GV177: BAS203 | GW177: BAS204 | GX177: BAS205 | GY177: BAS206 | GZ177: BAS207 | HA177: BAS208 | HB177: BAS209 | HC177: BAS210 | HD177: BAS211 | HE177: BAS212 | HF177: BAS213 | HG177: BAS214 | HH177: BAS215 | HI177: BAS216 | HJ177: BAS217 | HK177: BAS218 | HL177: BAS219 | HM177: BAS220 | HN177: BAS221 | HO177: BAS222 | HP177: BAS223 | HQ177: BAS224 | HR177: BAS225 | HS177: BAS226 | HT177: BAS227 | HU177: BAS228 | HV177: BAS229 | HW177: BAS230
A178: 1 | B178: 5 | C178: 79 | D178: 631 | E178: 1447 | F178: 153 | G178: 31 | H178: 239 | I178: 207 | J178: 8 | K178: 511 | L178: 9 | M178: 13 | N178: 0 | O178: 0 | P178: 9 | Q178: 0 | R178: 0 | S178: 9 | T178: 975 | U178: 1126 | V178: 39 | W178: 229 | X178: 6 | Y178: 6 | Z178: 3 | AA178: 1 | AB178: 0 | AC178: 0 | AD178: 0 | AE178: 0 | AF178: 13 | AG178: 26 | AH178: 0 | AI178: 0 | AJ178: 17 | AK178: 93 | AL178: 0 | AM178: 0 | AN178: 0 | AO178: 0 | AP178: 0 | AQ178: 0 | AR178: 0 | AS178: 0 | AT178: 0 | AU178: 0 | AV178: 0 | AW178: 72 | AX178: 0 | AY178: 0 | AZ178: 0 | BA178: 0 | BB178: 0 | BC178: 0 | BD178: 0 | BE178: 0 | BF178: 0 | BG178: 0 | BH178: 22 | BI178: 87 | BJ178: 0 | BK178: 0 | BL178: 10 | BM178: 15 | BN178: 0 | BO178: 0 | BP178: 0 | BQ178: 0 | BR178: 0 | BS178: 0 | BT178: 13 | BU178: 26 | BV178: 0 | BW178: 0 | BX178: 0 | BY178: 0 | BZ178: 0 | CA178: 0 | CB178: 0 | CC178: 0 | CD178: 0 | CE178: 0 | CF178: 0 | CG178: 0 | CH178: 0 | CI178: 0 | CJ178: 0 | CK178: 1 | CL178: 6 | CM178: 0 | CN178: 0 | CO178: 0 | CP178: 0 | CQ178: 0 | CR178: 0 | CS178: 0 | CT178: 0 | CU178: 0 | CV178: 0 | CW178: 0 | CX178: 0 | CY178: 0 | CZ178: 0 | DA178: 0 | DB178: 0 | DC178: 0 | DD178: 0 | DE178: 0 | DF178: 0 | DG178: 0 | DH178: 0 | DI178: 0 | DJ178: 0 | DK178: 0 | DL178: 0 | DM178: 0 | DN178: 0 | DO178: 0 | DP178: 0 | DQ178: 0 | DR178: 0 | DS178: 0 | DT178: 0 | DU178: 0 | DV178: 0 | DW178: 0 | DX178: 0 | DY178: 0 | DZ178: 0 | EA178: 0 | EB178: 0 | EC178: 0 | ED178: 0 | EE178: 3 | EF178: 0 | EG178: 0 | EH178: 0 | EI178: 5 | EJ178: 0 | EK178: 0 | EL178: 1 | EM178: 0 | EN178: 0 | EO178: 0 | EP178: 0 | EQ178: 0 | ER178: 0 | ES178: 0 | ET178: 0 | EU178: 6 | EV178: 0 | EW178: 0 | EX178: 0 | EY178: 0 | EZ178: 0 | FA178: 0 | FB178: 0 | FC178: 0 | FD178: 0 | FE178: 0 | FF178: 0 | FG178: 6 | FH178: 0 | FI178: 0 | FJ178: 0 | FK178: 7 | FL178: 0 | FM178: 0 | FN178: 0 | FO178: 0 | FP178: 0 | FQ178: 0 | FR178: 0 | FS178: 0 | FT178: 0 | FU178: 0 | FV178: 0 | FW178: 0 | FX178: 0 | FY178: 0 | FZ178: 0 | GA178: 0 | GB178: 0 | GC178: 0 | GD178: 0 | GE178: 0 | GF178: 0 | GG178: 0 | GH178: 0 | GI178: 0 | GJ178: 0 | GK178: 0 | GL178: 0 | GM178: 0 | GN178: 0 | GO178: 0 | GP178: 0 | GQ178: 0 | GR178: 0 | GS178: 0 | GT178: 0 | GU178: 0 | GV178: 0 | GW178: 0 | GX178: 0 | GY178: 0 | GZ178: 0 | HA178: 0 | HB178: 0 | HC178: 0 | HD178: 0 | HE178: 0 | HF178: 0 | HG178: 0 | HH178: 0 | HI178: 0 | HJ178: 0 | HK178: 0 | HL178: 0 | HM178: 0 | HN178: 0 | HO178: 0 | HP178: 0 | HQ178: 0 | HR178: 0 | HS178: 0 | HT178: 0 | HU178: 0 | HV178: 0 | HW178: 0
A179: 2 | B179: 2 | C179: 6 | D179: 568 | E179: 1594 | F179: 113 | G179: 12 | H179: 305 | I179: 93 | J179: 8 | K179: 442 | L179: 181 | M179: 375 | N179: 25 | O179: 1 | P179: 81 | Q179: 72 | R179: 1 | S179: 146 | T179: 807 | U179: 792 | V179: 39 | W179: 222 | X179: 0 | Y179: 0 | Z179: 235 | AA179: 5 | AB179: 16 | AC179: 0 | AD179: 0 | AE179: 0 | AF179: 6 | AG179: 9 | AH179: 0 | AI179: 0 | AJ179: 20 | AK179: 28 | AL179: 0 | AM179: 0 | AN179: 0 | AO179: 0 | AP179: 0 | AQ179: 0 | AR179: 1 | AS179: 0 | AT179: 0 | AU179: 0 | AV179: 0 | AW179: 9 | AX179: 0 | AY179: 0 | AZ179: 1 | BA179: 3 | BB179: 0 | BC179: 0 | BD179: 0 | BE179: 0 | BF179: 0 | BG179: 0 | BH179: 13 | BI179: 14 | BJ179: 0 | BK179: 0 | BL179: 25 | BM179: 33 | BN179: 0 | BO179: 0 | BP179: 0 | BQ179: 0 | BR179: 0 | BS179: 0 | BT179: 3 | BU179: 5 | BV179: 0 | BW179: 0 | BX179: 0 | BY179: 0 | BZ179: 0 | CA179: 0 | CB179: 0 | CC179: 0 | CD179: 0 | CE179: 0 | CF179: 0 | CG179: 1 | CH179: 22 | CI179: 0 | CJ179: 0 | CK179: 3 | CL179: 26 | CM179: 0 | CN179: 0 | CO179: 0 | CP179: 0 | CQ179: 0 | CR179: 0 | CS179: 0 | CT179: 0 | CU179: 0 | CV179: 0 | CW179: 0 | CX179: 0 | CY179: 0 | CZ179: 0 | DA179: 0 | DB179: 0 | DC179: 0 | DD179: 0 | DE179: 0 | DF179: 0 | DG179: 0 | DH179: 0 | DI179: 1 | DJ179: 22 | DK179: 0 | DL179: 0 | DM179: 1 | DN179: 1 | DO179: 0 | DP179: 0 | DQ179: 0 | DR179: 0 | DS179: 0 | DT179: 0 | DU179: 0 | DV179: 0 | DW179: 0 | DX179: 0 | DY179: 0 | DZ179: 0 | EA179: 0 | EB179: 0 | EC179: 0 | ED179: 0 | EE179: 0 | EF179: 2 | EG179: 1 | EH179: 0 | EI179: 10 | EJ179: 3 | EK179: 1 | EL179: 0 | EM179: 0 | EN179: 0 | EO179: 0 | EP179: 0 | EQ179: 0 | ER179: 0 | ES179: 0 | ET179: 0 | EU179: 0 | EV179: 5 | EW179: 1 | EX179: 0 | EY179: 0 | EZ179: 0 | FA179: 1 | FB179: 0 | FC179: 0 | FD179: 0 | FE179: 0 | FF179: 0 | FG179: 0 | FH179: 4 | FI179: 1 | FJ179: 0 | FK179: 10 | FL179: 6 | FM179: 1 | FN179: 0 | FO179: 0 | FP179: 0 | FQ179: 0 | FR179: 0 | FS179: 0 | FT179: 0 | FU179: 1 | FV179: 0 | FW179: 0 | FX179: 0 | FY179: 0 | FZ179: 0 | GA179: 0 | GB179: 0 | GC179: 0 | GD179: 0 | GE179: 0 | GF179: 0 | GG179: 0 | GH179: 0 | GI179: 0 | GJ179: 0 | GK179: 0 | GL179: 0 | GM179: 0 | GN179: 0 | GO179: 0 | GP179: 0 | GQ179: 0 | GR179: 0 | GS179: 0 | GT179: 0 | GU179: 0 | GV179: 0 | GW179: 0 | GX179: 0 | GY179: 0 | GZ179: 0 | HA179: 0 | HB179: 0 | HC179: 0 | HD179: 0 | HE179: 0 | HF179: 0 | HG179: 0 | HH179: 0 | HI179: 0 | HJ179: 0 | HK179: 0 | HL179: 0 | HM179: 0 | HN179: 0 | HO179: 0 | HP179: 0 | HQ179: 0 | HR179: 0 | HS179: 0 | HT179: 0 | HU179: 0 | HV179: 0 | HW179: 0
A180: 3 | B180: 4 | C180: 24 | D180: 469 | E180: 1804 | F180: 93 | G180: 20 | H180: 288 | I180: 49 | J180: 15 | K180: 323 | L180: 236 | M180: 1131 | N180: 30 | O180: 1 | P180: 150 | Q180: 39 | R180: 0 | S180: 184 | T180: 929 | U180: 590 | V180: 41 | W180: 206 | X180: 5 | Y180: 1 | Z180: 305 | AA180: 4 | AB180: 38 | AC180: 4 | AD180: 0 | AE180: 0 | AF180: 0 | AG180: 0 | AH180: 0 | AI180: 0 | AJ180: 28 | AK180: 28 | AL180: 0 | AM180: 0 | AN180: 0 | AO180: 0 | AP180: 0 | AQ180: 0 | AR180: 0 | AS180: 0 | AT180: 0 | AU180: 0 | AV180: 0 | AW180: 0 | AX180: 0 | AY180: 0 | AZ180: 2 | BA180: 10 | BB180: 0 | BC180: 0 | BD180: 0 | BE180: 0 | BF180: 0 | BG180: 0 | BH180: 1 | BI180: 0 | BJ180: 0 | BK180: 0 | BL180: 28 | BM180: 27 | BN180: 0 | BO180: 0 | BP180: 0 | BQ180: 0 | BR180: 0 | BS180: 0 | BT180: 0 | BU180: 0 | BV180: 0 | BW180: 0 | BX180: 0 | BY180: 0 | BZ180: 0 | CA180: 0 | CB180: 0 | CC180: 0 | CD180: 0 | CE180: 0 | CF180: 0 | CG180: 0 | CH180: 0 | CI180: 0 | CJ180: 0 | CK180: 2 | CL180: 26 | CM180: 0 | CN180: 0 | CO180: 0 | CP180: 0 | CQ180: 0 | CR180: 0 | CS180: 0 | CT180: 0 | CU180: 0 | CV180: 0 | CW180: 0 | CX180: 0 | CY180: 0 | CZ180: 0 | DA180: 0 | DB180: 0 | DC180: 0 | DD180: 0 | DE180: 0 | DF180: 0 | DG180: 0 | DH180: 0 | DI180: 0 | DJ180: 0 | DK180: 0 | DL180: 0 | DM180: 0 | DN180: 0 | DO180: 0 | DP180: 0 | DQ180: 0 | DR180: 0 | DS180: 0 | DT180: 0 | DU180: 0 | DV180: 0 | DW180: 0 | DX180: 0 | DY180: 0 | DZ180: 0 | EA180: 0 | EB180: 0 | EC180: 0 | ED180: 0 | EE180: 3 | EF180: 0 | EG180: 0 | EH180: 1 | EI180: 24 | EJ180: 0 | EK180: 1 | EL180: 1 | EM180: 0 | EN180: 0 | EO180: 0 | EP180: 0 | EQ180: 0 | ER180: 0 | ES180: 0 | ET180: 0 | EU180: 7 | EV180: 1 | EW180: 0 | EX180: 3 | EY180: 0 | EZ180: 0 | FA180: 0 | FB180: 4 | FC180: 0 | FD180: 0 | FE180: 0 | FF180: 0 | FG180: 7 | FH180: 1 | FI180: 0 | FJ180: 3 | FK180: 22 | FL180: 1 | FM180: 0 | FN180: 3 | FO180: 0 | FP180: 0 | FQ180: 0 | FR180: 0 | FS180: 0 | FT180: 0 | FU180: 0 | FV180: 1 | FW180: 0 | FX180: 0 | FY180: 0 | FZ180: 0 | GA180: 0 | GB180: 0 | GC180: 0 | GD180: 0 | GE180: 0 | GF180: 0 | GG180: 0 | GH180: 0 | GI180: 0 | GJ180: 0 | GK180: 0 | GL180: 0 | GM180: 0 | GN180: 0 | GO180: 0 | GP180: 0 | GQ180: 0 | GR180: 0 | GS180: 0 | GT180: 0 | GU180: 0 | GV180: 0 | GW180: 0 | GX180: 0 | GY180: 0 | GZ180: 0 | HA180: 0 | HB180: 0 | HC180: 0 | HD180: 0 | HE180: 0 | HF180: 0 | HG180: 0 | HH180: 0 | HI180: 0 | HJ180: 0 | HK180: 0 | HL180: 0 | HM180: 0 | HN180: 0 | HO180: 0 | HP180: 0 | HQ180: 0 | HR180: 0 | HS180: 0 | HT180: 0 | HU180: 0 | HV180: 0 | HW180: 0
A181: T | B181: 11 | C181: 109 | D181: 1668 | E181: 4845 | F181: 359 | G181: 63 | H181: 832 | I181: 349 | J181: 31 | K181: 1276 | L181: 426 | M181: 1519 | N181: 55 | O181: 2 | P181: 240 | Q181: 111 | R181: 1 | S181: 339 | T181: 2711 | U181: 2508 | V181: 119 | W181: 657 | X181: 11 | Y181: 7 | Z181: 543 | AA181: 10 | AB181: 54 | AC181: 4 | AD181: 0 | AE181: 0 | AF181: 19 | AG181: 35 | AH181: 0 | AI181: 0 | AJ181: 65 | AK181: 149 | AL181: 0 | AM181: 0 | AN181: 0 | AO181: 0 | AP181: 0 | AQ181: 0 | AR181: 1 | AS181: 0 | AT181: 0 | AU181: 0 | AV181: 0 | AW181: 81 | AX181: 0 | AY181: 0 | AZ181: 3 | BA181: 13 | BB181: 0 | BC181: 0 | BD181: 0 | BE181: 0 | BF181: 0 | BG181: 0 | BH181: 36 | BI181: 101 | BJ181: 0 | BK181: 0 | BL181: 63 | BM181: 75 | BN181: 0 | BO181: 0 | BP181: 0 | BQ181: 0 | BR181: 0 | BS181: 0 | BT181: 16 | BU181: 31 | BV181: 0 | BW181: 0 | BX181: 0 | BY181: 0 | BZ181: 0 | CA181: 0 | CB181: 0 | CC181: 0 | CD181: 0 | CE181: 0 | CF181: 0 | CG181: 1 | CH181: 22 | CI181: 0 | CJ181: 0 | CK181: 6 | CL181: 58 | CM181: 0 | CN181: 0 | CO181: 0 | CP181: 0 | CQ181: 0 | CR181: 0 | CS181: 0 | CT181: 0 | CU181: 0 | CV181: 0 | CW181: 0 | CX181: 0 | CY181: 0 | CZ181: 0 | DA181: 0 | DB181: 0 | DC181: 0 | DD181: 0 | DE181: 0 | DF181: 0 | DG181: 0 | DH181: 0 | DI181: 1 | DJ181: 22 | DK181: 0 | DL181: 0 | DM181: 1 | DN181: 1 | DO181: 0 | DP181: 0 | DQ181: 0 | DR181: 0 | DS181: 0 | DT181: 0 | DU181: 0 | DV181: 0 | DW181: 0 | DX181: 0 | DY181: 0 | DZ181: 0 | EA181: 0 | EB181: 0 | EC181: 0 | ED181: 0 | EE181: 6 | EF181: 2 | EG181: 1 | EH181: 1 | EI181: 39 | EJ181: 3 | EK181: 2 | EL181: 2 | EM181: 0 | EN181: 0 | EO181: 0 | EP181: 0 | EQ181: 0 | ER181: 0 | ES181: 0 | ET181: 0 | EU181: 13 | EV181: 6 | EW181: 1 | EX181: 3 | EY181: 0 | EZ181: 0 | FA181: 1 | FB181: 4 | FC181: 0 | FD181: 0 | FE181: 0 | FF181: 0 | FG181: 13 | FH181: 5 | FI181: 1 | FJ181: 3 | FK181: 39 | FL181: 7 | FM181: 1 | FN181: 3 | FO181: 0 | FP181: 0 | FQ181: 0 | FR181: 0 | FS181: 0 | FT181: 0 | FU181: 1 | FV181: 1 | FW181: 0 | FX181: 0 | FY181: 0 | FZ181: 0 | GA181: 0 | GB181: 0 | GC181: 0 | GD181: 0 | GE181: 0 | GF181: 0 | GG181: 0 | GH181: 0 | GI181: 0 | GJ181: 0 | GK181: 0 | GL181: 0 | GM181: 0 | GN181: 0 | GO181: 0 | GP181: 0 | GQ181: 0 | GR181: 0 | GS181: 0 | GT181: 0 | GU181: 0 | GV181: 0 | GW181: 0 | GX181: 0 | GY181: 0 | GZ181: 0 | HA181: 0 | HB181: 0 | HC181: 0 | HD181: 0 | HE181: 0 | HF181: 0 | HG181: 0 | HH181: 0 | HI181: 0 | HJ181: 0 | HK181: 0 | HL181: 0 | HM181: 0 | HN181: 0 | HO181: 0 | HP181: 0 | HQ181: 0 | HR181: 0 | HS181: 0 | HT181: 0 | HU181: 0 | HV181: 0 | HW181: 0
A196: TOTAL
A197: =COUNT(A178:A194) -> 3 | B197: =SUM(B178:B194) -> 22 | C197: =SUM(C178:C194) -> 218 | D197: 3336 | E197: 9690 | F197: 718 | G197: 126 | H197: 1664 | I197: 698 | J197: 62 | K197: 2552 | L197: 852 | M197: 3038 | N197: 110 | O197: 4 | P197: 480 | Q197: 222 | R197: 2 | S197: 678 | T197: 5422 | U197: 5016 | V197: 238 | W197: 1314 | X197: 22 | Y197: 14 | Z197: 1086 | AA197: 20 | AB197: 108 | AC197: 8 | AD197: 0 | AE197: 0 | AF197: 38 | AG197: 70 | AH197: 0 | AI197: 0 | AJ197: 130 | AK197: 298 | AL197: 0 | AM197: 0 | AN197: 0 | AO197: 0 | AP197: 0 | AQ197: 0 | AR197: 2 | AS197: 0 | AT197: 0 | AU197: 0 | AV197: 0 | AW197: 162 | AX197: 0 | AY197: 0 | AZ197: 6 | BA197: 26 | BB197: 0 | BC197: 0 | BD197: 0 | BE197: 0 | BF197: 0 | BG197: 0 | BH197: 72 | BI197: 202 | BJ197: 0 | BK197: 0 | BL197: 126 | BM197: 150 | BN197: 0 | BO197: =SUM(BO178:BO194) -> 0 | BP197: 0 | BQ197: 0 | BR197: 0 | BS197: 0 | BT197: 32 | BU197: 62 | BV197: 0 | BW197: 0 | BX197: 0 | BY197: 0 | BZ197: 0 | CA197: 0 | CB197: 0 | CC197: 0 | CD197: 0 | CE197: 0 | CF197: 0 | CG197: 2 | CH197: 44 | CI197: 0 | CJ197: 0 | CK197: 12 | CL197: 116 | CM197: 0 | CN197: 0 | CO197: 0 | CP197: 0 | CQ197: 0 | CR197: 0 | CS197: 0 | CT197: 0 | CU197: 0 | CV197: 0 | CW197: 0 | CX197: 0 | CY197: 0 | CZ197: 0 | DA197: 0 | DB197: 0 | DC197: 0 | DD197: 0 | DE197: 0 | DF197: 0 | DG197: 0 | DH197: 0 | DI197: 2 | DJ197: 44 | DK197: 0 | DL197: 0 | DM197: 2 | DN197: 2 | DO197: 0 | DP197: 0 | DQ197: 0 | DR197: 0 | DS197: 0 | DT197: 0 | DU197: 0 | DV197: 0 | DW197: 0 | DX197: 0 | DY197: 0 | DZ197: 0 | EA197: =SUM(EA178:EA194) -> 0 | EB197: 0 | EC197: 0 | ED197: 0 | EE197: 12 | EF197: 4 | EG197: 2 | EH197: 2 | EI197: 78 | EJ197: 6 | EK197: 4 | EL197: 4 | EM197: 0 | EN197: 0 | EO197: 0 | EP197: 0 | EQ197: 0 | ER197: 0 | ES197: 0 | ET197: 0 | EU197: 26 | EV197: 12 | EW197: 2 | EX197: 6 | EY197: 0 | EZ197: 0 | FA197: 2 | FB197: 8 | FC197: 0 | FD197: 0 | FE197: 0 | FF197: 0 | FG197: 26 | FH197: 10 | FI197: 2 | FJ197: 6 | FK197: 78 | FL197: 14 | FM197: 2 | FN197: 6 | FO197: 0 | FP197: 0 | FQ197: 0 | FR197: 0 | FS197: 0 | FT197: 0 | FU197: 2 | FV197: 2 | FW197: 0 | FX197: 0 | FY197: 0 | FZ197: 0 | GA197: 0 | GB197: 0 | GC197: 0 | GD197: 0 | GE197: 0 | GF197: 0 | GG197: 0 | GH197: 0 | GI197: 0 | GJ197: 0 | GK197: 0 | GL197: 0 | GM197: =SUM(GM178:GM194) -> 0 | GN197: 0 | GO197: 0 | GP197: 0 | GQ197: 0 | GR197: 0 | GS197: 0 | GT197: 0 | GU197: 0 | GV197: 0 | GW197: 0 | GX197: 0 | GY197: 0 | GZ197: 0 | HA197: 0 | HB197: 0 | HC197: 0 | HD197: 0 | HE197: 0 | HF197: 0 | HG197: 0 | HH197: 0 | HI197: 0 | HJ197: 0 | HK197: 0 | HL197: 0 | HM197: 0 | HN197: 0 | HO197: =SUM(HO178:HO194) -> 0 | HP197: 0 | HQ197: 0 | HR197: 0 | HS197: 0 | HT197: 0 | HU197: 0 | HV197: 0 | HW197: 0
A198: =CONCATENATE(A178,"-",A179,"-",A180,"-",A181,"-",A182,"-",A183,"-",A184,"-",A185,"-",A186,"-",A187,"-",A188,"-",A189) -> 1-2-3-T--------
B199: BAS001 | C199: BAS002 | D199: BAS003 | E199: BAS004 | F199: BAS005 | G199: BAS006 | H199: BAS007 | I199: BAS008 | J199: BAS009 | K199: BAS010 | L199: BAS011 | M199: BAS012 | N199: BAS013 | O199: BAS014 | P199: BAS015 | Q199: BAS016 | R199: BAS017 | S199: BAS018 | T199: BAS019 | U199: BAS020 | V199: BAS021 | W199: BAS022 | X199: BAS023 | Y199: BAS024 | Z199: BAS025 | AA199: BAS026 | AB199: BAS027 | AC199: BAS028 | AD199: BAS029 | AE199: BAS030 | AF199: BAS031 | AG199: BAS032 | AH199: BAS033 | AI199: BAS034 | AJ199: BAS035 | AK199: BAS036 | AL199: BAS037 | AM199: BAS038 | AN199: BAS039 | AO199: BAS040 | AP199: BAS041 | AQ199: BAS042 | AR199: BAS043 | AS199: BAS044 | AT199: BAS045 | AU199: BAS046 | AV199: BAS047 | AW199: BAS048 | AX199: BAS049 | AY199: BAS050 | AZ199: BAS051 | BA199: BAS052 | BB199: BAS053 | BC199: BAS054 | BD199: BAS055 | BE199: BAS056 | BF199: BAS057 | BG199: BAS058 | BH199: BAS059 | BI199: BAS060 | BJ199: BAS061 | BK199: BAS062 | BL199: BAS063 | BM199: BAS064 | BN199: BAS065 | BO199: BAS066 | BP199: BAS067 | BQ199: BAS068 | BR199: BAS069 | BS199: BAS070 | BT199: BAS071 | BU199: BAS072 | BV199: BAS073 | BW199: BAS074 | BX199: BAS075 | BY199: BAS076 | BZ199: BAS077 | CA199: BAS078 | CB199: BAS079 | CC199: BAS080 | CD199: BAS081 | CE199: BAS082 | CF199: BAS083 | CG199: BAS084 | CH199: BAS085 | CI199: BAS086 | CJ199: BAS087 | CK199: BAS088 | CL199: BAS089 | CM199: BAS090 | CN199: BAS091 | CO199: BAS092 | CP199: BAS093 | CQ199: BAS094 | CR199: BAS095 | CS199: BAS096 | CT199: BAS097 | CU199: BAS098 | CV199: BAS099 | CW199: BAS100 | CX199: BAS101 | CY199: BAS102 | CZ199: BAS103 | DA199: BAS104 | DB199: BAS105 | DC199: BAS106 | DD199: BAS107 | DE199: BAS108 | DF199: BAS109 | DG199: BAS110 | DH199: BAS111 | DI199: BAS112 | DJ199: BAS113 | DK199: BAS114 | DL199: BAS115 | DM199: BAS116 | DN199: BAS117 | DO199: BAS118 | DP199: BAS119 | DQ199: BAS120 | DR199: BAS121 | DS199: BAS122 | DT199: BAS123 | DU199: BAS124 | DV199: BAS125 | DW199: BAS126 | DX199: BAS127 | DY199: BAS128 | DZ199: BAS129 | EA199: BAS130 | EB199: BAS131 | EC199: BAS132 | ED199: BAS133 | EE199: BAS134 | EF199: BAS135 | EG199: BAS136 | EH199: BAS137 | EI199: BAS138 | EJ199: BAS139 | EK199: BAS140 | EL199: BAS141 | EM199: BAS142 | EN199: BAS143 | EO199: BAS144 | EP199: BAS145 | EQ199: BAS146 | ER199: BAS147 | ES199: BAS148 | ET199: BAS149 | EU199: BAS150 | EV199: BAS151 | EW199: BAS152 | EX199: BAS153 | EY199: BAS154 | EZ199: BAS155 | FA199: BAS156 | FB199: BAS157 | FC199: BAS158 | FD199: BAS159 | FE199: BAS160 | FF199: BAS161 | FG199: BAS162 | FH199: BAS163 | FI199: BAS164 | FJ199: BAS165 | FK199: BAS166 | FL199: BAS167 | FM199: BAS168 | FN199: BAS169 | FO199: BAS170 | FP199: BAS171 | FQ199: BAS172 | FR199: BAS173 | FS199: BAS174 | FT199: BAS175 | FU199: BAS176 | FV199: BAS177 | FW199: BAS178 | FX199: BAS179 | FY199: BAS180 | FZ199: BAS181 | GA199: BAS182 | GB199: BAS183 | GC199: BAS184 | GD199: BAS185 | GE199: BAS186 | GF199: BAS187 | GG199: BAS188 | GH199: BAS189 | GI199: BAS190 | GJ199: BAS191 | GK199: BAS192 | GL199: BAS193 | GM199: BAS194 | GN199: BAS195 | GO199: BAS196 | GP199: BAS197 | GQ199: BAS198 | GR199: BAS199 | GS199: BAS200 | GT199: BAS201 | GU199: BAS202 | GV199: BAS203 | GW199: BAS204 | GX199: BAS205 | GY199: BAS206 | GZ199: BAS207 | HA199: BAS208 | HB199: BAS209 | HC199: BAS210 | HD199: BAS211 | HE199: BAS212 | HF199: BAS213 | HG199: BAS214 | HH199: BAS215 | HI199: BAS216 | HJ199: BAS217 | HK199: BAS218 | HL199: BAS219 | HM199: BAS220 | HN199: BAS221 | HO199: BAS222 | HP199: BAS223 | HQ199: BAS224 | HR199: BAS225 | HS199: BAS226 | HT199: BAS227 | HU199: BAS228 | HV199: BAS229 | HW199: BAS230
B200: =IF(B199=B177,"SI","NO") -> SI | C200: =IF(C199=C177,"SI","NO") -> SI | D200: SI | E200: SI | F200: SI | G200: SI | H200: SI | I200: SI | J200: SI | K200: SI | L200: SI | M200: SI | N200: SI | O200: SI | P200: SI | Q200: SI | R200: SI | S200: SI | T200: SI | U200: SI | V200: SI | W200: SI | X200: SI | Y200: SI | Z200: SI | AA200: SI | AB200: SI | AC200: SI | AD200: SI | AE200: SI | AF200: SI | AG200: SI | AH200: SI | AI200: SI | AJ200: SI | AK200: SI | AL200: SI | AM200: SI | AN200: SI | AO200: SI | AP200: SI | AQ200: SI | AR200: SI | AS200: SI | AT200: SI | AU200: SI | AV200: SI | AW200: SI | AX200: SI | AY200: SI | AZ200: SI | BA200: SI | BB200: SI | BC200: SI | BD200: SI | BE200: SI | BF200: SI | BG200: SI | BH200: SI | BI200: SI | BJ200: SI | BK200: SI | BL200: SI | BM200: SI | BN200: SI | BO200: =IF(BO199=BO177,"SI","NO") -> SI | BP200: SI | BQ200: SI | BR200: SI | BS200: SI | BT200: SI | BU200: SI | BV200: SI | BW200: SI | BX200: SI | BY200: SI | BZ200: SI | CA200: SI | CB200: SI | CC200: SI | CD200: SI | CE200: SI | CF200: SI | CG200: SI | CH200: SI | CI200: SI | CJ200: SI | CK200: SI | CL200: SI | CM200: SI | CN200: SI | CO200: SI | CP200: SI | CQ200: SI | CR200: SI | CS200: SI | CT200: SI | CU200: SI | CV200: SI | CW200: SI | CX200: SI | CY200: SI | CZ200: SI | DA200: SI | DB200: SI | DC200: SI | DD200: SI | DE200: SI | DF200: SI | DG200: SI | DH200: SI | DI200: SI | DJ200: SI | DK200: SI | DL200: SI | DM200: SI | DN200: SI | DO200: SI | DP200: SI | DQ200: SI | DR200: SI | DS200: SI | DT200: SI | DU200: SI | DV200: SI | DW200: SI | DX200: SI | DY200: SI | DZ200: SI | EA200: =IF(EA199=EA177,"SI","NO") -> SI | EB200: SI | EC200: SI | ED200: SI | EE200: SI | EF200: SI | EG200: SI | EH200: SI | EI200: SI | EJ200: SI | EK200: SI | EL200: SI | EM200: SI | EN200: SI | EO200: SI | EP200: SI | EQ200: SI | ER200: SI | ES200: SI | ET200: SI | EU200: SI | EV200: SI | EW200: SI | EX200: SI | EY200: SI | EZ200: SI | FA200: SI | FB200: SI | FC200: SI | FD200: SI | FE200: SI | FF200: SI | FG200: SI | FH200: SI | FI200: SI | FJ200: SI | FK200: SI | FL200: SI | FM200: SI | FN200: SI | FO200: SI | FP200: SI | FQ200: SI | FR200: SI | FS200: SI | FT200: SI | FU200: SI | FV200: SI | FW200: SI | FX200: SI | FY200: SI | FZ200: SI | GA200: SI | GB200: SI | GC200: SI | GD200: SI | GE200: SI | GF200: SI | GG200: SI | GH200: SI | GI200: SI | GJ200: SI | GK200: SI | GL200: SI | GM200: =IF(GM199=GM177,"SI","NO") -> SI | GN200: SI | GO200: SI | GP200: SI | GQ200: SI | GR200: SI | GS200: SI | GT200: SI | GU200: SI | GV200: SI | GW200: SI | GX200: SI | GY200: SI | GZ200: SI | HA200: SI | HB200: SI | HC200: SI | HD200: SI | HE200: SI | HF200: SI | HG200: SI | HH200: SI | HI200: SI | HJ200: SI | HK200: SI | HL200: SI | HM200: SI | HN200: SI | HO200: =IF(HO199=HO177,"SI","NO") -> SI | HP200: SI | HQ200: SI | HR200: SI | HS200: SI | HT200: SI | HU200: SI | HV200: SI | HW200: SI
A202: PP017-10
A203: ANNO | B203: 2025
A204: cod_red | B204: 03
A205: codmic | B205: (Todas)
A206: cod_prov | B206: (Todas)
A207: coddist | B207: (Todas)
A208: cod_estab | B208: (Todas)
A209: cod_eje | B209: (Todas)
B211: Valores
A212: Etiquetas de fila | B212: BAS001 | C212: BAS002 | D212: BAS003 | E212: BAS004 | F212: BAS005 | G212: BAS006 | H212: BAS007 | I212: BAS008 | J212: BAS009 | K212: BAS010 | L212: BAS011 | M212: BAS012 | N212: BAS013 | O212: BAS014 | P212: BAS015 | Q212: BAS016 | R212: BAS017 | S212: BAS018 | T212: BAS019 | U212: BAS020 | V212: BAS021 | W212: BAS022 | X212: BAS023 | Y212: BAS024 | Z212: BAS025 | AA212: BAS026 | AB212: BAS027 | AC212: BAS028 | AD212: BAS029 | AE212: BAS030 | AF212: BAS031 | AG212: BAS032 | AH212: BAS033 | AI212: BAS034 | AJ212: BAS035 | AK212: BAS036 | AL212: BAS037 | AM212: BAS038 | AN212: BAS039 | AO212: BAS040 | AP212: BAS041 | AQ212: BAS042 | AR212: BAS043 | AS212: BAS044 | AT212: BAS045 | AU212: BAS046 | AV212: BAS047 | AW212: BAS048 | AX212: BAS049 | AY212: BAS050 | AZ212: BAS051 | BA212: BAS052 | BB212: BAS053 | BC212: BAS054 | BD212: BAS055 | BE212: BAS056 | BF212: BAS057 | BG212: BAS058 | BH212: BAS059 | BI212: BAS060 | BJ212: BAS061 | BK212: BAS062 | BL212: BAS063 | BM212: BAS064 | BN212: BAS065 | BO212: BAS066 | BP212: BAS067 | BQ212: BAS068 | BR212: BAS069 | BS212: BAS070 | BT212: BAS071 | BU212: BAS072 | BV212: BAS073 | BW212: BAS074 | BX212: BAS075 | BY212: BAS076 | BZ212: BAS077 | CA212: BAS078 | CB212: BAS079 | CC212: BAS080 | CD212: BAS081 | CE212: BAS082 | CF212: BAS083 | CG212: BAS084 | CH212: BAS085 | CI212: BAS086 | CJ212: BAS087 | CK212: BAS088 | CL212: BAS089 | CM212: BAS090 | CN212: BAS091 | CO212: BAS092 | CP212: BAS093 | CQ212: BAS094 | CR212: BAS095 | CS212: BAS096 | CT212: BAS097 | CU212: BAS098 | CV212: BAS099 | CW212: BAS100 | CX212: BAS101 | CY212: BAS102 | CZ212: BAS103 | DA212: BAS104 | DB212: BAS105 | DC212: BAS106 | DD212: BAS107 | DE212: BAS108 | DF212: BAS109 | DG212: BAS110 | DH212: BAS111 | DI212: BAS112 | DJ212: BAS113 | DK212: BAS114 | DL212: BAS115 | DM212: BAS116 | DN212: BAS117 | DO212: BAS118 | DP212: BAS119 | DQ212: BAS120 | DR212: BAS121 | DS212: BAS122 | DT212: BAS123 | DU212: BAS124 | DV212: BAS125 | DW212: BAS126 | DX212: BAS127 | DY212: BAS128 | DZ212: BAS129 | EA212: BAS130 | EB212: BAS131 | EC212: BAS132 | ED212: BAS133 | EE212: BAS134 | EF212: BAS135 | EG212: BAS136 | EH212: BAS137 | EI212: BAS138 | EJ212: BAS139 | EK212: BAS140 | EL212: BAS141 | EM212: BAS142 | EN212: BAS143 | EO212: BAS144 | EP212: BAS145 | EQ212: BAS146 | ER212: BAS147 | ES212: BAS148 | ET212: BAS149 | EU212: BAS150 | EV212: BAS151 | EW212: BAS152 | EX212: BAS153 | EY212: BAS154 | EZ212: BAS155 | FA212: BAS156 | FB212: BAS157 | FC212: BAS158 | FD212: BAS159 | FE212: BAS160 | FF212: BAS161 | FG212: BAS162 | FH212: BAS163 | FI212: BAS164 | FJ212: BAS165 | FK212: BAS166 | FL212: BAS167 | FM212: BAS168 | FN212: BAS169 | FO212: BAS170 | FP212: BAS171 | FQ212: BAS172 | FR212: BAS173 | FS212: BAS174 | FT212: BAS175 | FU212: BAS176 | FV212: BAS177 | FW212: BAS178 | FX212: BAS179 | FY212: BAS180 | FZ212: BAS181 | GA212: BAS182 | GB212: BAS183 | GC212: BAS184 | GD212: BAS185 | GE212: BAS186 | GF212: BAS187 | GG212: BAS188 | GH212: BAS189 | GI212: BAS190 | GJ212: BAS191 | GK212: BAS192 | GL212: BAS193 | GM212: BAS194 | GN212: BAS195 | GO212: BAS196 | GP212: BAS197 | GQ212: BAS198 | GR212: BAS199 | GS212: BAS200 | GT212: BAS201 | GU212: BAS202 | GV212: BAS203 | GW212: BAS204 | GX212: BAS205 | GY212: BAS206 | GZ212: BAS207 | HA212: BAS208 | HB212: BAS209 | HC212: BAS210 | HD212: BAS211 | HE212: BAS212 | HF212: BAS213 | HG212: BAS214 | HH212: BAS215 | HI212: BAS216 | HJ212: BAS217 | HK212: BAS218 | HL212: BAS219 | HM212: BAS220 | HN212: BAS221 | HO212: BAS222 | HP212: BAS223 | HQ212: BAS224 | HR212: BAS225 | HS212: BAS226 | HT212: BAS227 | HU212: BAS228 | HV212: BAS229 | HW212: BAS230
A213: 1 | B213: 3 | C213: 120 | D213: 8 | E213: 51 | F213: 0 | G213: 0 | H213: 0 | I213: 0 | J213: 1 | K213: 40 | L213: 1 | M213: 40 | N213: 0 | O213: 0 | P213: 1 | Q213: 40 | R213: 1 | S213: 20 | T213: 1 | U213: 20 | V213: 0 | W213: 0 | X213: 0 | Y213: 0 | Z213: 1 | AA213: 20 | AB213: 1 | AC213: 20 | AD213: 0 | AE213: 0 | AF213: 1 | AG213: 20 | AH213: 0 | AI213: 0 | AJ213: 0 | AK213: 0 | AL213: 0 | AM213: 0 | AN213: 0 | AO213: 0 | AP213: 0 | AQ213: 0 | AR213: 0 | AS213: 0 | AT213: 0 | AU213: 0 | AV213: 0 | AW213: 0 | AX213: 0 | AY213: 0 | AZ213: 2 | BA213: 6 | BB213: 0 | BC213: 0 | BD213: 0 | BE213: 0 | BF213: 0 | BG213: 0 | BH213: 0 | BI213: 0 | BJ213: 0 | BK213: 0 | BL213: 0 | BM213: 0 | BN213: 0 | BO213: 0 | BP213: 0 | BQ213: 0 | BR213: 0 | BS213: 0 | BT213: 0 | BU213: 0 | BV213: 0 | BW213: 0 | BX213: 0 | BY213: 0 | BZ213: 0 | CA213: 0 | CB213: 0 | CC213: 0 | CD213: 0 | CE213: 0 | CF213: 0 | CG213: 0 | CH213: 0 | CI213: 0 | CJ213: 0 | CK213: 0 | CL213: 0 | CM213: 0 | CN213: 0 | CO213: 0 | CP213: 0 | CQ213: 0 | CR213: 0 | CS213: 0 | CT213: 0 | CU213: 0 | CV213: 0 | CW213: 0 | CX213: 0 | CY213: 0 | CZ213: 0 | DA213: 0 | DB213: 0 | DC213: 0 | DD213: 0 | DE213: 0 | DF213: 0 | DG213: 0 | DH213: 0 | DI213: 0 | DJ213: 0 | DK213: 0 | DL213: 0 | DM213: 0 | DN213: 0 | DO213: 0 | DP213: 0 | DQ213: 0 | DR213: 0 | DS213: 0 | DT213: 0 | DU213: 0 | DV213: 0 | DW213: 0 | DX213: 0 | DY213: 0 | DZ213: 1 | EA213: 40 | EB213: 0 | EC213: 0 | ED213: 2 | EE213: 60 | EF213: 0 | EG213: 0 | EH213: 0 | EI213: 0 | EJ213: 1 | EK213: 20 | EL213: 0 | EM213: 0 | EN213: 1 | EO213: 20 | EP213: 0 | EQ213: 0 | ER213: 0 | ES213: 0 | ET213: 0 | EU213: 0 | EV213: 0 | EW213: 0 | EX213: 0 | EY213: 0 | EZ213: 0 | FA213: 0 | FB213: 0 | FC213: 0 | FD213: 0 | FE213: 0 | FF213: 0 | FG213: 0 | FH213: 0 | FI213: 0 | FJ213: 0 | FK213: 0 | FL213: 0 | FM213: 0 | FN213: 0 | FO213: 0 | FP213: 0 | FQ213: 0 | FR213: 0 | FS213: 0 | FT213: 0 | FU213: 0 | FV213: 0 | FW213: 0 | FX213: 0 | FY213: 0 | FZ213: 0 | GA213: 0 | GB213: 0 | GC213: 0 | GD213: 0 | GE213: 0 | GF213: 0 | GG213: 0 | GH213: 0 | GI213: 0 | GJ213: 0 | GK213: 0 | GL213: 0 | GM213: 0 | GN213: 0 | GO213: 0 | GP213: 0 | GQ213: 0 | GR213: 0 | GS213: 0 | GT213: 0 | GU213: 0 | GV213: 0 | GW213: 0 | GX213: 0 | GY213: 0 | GZ213: 0 | HA213: 0 | HB213: 0 | HC213: 0 | HD213: 0 | HE213: 0 | HF213: 0 | HG213: 0 | HH213: 0 | HI213: 0 | HJ213: 0 | HK213: 0 | HL213: 0 | HM213: 0 | HN213: 0 | HO213: 0 | HP213: 0 | HQ213: 0 | HR213: 0 | HS213: 0 | HT213: 0 | HU213: 0 | HV213: 0 | HW213: 0
A214: 2 | B214: 1 | C214: 2 | D214: 18 | E214: 24 | F214: 0 | G214: 0 | H214: 0 | I214: 0 | J214: 1 | K214: 2 | L214: 1 | M214: 2 | N214: 0 | O214: 0 | P214: 1 | Q214: 2 | R214: 1 | S214: 40 | T214: 23 | U214: 91 | V214: 0 | W214: 0 | X214: 0 | Y214: 0 | Z214: 1 | AA214: 40 | AB214: 1 | AC214: 40 | AD214: 0 | AE214: 0 | AF214: 1 | AG214: 40 | AH214: 0 | AI214: 0 | AJ214: 0 | AK214: 0 | AL214: 0 | AM214: 0 | AN214: 0 | AO214: 0 | AP214: 0 | AQ214: 0 | AR214: 0 | AS214: 0 | AT214: 0 | AU214: 0 | AV214: 0 | AW214: 0 | AX214: 0 | AY214: 0 | AZ214: 0 | BA214: 0 | BB214: 0 | BC214: 0 | BD214: 0 | BE214: 0 | BF214: 0 | BG214: 0 | BH214: 0 | BI214: 0 | BJ214: 0 | BK214: 0 | BL214: 0 | BM214: 0 | BN214: 0 | BO214: 0 | BP214: 0 | BQ214: 0 | BR214: 0 | BS214: 0 | BT214: 0 | BU214: 0 | BV214: 0 | BW214: 0 | BX214: 0 | BY214: 0 | BZ214: 0 | CA214: 0 | CB214: 0 | CC214: 0 | CD214: 0 | CE214: 0 | CF214: 0 | CG214: 0 | CH214: 0 | CI214: 0 | CJ214: 0 | CK214: 0 | CL214: 0 | CM214: 0 | CN214: 0 | CO214: 0 | CP214: 0 | CQ214: 0 | CR214: 0 | CS214: 0 | CT214: 0 | CU214: 0 | CV214: 0 | CW214: 0 | CX214: 0 | CY214: 0 | CZ214: 0 | DA214: 0 | DB214: 0 | DC214: 0 | DD214: 0 | DE214: 0 | DF214: 0 | DG214: 0 | DH214: 0 | DI214: 0 | DJ214: 0 | DK214: 0 | DL214: 0 | DM214: 0 | DN214: 0 | DO214: 0 | DP214: 0 | DQ214: 0 | DR214: 0 | DS214: 0 | DT214: 0 | DU214: 0 | DV214: 0 | DW214: 0 | DX214: 0 | DY214: 0 | DZ214: 11 | EA214: 12 | EB214: 0 | EC214: 0 | ED214: 1 | EE214: 2 | EF214: 0 | EG214: 0 | EH214: 0 | EI214: 0 | EJ214: 2 | EK214: 41 | EL214: 0 | EM214: 0 | EN214: 0 | EO214: 0 | EP214: 0 | EQ214: 0 | ER214: 0 | ES214: 0 | ET214: 0 | EU214: 0 | EV214: 0 | EW214: 0 | EX214: 0 | EY214: 0 | EZ214: 0 | FA214: 0 | FB214: 0 | FC214: 0 | FD214: 0 | FE214: 0 | FF214: 0 | FG214: 0 | FH214: 0 | FI214: 0 | FJ214: 0 | FK214: 0 | FL214: 0 | FM214: 0 | FN214: 0 | FO214: 0 | FP214: 0 | FQ214: 0 | FR214: 0 | FS214: 0 | FT214: 0 | FU214: 0 | FV214: 0 | FW214: 0 | FX214: 0 | FY214: 0 | FZ214: 0 | GA214: 0 | GB214: 0 | GC214: 0 | GD214: 0 | GE214: 0 | GF214: 0 | GG214: 0 | GH214: 0 | GI214: 0 | GJ214: 0 | GK214: 0 | GL214: 0 | GM214: 0 | GN214: 0 | GO214: 0 | GP214: 0 | GQ214: 0 | GR214: 0 | GS214: 0 | GT214: 0 | GU214: 0 | GV214: 0 | GW214: 0 | GX214: 0 | GY214: 0 | GZ214: 0 | HA214: 0 | HB214: 0 | HC214: 0 | HD214: 0 | HE214: 0 | HF214: 0 | HG214: 0 | HH214: 0 | HI214: 0 | HJ214: 0 | HK214: 0 | HL214: 0 | HM214: 0 | HN214: 0 | HO214: 0 | HP214: 0 | HQ214: 0 | HR214: 0 | HS214: 0 | HT214: 0 | HU214: 0 | HV214: 0 | HW214: 0
A215: 3 | B215: 1 | C215: 1 | D215: 32 | E215: 63 | F215: 0 | G215: 0 | H215: 0 | I215: 0 | J215: 0 | K215: 0 | L215: 0 | M215: 0 | N215: 0 | O215: 0 | P215: 0 | Q215: 0 | R215: 0 | S215: 0 | T215: 5 | U215: 8 | V215: 0 | W215: 0 | X215: 0 | Y215: 0 | Z215: 0 | AA215: 0 | AB215: 0 | AC215: 0 | AD215: 0 | AE215: 0 | AF215: 0 | AG215: 0 | AH215: 1 | AI215: 60 | AJ215: 18 | AK215: 114 | AL215: 0 | AM215: 0 | AN215: 0 | AO215: 0 | AP215: 1 | AQ215: 60 | AR215: 1 | AS215: 60 | AT215: 0 | AU215: 0 | AV215: 1 | AW215: 60 | AX215: 0 | AY215: 0 | AZ215: 3 | BA215: 11 | BB215: 0 | BC215: 0 | BD215: 0 | BE215: 0 | BF215: 0 | BG215: 0 | BH215: 0 | BI215: 0 | BJ215: 0 | BK215: 0 | BL215: 0 | BM215: 0 | BN215: 0 | BO215: 0 | BP215: 0 | BQ215: 0 | BR215: 0 | BS215: 0 | BT215: 0 | BU215: 0 | BV215: 0 | BW215: 0 | BX215: 0 | BY215: 0 | BZ215: 0 | CA215: 0 | CB215: 0 | CC215: 0 | CD215: 0 | CE215: 0 | CF215: 0 | CG215: 0 | CH215: 0 | CI215: 0 | CJ215: 0 | CK215: 0 | CL215: 0 | CM215: 0 | CN215: 0 | CO215: 0 | CP215: 0 | CQ215: 0 | CR215: 0 | CS215: 0 | CT215: 0 | CU215: 0 | CV215: 0 | CW215: 0 | CX215: 0 | CY215: 0 | CZ215: 0 | DA215: 0 | DB215: 0 | DC215: 0 | DD215: 0 | DE215: 0 | DF215: 0 | DG215: 0 | DH215: 0 | DI215: 0 | DJ215: 0 | DK215: 0 | DL215: 0 | DM215: 0 | DN215: 0 | DO215: 0 | DP215: 0 | DQ215: 0 | DR215: 0 | DS215: 0 | DT215: 0 | DU215: 0 | DV215: 0 | DW215: 0 | DX215: 0 | DY215: 0 | DZ215: 15 | EA215: 26 | EB215: 0 | EC215: 0 | ED215: 0 | EE215: 0 | EF215: 0 | EG215: 0 | EH215: 0 | EI215: 0 | EJ215: 0 | EK215: 0 | EL215: 0 | EM215: 0 | EN215: 0 | EO215: 0 | EP215: 0 | EQ215: 0 | ER215: 0 | ES215: 0 | ET215: 1 | EU215: 60 | EV215: 0 | EW215: 0 | EX215: 1 | EY215: 60 | EZ215: 0 | FA215: 0 | FB215: 0 | FC215: 0 | FD215: 0 | FE215: 0 | FF215: 0 | FG215: 0 | FH215: 0 | FI215: 0 | FJ215: 0 | FK215: 0 | FL215: 0 | FM215: 0 | FN215: 0 | FO215: 0 | FP215: 0 | FQ215: 0 | FR215: 0 | FS215: 0 | FT215: 0 | FU215: 0 | FV215: 0 | FW215: 0 | FX215: 0 | FY215: 0 | FZ215: 0 | GA215: 0 | GB215: 0 | GC215: 0 | GD215: 0 | GE215: 0 | GF215: 0 | GG215: 0 | GH215: 0 | GI215: 0 | GJ215: 0 | GK215: 0 | GL215: 0 | GM215: 0 | GN215: 0 | GO215: 0 | GP215: 0 | GQ215: 0 | GR215: 0 | GS215: 0 | GT215: 0 | GU215: 0 | GV215: 0 | GW215: 0 | GX215: 0 | GY215: 0 | GZ215: 0 | HA215: 0 | HB215: 0 | HC215: 0 | HD215: 0 | HE215: 0 | HF215: 0 | HG215: 0 | HH215: 0 | HI215: 0 | HJ215: 0 | HK215: 0 | HL215: 0 | HM215: 0 | HN215: 0 | HO215: 0 | HP215: 0 | HQ215: 0 | HR215: 0 | HS215: 0 | HT215: 0 | HU215: 0 | HV215: 0 | HW215: 0
A216: T | B216: 5 | C216: 123 | D216: 58 | E216: 138 | F216: 0 | G216: 0 | H216: 0 | I216: 0 | J216: 2 | K216: 42 | L216: 2 | M216: 42 | N216: 0 | O216: 0 | P216: 2 | Q216: 42 | R216: 2 | S216: 60 | T216: 29 | U216: 119 | V216: 0 | W216: 0 | X216: 0 | Y216: 0 | Z216: 2 | AA216: 60 | AB216: 2 | AC216: 60 | AD216: 0 | AE216: 0 | AF216: 2 | AG216: 60 | AH216: 1 | AI216: 60 | AJ216: 18 | AK216: 114 | AL216: 0 | AM216: 0 | AN216: 0 | AO216: 0 | AP216: 1 | AQ216: 60 | AR216: 1 | AS216: 60 | AT216: 0 | AU216: 0 | AV216: 1 | AW216: 60 | AX216: 0 | AY216: 0 | AZ216: 5 | BA216: 17 | BB216: 0 | BC216: 0 | BD216: 0 | BE216: 0 | BF216: 0 | BG216: 0 | BH216: 0 | BI216: 0 | BJ216: 0 | BK216: 0 | BL216: 0 | BM216: 0 | BN216: 0 | BO216: 0 | BP216: 0 | BQ216: 0 | BR216: 0 | BS216: 0 | BT216: 0 | BU216: 0 | BV216: 0 | BW216: 0 | BX216: 0 | BY216: 0 | BZ216: 0 | CA216: 0 | CB216: 0 | CC216: 0 | CD216: 0 | CE216: 0 | CF216: 0 | CG216: 0 | CH216: 0 | CI216: 0 | CJ216: 0 | CK216: 0 | CL216: 0 | CM216: 0 | CN216: 0 | CO216: 0 | CP216: 0 | CQ216: 0 | CR216: 0 | CS216: 0 | CT216: 0 | CU216: 0 | CV216: 0 | CW216: 0 | CX216: 0 | CY216: 0 | CZ216: 0 | DA216: 0 | DB216: 0 | DC216: 0 | DD216: 0 | DE216: 0 | DF216: 0 | DG216: 0 | DH216: 0 | DI216: 0 | DJ216: 0 | DK216: 0 | DL216: 0 | DM216: 0 | DN216: 0 | DO216: 0 | DP216: 0 | DQ216: 0 | DR216: 0 | DS216: 0 | DT216: 0 | DU216: 0 | DV216: 0 | DW216: 0 | DX216: 0 | DY216: 0 | DZ216: 27 | EA216: 78 | EB216: 0 | EC216: 0 | ED216: 3 | EE216: 62 | EF216: 0 | EG216: 0 | EH216: 0 | EI216: 0 | EJ216: 3 | EK216: 61 | EL216: 0 | EM216: 0 | EN216: 1 | EO216: 20 | EP216: 0 | EQ216: 0 | ER216: 0 | ES216: 0 | ET216: 1 | EU216: 60 | EV216: 0 | EW216: 0 | EX216: 1 | EY216: 60 | EZ216: 0 | FA216: 0 | FB216: 0 | FC216: 0 | FD216: 0 | FE216: 0 | FF216: 0 | FG216: 0 | FH216: 0 | FI216: 0 | FJ216: 0 | FK216: 0 | FL216: 0 | FM216: 0 | FN216: 0 | FO216: 0 | FP216: 0 | FQ216: 0 | FR216: 0 | FS216: 0 | FT216: 0 | FU216: 0 | FV216: 0 | FW216: 0 | FX216: 0 | FY216: 0 | FZ216: 0 | GA216: 0 | GB216: 0 | GC216: 0 | GD216: 0 | GE216: 0 | GF216: 0 | GG216: 0 | GH216: 0 | GI216: 0 | GJ216: 0 | GK216: 0 | GL216: 0 | GM216: 0 | GN216: 0 | GO216: 0 | GP216: 0 | GQ216: 0 | GR216: 0 | GS216: 0 | GT216: 0 | GU216: 0 | GV216: 0 | GW216: 0 | GX216: 0 | GY216: 0 | GZ216: 0 | HA216: 0 | HB216: 0 | HC216: 0 | HD216: 0 | HE216: 0 | HF216: 0 | HG216: 0 | HH216: 0 | HI216: 0 | HJ216: 0 | HK216: 0 | HL216: 0 | HM216: 0 | HN216: 0 | HO216: 0 | HP216: 0 | HQ216: 0 | HR216: 0 | HS216: 0 | HT216: 0 | HU216: 0 | HV216: 0 | HW216: 0
A231: TOTAL
A232: =COUNT(A213:A229) -> 3 | B232: =SUM(B213:B229) -> 10 | C232: =SUM(C213:C229) -> 246 | D232: 116 | E232: 276 | F232: 0 | G232: 0 | H232: 0 | I232: 0 | J232: 4 | K232: 84 | L232: 4 | M232: 84 | N232: 0 | O232: 0 | P232: 4 | Q232: 84 | R232: 4 | S232: 120 | T232: 58 | U232: 238 | V232: 0 | W232: 0 | X232: 0 | Y232: 0 | Z232: 4 | AA232: 120 | AB232: 4 | AC232: 120 | AD232: 0 | AE232: 0 | AF232: 4 | AG232: 120 | AH232: 2 | AI232: 120 | AJ232: 36 | AK232: 228 | AL232: 0 | AM232: 0 | AN232: 0 | AO232: 0 | AP232: 2 | AQ232: 120 | AR232: 2 | AS232: 120 | AT232: 0 | AU232: 0 | AV232: 2 | AW232: 120 | AX232: 0 | AY232: 0 | AZ232: 10 | BA232: 34 | BB232: 0 | BC232: 0 | BD232: 0 | BE232: 0 | BF232: 0 | BG232: 0 | BH232: 0 | BI232: 0 | BJ232: 0 | BK232: 0 | BL232: 0 | BM232: 0 | BN232: 0 | BO232: =SUM(BO213:BO229) -> 0 | BP232: 0 | BQ232: 0 | BR232: 0 | BS232: 0 | BT232: 0 | BU232: 0 | BV232: 0 | BW232: 0 | BX232: 0 | BY232: 0 | BZ232: 0 | CA232: 0 | CB232: 0 | CC232: 0 | CD232: 0 | CE232: 0 | CF232: 0 | CG232: 0 | CH232: 0 | CI232: 0 | CJ232: 0 | CK232: 0 | CL232: 0 | CM232: 0 | CN232: 0 | CO232: 0 | CP232: 0 | CQ232: 0 | CR232: 0 | CS232: 0 | CT232: 0 | CU232: 0 | CV232: 0 | CW232: 0 | CX232: 0 | CY232: 0 | CZ232: 0 | DA232: 0 | DB232: 0 | DC232: 0 | DD232: 0 | DE232: 0 | DF232: 0 | DG232: 0 | DH232: 0 | DI232: 0 | DJ232: 0 | DK232: 0 | DL232: 0 | DM232: 0 | DN232: 0 | DO232: 0 | DP232: 0 | DQ232: 0 | DR232: 0 | DS232: 0 | DT232: 0 | DU232: 0 | DV232: 0 | DW232: 0 | DX232: 0 | DY232: 0 | DZ232: 54 | EA232: =SUM(EA213:EA229) -> 156 | EB232: 0 | EC232: 0 | ED232: 6 | EE232: 124 | EF232: 0 | EG232: 0 | EH232: 0 | EI232: 0 | EJ232: 6 | EK232: 122 | EL232: 0 | EM232: 0 | EN232: 2 | EO232: 40 | EP232: 0 | EQ232: 0 | ER232: 0 | ES232: 0 | ET232: 2 | EU232: 120 | EV232: 0 | EW232: 0 | EX232: 2 | EY232: 120 | EZ232: 0 | FA232: 0 | FB232: 0 | FC232: 0 | FD232: 0 | FE232: 0 | FF232: 0 | FG232: 0 | FH232: 0 | FI232: 0 | FJ232: 0 | FK232: 0 | FL232: 0 | FM232: 0 | FN232: 0 | FO232: 0 | FP232: 0 | FQ232: 0 | FR232: 0 | FS232: 0 | FT232: 0 | FU232: 0 | FV232: 0 | FW232: 0 | FX232: 0 | FY232: 0 | FZ232: 0 | GA232: 0 | GB232: 0 | GC232: 0 | GD232: 0 | GE232: 0 | GF232: 0 | GG232: 0 | GH232: 0 | GI232: 0 | GJ232: 0 | GK232: 0 | GL232: 0 | GM232: =SUM(GM213:GM229) -> 0 | GN232: 0 | GO232: 0 | GP232: 0 | GQ232: 0 | GR232: 0 | GS232: 0 | GT232: 0 | GU232: 0 | GV232: 0 | GW232: 0 | GX232: 0 | GY232: 0 | GZ232: 0 | HA232: 0 | HB232: 0 | HC232: 0 | HD232: 0 | HE232: 0 | HF232: 0 | HG232: 0 | HH232: 0 | HI232: 0 | HJ232: 0 | HK232: 0 | HL232: 0 | HM232: 0 | HN232: 0 | HO232: 0 | HP232: 0 | HQ232: 0 | HR232: 0 | HS232: 0 | HT232: 0 | HU232: 0 | HV232: 0 | HW232: 0
A233: =CONCATENATE(A213,"-",A214,"-",A215,"-",A216,"-",A217,"-",A218,"-",A219,"-",A220,"-",A221,"-",A222,"-",A223,"-",A224) -> 1-2-3-T--------
B234: BAS001 | C234: BAS002 | D234: BAS003 | E234: BAS004 | F234: BAS005 | G234: BAS006 | H234: BAS007 | I234: BAS008 | J234: BAS009 | K234: BAS010 | L234: BAS011 | M234: BAS012 | N234: BAS013 | O234: BAS014 | P234: BAS015 | Q234: BAS016 | R234: BAS017 | S234: BAS018 | T234: BAS019 | U234: BAS020 | V234: BAS021 | W234: BAS022 | X234: BAS023 | Y234: BAS024 | Z234: BAS025 | AA234: BAS026 | AB234: BAS027 | AC234: BAS028 | AD234: BAS029 | AE234: BAS030 | AF234: BAS031 | AG234: BAS032 | AH234: BAS033 | AI234: BAS034 | AJ234: BAS035 | AK234: BAS036 | AL234: BAS037 | AM234: BAS038 | AN234: BAS039 | AO234: BAS040 | AP234: BAS041 | AQ234: BAS042 | AR234: BAS043 | AS234: BAS044 | AT234: BAS045 | AU234: BAS046 | AV234: BAS047 | AW234: BAS048 | AX234: BAS049 | AY234: BAS050 | AZ234: BAS051 | BA234: BAS052 | BB234: BAS053 | BC234: BAS054 | BD234: BAS055 | BE234: BAS056 | BF234: BAS057 | BG234: BAS058 | BH234: BAS059 | BI234: BAS060 | BJ234: BAS061 | BK234: BAS062 | BL234: BAS063 | BM234: BAS064 | BN234: BAS065 | BO234: BAS066 | BP234: BAS067 | BQ234: BAS068 | BR234: BAS069 | BS234: BAS070 | BT234: BAS071 | BU234: BAS072 | BV234: BAS073 | BW234: BAS074 | BX234: BAS075 | BY234: BAS076 | BZ234: BAS077 | CA234: BAS078 | CB234: BAS079 | CC234: BAS080 | CD234: BAS081 | CE234: BAS082 | CF234: BAS083 | CG234: BAS084 | CH234: BAS085 | CI234: BAS086 | CJ234: BAS087 | CK234: BAS088 | CL234: BAS089 | CM234: BAS090 | CN234: BAS091 | CO234: BAS092 | CP234: BAS093 | CQ234: BAS094 | CR234: BAS095 | CS234: BAS096 | CT234: BAS097 | CU234: BAS098 | CV234: BAS099 | CW234: BAS100 | CX234: BAS101 | CY234: BAS102 | CZ234: BAS103 | DA234: BAS104 | DB234: BAS105 | DC234: BAS106 | DD234: BAS107 | DE234: BAS108 | DF234: BAS109 | DG234: BAS110 | DH234: BAS111 | DI234: BAS112 | DJ234: BAS113 | DK234: BAS114 | DL234: BAS115 | DM234: BAS116 | DN234: BAS117 | DO234: BAS118 | DP234: BAS119 | DQ234: BAS120 | DR234: BAS121 | DS234: BAS122 | DT234: BAS123 | DU234: BAS124 | DV234: BAS125 | DW234: BAS126 | DX234: BAS127 | DY234: BAS128 | DZ234: BAS129 | EA234: BAS130 | EB234: BAS131 | EC234: BAS132 | ED234: BAS133 | EE234: BAS134 | EF234: BAS135 | EG234: BAS136 | EH234: BAS137 | EI234: BAS138 | EJ234: BAS139 | EK234: BAS140 | EL234: BAS141 | EM234: BAS142 | EN234: BAS143 | EO234: BAS144 | EP234: BAS145 | EQ234: BAS146 | ER234: BAS147 | ES234: BAS148 | ET234: BAS149 | EU234: BAS150 | EV234: BAS151 | EW234: BAS152 | EX234: BAS153 | EY234: BAS154 | EZ234: BAS155 | FA234: BAS156 | FB234: BAS157 | FC234: BAS158 | FD234: BAS159 | FE234: BAS160 | FF234: BAS161 | FG234: BAS162 | FH234: BAS163 | FI234: BAS164 | FJ234: BAS165 | FK234: BAS166 | FL234: BAS167 | FM234: BAS168 | FN234: BAS169 | FO234: BAS170 | FP234: BAS171 | FQ234: BAS172 | FR234: BAS173 | FS234: BAS174 | FT234: BAS175 | FU234: BAS176 | FV234: BAS177 | FW234: BAS178 | FX234: BAS179 | FY234: BAS180 | FZ234: BAS181 | GA234: BAS182 | GB234: BAS183 | GC234: BAS184 | GD234: BAS185 | GE234: BAS186 | GF234: BAS187 | GG234: BAS188 | GH234: BAS189 | GI234: BAS190 | GJ234: BAS191 | GK234: BAS192 | GL234: BAS193 | GM234: BAS194 | GN234: BAS195 | GO234: BAS196 | GP234: BAS197 | GQ234: BAS198 | GR234: BAS199 | GS234: BAS200 | GT234: BAS201 | GU234: BAS202 | GV234: BAS203 | GW234: BAS204 | GX234: BAS205 | GY234: BAS206 | GZ234: BAS207 | HA234: BAS208 | HB234: BAS209 | HC234: BAS210 | HD234: BAS211 | HE234: BAS212 | HF234: BAS213 | HG234: BAS214 | HH234: BAS215 | HI234: BAS216 | HJ234: BAS217 | HK234: BAS218 | HL234: BAS219 | HM234: BAS220 | HN234: BAS221 | HO234: BAS222 | HP234: BAS223 | HQ234: BAS224 | HR234: BAS225 | HS234: BAS226 | HT234: BAS227 | HU234: BAS228 | HV234: BAS229 | HW234: BAS230
B235: =IF(B234=B212,"SI","NO") -> SI | C235: =IF(C234=C212,"SI","NO") -> SI | D235: SI | E235: SI | F235: SI | G235: SI | H235: SI | I235: SI | J235: SI | K235: SI | L235: SI | M235: SI | N235: SI | O235: SI | P235: SI | Q235: SI | R235: SI | S235: SI | T235: SI | U235: SI | V235: SI | W235: SI | X235: SI | Y235: SI | Z235: SI | AA235: SI | AB235: SI | AC235: SI | AD235: SI | AE235: SI | AF235: SI | AG235: SI | AH235: SI | AI235: SI | AJ235: SI | AK235: SI | AL235: SI | AM235: SI | AN235: SI | AO235: SI | AP235: SI | AQ235: SI | AR235: SI | AS235: SI | AT235: SI | AU235: SI | AV235: SI | AW235: SI | AX235: SI | AY235: SI | AZ235: SI | BA235: SI | BB235: SI | BC235: SI | BD235: SI | BE235: SI | BF235: SI | BG235: SI | BH235: SI | BI235: SI | BJ235: SI | BK235: SI | BL235: SI | BM235: SI | BN235: SI | BO235: =IF(BO234=BO212,"SI","NO") -> SI | BP235: SI | BQ235: SI | BR235: SI | BS235: SI | BT235: SI | BU235: SI | BV235: SI | BW235: SI | BX235: SI | BY235: SI | BZ235: SI | CA235: SI | CB235: SI | CC235: SI | CD235: SI | CE235: SI | CF235: SI | CG235: SI | CH235: SI | CI235: SI | CJ235: SI | CK235: SI | CL235: SI | CM235: SI | CN235: SI | CO235: SI | CP235: SI | CQ235: SI | CR235: SI | CS235: SI | CT235: SI | CU235: SI | CV235: SI | CW235: SI | CX235: SI | CY235: SI | CZ235: SI | DA235: SI | DB235: SI | DC235: SI | DD235: SI | DE235: SI | DF235: SI | DG235: SI | DH235: SI | DI235: SI | DJ235: SI | DK235: SI | DL235: SI | DM235: SI | DN235: SI | DO235: SI | DP235: SI | DQ235: SI | DR235: SI | DS235: SI | DT235: SI | DU235: SI | DV235: SI | DW235: SI | DX235: SI | DY235: SI | DZ235: SI | EA235: =IF(EA234=EA212,"SI","NO") -> SI | EB235: SI | EC235: SI | ED235: SI | EE235: SI | EF235: SI | EG235: SI | EH235: SI | EI235: SI | EJ235: SI | EK235: SI | EL235: SI | EM235: SI | EN235: SI | EO235: SI | EP235: SI | EQ235: SI | ER235: SI | ES235: SI | ET235: SI | EU235: SI | EV235: SI | EW235: SI | EX235: SI | EY235: SI | EZ235: SI | FA235: SI | FB235: SI | FC235: SI | FD235: SI | FE235: SI | FF235: SI | FG235: SI | FH235: SI | FI235: SI | FJ235: SI | FK235: SI | FL235: SI | FM235: SI | FN235: SI | FO235: SI | FP235: SI | FQ235: SI | FR235: SI | FS235: SI | FT235: SI | FU235: SI | FV235: SI | FW235: SI | FX235: SI | FY235: SI | FZ235: SI | GA235: SI | GB235: SI | GC235: SI | GD235: SI | GE235: SI | GF235: SI | GG235: SI | GH235: SI | GI235: SI | GJ235: SI | GK235: SI | GL235: SI | GM235: =IF(GM234=GM212,"SI","NO") -> SI | GN235: SI | GO235: SI | GP235: SI | GQ235: SI | GR235: SI | GS235: SI | GT235: SI | GU235: SI | GV235: SI | GW235: SI | GX235: SI | GY235: SI | GZ235: SI | HA235: SI | HB235: SI | HC235: SI | HD235: SI | HE235: SI | HF235: SI | HG235: SI | HH235: SI | HI235: SI | HJ235: SI | HK235: SI | HL235: SI | HM235: SI | HN235: SI | HO235: =IF(HO234=HO212,"SI","NO") -> SI | HP235: SI | HQ235: SI | HR235: SI | HS235: SI | HT235: SI | HU235: SI | HV235: SI | HW235: SI
A237: PP017-11
A238: ANNO | B238: 2025
A239: cod_red | B239: 03
A240: codmic | B240: (Todas)
A241: cod_prov | B241: (Todas)
A242: coddist | B242: (Todas)
A243: cod_estab | B243: (Todas)
A244: cod_eje | B244: (Todas)
B246: Valores
A247: Etiquetas de fila | B247: BAS001 | C247: BAS002 | D247: BAS003 | E247: BAS004 | F247: BAS005 | G247: BAS006 | H247: BAS007 | I247: BAS008 | J247: BAS009 | K247: BAS010 | L247: BAS011 | M247: BAS012 | N247: BAS013 | O247: BAS014 | P247: BAS015 | Q247: BAS016 | R247: BAS017 | S247: BAS018 | T247: BAS019 | U247: BAS020 | V247: BAS021 | W247: BAS022 | X247: BAS023 | Y247: BAS024 | Z247: BAS025 | AA247: BAS026 | AB247: BAS027 | AC247: BAS028 | AD247: BAS029 | AE247: BAS030 | AF247: BAS031 | AG247: BAS032 | AH247: BAS033 | AI247: BAS034 | AJ247: BAS035 | AK247: BAS036 | AL247: BAS037 | AM247: BAS038 | AN247: BAS039 | AO247: BAS040 | AP247: BAS041 | AQ247: BAS042 | AR247: BAS043 | AS247: BAS044 | AT247: BAS045 | AU247: BAS046 | AV247: BAS047 | AW247: BAS048 | AX247: BAS049 | AY247: BAS050 | AZ247: BAS051 | BA247: BAS052 | BB247: BAS053 | BC247: BAS054 | BD247: BAS055 | BE247: BAS056 | BF247: BAS057 | BG247: BAS058 | BH247: BAS059 | BI247: BAS060 | BJ247: BAS061 | BK247: BAS062 | BL247: BAS063 | BM247: BAS064 | BN247: BAS065 | BO247: BAS066 | BP247: BAS067 | BQ247: BAS068 | BR247: BAS069 | BS247: BAS070 | BT247: BAS071 | BU247: BAS072 | BV247: BAS073 | BW247: BAS074 | BX247: BAS075 | BY247: BAS076 | BZ247: BAS077 | CA247: BAS078 | CB247: BAS079 | CC247: BAS080 | CD247: BAS081 | CE247: BAS082 | CF247: BAS083 | CG247: BAS084 | CH247: BAS085 | CI247: BAS086 | CJ247: BAS087 | CK247: BAS088 | CL247: BAS089 | CM247: BAS090 | CN247: BAS091 | CO247: BAS092 | CP247: BAS093 | CQ247: BAS094 | CR247: BAS095 | CS247: BAS096 | CT247: BAS097 | CU247: BAS098 | CV247: BAS099 | CW247: BAS100 | CX247: BAS101 | CY247: BAS102 | CZ247: BAS103 | DA247: BAS104 | DB247: BAS105 | DC247: BAS106 | DD247: BAS107 | DE247: BAS108 | DF247: BAS109 | DG247: BAS110 | DH247: BAS111 | DI247: BAS112 | DJ247: BAS113 | DK247: BAS114 | DL247: BAS115 | DM247: BAS116 | DN247: BAS117 | DO247: BAS118 | DP247: BAS119 | DQ247: BAS120 | DR247: BAS121 | DS247: BAS122 | DT247: BAS123 | DU247: BAS124 | DV247: BAS125 | DW247: BAS126 | DX247: BAS127 | DY247: BAS128 | DZ247: BAS129 | EA247: BAS130 | EB247: BAS131 | EC247: BAS132 | ED247: BAS133 | EE247: BAS134 | EF247: BAS135 | EG247: BAS136 | EH247: BAS137 | EI247: BAS138 | EJ247: BAS139 | EK247: BAS140 | EL247: BAS141 | EM247: BAS142 | EN247: BAS143 | EO247: BAS144 | EP247: BAS145 | EQ247: BAS146 | ER247: BAS147 | ES247: BAS148 | ET247: BAS149 | EU247: BAS150 | EV247: BAS151 | EW247: BAS152 | EX247: BAS153 | EY247: BAS154 | EZ247: BAS155 | FA247: BAS156 | FB247: BAS157 | FC247: BAS158 | FD247: BAS159 | FE247: BAS160 | FF247: BAS161 | FG247: BAS162 | FH247: BAS163 | FI247: BAS164 | FJ247: BAS165 | FK247: BAS166 | FL247: BAS167 | FM247: BAS168 | FN247: BAS169 | FO247: BAS170 | FP247: BAS171 | FQ247: BAS172 | FR247: BAS173 | FS247: BAS174 | FT247: BAS175 | FU247: BAS176 | FV247: BAS177 | FW247: BAS178 | FX247: BAS179 | FY247: BAS180 | FZ247: BAS181 | GA247: BAS182 | GB247: BAS183 | GC247: BAS184 | GD247: BAS185 | GE247: BAS186 | GF247: BAS187 | GG247: BAS188 | GH247: BAS189 | GI247: BAS190 | GJ247: BAS191 | GK247: BAS192 | GL247: BAS193 | GM247: BAS194 | GN247: BAS195 | GO247: BAS196 | GP247: BAS197 | GQ247: BAS198 | GR247: BAS199 | GS247: BAS200 | GT247: BAS201 | GU247: BAS202 | GV247: BAS203 | GW247: BAS204 | GX247: BAS205 | GY247: BAS206 | GZ247: BAS207 | HA247: BAS208 | HB247: BAS209 | HC247: BAS210 | HD247: BAS211 | HE247: BAS212 | HF247: BAS213 | HG247: BAS214 | HH247: BAS215 | HI247: BAS216 | HJ247: BAS217 | HK247: BAS218 | HL247: BAS219 | HM247: BAS220 | HN247: BAS221 | HO247: BAS222 | HP247: BAS223 | HQ247: BAS224 | HR247: BAS225 | HS247: BAS226 | HT247: BAS227 | HU247: BAS228 | HV247: BAS229 | HW247: BAS230
A248: 1 | B248: 0 | C248: 0 | D248: 0 | E248: 0 | F248: 0 | G248: 0 | H248: 0 | I248: 0 | J248: 0 | K248: 0 | L248: 2 | M248: 0 | N248: 0 | O248: 0 | P248: 5 | Q248: 0 | R248: 0 | S248: 0 | T248: 0 | U248: 0 | V248: 0 | W248: 0 | X248: 0 | Y248: 0 | Z248: 0 | AA248: 0 | AB248: 2 | AC248: 0 | AD248: 0 | AE248: 0 | AF248: 2 | AG248: 0 | AH248: 0 | AI248: 0 | AJ248: 0 | AK248: 0 | AL248: 0 | AM248: 0 | AN248: 2 | AO248: 0 | AP248: 0 | AQ248: 0 | AR248: 3 | AS248: 0 | AT248: 0 | AU248: 0 | AV248: 0 | AW248: 0 | AX248: 0 | AY248: 0 | AZ248: 2 | BA248: 0 | BB248: 0 | BC248: 0 | BD248: 0 | BE248: 0 | BF248: 0 | BG248: 0 | BH248: 0 | BI248: 0 | BJ248: 0 | BK248: 0 | BL248: 2 | BM248: 3 | BN248: 0 | BO248: 0 | BP248: 2 | BQ248: 2 | BR248: 0 | BS248: 2 | BT248: 3 | BU248: 0 | BV248: 2 | BW248: 0 | BX248: 0 | BY248: 0 | BZ248: 0 | CA248: 0 | CB248: 0 | CC248: 0 | CD248: 0 | CE248: 0 | CF248: 0 | CG248: 0 | CH248: 0 | CI248: 0 | CJ248: 0 | CK248: 0 | CL248: 0 | CM248: 0 | CN248: 0 | CO248: 0 | CP248: 0 | CQ248: 0 | CR248: 0 | CS248: 0 | CT248: 0 | CU248: 0 | CV248: 0 | CW248: 0 | CX248: 0 | CY248: 0 | CZ248: 0 | DA248: 0 | DB248: 0 | DC248: 0 | DD248: 0 | DE248: 0 | DF248: 0 | DG248: 0 | DH248: 0 | DI248: 0 | DJ248: 0 | DK248: 0 | DL248: 0 | DM248: 0 | DN248: 0 | DO248: 0 | DP248: 0 | DQ248: 0 | DR248: 0 | DS248: 0 | DT248: 0 | DU248: 0 | DV248: 0 | DW248: 0 | DX248: 0 | DY248: 0 | DZ248: 0 | EA248: 0 | EB248: 0 | EC248: 0 | ED248: 0 | EE248: 0 | EF248: 0 | EG248: 0 | EH248: 0 | EI248: 0 | EJ248: 0 | EK248: 0 | EL248: 0 | EM248: 0 | EN248: 0 | EO248: 0 | EP248: 0 | EQ248: 0 | ER248: 0 | ES248: 0 | ET248: 0 | EU248: 0 | EV248: 0 | EW248: 0 | EX248: 0 | EY248: 0 | EZ248: 0 | FA248: 0 | FB248: 0 | FC248: 0 | FD248: 0 | FE248: 0 | FF248: 0 | FG248: 0 | FH248: 0 | FI248: 0 | FJ248: 0 | FK248: 0 | FL248: 0 | FM248: 0 | FN248: 0 | FO248: 0 | FP248: 0 | FQ248: 0 | FR248: 0 | FS248: 0 | FT248: 0 | FU248: 0 | FV248: 0 | FW248: 0 | FX248: 0 | FY248: 0 | FZ248: 0 | GA248: 0 | GB248: 0 | GC248: 0 | GD248: 0 | GE248: 0 | GF248: 0 | GG248: 0 | GH248: 0 | GI248: 0 | GJ248: 0 | GK248: 0 | GL248: 0 | GM248: 0 | GN248: 0 | GO248: 0 | GP248: 0 | GQ248: 0 | GR248: 0 | GS248: 0 | GT248: 0 | GU248: 0 | GV248: 0 | GW248: 0 | GX248: 0 | GY248: 0 | GZ248: 0 | HA248: 0 | HB248: 0 | HC248: 0 | HD248: 0 | HE248: 0 | HF248: 0 | HG248: 0 | HH248: 0 | HI248: 0 | HJ248: 0 | HK248: 0 | HL248: 0 | HM248: 0 | HN248: 0 | HO248: 0 | HP248: 0 | HQ248: 0 | HR248: 0 | HS248: 0 | HT248: 0 | HU248: 0 | HV248: 0 | HW248: 0
A249: 2 | B249: 0 | C249: 0 | D249: 0 | E249: 0 | F249: 0 | G249: 0 | H249: 0 | I249: 0 | J249: 0 | K249: 0 | L249: 0 | M249: 0 | N249: 1 | O249: 0 | P249: 1 | Q249: 1 | R249: 0 | S249: 0 | T249: 0 | U249: 0 | V249: 0 | W249: 0 | X249: 0 | Y249: 0 | Z249: 0 | AA249: 0 | AB249: 0 | AC249: 0 | AD249: 0 | AE249: 0 | AF249: 0 | AG249: 0 | AH249: 0 | AI249: 0 | AJ249: 0 | AK249: 0 | AL249: 0 | AM249: 0 | AN249: 0 | AO249: 1 | AP249: 0 | AQ249: 0 | AR249: 1 | AS249: 1 | AT249: 0 | AU249: 0 | AV249: 0 | AW249: 0 | AX249: 0 | AY249: 0 | AZ249: 0 | BA249: 0 | BB249: 0 | BC249: 0 | BD249: 0 | BE249: 0 | BF249: 0 | BG249: 0 | BH249: 0 | BI249: 0 | BJ249: 0 | BK249: 0 | BL249: 0 | BM249: 1 | BN249: 0 | BO249: 0 | BP249: 0 | BQ249: 0 | BR249: 0 | BS249: 0 | BT249: 1 | BU249: 0 | BV249: 0 | BW249: 0 | BX249: 0 | BY249: 0 | BZ249: 0 | CA249: 0 | CB249: 0 | CC249: 0 | CD249: 0 | CE249: 0 | CF249: 0 | CG249: 0 | CH249: 0 | CI249: 0 | CJ249: 0 | CK249: 0 | CL249: 0 | CM249: 0 | CN249: 0 | CO249: 0 | CP249: 0 | CQ249: 0 | CR249: 0 | CS249: 0 | CT249: 0 | CU249: 0 | CV249: 0 | CW249: 0 | CX249: 0 | CY249: 0 | CZ249: 0 | DA249: 0 | DB249: 0 | DC249: 0 | DD249: 0 | DE249: 0 | DF249: 0 | DG249: 0 | DH249: 0 | DI249: 0 | DJ249: 0 | DK249: 0 | DL249: 0 | DM249: 0 | DN249: 0 | DO249: 0 | DP249: 0 | DQ249: 0 | DR249: 0 | DS249: 0 | DT249: 0 | DU249: 0 | DV249: 0 | DW249: 0 | DX249: 0 | DY249: 0 | DZ249: 0 | EA249: 0 | EB249: 0 | EC249: 0 | ED249: 0 | EE249: 0 | EF249: 0 | EG249: 0 | EH249: 0 | EI249: 0 | EJ249: 0 | EK249: 0 | EL249: 0 | EM249: 0 | EN249: 0 | EO249: 0 | EP249: 0 | EQ249: 0 | ER249: 0 | ES249: 0 | ET249: 0 | EU249: 0 | EV249: 0 | EW249: 0 | EX249: 0 | EY249: 0 | EZ249: 0 | FA249: 0 | FB249: 0 | FC249: 0 | FD249: 0 | FE249: 0 | FF249: 0 | FG249: 0 | FH249: 0 | FI249: 0 | FJ249: 0 | FK249: 0 | FL249: 0 | FM249: 0 | FN249: 0 | FO249: 0 | FP249: 0 | FQ249: 0 | FR249: 0 | FS249: 0 | FT249: 0 | FU249: 0 | FV249: 0 | FW249: 0 | FX249: 0 | FY249: 0 | FZ249: 0 | GA249: 0 | GB249: 0 | GC249: 0 | GD249: 0 | GE249: 0 | GF249: 0 | GG249: 0 | GH249: 0 | GI249: 0 | GJ249: 0 | GK249: 0 | GL249: 0 | GM249: 0 | GN249: 0 | GO249: 0 | GP249: 0 | GQ249: 0 | GR249: 0 | GS249: 0 | GT249: 0 | GU249: 0 | GV249: 0 | GW249: 0 | GX249: 0 | GY249: 0 | GZ249: 0 | HA249: 0 | HB249: 0 | HC249: 0 | HD249: 0 | HE249: 0 | HF249: 0 | HG249: 0 | HH249: 0 | HI249: 0 | HJ249: 0 | HK249: 0 | HL249: 0 | HM249: 0 | HN249: 0 | HO249: 0 | HP249: 0 | HQ249: 0 | HR249: 0 | HS249: 0 | HT249: 0 | HU249: 0 | HV249: 0 | HW249: 0
A250: 3 | B250: 0 | C250: 0 | D250: 0 | E250: 0 | F250: 0 | G250: 0 | H250: 0 | I250: 0 | J250: 0 | K250: 0 | L250: 0 | M250: 1 | N250: 0 | O250: 0 | P250: 18 | Q250: 3 | R250: 0 | S250: 0 | T250: 0 | U250: 0 | V250: 0 | W250: 0 | X250: 0 | Y250: 0 | Z250: 0 | AA250: 0 | AB250: 0 | AC250: 0 | AD250: 0 | AE250: 0 | AF250: 0 | AG250: 1 | AH250: 0 | AI250: 0 | AJ250: 0 | AK250: 0 | AL250: 0 | AM250: 0 | AN250: 1 | AO250: 2 | AP250: 0 | AQ250: 0 | AR250: 2 | AS250: 2 | AT250: 0 | AU250: 0 | AV250: 0 | AW250: 0 | AX250: 0 | AY250: 0 | AZ250: 1 | BA250: 2 | BB250: 0 | BC250: 0 | BD250: 0 | BE250: 0 | BF250: 0 | BG250: 0 | BH250: 0 | BI250: 0 | BJ250: 0 | BK250: 0 | BL250: 0 | BM250: 2 | BN250: 0 | BO250: 0 | BP250: 0 | BQ250: 0 | BR250: 0 | BS250: 0 | BT250: 2 | BU250: 0 | BV250: 0 | BW250: 0 | BX250: 0 | BY250: 0 | BZ250: 0 | CA250: 0 | CB250: 0 | CC250: 0 | CD250: 0 | CE250: 0 | CF250: 0 | CG250: 0 | CH250: 0 | CI250: 0 | CJ250: 0 | CK250: 0 | CL250: 0 | CM250: 0 | CN250: 0 | CO250: 0 | CP250: 0 | CQ250: 0 | CR250: 0 | CS250: 0 | CT250: 0 | CU250: 0 | CV250: 0 | CW250: 0 | CX250: 0 | CY250: 0 | CZ250: 0 | DA250: 0 | DB250: 0 | DC250: 0 | DD250: 0 | DE250: 0 | DF250: 0 | DG250: 0 | DH250: 0 | DI250: 0 | DJ250: 0 | DK250: 0 | DL250: 0 | DM250: 0 | DN250: 0 | DO250: 0 | DP250: 0 | DQ250: 0 | DR250: 0 | DS250: 0 | DT250: 0 | DU250: 0 | DV250: 0 | DW250: 0 | DX250: 0 | DY250: 1 | DZ250: 3 | EA250: 2 | EB250: 24 | EC250: 1 | ED250: 9 | EE250: 0 | EF250: 0 | EG250: 17 | EH250: 80 | EI250: 9 | EJ250: 66 | EK250: 9 | EL250: 92 | EM250: 0 | EN250: 0 | EO250: 1 | EP250: 3 | EQ250: 1 | ER250: 9 | ES250: 1 | ET250: 9 | EU250: 0 | EV250: 0 | EW250: 1 | EX250: 3 | EY250: 1 | EZ250: 9 | FA250: 1 | FB250: 9 | FC250: 0 | FD250: 0 | FE250: 1 | FF250: 3 | FG250: 2 | FH250: 24 | FI250: 1 | FJ250: 9 | FK250: 0 | FL250: 0 | FM250: 1 | FN250: 3 | FO250: 1 | FP250: 9 | FQ250: 1 | FR250: 9 | FS250: 0 | FT250: 0 | FU250: 0 | FV250: 0 | FW250: 0 | FX250: 0 | FY250: 0 | FZ250: 0 | GA250: 0 | GB250: 0 | GC250: 1 | GD250: 3 | GE250: 2 | GF250: 24 | GG250: 1 | GH250: 9 | GI250: 0 | GJ250: 0 | GK250: 0 | GL250: 0 | GM250: 0 | GN250: 0 | GO250: 0 | GP250: 0 | GQ250: 0 | GR250: 0 | GS250: 0 | GT250: 0 | GU250: 0 | GV250: 0 | GW250: 0 | GX250: 0 | GY250: 0 | GZ250: 0 | HA250: 0 | HB250: 0 | HC250: 0 | HD250: 0 | HE250: 0 | HF250: 0 | HG250: 0 | HH250: 0 | HI250: 0 | HJ250: 0 | HK250: 0 | HL250: 0 | HM250: 0 | HN250: 0 | HO250: 0 | HP250: 0 | HQ250: 0 | HR250: 0 | HS250: 0 | HT250: 0 | HU250: 0 | HV250: 0 | HW250: 0
A251: T | B251: 0 | C251: 0 | D251: 0 | E251: 0 | F251: 0 | G251: 0 | H251: 0 | I251: 0 | J251: 0 | K251: 0 | L251: 2 | M251: 1 | N251: 1 | O251: 0 | P251: 24 | Q251: 4 | R251: 0 | S251: 0 | T251: 0 | U251: 0 | V251: 0 | W251: 0 | X251: 0 | Y251: 0 | Z251: 0 | AA251: 0 | AB251: 2 | AC251: 0 | AD251: 0 | AE251: 0 | AF251: 2 | AG251: 1 | AH251: 0 | AI251: 0 | AJ251: 0 | AK251: 0 | AL251: 0 | AM251: 0 | AN251: 3 | AO251: 3 | AP251: 0 | AQ251: 0 | AR251: 6 | AS251: 3 | AT251: 0 | AU251: 0 | AV251: 0 | AW251: 0 | AX251: 0 | AY251: 0 | AZ251: 3 | BA251: 2 | BB251: 0 | BC251: 0 | BD251: 0 | BE251: 0 | BF251: 0 | BG251: 0 | BH251: 0 | BI251: 0 | BJ251: 0 | BK251: 0 | BL251: 2 | BM251: 6 | BN251: 0 | BO251: 0 | BP251: 2 | BQ251: 2 | BR251: 0 | BS251: 2 | BT251: 6 | BU251: 0 | BV251: 2 | BW251: 0 | BX251: 0 | BY251: 0 | BZ251: 0 | CA251: 0 | CB251: 0 | CC251: 0 | CD251: 0 | CE251: 0 | CF251: 0 | CG251: 0 | CH251: 0 | CI251: 0 | CJ251: 0 | CK251: 0 | CL251: 0 | CM251: 0 | CN251: 0 | CO251: 0 | CP251: 0 | CQ251: 0 | CR251: 0 | CS251: 0 | CT251: 0 | CU251: 0 | CV251: 0 | CW251: 0 | CX251: 0 | CY251: 0 | CZ251: 0 | DA251: 0 | DB251: 0 | DC251: 0 | DD251: 0 | DE251: 0 | DF251: 0 | DG251: 0 | DH251: 0 | DI251: 0 | DJ251: 0 | DK251: 0 | DL251: 0 | DM251: 0 | DN251: 0 | DO251: 0 | DP251: 0 | DQ251: 0 | DR251: 0 | DS251: 0 | DT251: 0 | DU251: 0 | DV251: 0 | DW251: 0 | DX251: 0 | DY251: 1 | DZ251: 3 | EA251: 2 | EB251: 24 | EC251: 1 | ED251: 9 | EE251: 0 | EF251: 0 | EG251: 17 | EH251: 80 | EI251: 9 | EJ251: 66 | EK251: 9 | EL251: 92 | EM251: 0 | EN251: 0 | EO251: 1 | EP251: 3 | EQ251: 1 | ER251: 9 | ES251: 1 | ET251: 9 | EU251: 0 | EV251: 0 | EW251: 1 | EX251: 3 | EY251: 1 | EZ251: 9 | FA251: 1 | FB251: 9 | FC251: 0 | FD251: 0 | FE251: 1 | FF251: 3 | FG251: 2 | FH251: 24 | FI251: 1 | FJ251: 9 | FK251: 0 | FL251: 0 | FM251: 1 | FN251: 3 | FO251: 1 | FP251: 9 | FQ251: 1 | FR251: 9 | FS251: 0 | FT251: 0 | FU251: 0 | FV251: 0 | FW251: 0 | FX251: 0 | FY251: 0 | FZ251: 0 | GA251: 0 | GB251: 0 | GC251: 1 | GD251: 3 | GE251: 2 | GF251: 24 | GG251: 1 | GH251: 9 | GI251: 0 | GJ251: 0 | GK251: 0 | GL251: 0 | GM251: 0 | GN251: 0 | GO251: 0 | GP251: 0 | GQ251: 0 | GR251: 0 | GS251: 0 | GT251: 0 | GU251: 0 | GV251: 0 | GW251: 0 | GX251: 0 | GY251: 0 | GZ251: 0 | HA251: 0 | HB251: 0 | HC251: 0 | HD251: 0 | HE251: 0 | HF251: 0 | HG251: 0 | HH251: 0 | HI251: 0 | HJ251: 0 | HK251: 0 | HL251: 0 | HM251: 0 | HN251: 0 | HO251: 0 | HP251: 0 | HQ251: 0 | HR251: 0 | HS251: 0 | HT251: 0 | HU251: 0 | HV251: 0 | HW251: 0
A266: TOTAL
A267: =COUNT(A248:A264) -> 3 | B267: =SUM(B248:B264) -> 0 | C267: =SUM(C248:C264) -> 0 | D267: 0 | E267: 0 | F267: 0 | G267: 0 | H267: 0 | I267: 0 | J267: 0 | K267: 0 | L267: 4 | M267: 2 | N267: 2 | O267: 0 | P267: 48 | Q267: 8 | R267: 0 | S267: 0 | T267: 0 | U267: 0 | V267: 0 | W267: 0 | X267: 0 | Y267: 0 | Z267: 0 | AA267: 0 | AB267: 4 | AC267: 0 | AD267: 0 | AE267: 0 | AF267: 4 | AG267: 2 | AH267: 0 | AI267: 0 | AJ267: 0 | AK267: 0 | AL267: 0 | AM267: 0 | AN267: 6 | AO267: 6 | AP267: 0 | AQ267: 0 | AR267: 12 | AS267: 6 | AT267: 0 | AU267: 0 | AV267: 0 | AW267: 0 | AX267: 0 | AY267: 0 | AZ267: 6 | BA267: 4 | BB267: 0 | BC267: 0 | BD267: 0 | BE267: 0 | BF267: 0 | BG267: 0 | BH267: 0 | BI267: 0 | BJ267: 0 | BK267: 0 | BL267: 4 | BM267: 12 | BN267: 0 | BO267: =SUM(BO248:BO264) -> 0 | BP267: 4 | BQ267: 4 | BR267: 0 | BS267: 4 | BT267: 12 | BU267: 0 | BV267: 4 | BW267: 0 | BX267: 0 | BY267: 0 | BZ267: 0 | CA267: 0 | CB267: 0 | CC267: 0 | CD267: 0 | CE267: 0 | CF267: 0 | CG267: 0 | CH267: 0 | CI267: 0 | CJ267: 0 | CK267: 0 | CL267: 0 | CM267: 0 | CN267: 0 | CO267: 0 | CP267: 0 | CQ267: 0 | CR267: 0 | CS267: 0 | CT267: 0 | CU267: 0 | CV267: 0 | CW267: 0 | CX267: 0 | CY267: 0 | CZ267: 0 | DA267: 0 | DB267: 0 | DC267: 0 | DD267: 0 | DE267: 0 | DF267: 0 | DG267: 0 | DH267: 0 | DI267: 0 | DJ267: 0 | DK267: 0 | DL267: 0 | DM267: 0 | DN267: 0 | DO267: 0 | DP267: 0 | DQ267: 0 | DR267: 0 | DS267: 0 | DT267: 0 | DU267: 0 | DV267: 0 | DW267: 0 | DX267: 0 | DY267: 2 | DZ267: 6 | EA267: =SUM(EA248:EA264) -> 4 | EB267: 48 | EC267: 2 | ED267: 18 | EE267: 0 | EF267: 0 | EG267: 34 | EH267: 160 | EI267: 18 | EJ267: 132 | EK267: 18 | EL267: 184 | EM267: 0 | EN267: 0 | EO267: 2 | EP267: 6 | EQ267: 2 | ER267: 18 | ES267: 2 | ET267: 18 | EU267: 0 | EV267: 0 | EW267: 2 | EX267: 6 | EY267: 2 | EZ267: 18 | FA267: 2 | FB267: 18 | FC267: 0 | FD267: 0 | FE267: 2 | FF267: 6 | FG267: 4 | FH267: 48 | FI267: 2 | FJ267: 18 | FK267: 0 | FL267: 0 | FM267: 2 | FN267: 6 | FO267: 2 | FP267: 18 | FQ267: 2 | FR267: 18 | FS267: 0 | FT267: 0 | FU267: 0 | FV267: 0 | FW267: 0 | FX267: 0 | FY267: 0 | FZ267: 0 | GA267: 0 | GB267: 0 | GC267: 2 | GD267: 6 | GE267: 4 | GF267: 48 | GG267: 2 | GH267: 18 | GI267: 0 | GJ267: 0 | GK267: 0 | GL267: 0 | GM267: =SUM(GM248:GM264) -> 0 | GN267: 0 | GO267: 0 | GP267: 0 | GQ267: 0 | GR267: 0 | GS267: 0 | GT267: 0 | GU267: 0 | GV267: 0 | GW267: 0 | GX267: 0 | GY267: 0 | GZ267: 0 | HA267: 0 | HB267: 0 | HC267: 0 | HD267: 0 | HE267: 0 | HF267: 0 | HG267: 0 | HH267: 0 | HI267: 0 | HJ267: 0 | HK267: 0 | HL267: 0 | HM267: 0 | HN267: 0 | HO267: 0 | HP267: 0 | HQ267: 0 | HR267: 0 | HS267: 0 | HT267: 0 | HU267: 0 | HV267: 0 | HW267: 0
A268: =CONCATENATE(A248,"-",A249,"-",A250,"-",A251,"-",A252,"-",A253,"-",A254,"-",A255,"-",A256,"-",A257,"-",A258,"-",A259) -> 1-2-3-T--------
B269: BAS001 | C269: BAS002 | D269: BAS003 | E269: BAS004 | F269: BAS005 | G269: BAS006 | H269: BAS007 | I269: BAS008 | J269: BAS009 | K269: BAS010 | L269: BAS011 | M269: BAS012 | N269: BAS013 | O269: BAS014 | P269: BAS015 | Q269: BAS016 | R269: BAS017 | S269: BAS018 | T269: BAS019 | U269: BAS020 | V269: BAS021 | W269: BAS022 | X269: BAS023 | Y269: BAS024 | Z269: BAS025 | AA269: BAS026 | AB269: BAS027 | AC269: BAS028 | AD269: BAS029 | AE269: BAS030 | AF269: BAS031 | AG269: BAS032 | AH269: BAS033 | AI269: BAS034 | AJ269: BAS035 | AK269: BAS036 | AL269: BAS037 | AM269: BAS038 | AN269: BAS039 | AO269: BAS040 | AP269: BAS041 | AQ269: BAS042 | AR269: BAS043 | AS269: BAS044 | AT269: BAS045 | AU269: BAS046 | AV269: BAS047 | AW269: BAS048 | AX269: BAS049 | AY269: BAS050 | AZ269: BAS051 | BA269: BAS052 | BB269: BAS053 | BC269: BAS054 | BD269: BAS055 | BE269: BAS056 | BF269: BAS057 | BG269: BAS058 | BH269: BAS059 | BI269: BAS060 | BJ269: BAS061 | BK269: BAS062 | BL269: BAS063 | BM269: BAS064 | BN269: BAS065 | BO269: BAS066 | BP269: BAS067 | BQ269: BAS068 | BR269: BAS069 | BS269: BAS070 | BT269: BAS071 | BU269: BAS072 | BV269: BAS073 | BW269: BAS074 | BX269: BAS075 | BY269: BAS076 | BZ269: BAS077 | CA269: BAS078 | CB269: BAS079 | CC269: BAS080 | CD269: BAS081 | CE269: BAS082 | CF269: BAS083 | CG269: BAS084 | CH269: BAS085 | CI269: BAS086 | CJ269: BAS087 | CK269: BAS088 | CL269: BAS089 | CM269: BAS090 | CN269: BAS091 | CO269: BAS092 | CP269: BAS093 | CQ269: BAS094 | CR269: BAS095 | CS269: BAS096 | CT269: BAS097 | CU269: BAS098 | CV269: BAS099 | CW269: BAS100 | CX269: BAS101 | CY269: BAS102 | CZ269: BAS103 | DA269: BAS104 | DB269: BAS105 | DC269: BAS106 | DD269: BAS107 | DE269: BAS108 | DF269: BAS109 | DG269: BAS110 | DH269: BAS111 | DI269: BAS112 | DJ269: BAS113 | DK269: BAS114 | DL269: BAS115 | DM269: BAS116 | DN269: BAS117 | DO269: BAS118 | DP269: BAS119 | DQ269: BAS120 | DR269: BAS121 | DS269: BAS122 | DT269: BAS123 | DU269: BAS124 | DV269: BAS125 | DW269: BAS126 | DX269: BAS127 | DY269: BAS128 | DZ269: BAS129 | EA269: BAS130 | EB269: BAS131 | EC269: BAS132 | ED269: BAS133 | EE269: BAS134 | EF269: BAS135 | EG269: BAS136 | EH269: BAS137 | EI269: BAS138 | EJ269: BAS139 | EK269: BAS140 | EL269: BAS141 | EM269: BAS142 | EN269: BAS143 | EO269: BAS144 | EP269: BAS145 | EQ269: BAS146 | ER269: BAS147 | ES269: BAS148 | ET269: BAS149 | EU269: BAS150 | EV269: BAS151 | EW269: BAS152 | EX269: BAS153 | EY269: BAS154 | EZ269: BAS155 | FA269: BAS156 | FB269: BAS157 | FC269: BAS158 | FD269: BAS159 | FE269: BAS160 | FF269: BAS161 | FG269: BAS162 | FH269: BAS163 | FI269: BAS164 | FJ269: BAS165 | FK269: BAS166 | FL269: BAS167 | FM269: BAS168 | FN269: BAS169 | FO269: BAS170 | FP269: BAS171 | FQ269: BAS172 | FR269: BAS173 | FS269: BAS174 | FT269: BAS175 | FU269: BAS176 | FV269: BAS177 | FW269: BAS178 | FX269: BAS179 | FY269: BAS180 | FZ269: BAS181 | GA269: BAS182 | GB269: BAS183 | GC269: BAS184 | GD269: BAS185 | GE269: BAS186 | GF269: BAS187 | GG269: BAS188 | GH269: BAS189 | GI269: BAS190 | GJ269: BAS191 | GK269: BAS192 | GL269: BAS193 | GM269: BAS194 | GN269: BAS195 | GO269: BAS196 | GP269: BAS197 | GQ269: BAS198 | GR269: BAS199 | GS269: BAS200 | GT269: BAS201 | GU269: BAS202 | GV269: BAS203 | GW269: BAS204 | GX269: BAS205 | GY269: BAS206 | GZ269: BAS207 | HA269: BAS208 | HB269: BAS209 | HC269: BAS210 | HD269: BAS211 | HE269: BAS212 | HF269: BAS213 | HG269: BAS214 | HH269: BAS215 | HI269: BAS216 | HJ269: BAS217 | HK269: BAS218 | HL269: BAS219 | HM269: BAS220 | HN269: BAS221 | HO269: BAS222 | HP269: BAS223 | HQ269: BAS224 | HR269: BAS225 | HS269: BAS226 | HT269: BAS227 | HU269: BAS228 | HV269: BAS229 | HW269: BAS230
B270: =IF(B269=B247,"SI","NO") -> SI | C270: =IF(C269=C247,"SI","NO") -> SI | D270: SI | E270: SI | F270: SI | G270: SI | H270: SI | I270: SI | J270: SI | K270: SI | L270: SI | M270: SI | N270: SI | O270: SI | P270: SI | Q270: SI | R270: SI | S270: SI | T270: SI | U270: SI | V270: SI | W270: SI | X270: SI | Y270: SI | Z270: SI | AA270: SI | AB270: SI | AC270: SI | AD270: SI | AE270: SI | AF270: SI | AG270: SI | AH270: SI | AI270: SI | AJ270: SI | AK270: SI | AL270: SI | AM270: SI | AN270: SI | AO270: SI | AP270: SI | AQ270: SI | AR270: SI | AS270: SI | AT270: SI | AU270: SI | AV270: SI | AW270: SI | AX270: SI | AY270: SI | AZ270: SI | BA270: SI | BB270: SI | BC270: SI | BD270: SI | BE270: SI | BF270: SI | BG270: SI | BH270: SI | BI270: SI | BJ270: SI | BK270: SI | BL270: SI | BM270: SI | BN270: SI | BO270: =IF(BO269=BO247,"SI","NO") -> SI | BP270: SI | BQ270: SI | BR270: SI | BS270: SI | BT270: SI | BU270: SI | BV270: SI | BW270: SI | BX270: SI | BY270: SI | BZ270: SI | CA270: SI | CB270: SI | CC270: SI | CD270: SI | CE270: SI | CF270: SI | CG270: SI | CH270: SI | CI270: SI | CJ270: SI | CK270: SI | CL270: SI | CM270: SI | CN270: SI | CO270: SI | CP270: SI | CQ270: SI | CR270: SI | CS270: SI | CT270: SI | CU270: SI | CV270: SI | CW270: SI | CX270: SI | CY270: SI | CZ270: SI | DA270: SI | DB270: SI | DC270: SI | DD270: SI | DE270: SI | DF270: SI | DG270: SI | DH270: SI | DI270: SI | DJ270: SI | DK270: SI | DL270: SI | DM270: SI | DN270: SI | DO270: SI | DP270: SI | DQ270: SI | DR270: SI | DS270: SI | DT270: SI | DU270: SI | DV270: SI | DW270: SI | DX270: SI | DY270: SI | DZ270: SI | EA270: =IF(EA269=EA247,"SI","NO") -> SI | EB270: SI | EC270: SI | ED270: SI | EE270: SI | EF270: SI | EG270: SI | EH270: SI | EI270: SI | EJ270: SI | EK270: SI | EL270: SI | EM270: SI | EN270: SI | EO270: SI | EP270: SI | EQ270: SI | ER270: SI | ES270: SI | ET270: SI | EU270: SI | EV270: SI | EW270: SI | EX270: SI | EY270: SI | EZ270: SI | FA270: SI | FB270: SI | FC270: SI | FD270: SI | FE270: SI | FF270: SI | FG270: SI | FH270: SI | FI270: SI | FJ270: SI | FK270: SI | FL270: SI | FM270: SI | FN270: SI | FO270: SI | FP270: SI | FQ270: SI | FR270: SI | FS270: SI | FT270: SI | FU270: SI | FV270: SI | FW270: SI | FX270: SI | FY270: SI | FZ270: SI | GA270: SI | GB270: SI | GC270: SI | GD270: SI | GE270: SI | GF270: SI | GG270: SI | GH270: SI | GI270: SI | GJ270: SI | GK270: SI | GL270: SI | GM270: =IF(GM269=GM247,"SI","NO") -> SI | GN270: SI | GO270: SI | GP270: SI | GQ270: SI | GR270: SI | GS270: SI | GT270: SI | GU270: SI | GV270: SI | GW270: SI | GX270: SI | GY270: SI | GZ270: SI | HA270: SI | HB270: SI | HC270: SI | HD270: SI | HE270: SI | HF270: SI | HG270: SI | HH270: SI | HI270: SI | HJ270: SI | HK270: SI | HL270: SI | HM270: SI | HN270: SI | HO270: SI | HP270: SI | HQ270: SI | HR270: SI | HS270: SI | HT270: SI | HU270: SI | HV270: SI | HW270: SI
A272: PP017-12
A273: ANNO | B273: 2025
A274: cod_red | B274: 03
A275: codmic | B275: (Todas)
A276: cod_prov | B276: (Todas)
A277: coddist | B277: (Todas)
A278: cod_estab | B278: (Todas)
A279: cod_eje | B279: (Todas)
B281: Valores
A282: Etiquetas de fila | B282: BAS001 | C282: BAS002 | D282: BAS003 | E282: BAS004 | F282: BAS005 | G282: BAS006 | H282: BAS007 | I282: BAS008 | J282: BAS009 | K282: BAS010 | L282: BAS011 | M282: BAS012 | N282: BAS013 | O282: BAS014 | P282: BAS015 | Q282: BAS016 | R282: BAS017 | S282: BAS018 | T282: BAS019 | U282: BAS020 | V282: BAS021 | W282: BAS022 | X282: BAS023 | Y282: BAS024 | Z282: BAS025 | AA282: BAS026 | AB282: BAS027 | AC282: BAS028 | AD282: BAS029 | AE282: BAS030 | AF282: BAS031 | AG282: BAS032 | AH282: BAS033 | AI282: BAS034 | AJ282: BAS035 | AK282: BAS036 | AL282: BAS037 | AM282: BAS038 | AN282: BAS039 | AO282: BAS040 | AP282: BAS041 | AQ282: BAS042 | AR282: BAS043 | AS282: BAS044 | AT282: BAS045 | AU282: BAS046 | AV282: BAS047 | AW282: BAS048 | AX282: BAS049 | AY282: BAS050 | AZ282: BAS051 | BA282: BAS052 | BB282: BAS053 | BC282: BAS054 | BD282: BAS055 | BE282: BAS056 | BF282: BAS057 | BG282: BAS058 | BH282: BAS059 | BI282: BAS060 | BJ282: BAS061 | BK282: BAS062 | BL282: BAS063 | BM282: BAS064 | BN282: BAS065 | BO282: BAS066 | BP282: BAS067 | BQ282: BAS068 | BR282: BAS069 | BS282: BAS070 | BT282: BAS071 | BU282: BAS072 | BV282: BAS073 | BW282: BAS074 | BX282: BAS075 | BY282: BAS076 | BZ282: BAS077 | CA282: BAS078 | CB282: BAS079 | CC282: BAS080 | CD282: BAS081 | CE282: BAS082 | CF282: BAS083 | CG282: BAS084 | CH282: BAS085 | CI282: BAS086 | CJ282: BAS087 | CK282: BAS088 | CL282: BAS089 | CM282: BAS090 | CN282: BAS091 | CO282: BAS092 | CP282: BAS093 | CQ282: BAS094 | CR282: BAS095 | CS282: BAS096 | CT282: BAS097 | CU282: BAS098 | CV282: BAS099 | CW282: BAS100 | CX282: BAS101 | CY282: BAS102 | CZ282: BAS103 | DA282: BAS104 | DB282: BAS105 | DC282: BAS106 | DD282: BAS107 | DE282: BAS108 | DF282: BAS109 | DG282: BAS110 | DH282: BAS111 | DI282: BAS112 | DJ282: BAS113 | DK282: BAS114 | DL282: BAS115 | DM282: BAS116 | DN282: BAS117 | DO282: BAS118 | DP282: BAS119 | DQ282: BAS120 | DR282: BAS121 | DS282: BAS122 | DT282: BAS123 | DU282: BAS124 | DV282: BAS125 | DW282: BAS126 | DX282: BAS127 | DY282: BAS128 | DZ282: BAS129 | EA282: BAS130 | EB282: BAS131 | EC282: BAS132 | ED282: BAS133 | EE282: BAS134 | EF282: BAS135 | EG282: BAS136 | EH282: BAS137 | EI282: BAS138 | EJ282: BAS139 | EK282: BAS140 | EL282: BAS141 | EM282: BAS142 | EN282: BAS143 | EO282: BAS144 | EP282: BAS145 | EQ282: BAS146 | ER282: BAS147 | ES282: BAS148 | ET282: BAS149 | EU282: BAS150 | EV282: BAS151 | EW282: BAS152 | EX282: BAS153 | EY282: BAS154 | EZ282: BAS155 | FA282: BAS156 | FB282: BAS157 | FC282: BAS158 | FD282: BAS159 | FE282: BAS160 | FF282: BAS161 | FG282: BAS162 | FH282: BAS163 | FI282: BAS164 | FJ282: BAS165 | FK282: BAS166 | FL282: BAS167 | FM282: BAS168 | FN282: BAS169 | FO282: BAS170 | FP282: BAS171 | FQ282: BAS172 | FR282: BAS173 | FS282: BAS174 | FT282: BAS175 | FU282: BAS176 | FV282: BAS177 | FW282: BAS178 | FX282: BAS179 | FY282: BAS180 | FZ282: BAS181 | GA282: BAS182 | GB282: BAS183 | GC282: BAS184 | GD282: BAS185 | GE282: BAS186 | GF282: BAS187 | GG282: BAS188 | GH282: BAS189 | GI282: BAS190 | GJ282: BAS191 | GK282: BAS192 | GL282: BAS193 | GM282: BAS194 | GN282: BAS195 | GO282: BAS196 | GP282: BAS197 | GQ282: BAS198 | GR282: BAS199 | GS282: BAS200 | GT282: BAS201 | GU282: BAS202 | GV282: BAS203 | GW282: BAS204 | GX282: BAS205 | GY282: BAS206 | GZ282: BAS207 | HA282: BAS208 | HB282: BAS209 | HC282: BAS210 | HD282: BAS211 | HE282: BAS212 | HF282: BAS213 | HG282: BAS214 | HH282: BAS215 | HI282: BAS216 | HJ282: BAS217 | HK282: BAS218 | HL282: BAS219 | HM282: BAS220 | HN282: BAS221 | HO282: BAS222 | HP282: BAS223 | HQ282: BAS224 | HR282: BAS225 | HS282: BAS226 | HT282: BAS227 | HU282: BAS228 | HV282: BAS229 | HW282: BAS230
A283: 1 | B283: 0 | C283: 0 | D283: 0 | E283: 0 | F283: 0 | G283: 0 | H283: 0 | I283: 0 | J283: 0 | K283: 0 | L283: 0 | M283: 0 | N283: 0 | O283: 0 | P283: 0 | Q283: 0 | R283: 0 | S283: 0 | T283: 0 | U283: 0 | V283: 0 | W283: 0 | X283: 0 | Y283: 0 | Z283: 0 | AA283: 0 | AB283: 0 | AC283: 0 | AD283: 0 | AE283: 0 | AF283: 0 | AG283: 0 | AH283: 0 | AI283: 0 | AJ283: 0 | AK283: 0 | AL283: 0 | AM283: 0 | AN283: 0 | AO283: 0 | AP283: 0 | AQ283: 0 | AR283: 0 | AS283: 0 | AT283: 0 | AU283: 0 | AV283: 0 | AW283: 0 | AX283: 0 | AY283: 0 | AZ283: 0 | BA283: 0 | BB283: 0 | BC283: 0 | BD283: 0 | BE283: 0 | BF283: 0 | BG283: 0 | BH283: 0 | BI283: 0 | BJ283: 0 | BK283: 0 | BL283: 0 | BM283: 0 | BN283: 0 | BO283: 0 | BP283: 0 | BQ283: 0 | BR283: 0 | BS283: 0 | BT283: 0 | BU283: 0 | BV283: 0 | BW283: 0 | BX283: 0 | BY283: 0 | BZ283: 0 | CA283: 0 | CB283: 0 | CC283: 0 | CD283: 0 | CE283: 0 | CF283: 0 | CG283: 0 | CH283: 0 | CI283: 0 | CJ283: 0 | CK283: 0 | CL283: 0 | CM283: 0 | CN283: 0 | CO283: 0 | CP283: 0 | CQ283: 0 | CR283: 0 | CS283: 0 | CT283: 0 | CU283: 0 | CV283: 0 | CW283: 0 | CX283: 0 | CY283: 0 | CZ283: 0 | DA283: 0 | DB283: 0 | DC283: 0 | DD283: 0 | DE283: 0 | DF283: 0 | DG283: 0 | DH283: 0 | DI283: 0 | DJ283: 0 | DK283: 0 | DL283: 0 | DM283: 0 | DN283: 0 | DO283: 0 | DP283: 0 | DQ283: 0 | DR283: 0 | DS283: 0 | DT283: 0 | DU283: 0 | DV283: 0 | DW283: 0 | DX283: 0 | DY283: 0 | DZ283: 0 | EA283: 0 | EB283: 0 | EC283: 0 | ED283: 0 | EE283: 0 | EF283: 0 | EG283: 0 | EH283: 0 | EI283: 0 | EJ283: 0 | EK283: 0 | EL283: 0 | EM283: 0 | EN283: 0 | EO283: 0 | EP283: 0 | EQ283: 0 | ER283: 0 | ES283: 0 | ET283: 0 | EU283: 0 | EV283: 0 | EW283: 0 | EX283: 0 | EY283: 0 | EZ283: 0 | FA283: 0 | FB283: 0 | FC283: 0 | FD283: 0 | FE283: 0 | FF283: 0 | FG283: 0 | FH283: 0 | FI283: 0 | FJ283: 0 | FK283: 0 | FL283: 0 | FM283: 0 | FN283: 0 | FO283: 0 | FP283: 0 | FQ283: 0 | FR283: 0 | FS283: 0 | FT283: 0 | FU283: 0 | FV283: 0 | FW283: 0 | FX283: 0 | FY283: 0 | FZ283: 0 | GA283: 0 | GB283: 0 | GC283: 0 | GD283: 0 | GE283: 0 | GF283: 0 | GG283: 0 | GH283: 0 | GI283: 0 | GJ283: 0 | GK283: 0 | GL283: 0 | GM283: 0 | GN283: 0 | GO283: 0 | GP283: 0 | GQ283: 0 | GR283: 0 | GS283: 0 | GT283: 0 | GU283: 0 | GV283: 0 | GW283: 0 | GX283: 0 | GY283: 0 | GZ283: 0 | HA283: 0 | HB283: 0 | HC283: 0 | HD283: 0 | HE283: 0 | HF283: 0 | HG283: 0 | HH283: 0 | HI283: 0 | HJ283: 0 | HK283: 0 | HL283: 0 | HM283: 0 | HN283: 0 | HO283: 0 | HP283: 0 | HQ283: 0 | HR283: 0 | HS283: 0 | HT283: 0 | HU283: 0 | HV283: 0 | HW283: 0
A284: 2 | B284: 0 | C284: 0 | D284: 0 | E284: 0 | F284: 0 | G284: 0 | H284: 0 | I284: 0 | J284: 0 | K284: 0 | L284: 0 | M284: 0 | N284: 0 | O284: 0 | P284: 0 | Q284: 0 | R284: 0 | S284: 0 | T284: 0 | U284: 0 | V284: 0 | W284: 0 | X284: 0 | Y284: 0 | Z284: 0 | AA284: 0 | AB284: 0 | AC284: 0 | AD284: 0 | AE284: 0 | AF284: 0 | AG284: 0 | AH284: 0 | AI284: 0 | AJ284: 0 | AK284: 0 | AL284: 0 | AM284: 0 | AN284: 0 | AO284: 0 | AP284: 0 | AQ284: 0 | AR284: 0 | AS284: 0 | AT284: 0 | AU284: 0 | AV284: 0 | AW284: 0 | AX284: 0 | AY284: 0 | AZ284: 0 | BA284: 0 | BB284: 0 | BC284: 0 | BD284: 0 | BE284: 0 | BF284: 0 | BG284: 0 | BH284: 0 | BI284: 0 | BJ284: 0 | BK284: 0 | BL284: 0 | BM284: 0 | BN284: 0 | BO284: 0 | BP284: 0 | BQ284: 0 | BR284: 0 | BS284: 0 | BT284: 0 | BU284: 0 | BV284: 0 | BW284: 0 | BX284: 0 | BY284: 0 | BZ284: 0 | CA284: 0 | CB284: 1 | CC284: 4 | CD284: 1 | CE284: 4 | CF284: 0 | CG284: 0 | CH284: 1 | CI284: 4 | CJ284: 1 | CK284: 4 | CL284: 0 | CM284: 0 | CN284: 1 | CO284: 4 | CP284: 1 | CQ284: 4 | CR284: 0 | CS284: 0 | CT284: 1 | CU284: 4 | CV284: 1 | CW284: 4 | CX284: 0 | CY284: 0 | CZ284: 1 | DA284: 4 | DB284: 1 | DC284: 4 | DD284: 0 | DE284: 0 | DF284: 1 | DG284: 4 | DH284: 1 | DI284: 4 | DJ284: 0 | DK284: 0 | DL284: 0 | DM284: 0 | DN284: 0 | DO284: 0 | DP284: 0 | DQ284: 0 | DR284: 1 | DS284: 4 | DT284: 1 | DU284: 4 | DV284: 0 | DW284: 0 | DX284: 1 | DY284: 4 | DZ284: 1 | EA284: 4 | EB284: 0 | EC284: 0 | ED284: 0 | EE284: 0 | EF284: 0 | EG284: 0 | EH284: 0 | EI284: 0 | EJ284: 0 | EK284: 0 | EL284: 0 | EM284: 0 | EN284: 0 | EO284: 0 | EP284: 0 | EQ284: 0 | ER284: 0 | ES284: 0 | ET284: 0 | EU284: 0 | EV284: 0 | EW284: 0 | EX284: 0 | EY284: 0 | EZ284: 0 | FA284: 0 | FB284: 0 | FC284: 0 | FD284: 0 | FE284: 0 | FF284: 0 | FG284: 0 | FH284: 0 | FI284: 0 | FJ284: 0 | FK284: 0 | FL284: 0 | FM284: 0 | FN284: 0 | FO284: 0 | FP284: 0 | FQ284: 0 | FR284: 0 | FS284: 0 | FT284: 0 | FU284: 0 | FV284: 0 | FW284: 0 | FX284: 0 | FY284: 0 | FZ284: 0 | GA284: 0 | GB284: 0 | GC284: 0 | GD284: 0 | GE284: 0 | GF284: 0 | GG284: 0 | GH284: 0 | GI284: 0 | GJ284: 0 | GK284: 0 | GL284: 0 | GM284: 0 | GN284: 0 | GO284: 0 | GP284: 0 | GQ284: 0 | GR284: 0 | GS284: 0 | GT284: 0 | GU284: 0 | GV284: 0 | GW284: 0 | GX284: 0 | GY284: 0 | GZ284: 0 | HA284: 0 | HB284: 0 | HC284: 0 | HD284: 0 | HE284: 0 | HF284: 0 | HG284: 0 | HH284: 0 | HI284: 0 | HJ284: 0 | HK284: 0 | HL284: 0 | HM284: 0 | HN284: 0 | HO284: 0 | HP284: 0 | HQ284: 0 | HR284: 0 | HS284: 0 | HT284: 0 | HU284: 0 | HV284: 0 | HW284: 0
A285: 3 | B285: 1 | C285: 3 | D285: 2 | E285: 18 | F285: 1 | G285: 9 | H285: 0 | I285: 0 | J285: 0 | K285: 0 | L285: 0 | M285: 0 | N285: 0 | O285: 0 | P285: 0 | Q285: 0 | R285: 0 | S285: 0 | T285: 1 | U285: 15 | V285: 0 | W285: 0 | X285: 0 | Y285: 0 | Z285: 0 | AA285: 0 | AB285: 0 | AC285: 0 | AD285: 0 | AE285: 0 | AF285: 0 | AG285: 0 | AH285: 0 | AI285: 0 | AJ285: 0 | AK285: 0 | AL285: 0 | AM285: 0 | AN285: 0 | AO285: 0 | AP285: 0 | AQ285: 0 | AR285: 0 | AS285: 0 | AT285: 0 | AU285: 0 | AV285: 0 | AW285: 0 | AX285: 0 | AY285: 0 | AZ285: 0 | BA285: 0 | BB285: 0 | BC285: 0 | BD285: 0 | BE285: 0 | BF285: 0 | BG285: 0 | BH285: 1 | BI285: 1 | BJ285: 1 | BK285: 0 | BL285: 0 | BM285: 0 | BN285: 0 | BO285: 0 | BP285: 0 | BQ285: 0 | BR285: 0 | BS285: 0 | BT285: 0 | BU285: 0 | BV285: 0 | BW285: 0 | BX285: 0 | BY285: 0 | BZ285: 1 | CA285: 2 | CB285: 0 | CC285: 0 | CD285: 1 | CE285: 9 | CF285: 10 | CG285: 43 | CH285: 15 | CI285: 67 | CJ285: 11 | CK285: 86 | CL285: 0 | CM285: 0 | CN285: 0 | CO285: 0 | CP285: 1 | CQ285: 2 | CR285: 0 | CS285: 0 | CT285: 0 | CU285: 0 | CV285: 0 | CW285: 0 | CX285: 0 | CY285: 0 | CZ285: 0 | DA285: 0 | DB285: 0 | DC285: 0 | DD285: 0 | DE285: 0 | DF285: 0 | DG285: 0 | DH285: 0 | DI285: 0 | DJ285: 0 | DK285: 0 | DL285: 0 | DM285: 0 | DN285: 0 | DO285: 0 | DP285: 0 | DQ285: 0 | DR285: 0 | DS285: 0 | DT285: 0 | DU285: 0 | DV285: 0 | DW285: 0 | DX285: 6 | DY285: 10 | DZ285: 2 | EA285: 3 | EB285: 0 | EC285: 0 | ED285: 0 | EE285: 0 | EF285: 0 | EG285: 0 | EH285: 0 | EI285: 0 | EJ285: 0 | EK285: 0 | EL285: 0 | EM285: 0 | EN285: 0 | EO285: 0 | EP285: 0 | EQ285: 0 | ER285: 0 | ES285: 0 | ET285: 0 | EU285: 0 | EV285: 0 | EW285: 0 | EX285: 0 | EY285: 0 | EZ285: 0 | FA285: 0 | FB285: 0 | FC285: 0 | FD285: 0 | FE285: 0 | FF285: 0 | FG285: 0 | FH285: 0 | FI285: 0 | FJ285: 0 | FK285: 0 | FL285: 0 | FM285: 0 | FN285: 0 | FO285: 0 | FP285: 0 | FQ285: 0 | FR285: 0 | FS285: 0 | FT285: 0 | FU285: 0 | FV285: 0 | FW285: 0 | FX285: 0 | FY285: 0 | FZ285: 0 | GA285: 0 | GB285: 0 | GC285: 0 | GD285: 0 | GE285: 0 | GF285: 0 | GG285: 0 | GH285: 0 | GI285: 0 | GJ285: 0 | GK285: 0 | GL285: 0 | GM285: 0 | GN285: 0 | GO285: 0 | GP285: 0 | GQ285: 0 | GR285: 0 | GS285: 0 | GT285: 0 | GU285: 0 | GV285: 0 | GW285: 0 | GX285: 0 | GY285: 0 | GZ285: 0 | HA285: 0 | HB285: 0 | HC285: 0 | HD285: 0 | HE285: 0 | HF285: 0 | HG285: 0 | HH285: 0 | HI285: 0 | HJ285: 0 | HK285: 0 | HL285: 0 | HM285: 0 | HN285: 0 | HO285: 0 | HP285: 0 | HQ285: 0 | HR285: 0 | HS285: 0 | HT285: 0 | HU285: 0 | HV285: 0 | HW285: 0
A286: T | B286: 1 | C286: 3 | D286: 2 | E286: 18 | F286: 1 | G286: 9 | H286: 0 | I286: 0 | J286: 0 | K286: 0 | L286: 0 | M286: 0 | N286: 0 | O286: 0 | P286: 0 | Q286: 0 | R286: 0 | S286: 0 | T286: 1 | U286: 15 | V286: 0 | W286: 0 | X286: 0 | Y286: 0 | Z286: 0 | AA286: 0 | AB286: 0 | AC286: 0 | AD286: 0 | AE286: 0 | AF286: 0 | AG286: 0 | AH286: 0 | AI286: 0 | AJ286: 0 | AK286: 0 | AL286: 0 | AM286: 0 | AN286: 0 | AO286: 0 | AP286: 0 | AQ286: 0 | AR286: 0 | AS286: 0 | AT286: 0 | AU286: 0 | AV286: 0 | AW286: 0 | AX286: 0 | AY286: 0 | AZ286: 0 | BA286: 0 | BB286: 0 | BC286: 0 | BD286: 0 | BE286: 0 | BF286: 0 | BG286: 0 | BH286: 1 | BI286: 1 | BJ286: 1 | BK286: 0 | BL286: 0 | BM286: 0 | BN286: 0 | BO286: 0 | BP286: 0 | BQ286: 0 | BR286: 0 | BS286: 0 | BT286: 0 | BU286: 0 | BV286: 0 | BW286: 0 | BX286: 0 | BY286: 0 | BZ286: 1 | CA286: 2 | CB286: 1 | CC286: 4 | CD286: 2 | CE286: 13 | CF286: 10 | CG286: 43 | CH286: 16 | CI286: 71 | CJ286: 12 | CK286: 90 | CL286: 0 | CM286: 0 | CN286: 1 | CO286: 4 | CP286: 2 | CQ286: 6 | CR286: 0 | CS286: 0 | CT286: 1 | CU286: 4 | CV286: 1 | CW286: 4 | CX286: 0 | CY286: 0 | CZ286: 1 | DA286: 4 | DB286: 1 | DC286: 4 | DD286: 0 | DE286: 0 | DF286: 1 | DG286: 4 | DH286: 1 | DI286: 4 | DJ286: 0 | DK286: 0 | DL286: 0 | DM286: 0 | DN286: 0 | DO286: 0 | DP286: 0 | DQ286: 0 | DR286: 1 | DS286: 4 | DT286: 1 | DU286: 4 | DV286: 0 | DW286: 0 | DX286: 7 | DY286: 14 | DZ286: 3 | EA286: 7 | EB286: 0 | EC286: 0 | ED286: 0 | EE286: 0 | EF286: 0 | EG286: 0 | EH286: 0 | EI286: 0 | EJ286: 0 | EK286: 0 | EL286: 0 | EM286: 0 | EN286: 0 | EO286: 0 | EP286: 0 | EQ286: 0 | ER286: 0 | ES286: 0 | ET286: 0 | EU286: 0 | EV286: 0 | EW286: 0 | EX286: 0 | EY286: 0 | EZ286: 0 | FA286: 0 | FB286: 0 | FC286: 0 | FD286: 0 | FE286: 0 | FF286: 0 | FG286: 0 | FH286: 0 | FI286: 0 | FJ286: 0 | FK286: 0 | FL286: 0 | FM286: 0 | FN286: 0 | FO286: 0 | FP286: 0 | FQ286: 0 | FR286: 0 | FS286: 0 | FT286: 0 | FU286: 0 | FV286: 0 | FW286: 0 | FX286: 0 | FY286: 0 | FZ286: 0 | GA286: 0 | GB286: 0 | GC286: 0 | GD286: 0 | GE286: 0 | GF286: 0 | GG286: 0 | GH286: 0 | GI286: 0 | GJ286: 0 | GK286: 0 | GL286: 0 | GM286: 0 | GN286: 0 | GO286: 0 | GP286: 0 | GQ286: 0 | GR286: 0 | GS286: 0 | GT286: 0 | GU286: 0 | GV286: 0 | GW286: 0 | GX286: 0 | GY286: 0 | GZ286: 0 | HA286: 0 | HB286: 0 | HC286: 0 | HD286: 0 | HE286: 0 | HF286: 0 | HG286: 0 | HH286: 0 | HI286: 0 | HJ286: 0 | HK286: 0 | HL286: 0 | HM286: 0 | HN286: 0 | HO286: 0 | HP286: 0 | HQ286: 0 | HR286: 0 | HS286: 0 | HT286: 0 | HU286: 0 | HV286: 0 | HW286: 0
A296: TOTAL
A297: =COUNT(A283:A294) -> 3 | B297: =SUM(B283:B294) -> 2 | C297: =SUM(C283:C294) -> 6 | D297: 4 | E297: 36 | F297: 2 | G297: 18 | H297: 0 | I297: 0 | J297: 0 | K297: 0 | L297: 0 | M297: 0 | N297: 0 | O297: 0 | P297: 0 | Q297: 0 | R297: 0 | S297: 0 | T297: 2 | U297: 30 | V297: 0 | W297: 0 | X297: 0 | Y297: 0 | Z297: 0 | AA297: 0 | AB297: 0 | AC297: 0 | AD297: 0 | AE297: 0 | AF297: 0 | AG297: 0 | AH297: 0 | AI297: 0 | AJ297: 0 | AK297: 0 | AL297: 0 | AM297: 0 | AN297: 0 | AO297: 0 | AP297: 0 | AQ297: 0 | AR297: 0 | AS297: 0 | AT297: 0 | AU297: 0 | AV297: 0 | AW297: 0 | AX297: 0 | AY297: 0 | AZ297: 0 | BA297: 0 | BB297: 0 | BC297: 0 | BD297: 0 | BE297: 0 | BF297: 0 | BG297: 0 | BH297: 2 | BI297: 2 | BJ297: 2 | BK297: 0 | BL297: 0 | BM297: 0 | BN297: 0 | BO297: =SUM(BO283:BO294) -> 0 | BP297: 0 | BQ297: 0 | BR297: 0 | BS297: 0 | BT297: 0 | BU297: 0 | BV297: 0 | BW297: 0 | BX297: 0 | BY297: 0 | BZ297: 2 | CA297: 4 | CB297: 2 | CC297: 8 | CD297: 4 | CE297: 26 | CF297: 20 | CG297: 86 | CH297: 32 | CI297: 142 | CJ297: 24 | CK297: 180 | CL297: 0 | CM297: 0 | CN297: 2 | CO297: 8 | CP297: 4 | CQ297: 12 | CR297: 0 | CS297: 0 | CT297: 2 | CU297: 8 | CV297: 2 | CW297: 8 | CX297: 0 | CY297: 0 | CZ297: 2 | DA297: 8 | DB297: 2 | DC297: 8 | DD297: 0 | DE297: 0 | DF297: 2 | DG297: 8 | DH297: 2 | DI297: 8 | DJ297: 0 | DK297: 0 | DL297: 0 | DM297: 0 | DN297: 0 | DO297: 0 | DP297: 0 | DQ297: 0 | DR297: 2 | DS297: 8 | DT297: 2 | DU297: 8 | DV297: 0 | DW297: 0 | DX297: 14 | DY297: 28 | DZ297: 6 | EA297: =SUM(EA283:EA294) -> 14 | EB297: 0 | EC297: 0 | ED297: 0 | EE297: 0 | EF297: 0 | EG297: 0 | EH297: 0 | EI297: 0 | EJ297: 0 | EK297: 0 | EL297: 0 | EM297: 0 | EN297: 0 | EO297: 0 | EP297: 0 | EQ297: 0 | ER297: 0 | ES297: 0 | ET297: 0 | EU297: 0 | EV297: 0 | EW297: 0 | EX297: 0 | EY297: 0 | EZ297: 0 | FA297: 0 | FB297: 0 | FC297: 0 | FD297: 0 | FE297: 0 | FF297: 0 | FG297: 0 | FH297: 0 | FI297: 0 | FJ297: 0 | FK297: 0 | FL297: 0 | FM297: 0 | FN297: 0 | FO297: 0 | FP297: 0 | FQ297: 0 | FR297: 0 | FS297: 0 | FT297: 0 | FU297: 0 | FV297: 0 | FW297: 0 | FX297: 0 | FY297: 0 | FZ297: 0 | GA297: 0 | GB297: 0 | GC297: 0 | GD297: 0 | GE297: 0 | GF297: 0 | GG297: 0 | GH297: 0 | GI297: 0 | GJ297: 0 | GK297: 0 | GL297: 0 | GM297: =SUM(GM283:GM294) -> 0 | GN297: 0 | GO297: 0 | GP297: 0 | GQ297: 0 | GR297: 0 | GS297: 0 | GT297: 0 | GU297: 0 | GV297: 0 | GW297: 0 | GX297: 0 | GY297: 0 | GZ297: 0 | HA297: 0 | HB297: 0 | HC297: 0 | HD297: 0 | HE297: 0 | HF297: 0 | HG297: 0 | HH297: 0 | HI297: 0 | HJ297: 0 | HK297: 0 | HL297: 0 | HM297: 0 | HN297: 0 | HO297: 0 | HP297: 0 | HQ297: 0 | HR297: 0 | HS297: 0 | HT297: 0 | HU297: 0 | HV297: 0 | HW297: 0
A298: =CONCATENATE(A283,"-",A284,"-",A285,"-",A286,"-",A287,"-",A288,"-",A289,"-",A290,"-",A291,"-",A292,"-",A293,"-",A294) -> 1-2-3-T--------
B299: BAS001 | C299: BAS002 | D299: BAS003 | E299: BAS004 | F299: BAS005 | G299: BAS006 | H299: BAS007 | I299: BAS008 | J299: BAS009 | K299: BAS010 | L299: BAS011 | M299: BAS012 | N299: BAS013 | O299: BAS014 | P299: BAS015 | Q299: BAS016 | R299: BAS017 | S299: BAS018 | T299: BAS019 | U299: BAS020 | V299: BAS021 | W299: BAS022 | X299: BAS023 | Y299: BAS024 | Z299: BAS025 | AA299: BAS026 | AB299: BAS027 | AC299: BAS028 | AD299: BAS029 | AE299: BAS030 | AF299: BAS031 | AG299: BAS032 | AH299: BAS033 | AI299: BAS034 | AJ299: BAS035 | AK299: BAS036 | AL299: BAS037 | AM299: BAS038 | AN299: BAS039 | AO299: BAS040 | AP299: BAS041 | AQ299: BAS042 | AR299: BAS043 | AS299: BAS044 | AT299: BAS045 | AU299: BAS046 | AV299: BAS047 | AW299: BAS048 | AX299: BAS049 | AY299: BAS050 | AZ299: BAS051 | BA299: BAS052 | BB299: BAS053 | BC299: BAS054 | BD299: BAS055 | BE299: BAS056 | BF299: BAS057 | BG299: BAS058 | BH299: BAS059 | BI299: BAS060 | BJ299: BAS061 | BK299: BAS062 | BL299: BAS063 | BM299: BAS064 | BN299: BAS065 | BO299: BAS066 | BP299: BAS067 | BQ299: BAS068 | BR299: BAS069 | BS299: BAS070 | BT299: BAS071 | BU299: BAS072 | BV299: BAS073 | BW299: BAS074 | BX299: BAS075 | BY299: BAS076 | BZ299: BAS077 | CA299: BAS078 | CB299: BAS079 | CC299: BAS080 | CD299: BAS081 | CE299: BAS082 | CF299: BAS083 | CG299: BAS084 | CH299: BAS085 | CI299: BAS086 | CJ299: BAS087 | CK299: BAS088 | CL299: BAS089 | CM299: BAS090 | CN299: BAS091 | CO299: BAS092 | CP299: BAS093 | CQ299: BAS094 | CR299: BAS095 | CS299: BAS096 | CT299: BAS097 | CU299: BAS098 | CV299: BAS099 | CW299: BAS100 | CX299: BAS101 | CY299: BAS102 | CZ299: BAS103 | DA299: BAS104 | DB299: BAS105 | DC299: BAS106 | DD299: BAS107 | DE299: BAS108 | DF299: BAS109 | DG299: BAS110 | DH299: BAS111 | DI299: BAS112 | DJ299: BAS113 | DK299: BAS114 | DL299: BAS115 | DM299: BAS116 | DN299: BAS117 | DO299: BAS118 | DP299: BAS119 | DQ299: BAS120 | DR299: BAS121 | DS299: BAS122 | DT299: BAS123 | DU299: BAS124 | DV299: BAS125 | DW299: BAS126 | DX299: BAS127 | DY299: BAS128 | DZ299: BAS129 | EA299: BAS130 | EB299: BAS131 | EC299: BAS132 | ED299: BAS133 | EE299: BAS134 | EF299: BAS135 | EG299: BAS136 | EH299: BAS137 | EI299: BAS138 | EJ299: BAS139 | EK299: BAS140 | EL299: BAS141 | EM299: BAS142 | EN299: BAS143 | EO299: BAS144 | EP299: BAS145 | EQ299: BAS146 | ER299: BAS147 | ES299: BAS148 | ET299: BAS149 | EU299: BAS150 | EV299: BAS151 | EW299: BAS152 | EX299: BAS153 | EY299: BAS154 | EZ299: BAS155 | FA299: BAS156 | FB299: BAS157 | FC299: BAS158 | FD299: BAS159 | FE299: BAS160 | FF299: BAS161 | FG299: BAS162 | FH299: BAS163 | FI299: BAS164 | FJ299: BAS165 | FK299: BAS166 | FL299: BAS167 | FM299: BAS168 | FN299: BAS169 | FO299: BAS170 | FP299: BAS171 | FQ299: BAS172 | FR299: BAS173 | FS299: BAS174 | FT299: BAS175 | FU299: BAS176 | FV299: BAS177 | FW299: BAS178 | FX299: BAS179 | FY299: BAS180 | FZ299: BAS181 | GA299: BAS182 | GB299: BAS183 | GC299: BAS184 | GD299: BAS185 | GE299: BAS186 | GF299: BAS187 | GG299: BAS188 | GH299: BAS189 | GI299: BAS190 | GJ299: BAS191 | GK299: BAS192 | GL299: BAS193 | GM299: BAS194 | GN299: BAS195 | GO299: BAS196 | GP299: BAS197 | GQ299: BAS198 | GR299: BAS199 | GS299: BAS200 | GT299: BAS201 | GU299: BAS202 | GV299: BAS203 | GW299: BAS204 | GX299: BAS205 | GY299: BAS206 | GZ299: BAS207 | HA299: BAS208 | HB299: BAS209 | HC299: BAS210 | HD299: BAS211 | HE299: BAS212 | HF299: BAS213 | HG299: BAS214 | HH299: BAS215 | HI299: BAS216 | HJ299: BAS217 | HK299: BAS218 | HL299: BAS219 | HM299: BAS220 | HN299: BAS221 | HO299: BAS222 | HP299: BAS223 | HQ299: BAS224 | HR299: BAS225 | HS299: BAS226 | HT299: BAS227 | HU299: BAS228 | HV299: BAS229 | HW299: BAS230
B300: =IF(B299=B282,"SI","NO") -> SI | C300: =IF(C299=C282,"SI","NO") -> SI | D300: SI | E300: SI | F300: SI | G300: SI | H300: SI | I300: SI | J300: SI | K300: SI | L300: SI | M300: SI | N300: SI | O300: SI | P300: SI | Q300: SI | R300: SI | S300: SI | T300: SI | U300: SI | V300: SI | W300: SI | X300: SI | Y300: SI | Z300: SI | AA300: SI | AB300: SI | AC300: SI | AD300: SI | AE300: SI | AF300: SI | AG300: SI | AH300: SI | AI300: SI | AJ300: SI | AK300: SI | AL300: SI | AM300: SI | AN300: SI | AO300: SI | AP300: SI | AQ300: SI | AR300: SI | AS300: SI | AT300: SI | AU300: SI | AV300: SI | AW300: SI | AX300: SI | AY300: SI | AZ300: SI | BA300: SI | BB300: SI | BC300: SI | BD300: SI | BE300: SI | BF300: SI | BG300: SI | BH300: SI | BI300: SI | BJ300: SI | BK300: SI | BL300: SI | BM300: SI | BN300: SI | BO300: =IF(BO299=BO282,"SI","NO") -> SI | BP300: SI | BQ300: SI | BR300: SI | BS300: SI | BT300: SI | BU300: SI | BV300: SI | BW300: SI | BX300: SI | BY300: SI | BZ300: SI | CA300: SI | CB300: SI | CC300: SI | CD300: SI | CE300: SI | CF300: SI | CG300: SI | CH300: SI | CI300: SI | CJ300: SI | CK300: SI | CL300: SI | CM300: SI | CN300: SI | CO300: SI | CP300: SI | CQ300: SI | CR300: SI | CS300: SI | CT300: SI | CU300: SI | CV300: SI | CW300: SI | CX300: SI | CY300: SI | CZ300: SI | DA300: SI | DB300: SI | DC300: SI | DD300: SI | DE300: SI | DF300: SI | DG300: SI | DH300: SI | DI300: SI | DJ300: SI | DK300: SI | DL300: SI | DM300: SI | DN300: SI | DO300: SI | DP300: SI | DQ300: SI | DR300: SI | DS300: SI | DT300: SI | DU300: SI | DV300: SI | DW300: SI | DX300: SI | DY300: SI | DZ300: SI | EA300: =IF(EA299=EA282,"SI","NO") -> SI | EB300: SI | EC300: SI | ED300: SI | EE300: SI | EF300: SI | EG300: SI | EH300: SI | EI300: SI | EJ300: SI | EK300: SI | EL300: SI | EM300: SI | EN300: SI | EO300: SI | EP300: SI | EQ300: SI | ER300: SI | ES300: SI | ET300: SI | EU300: SI | EV300: SI | EW300: SI | EX300: SI | EY300: SI | EZ300: SI | FA300: SI | FB300: SI | FC300: SI | FD300: SI | FE300: SI | FF300: SI | FG300: SI | FH300: SI | FI300: SI | FJ300: SI | FK300: SI | FL300: SI | FM300: SI | FN300: SI | FO300: SI | FP300: SI | FQ300: SI | FR300: SI | FS300: SI | FT300: SI | FU300: SI | FV300: SI | FW300: SI | FX300: SI | FY300: SI | FZ300: SI | GA300: SI | GB300: SI | GC300: SI | GD300: SI | GE300: SI | GF300: SI | GG300: SI | GH300: SI | GI300: SI | GJ300: SI | GK300: SI | GL300: SI | GM300: =IF(GM299=GM282,"SI","NO") -> SI | GN300: SI | GO300: SI | GP300: SI | GQ300: SI | GR300: SI | GS300: SI | GT300: SI | GU300: SI | GV300: SI | GW300: SI | GX300: SI | GY300: SI | GZ300: SI | HA300: SI | HB300: SI | HC300: SI | HD300: SI | HE300: SI | HF300: SI | HG300: SI | HH300: SI | HI300: SI | HJ300: SI | HK300: SI | HL300: SI | HM300: SI | HN300: SI | HO300: SI | HP300: SI | HQ300: SI | HR300: SI | HS300: SI | HT300: SI | HU300: SI | HV300: SI | HW300: SI
A302: PP018 4
A303: ANNO | B303: 2025
A304: cod_red | B304: 03
A305: codmic | B305: (Todas)
A306: cod_prov | B306: (Todas)
A307: coddist | B307: (Todas)
A308: cod_estab | B308: (Todas)
A309: cod_eje | B309: (Todas)
B311: Valores
A312: Etiquetas de fila | B312: BAS001 | C312: BAS002 | D312: BAS003 | E312: BAS004 | F312: BAS005 | G312: BAS006 | H312: BAS007 | I312: BAS008 | J312: BAS009 | K312: BAS010 | L312: BAS011 | M312: BAS012 | N312: BAS013 | O312: BAS014 | P312: BAS015 | Q312: BAS016 | R312: BAS017 | S312: BAS018 | T312: BAS019 | U312: BAS020 | V312: BAS021 | W312: BAS022 | X312: BAS023 | Y312: BAS024 | Z312: BAS025 | AA312: BAS026 | AB312: BAS027 | AC312: BAS028 | AD312: BAS029 | AE312: BAS030 | AF312: BAS031 | AG312: BAS032 | AH312: BAS033 | AI312: BAS034 | AJ312: BAS035 | AK312: BAS036 | AL312: BAS037 | AM312: BAS038 | AN312: BAS039 | AO312: BAS040 | AP312: BAS041 | AQ312: BAS042 | AR312: BAS043 | AS312: BAS044 | AT312: BAS045 | AU312: BAS046 | AV312: BAS047 | AW312: BAS048 | AX312: BAS049 | AY312: BAS050 | AZ312: BAS051 | BA312: BAS052 | BB312: BAS053 | BC312: BAS054 | BD312: BAS055 | BE312: BAS056 | BF312: BAS057 | BG312: BAS058 | BH312: BAS059 | BI312: BAS060 | BJ312: BAS061 | BK312: BAS062 | BL312: BAS063 | BM312: BAS064 | BN312: BAS065 | BO312: BAS066 | BP312: BAS067 | BQ312: BAS068 | BR312: BAS069 | BS312: BAS070 | BT312: BAS071 | BU312: BAS072 | BV312: BAS073 | BW312: BAS074 | BX312: BAS075 | BY312: BAS076 | BZ312: BAS077 | CA312: BAS078 | CB312: BAS079 | CC312: BAS080 | CD312: BAS081 | CE312: BAS082 | CF312: BAS083 | CG312: BAS084 | CH312: BAS085 | CI312: BAS086 | CJ312: BAS087 | CK312: BAS088 | CL312: BAS089 | CM312: BAS090 | CN312: BAS091 | CO312: BAS092 | CP312: BAS093 | CQ312: BAS094 | CR312: BAS095 | CS312: BAS096 | CT312: BAS097 | CU312: BAS098 | CV312: BAS099 | CW312: BAS100 | CX312: BAS101 | CY312: BAS102 | CZ312: BAS103 | DA312: BAS104 | DB312: BAS105 | DC312: BAS106 | DD312: BAS107 | DE312: BAS108 | DF312: BAS109 | DG312: BAS110 | DH312: BAS111 | DI312: BAS112 | DJ312: BAS113 | DK312: BAS114 | DL312: BAS115 | DM312: BAS116 | DN312: BAS117 | DO312: BAS118 | DP312: BAS119 | DQ312: BAS120 | DR312: BAS121 | DS312: BAS122 | DT312: BAS123 | DU312: BAS124 | DV312: BAS125 | DW312: BAS126 | DX312: BAS127 | DY312: BAS128 | DZ312: BAS129 | EA312: BAS130 | EB312: BAS131 | EC312: BAS132 | ED312: BAS133 | EE312: BAS134 | EF312: BAS135 | EG312: BAS136 | EH312: BAS137 | EI312: BAS138 | EJ312: BAS139 | EK312: BAS140 | EL312: BAS141 | EM312: BAS142 | EN312: BAS143 | EO312: BAS144 | EP312: BAS145 | EQ312: BAS146 | ER312: BAS147 | ES312: BAS148 | ET312: BAS149 | EU312: BAS150 | EV312: BAS151 | EW312: BAS152 | EX312: BAS153 | EY312: BAS154 | EZ312: BAS155 | FA312: BAS156 | FB312: BAS157 | FC312: BAS158 | FD312: BAS159 | FE312: BAS160 | FF312: BAS161 | FG312: BAS162 | FH312: BAS163 | FI312: BAS164 | FJ312: BAS165 | FK312: BAS166 | FL312: BAS167 | FM312: BAS168 | FN312: BAS169 | FO312: BAS170 | FP312: BAS171 | FQ312: BAS172 | FR312: BAS173 | FS312: BAS174 | FT312: BAS175 | FU312: BAS176 | FV312: BAS177 | FW312: BAS178 | FX312: BAS179 | FY312: BAS180 | FZ312: BAS181 | GA312: BAS182 | GB312: BAS183 | GC312: BAS184 | GD312: BAS185 | GE312: BAS186 | GF312: BAS187 | GG312: BAS188 | GH312: BAS189 | GI312: BAS190 | GJ312: BAS191 | GK312: BAS192 | GL312: BAS193 | GM312: BAS194 | GN312: BAS195 | GO312: BAS196 | GP312: BAS197 | GQ312: BAS198 | GR312: BAS199 | GS312: BAS200 | GT312: BAS201 | GU312: BAS202 | GV312: BAS203 | GW312: BAS204 | GX312: BAS205 | GY312: BAS206 | GZ312: BAS207 | HA312: BAS208 | HB312: BAS209 | HC312: BAS210 | HD312: BAS211 | HE312: BAS212 | HF312: BAS213 | HG312: BAS214 | HH312: BAS215 | HI312: BAS216 | HJ312: BAS217 | HK312: BAS218 | HL312: BAS219 | HM312: BAS220 | HN312: BAS221 | HO312: BAS222 | HP312: BAS223 | HQ312: BAS224 | HR312: BAS225 | HS312: BAS226 | HT312: BAS227 | HU312: BAS228 | HV312: BAS229 | HW312: BAS230
A313: 1 | B313: 1314 | C313: 946 | D313: 393 | E313: 74 | F313: 97 | G313: 50 | H313: 0 | I313: 1 | J313: 1 | K313: 0 | L313: 0 | M313: 1 | N313: 1 | O313: 1 | P313: 1 | Q313: 0 | R313: 0 | S313: 0 | T313: 0 | U313: 0 | V313: 0 | W313: 0 | X313: 0 | Y313: 0 | Z313: 0 | AA313: 0 | AB313: 0 | AC313: 0 | AD313: 0 | AE313: 0 | AF313: 0 | AG313: 0 | AH313: 0 | AI313: 0 | AJ313: 0 | AK313: 0 | AL313: 0 | AM313: 0 | AN313: 0 | AO313: 0 | AP313: 0 | AQ313: 0 | AR313: 0 | AS313: 0 | AT313: 0 | AU313: 0 | AV313: 0 | AW313: 0 | AX313: 0 | AY313: 0 | AZ313: 0 | BA313: 0 | BB313: 0 | BC313: 0 | BD313: 0 | BE313: 0 | BF313: 0 | BG313: 0 | BH313: 0 | BI313: 0 | BJ313: 0 | BK313: 0 | BL313: 0 | BM313: 0 | BN313: 0 | BO313: 0 | BP313: 0 | BQ313: 0 | BR313: 0 | BS313: 0 | BT313: 0 | BU313: 0 | BV313: 0 | BW313: 2 | BX313: 20 | BY313: 1 | BZ313: 14 | CA313: 0 | CB313: 0 | CC313: 0 | CD313: 0 | CE313: 0 | CF313: 0 | CG313: 0 | CH313: 0 | CI313: 259 | CJ313: 0 | CK313: 0 | CL313: 0 | CM313: 0 | CN313: 0 | CO313: 0 | CP313: 0 | CQ313: 0 | CR313: 0 | CS313: 0 | CT313: 0 | CU313: 0 | CV313: 0 | CW313: 0 | CX313: 0 | CY313: 0 | CZ313: 0 | DA313: 0 | DB313: 0 | DC313: 0 | DD313: 0 | DE313: 0 | DF313: 0 | DG313: 0 | DH313: 0 | DI313: 0 | DJ313: 0 | DK313: 0 | DL313: 0 | DM313: 0 | DN313: 0 | DO313: 0 | DP313: 0 | DQ313: 0 | DR313: 0 | DS313: 0 | DT313: 0 | DU313: 0 | DV313: 0 | DW313: 0 | DX313: 0 | DY313: 0 | DZ313: 0 | EA313: 0 | EB313: 0 | EC313: 0 | ED313: 0 | EE313: 0 | EF313: 0 | EG313: 0 | EH313: 0 | EI313: 0 | EJ313: 0 | EK313: 0 | EL313: 0 | EM313: 0 | EN313: 0 | EO313: 0 | EP313: 0 | EQ313: 0 | ER313: 0 | ES313: 0 | ET313: 0 | EU313: 0 | EV313: 0 | EW313: 0 | EX313: 0 | EY313: 0 | EZ313: 0 | FA313: 0 | FB313: 0 | FC313: 0 | FD313: 0 | FE313: 0 | FF313: 0 | FG313: 0 | FH313: 0 | FI313: 0 | FJ313: 0 | FK313: 0 | FL313: 0 | FM313: 0 | FN313: 0 | FO313: 0 | FP313: 0 | FQ313: 0 | FR313: 0 | FS313: 0 | FT313: 0 | FU313: 0 | FV313: 0 | FW313: 0 | FX313: 0 | FY313: 0 | FZ313: 0 | GA313: 0 | GB313: 0 | GC313: 0 | GD313: 0 | GE313: 0 | GF313: 0 | GG313: 0 | GH313: 0 | GI313: 0 | GJ313: 0 | GK313: 0 | GL313: 0 | GM313: 0 | GN313: 0 | GO313: 0 | GP313: 0 | GQ313: 0 | GR313: 0 | GS313: 0 | GT313: 0 | GU313: 0 | GV313: 0 | GW313: 0 | GX313: 0 | GY313: 0 | GZ313: 0 | HA313: 0 | HB313: 0 | HC313: 0 | HD313: 0 | HE313: 0 | HF313: 0 | HG313: 0 | HH313: 0 | HI313: 0 | HJ313: 0 | HK313: 0 | HL313: 0 | HM313: 0 | HN313: 0 | HO313: 0 | HP313: 0 | HQ313: 0 | HR313: 0 | HS313: 0 | HT313: 0 | HU313: 0 | HV313: 0 | HW313: 0
A314: 2 | B314: 1090 | C314: 657 | D314: 465 | E314: 166 | F314: 89 | G314: 38 | H314: 0 | I314: 0 | J314: 1 | K314: 0 | L314: 0 | M314: 0 | N314: 1 | O314: 0 | P314: 0 | Q314: 0 | R314: 0 | S314: 0 | T314: 0 | U314: 0 | V314: 0 | W314: 0 | X314: 0 | Y314: 0 | Z314: 0 | AA314: 0 | AB314: 0 | AC314: 0 | AD314: 0 | AE314: 2 | AF314: 8 | AG314: 0 | AH314: 0 | AI314: 0 | AJ314: 0 | AK314: 0 | AL314: 0 | AM314: 0 | AN314: 0 | AO314: 0 | AP314: 0 | AQ314: 0 | AR314: 0 | AS314: 0 | AT314: 0 | AU314: 0 | AV314: 0 | AW314: 0 | AX314: 0 | AY314: 0 | AZ314: 0 | BA314: 0 | BB314: 0 | BC314: 0 | BD314: 0 | BE314: 0 | BF314: 0 | BG314: 0 | BH314: 0 | BI314: 0 | BJ314: 0 | BK314: 0 | BL314: 0 | BM314: 0 | BN314: 0 | BO314: 0 | BP314: 0 | BQ314: 0 | BR314: 0 | BS314: 0 | BT314: 0 | BU314: 0 | BV314: 0 | BW314: 8 | BX314: 50 | BY314: 1 | BZ314: 25 | CA314: 0 | CB314: 0 | CC314: 1 | CD314: 1 | CE314: 0 | CF314: 0 | CG314: 0 | CH314: 0 | CI314: 137 | CJ314: 0 | CK314: 0 | CL314: 0 | CM314: 0 | CN314: 0 | CO314: 0 | CP314: 0 | CQ314: 0 | CR314: 0 | CS314: 0 | CT314: 0 | CU314: 0 | CV314: 0 | CW314: 0 | CX314: 0 | CY314: 0 | CZ314: 0 | DA314: 0 | DB314: 0 | DC314: 0 | DD314: 0 | DE314: 0 | DF314: 0 | DG314: 0 | DH314: 0 | DI314: 0 | DJ314: 0 | DK314: 0 | DL314: 0 | DM314: 0 | DN314: 0 | DO314: 0 | DP314: 0 | DQ314: 0 | DR314: 0 | DS314: 0 | DT314: 0 | DU314: 0 | DV314: 0 | DW314: 0 | DX314: 0 | DY314: 0 | DZ314: 0 | EA314: 0 | EB314: 0 | EC314: 0 | ED314: 0 | EE314: 0 | EF314: 0 | EG314: 0 | EH314: 0 | EI314: 0 | EJ314: 0 | EK314: 0 | EL314: 0 | EM314: 0 | EN314: 0 | EO314: 0 | EP314: 0 | EQ314: 0 | ER314: 0 | ES314: 0 | ET314: 0 | EU314: 0 | EV314: 0 | EW314: 0 | EX314: 0 | EY314: 0 | EZ314: 0 | FA314: 0 | FB314: 0 | FC314: 0 | FD314: 0 | FE314: 0 | FF314: 0 | FG314: 0 | FH314: 0 | FI314: 0 | FJ314: 0 | FK314: 0 | FL314: 0 | FM314: 0 | FN314: 0 | FO314: 0 | FP314: 0 | FQ314: 0 | FR314: 0 | FS314: 0 | FT314: 0 | FU314: 0 | FV314: 0 | FW314: 0 | FX314: 0 | FY314: 0 | FZ314: 0 | GA314: 0 | GB314: 0 | GC314: 0 | GD314: 0 | GE314: 0 | GF314: 0 | GG314: 0 | GH314: 0 | GI314: 0 | GJ314: 0 | GK314: 0 | GL314: 0 | GM314: 0 | GN314: 0 | GO314: 0 | GP314: 0 | GQ314: 0 | GR314: 0 | GS314: 0 | GT314: 0 | GU314: 0 | GV314: 0 | GW314: 0 | GX314: 0 | GY314: 0 | GZ314: 0 | HA314: 0 | HB314: 0 | HC314: 0 | HD314: 0 | HE314: 0 | HF314: 0 | HG314: 0 | HH314: 0 | HI314: 0 | HJ314: 0 | HK314: 0 | HL314: 0 | HM314: 0 | HN314: 0 | HO314: 0 | HP314: 0 | HQ314: 0 | HR314: 0 | HS314: 0 | HT314: 0 | HU314: 0 | HV314: 0 | HW314: 0
A315: 3 | B315: 1089 | C315: 881 | D315: 651 | E315: 337 | F315: 148 | G315: 103 | H315: 0 | I315: 1 | J315: 2 | K315: 1 | L315: 1 | M315: 2 | N315: 3 | O315: 1 | P315: 12 | Q315: 0 | R315: 0 | S315: 0 | T315: 0 | U315: 0 | V315: 0 | W315: 0 | X315: 0 | Y315: 0 | Z315: 0 | AA315: 0 | AB315: 0 | AC315: 0 | AD315: 0 | AE315: 24 | AF315: 40 | AG315: 6 | AH315: 6 | AI315: 0 | AJ315: 0 | AK315: 0 | AL315: 0 | AM315: 2 | AN315: 18 | AO315: 3 | AP315: 0 | AQ315: 0 | AR315: 0 | AS315: 0 | AT315: 0 | AU315: 0 | AV315: 0 | AW315: 0 | AX315: 0 | AY315: 0 | AZ315: 0 | BA315: 0 | BB315: 0 | BC315: 0 | BD315: 0 | BE315: 0 | BF315: 0 | BG315: 0 | BH315: 0 | BI315: 0 | BJ315: 11 | BK315: 16 | BL315: 0 | BM315: 0 | BN315: 0 | BO315: 0 | BP315: 0 | BQ315: 0 | BR315: 0 | BS315: 0 | BT315: 0 | BU315: 0 | BV315: 0 | BW315: 5 | BX315: 19 | BY315: 0 | BZ315: 0 | CA315: 0 | CB315: 0 | CC315: 0 | CD315: 0 | CE315: 0 | CF315: 0 | CG315: 0 | CH315: 0 | CI315: 199 | CJ315: 0 | CK315: 3 | CL315: 0 | CM315: 0 | CN315: 0 | CO315: 0 | CP315: 0 | CQ315: 0 | CR315: 0 | CS315: 0 | CT315: 0 | CU315: 0 | CV315: 0 | CW315: 0 | CX315: 0 | CY315: 0 | CZ315: 0 | DA315: 0 | DB315: 0 | DC315: 0 | DD315: 0 | DE315: 0 | DF315: 0 | DG315: 0 | DH315: 0 | DI315: 0 | DJ315: 0 | DK315: 0 | DL315: 0 | DM315: 0 | DN315: 0 | DO315: 0 | DP315: 0 | DQ315: 0 | DR315: 0 | DS315: 0 | DT315: 0 | DU315: 0 | DV315: 0 | DW315: 0 | DX315: 0 | DY315: 0 | DZ315: 0 | EA315: 0 | EB315: 0 | EC315: 0 | ED315: 0 | EE315: 0 | EF315: 0 | EG315: 0 | EH315: 0 | EI315: 0 | EJ315: 0 | EK315: 0 | EL315: 0 | EM315: 0 | EN315: 0 | EO315: 0 | EP315: 0 | EQ315: 0 | ER315: 0 | ES315: 0 | ET315: 0 | EU315: 0 | EV315: 0 | EW315: 0 | EX315: 0 | EY315: 0 | EZ315: 0 | FA315: 0 | FB315: 0 | FC315: 0 | FD315: 0 | FE315: 0 | FF315: 0 | FG315: 0 | FH315: 0 | FI315: 0 | FJ315: 0 | FK315: 0 | FL315: 0 | FM315: 0 | FN315: 0 | FO315: 0 | FP315: 0 | FQ315: 0 | FR315: 0 | FS315: 0 | FT315: 0 | FU315: 0 | FV315: 0 | FW315: 0 | FX315: 0 | FY315: 0 | FZ315: 0 | GA315: 0 | GB315: 0 | GC315: 0 | GD315: 0 | GE315: 0 | GF315: 0 | GG315: 0 | GH315: 0 | GI315: 0 | GJ315: 0 | GK315: 0 | GL315: 0 | GM315: 0 | GN315: 0 | GO315: 0 | GP315: 0 | GQ315: 0 | GR315: 0 | GS315: 0 | GT315: 0 | GU315: 0 | GV315: 0 | GW315: 0 | GX315: 0 | GY315: 0 | GZ315: 0 | HA315: 0 | HB315: 0 | HC315: 0 | HD315: 0 | HE315: 0 | HF315: 0 | HG315: 0 | HH315: 0 | HI315: 0 | HJ315: 0 | HK315: 0 | HL315: 0 | HM315: 0 | HN315: 0 | HO315: 0 | HP315: 0 | HQ315: 0 | HR315: 0 | HS315: 0 | HT315: 0 | HU315: 0 | HV315: 0 | HW315: 0
A316: T | B316: 3493 | C316: 2484 | D316: 1509 | E316: 577 | F316: 334 | G316: 191 | H316: 0 | I316: 2 | J316: 4 | K316: 1 | L316: 1 | M316: 3 | N316: 5 | O316: 2 | P316: 13 | Q316: 0 | R316: 0 | S316: 0 | T316: 0 | U316: 0 | V316: 0 | W316: 0 | X316: 0 | Y316: 0 | Z316: 0 | AA316: 0 | AB316: 0 | AC316: 0 | AD316: 0 | AE316: 26 | AF316: 48 | AG316: 6 | AH316: 6 | AI316: 0 | AJ316: 0 | AK316: 0 | AL316: 0 | AM316: 2 | AN316: 18 | AO316: 3 | AP316: 0 | AQ316: 0 | AR316: 0 | AS316: 0 | AT316: 0 | AU316: 0 | AV316: 0 | AW316: 0 | AX316: 0 | AY316: 0 | AZ316: 0 | BA316: 0 | BB316: 0 | BC316: 0 | BD316: 0 | BE316: 0 | BF316: 0 | BG316: 0 | BH316: 0 | BI316: 0 | BJ316: 11 | BK316: 16 | BL316: 0 | BM316: 0 | BN316: 0 | BO316: 0 | BP316: 0 | BQ316: 0 | BR316: 0 | BS316: 0 | BT316: 0 | BU316: 0 | BV316: 0 | BW316: 15 | BX316: 89 | BY316: 2 | BZ316: 39 | CA316: 0 | CB316: 0 | CC316: 1 | CD316: 1 | CE316: 0 | CF316: 0 | CG316: 0 | CH316: 0 | CI316: 595 | CJ316: 0 | CK316: 3 | CL316: 0 | CM316: 0 | CN316: 0 | CO316: 0 | CP316: 0 | CQ316: 0 | CR316: 0 | CS316: 0 | CT316: 0 | CU316: 0 | CV316: 0 | CW316: 0 | CX316: 0 | CY316: 0 | CZ316: 0 | DA316: 0 | DB316: 0 | DC316: 0 | DD316: 0 | DE316: 0 | DF316: 0 | DG316: 0 | DH316: 0 | DI316: 0 | DJ316: 0 | DK316: 0 | DL316: 0 | DM316: 0 | DN316: 0 | DO316: 0 | DP316: 0 | DQ316: 0 | DR316: 0 | DS316: 0 | DT316: 0 | DU316: 0 | DV316: 0 | DW316: 0 | DX316: 0 | DY316: 0 | DZ316: 0 | EA316: 0 | EB316: 0 | EC316: 0 | ED316: 0 | EE316: 0 | EF316: 0 | EG316: 0 | EH316: 0 | EI316: 0 | EJ316: 0 | EK316: 0 | EL316: 0 | EM316: 0 | EN316: 0 | EO316: 0 | EP316: 0 | EQ316: 0 | ER316: 0 | ES316: 0 | ET316: 0 | EU316: 0 | EV316: 0 | EW316: 0 | EX316: 0 | EY316: 0 | EZ316: 0 | FA316: 0 | FB316: 0 | FC316: 0 | FD316: 0 | FE316: 0 | FF316: 0 | FG316: 0 | FH316: 0 | FI316: 0 | FJ316: 0 | FK316: 0 | FL316: 0 | FM316: 0 | FN316: 0 | FO316: 0 | FP316: 0 | FQ316: 0 | FR316: 0 | FS316: 0 | FT316: 0 | FU316: 0 | FV316: 0 | FW316: 0 | FX316: 0 | FY316: 0 | FZ316: 0 | GA316: 0 | GB316: 0 | GC316: 0 | GD316: 0 | GE316: 0 | GF316: 0 | GG316: 0 | GH316: 0 | GI316: 0 | GJ316: 0 | GK316: 0 | GL316: 0 | GM316: 0 | GN316: 0 | GO316: 0 | GP316: 0 | GQ316: 0 | GR316: 0 | GS316: 0 | GT316: 0 | GU316: 0 | GV316: 0 | GW316: 0 | GX316: 0 | GY316: 0 | GZ316: 0 | HA316: 0 | HB316: 0 | HC316: 0 | HD316: 0 | HE316: 0 | HF316: 0 | HG316: 0 | HH316: 0 | HI316: 0 | HJ316: 0 | HK316: 0 | HL316: 0 | HM316: 0 | HN316: 0 | HO316: 0 | HP316: 0 | HQ316: 0 | HR316: 0 | HS316: 0 | HT316: 0 | HU316: 0 | HV316: 0 | HW316: 0
A326: TOTAL
A327: =COUNT(A313:A324) -> 3 | B327: =SUM(B313:B324) -> 6986 | C327: =SUM(C313:C324) -> 4968 | D327: 3018 | E327: 1154 | F327: 668 | G327: 382 | H327: 0 | I327: 4 | J327: 8 | K327: 2 | L327: 2 | M327: 6 | N327: 10 | O327: 4 | P327: 26 | Q327: 0 | R327: 0 | S327: 0 | T327: 0 | U327: 0 | V327: 0 | W327: 0 | X327: 0 | Y327: 0 | Z327: 0 | AA327: 0 | AB327: 0 | AC327: 0 | AD327: 0 | AE327: 52 | AF327: 96 | AG327: 12 | AH327: 12 | AI327: 0 | AJ327: 0 | AK327: 0 | AL327: 0 | AM327: 4 | AN327: 36 | AO327: 6 | AP327: 0 | AQ327: 0 | AR327: 0 | AS327: 0 | AT327: 0 | AU327: 0 | AV327: 0 | AW327: 0 | AX327: 0 | AY327: 0 | AZ327: 0 | BA327: 0 | BB327: 0 | BC327: 0 | BD327: 0 | BE327: 0 | BF327: 0 | BG327: 0 | BH327: 0 | BI327: 0 | BJ327: 22 | BK327: 32 | BL327: 0 | BM327: 0 | BN327: 0 | BO327: =SUM(BO313:BO324) -> 0 | BP327: 0 | BQ327: 0 | BR327: 0 | BS327: 0 | BT327: 0 | BU327: 0 | BV327: 0 | BW327: 30 | BX327: 178 | BY327: 4 | BZ327: 78 | CA327: 0 | CB327: 0 | CC327: 2 | CD327: 2 | CE327: 0 | CF327: 0 | CG327: 0 | CH327: 0 | CI327: 1190 | CJ327: 0 | CK327: 6 | CL327: 0 | CM327: 0 | CN327: 0 | CO327: 0 | CP327: 0 | CQ327: 0 | CR327: 0 | CS327: 0 | CT327: 0 | CU327: 0 | CV327: 0 | CW327: 0 | CX327: 0 | CY327: 0 | CZ327: 0 | DA327: 0 | DB327: 0 | DC327: 0 | DD327: 0 | DE327: 0 | DF327: 0 | DG327: 0 | DH327: 0 | DI327: 0 | DJ327: 0 | DK327: 0 | DL327: 0 | DM327: 0 | DN327: 0 | DO327: 0 | DP327: 0 | DQ327: 0 | DR327: 0 | DS327: 0 | DT327: 0 | DU327: 0 | DV327: 0 | DW327: 0 | DX327: 0 | DY327: 0 | DZ327: 0 | EA327: =SUM(EA313:EA324) -> 0 | EB327: 0 | EC327: 0 | ED327: 0 | EE327: 0 | EF327: 0 | EG327: 0 | EH327: 0 | EI327: 0 | EJ327: 0 | EK327: 0 | EL327: 0 | EM327: 0 | EN327: 0 | EO327: 0 | EP327: 0 | EQ327: 0 | ER327: 0 | ES327: 0 | ET327: 0 | EU327: 0 | EV327: 0 | EW327: 0 | EX327: 0 | EY327: 0 | EZ327: 0 | FA327: 0 | FB327: 0 | FC327: 0 | FD327: 0 | FE327: 0 | FF327: 0 | FG327: 0 | FH327: 0 | FI327: 0 | FJ327: 0 | FK327: 0 | FL327: 0 | FM327: 0 | FN327: 0 | FO327: 0 | FP327: 0 | FQ327: 0 | FR327: 0 | FS327: 0 | FT327: 0 | FU327: 0 | FV327: 0 | FW327: 0 | FX327: 0 | FY327: 0 | FZ327: 0 | GA327: 0 | GB327: 0 | GC327: 0 | GD327: 0 | GE327: 0 | GF327: 0 | GG327: 0 | GH327: 0 | GI327: 0 | GJ327: 0 | GK327: 0 | GL327: 0 | GM327: =SUM(GM313:GM324) -> 0 | GN327: 0 | GO327: 0 | GP327: 0 | GQ327: 0 | GR327: 0 | GS327: 0 | GT327: 0 | GU327: 0 | GV327: 0 | GW327: 0 | GX327: 0 | GY327: 0 | GZ327: 0 | HA327: 0 | HB327: 0 | HC327: 0 | HD327: 0 | HE327: 0 | HF327: 0 | HG327: 0 | HH327: 0 | HI327: 0 | HJ327: 0 | HK327: 0 | HL327: 0 | HM327: 0 | HN327: 0 | HO327: 0 | HP327: 0 | HQ327: 0 | HR327: 0 | HS327: 0 | HT327: 0 | HU327: 0 | HV327: 0 | HW327: 0
A328: =CONCATENATE(A313,"-",A314,"-",A315,"-",A316,"-",A317,"-",A318,"-",A319,"-",A320,"-",A321,"-",A322,"-",A323,"-",A324) -> 1-2-3-T--------
B329: BAS001 | C329: BAS002 | D329: BAS003 | E329: BAS004 | F329: BAS005 | G329: BAS006 | H329: BAS007 | I329: BAS008 | J329: BAS009 | K329: BAS010 | L329: BAS011 | M329: BAS012 | N329: BAS013 | O329: BAS014 | P329: BAS015 | Q329: BAS016 | R329: BAS017 | S329: BAS018 | T329: BAS019 | U329: BAS020 | V329: BAS021 | W329: BAS022 | X329: BAS023 | Y329: BAS024 | Z329: BAS025 | AA329: BAS026 | AB329: BAS027 | AC329: BAS028 | AD329: BAS029 | AE329: BAS030 | AF329: BAS031 | AG329: BAS032 | AH329: BAS033 | AI329: BAS034 | AJ329: BAS035 | AK329: BAS036 | AL329: BAS037 | AM329: BAS038 | AN329: BAS039 | AO329: BAS040 | AP329: BAS041 | AQ329: BAS042 | AR329: BAS043 | AS329: BAS044 | AT329: BAS045 | AU329: BAS046 | AV329: BAS047 | AW329: BAS048 | AX329: BAS049 | AY329: BAS050 | AZ329: BAS051 | BA329: BAS052 | BB329: BAS053 | BC329: BAS054 | BD329: BAS055 | BE329: BAS056 | BF329: BAS057 | BG329: BAS058 | BH329: BAS059 | BI329: BAS060 | BJ329: BAS061 | BK329: BAS062 | BL329: BAS063 | BM329: BAS064 | BN329: BAS065 | BO329: BAS066 | BP329: BAS067 | BQ329: BAS068 | BR329: BAS069 | BS329: BAS070 | BT329: BAS071 | BU329: BAS072 | BV329: BAS073 | BW329: BAS074 | BX329: BAS075 | BY329: BAS076 | BZ329: BAS077 | CA329: BAS078 | CB329: BAS079 | CC329: BAS080 | CD329: BAS081 | CE329: BAS082 | CF329: BAS083 | CG329: BAS084 | CH329: BAS085 | CI329: BAS086 | CJ329: BAS087 | CK329: BAS088 | CL329: BAS089 | CM329: BAS090 | CN329: BAS091 | CO329: BAS092 | CP329: BAS093 | CQ329: BAS094 | CR329: BAS095 | CS329: BAS096 | CT329: BAS097 | CU329: BAS098 | CV329: BAS099 | CW329: BAS100 | CX329: BAS101 | CY329: BAS102 | CZ329: BAS103 | DA329: BAS104 | DB329: BAS105 | DC329: BAS106 | DD329: BAS107 | DE329: BAS108 | DF329: BAS109 | DG329: BAS110 | DH329: BAS111 | DI329: BAS112 | DJ329: BAS113 | DK329: BAS114 | DL329: BAS115 | DM329: BAS116 | DN329: BAS117 | DO329: BAS118 | DP329: BAS119 | DQ329: BAS120 | DR329: BAS121 | DS329: BAS122 | DT329: BAS123 | DU329: BAS124 | DV329: BAS125 | DW329: BAS126 | DX329: BAS127 | DY329: BAS128 | DZ329: BAS129 | EA329: BAS130 | EB329: BAS131 | EC329: BAS132 | ED329: BAS133 | EE329: BAS134 | EF329: BAS135 | EG329: BAS136 | EH329: BAS137 | EI329: BAS138 | EJ329: BAS139 | EK329: BAS140 | EL329: BAS141 | EM329: BAS142 | EN329: BAS143 | EO329: BAS144 | EP329: BAS145 | EQ329: BAS146 | ER329: BAS147 | ES329: BAS148 | ET329: BAS149 | EU329: BAS150 | EV329: BAS151 | EW329: BAS152 | EX329: BAS153 | EY329: BAS154 | EZ329: BAS155 | FA329: BAS156 | FB329: BAS157 | FC329: BAS158 | FD329: BAS159 | FE329: BAS160 | FF329: BAS161 | FG329: BAS162 | FH329: BAS163 | FI329: BAS164 | FJ329: BAS165 | FK329: BAS166 | FL329: BAS167 | FM329: BAS168 | FN329: BAS169 | FO329: BAS170 | FP329: BAS171 | FQ329: BAS172 | FR329: BAS173 | FS329: BAS174 | FT329: BAS175 | FU329: BAS176 | FV329: BAS177 | FW329: BAS178 | FX329: BAS179 | FY329: BAS180 | FZ329: BAS181 | GA329: BAS182 | GB329: BAS183 | GC329: BAS184 | GD329: BAS185 | GE329: BAS186 | GF329: BAS187 | GG329: BAS188 | GH329: BAS189 | GI329: BAS190 | GJ329: BAS191 | GK329: BAS192 | GL329: BAS193 | GM329: BAS194 | GN329: BAS195 | GO329: BAS196 | GP329: BAS197 | GQ329: BAS198 | GR329: BAS199 | GS329: BAS200 | GT329: BAS201 | GU329: BAS202 | GV329: BAS203 | GW329: BAS204 | GX329: BAS205 | GY329: BAS206 | GZ329: BAS207 | HA329: BAS208 | HB329: BAS209 | HC329: BAS210 | HD329: BAS211 | HE329: BAS212 | HF329: BAS213 | HG329: BAS214 | HH329: BAS215 | HI329: BAS216 | HJ329: BAS217 | HK329: BAS218 | HL329: BAS219 | HM329: BAS220 | HN329: BAS221 | HO329: BAS222 | HP329: BAS223 | HQ329: BAS224 | HR329: BAS225 | HS329: BAS226 | HT329: BAS227 | HU329: BAS228 | HV329: BAS229 | HW329: BAS230
B330: =IF(B329=B312,"SI","NO") -> SI | C330: =IF(C329=C312,"SI","NO") -> SI | D330: SI | E330: SI | F330: SI | G330: SI | H330: SI | I330: SI | J330: SI | K330: SI | L330: SI | M330: SI | N330: SI | O330: SI | P330: SI | Q330: SI | R330: SI | S330: SI | T330: SI | U330: SI | V330: SI | W330: SI | X330: SI | Y330: SI | Z330: SI | AA330: SI | AB330: SI | AC330: SI | AD330: SI | AE330: SI | AF330: SI | AG330: SI | AH330: SI | AI330: SI | AJ330: SI | AK330: SI | AL330: SI | AM330: SI | AN330: SI | AO330: SI | AP330: SI | AQ330: SI | AR330: SI | AS330: SI | AT330: SI | AU330: SI | AV330: SI | AW330: SI | AX330: SI | AY330: SI | AZ330: SI | BA330: SI | BB330: SI | BC330: SI | BD330: SI | BE330: SI | BF330: SI | BG330: SI | BH330: SI | BI330: SI | BJ330: SI | BK330: SI | BL330: SI | BM330: SI | BN330: SI | BO330: =IF(BO329=BO312,"SI","NO") -> SI | BP330: SI | BQ330: SI | BR330: SI | BS330: SI | BT330: SI | BU330: SI | BV330: SI | BW330: SI | BX330: SI | BY330: SI | BZ330: SI | CA330: SI | CB330: SI | CC330: SI | CD330: SI | CE330: SI | CF330: SI | CG330: SI | CH330: SI | CI330: SI | CJ330: SI | CK330: SI | CL330: SI | CM330: SI | CN330: SI | CO330: SI | CP330: SI | CQ330: SI | CR330: SI | CS330: SI | CT330: SI | CU330: SI | CV330: SI | CW330: SI | CX330: SI | CY330: SI | CZ330: SI | DA330: SI | DB330: SI | DC330: SI | DD330: SI | DE330: SI | DF330: SI | DG330: SI | DH330: SI | DI330: SI | DJ330: SI | DK330: SI | DL330: SI | DM330: SI | DN330: SI | DO330: SI | DP330: SI | DQ330: SI | DR330: SI | DS330: SI | DT330: SI | DU330: SI | DV330: SI | DW330: SI | DX330: SI | DY330: SI | DZ330: SI | EA330: =IF(EA329=EA312,"SI","NO") -> SI | EB330: SI | EC330: SI | ED330: SI | EE330: SI | EF330: SI | EG330: SI | EH330: SI | EI330: SI | EJ330: SI | EK330: SI | EL330: SI | EM330: SI | EN330: SI | EO330: SI | EP330: SI | EQ330: SI | ER330: SI | ES330: SI | ET330: SI | EU330: SI | EV330: SI | EW330: SI | EX330: SI | EY330: SI | EZ330: SI | FA330: SI | FB330: SI | FC330: SI | FD330: SI | FE330: SI | FF330: SI | FG330: SI | FH330: SI | FI330: SI | FJ330: SI | FK330: SI | FL330: SI | FM330: SI | FN330: SI | FO330: SI | FP330: SI | FQ330: SI | FR330: SI | FS330: SI | FT330: SI | FU330: SI | FV330: SI | FW330: SI | FX330: SI | FY330: SI | FZ330: SI | GA330: SI | GB330: SI | GC330: SI | GD330: SI | GE330: SI | GF330: SI | GG330: SI | GH330: SI | GI330: SI | GJ330: SI | GK330: SI | GL330: SI | GM330: =IF(GM329=GM312,"SI","NO") -> SI | GN330: SI | GO330: SI | GP330: SI | GQ330: SI | GR330: SI | GS330: SI | GT330: SI | GU330: SI | GV330: SI | GW330: SI | GX330: SI | GY330: SI | GZ330: SI | HA330: SI | HB330: SI | HC330: SI | HD330: SI | HE330: SI | HF330: SI | HG330: SI | HH330: SI | HI330: SI | HJ330: SI | HK330: SI | HL330: SI | HM330: SI | HN330: SI | HO330: SI | HP330: SI | HQ330: SI | HR330: SI | HS330: SI | HT330: SI | HU330: SI | HV330: SI | HW330: SI
A332: PP024-5
A333: ANNO | B333: 2025
A334: cod_red | B334: 03
A335: codmic | B335: (Todas)
A336: cod_prov | B336: (Todas)
A337: coddist | B337: (Todas)
A338: cod_estab | B338: (Todas)
A339: cod_eje | B339: (Todas)
B341: Valores
A342: Etiquetas de fila | B342: BAS001 | C342: BAS002 | D342: BAS003 | E342: BAS004 | F342: BAS005 | G342: BAS006 | H342: BAS007 | I342: BAS008 | J342: BAS009 | K342: BAS010 | L342: BAS011 | M342: BAS012 | N342: BAS013 | O342: BAS014 | P342: BAS015 | Q342: BAS016 | R342: BAS017 | S342: BAS018 | T342: BAS019 | U342: BAS020 | V342: BAS021 | W342: BAS022 | X342: BAS023 | Y342: BAS024 | Z342: BAS025 | AA342: BAS026 | AB342: BAS027 | AC342: BAS028 | AD342: BAS029 | AE342: BAS030 | AF342: BAS031 | AG342: BAS032 | AH342: BAS033 | AI342: BAS034 | AJ342: BAS035 | AK342: BAS036 | AL342: BAS037 | AM342: BAS038 | AN342: BAS039 | AO342: BAS040 | AP342: BAS041 | AQ342: BAS042 | AR342: BAS043 | AS342: BAS044 | AT342: BAS045 | AU342: BAS046 | AV342: BAS047 | AW342: BAS048 | AX342: BAS049 | AY342: BAS050 | AZ342: BAS051 | BA342: BAS052 | BB342: BAS053 | BC342: BAS054 | BD342: BAS055 | BE342: BAS056 | BF342: BAS057 | BG342: BAS058 | BH342: BAS059 | BI342: BAS060 | BJ342: BAS061 | BK342: BAS062 | BL342: BAS063 | BM342: BAS064 | BN342: BAS065 | BO342: BAS066 | BP342: BAS067 | BQ342: BAS068 | BR342: BAS069 | BS342: BAS070 | BT342: BAS071 | BU342: BAS072 | BV342: BAS073 | BW342: BAS074 | BX342: BAS075 | BY342: BAS076 | BZ342: BAS077 | CA342: BAS078 | CB342: BAS079 | CC342: BAS080 | CD342: BAS081 | CE342: BAS082 | CF342: BAS083 | CG342: BAS084 | CH342: BAS085 | CI342: BAS086 | CJ342: BAS087 | CK342: BAS088 | CL342: BAS089 | CM342: BAS090 | CN342: BAS091 | CO342: BAS092 | CP342: BAS093 | CQ342: BAS094 | CR342: BAS095 | CS342: BAS096 | CT342: BAS097 | CU342: BAS098 | CV342: BAS099 | CW342: BAS100 | CX342: BAS101 | CY342: BAS102 | CZ342: BAS103 | DA342: BAS104 | DB342: BAS105 | DC342: BAS106 | DD342: BAS107 | DE342: BAS108 | DF342: BAS109 | DG342: BAS110 | DH342: BAS111 | DI342: BAS112 | DJ342: BAS113 | DK342: BAS114 | DL342: BAS115 | DM342: BAS116 | DN342: BAS117 | DO342: BAS118 | DP342: BAS119 | DQ342: BAS120 | DR342: BAS121 | DS342: BAS122 | DT342: BAS123 | DU342: BAS124 | DV342: BAS125 | DW342: BAS126 | DX342: BAS127 | DY342: BAS128 | DZ342: BAS129 | EA342: BAS130 | EB342: BAS131 | EC342: BAS132 | ED342: BAS133 | EE342: BAS134 | EF342: BAS135 | EG342: BAS136 | EH342: BAS137 | EI342: BAS138 | EJ342: BAS139 | EK342: BAS140 | EL342: BAS141 | EM342: BAS142 | EN342: BAS143 | EO342: BAS144 | EP342: BAS145 | EQ342: BAS146 | ER342: BAS147 | ES342: BAS148 | ET342: BAS149 | EU342: BAS150 | EV342: BAS151 | EW342: BAS152 | EX342: BAS153 | EY342: BAS154 | EZ342: BAS155 | FA342: BAS156 | FB342: BAS157 | FC342: BAS158 | FD342: BAS159 | FE342: BAS160 | FF342: BAS161 | FG342: BAS162 | FH342: BAS163 | FI342: BAS164 | FJ342: BAS165 | FK342: BAS166 | FL342: BAS167 | FM342: BAS168 | FN342: BAS169 | FO342: BAS170 | FP342: BAS171 | FQ342: BAS172 | FR342: BAS173 | FS342: BAS174 | FT342: BAS175 | FU342: BAS176 | FV342: BAS177 | FW342: BAS178 | FX342: BAS179 | FY342: BAS180 | FZ342: BAS181 | GA342: BAS182 | GB342: BAS183 | GC342: BAS184 | GD342: BAS185 | GE342: BAS186 | GF342: BAS187 | GG342: BAS188 | GH342: BAS189 | GI342: BAS190 | GJ342: BAS191 | GK342: BAS192 | GL342: BAS193 | GM342: BAS194 | GN342: BAS195 | GO342: BAS196 | GP342: BAS197 | GQ342: BAS198 | GR342: BAS199 | GS342: BAS200 | GT342: BAS201 | GU342: BAS202 | GV342: BAS203 | GW342: BAS204 | GX342: BAS205 | GY342: BAS206 | GZ342: BAS207 | HA342: BAS208 | HB342: BAS209 | HC342: BAS210 | HD342: BAS211 | HE342: BAS212 | HF342: BAS213 | HG342: BAS214 | HH342: BAS215 | HI342: BAS216 | HJ342: BAS217 | HK342: BAS218 | HL342: BAS219 | HM342: BAS220 | HN342: BAS221 | HO342: BAS222 | HP342: BAS223 | HQ342: BAS224 | HR342: BAS225 | HS342: BAS226 | HT342: BAS227 | HU342: BAS228 | HV342: BAS229 | HW342: BAS230
A343: 1 | B343: 839 | C343: 796 | D343: 274 | E343: 148 | F343: 2 | G343: 23 | H343: 0 | I343: 0 | J343: 0 | K343: 0 | L343: 0 | M343: 0 | N343: 3 | O343: 0 | P343: 0 | Q343: 0 | R343: 0 | S343: 0 | T343: 0 | U343: 0 | V343: 0 | W343: 0 | X343: 0 | Y343: 0 | Z343: 0 | AA343: 0 | AB343: 0 | AC343: 0 | AD343: 0 | AE343: 0 | AF343: 0 | AG343: 0 | AH343: 0 | AI343: 0 | AJ343: 0 | AK343: 0 | AL343: 0 | AM343: 0 | AN343: 0 | AO343: 0 | AP343: 0 | AQ343: 0 | AR343: 0 | AS343: 0 | AT343: 0 | AU343: 0 | AV343: 0 | AW343: 0 | AX343: 0 | AY343: 0 | AZ343: 0 | BA343: 0 | BB343: 0 | BC343: 0 | BD343: 0 | BE343: 0 | BF343: 0 | BG343: 0 | BH343: 0 | BI343: 0 | BJ343: 0 | BK343: 0 | BL343: 0 | BM343: 0 | BN343: 0 | BO343: 0 | BP343: 0 | BQ343: 0 | BR343: 0 | BS343: 0 | BT343: 0 | BU343: 0 | BV343: 0 | BW343: 0 | BX343: 0 | BY343: 0 | BZ343: 0 | CA343: 0 | CB343: 0 | CC343: 0 | CD343: 0 | CE343: 0 | CF343: 0 | CG343: 0 | CH343: 0 | CI343: 0 | CJ343: 0 | CK343: 0 | CL343: 0 | CM343: 0 | CN343: 0 | CO343: 0 | CP343: 0 | CQ343: 0 | CR343: 0 | CS343: 0 | CT343: 0 | CU343: 0 | CV343: 0 | CW343: 0 | CX343: 0 | CY343: 0 | CZ343: 0 | DA343: 0 | DB343: 0 | DC343: 0 | DD343: 0 | DE343: 0 | DF343: 0 | DG343: 0 | DH343: 0 | DI343: 0 | DJ343: 0 | DK343: 0 | DL343: 0 | DM343: 0 | DN343: 0 | DO343: 0 | DP343: 0 | DQ343: 0 | DR343: 0 | DS343: 0 | DT343: 0 | DU343: 0 | DV343: 0 | DW343: 0 | DX343: 0 | DY343: 0 | DZ343: 0 | EA343: 0 | EB343: 0 | EC343: 0 | ED343: 0 | EE343: 0 | EF343: 0 | EG343: 0 | EH343: 0 | EI343: 0 | EJ343: 0 | EK343: 0 | EL343: 0 | EM343: 0 | EN343: 0 | EO343: 0 | EP343: 0 | EQ343: 0 | ER343: 0 | ES343: 0 | ET343: 0 | EU343: 0 | EV343: 0 | EW343: 0 | EX343: 0 | EY343: 0 | EZ343: 0 | FA343: 0 | FB343: 0 | FC343: 0 | FD343: 0 | FE343: 0 | FF343: 0 | FG343: 0 | FH343: 0 | FI343: 0 | FJ343: 0 | FK343: 0 | FL343: 0 | FM343: 0 | FN343: 0 | FO343: 0 | FP343: 0 | FQ343: 0 | FR343: 0 | FS343: 0 | FT343: 0 | FU343: 0 | FV343: 0 | FW343: 0 | FX343: 0 | FY343: 0 | FZ343: 0 | GA343: 0 | GB343: 0 | GC343: 0 | GD343: 0 | GE343: 0 | GF343: 0 | GG343: 0 | GH343: 0 | GI343: 0 | GJ343: 0 | GK343: 0 | GL343: 0 | GM343: 0 | GN343: 0 | GO343: 0 | GP343: 0 | GQ343: 0 | GR343: 0 | GS343: 0 | GT343: 0 | GU343: 0 | GV343: 0 | GW343: 0 | GX343: 0 | GY343: 0 | GZ343: 0 | HA343: 0 | HB343: 0 | HC343: 0 | HD343: 0 | HE343: 0 | HF343: 0 | HG343: 0 | HH343: 0 | HI343: 0 | HJ343: 0 | HK343: 0 | HL343: 0 | HM343: 0 | HN343: 0 | HO343: 0 | HP343: 0 | HQ343: 0 | HR343: 0 | HS343: 0 | HT343: 0 | HU343: 0 | HV343: 0 | HW343: 0
A344: 2 | B344: 1083 | C344: 927 | D344: 420 | E344: 332 | F344: 1 | G344: 7 | H344: 0 | I344: 0 | J344: 0 | K344: 0 | L344: 1 | M344: 0 | N344: 7 | O344: 3 | P344: 0 | Q344: 1 | R344: 1 | S344: 1 | T344: 0 | U344: 0 | V344: 0 | W344: 0 | X344: 0 | Y344: 0 | Z344: 0 | AA344: 0 | AB344: 0 | AC344: 0 | AD344: 0 | AE344: 0 | AF344: 0 | AG344: 0 | AH344: 0 | AI344: 0 | AJ344: 0 | AK344: 0 | AL344: 0 | AM344: 0 | AN344: 0 | AO344: 0 | AP344: 0 | AQ344: 0 | AR344: 0 | AS344: 0 | AT344: 0 | AU344: 0 | AV344: 0 | AW344: 0 | AX344: 0 | AY344: 0 | AZ344: 0 | BA344: 0 | BB344: 0 | BC344: 0 | BD344: 0 | BE344: 0 | BF344: 0 | BG344: 0 | BH344: 0 | BI344: 0 | BJ344: 0 | BK344: 0 | BL344: 0 | BM344: 0 | BN344: 0 | BO344: 0 | BP344: 0 | BQ344: 0 | BR344: 0 | BS344: 0 | BT344: 0 | BU344: 0 | BV344: 0 | BW344: 0 | BX344: 0 | BY344: 0 | BZ344: 0 | CA344: 0 | CB344: 0 | CC344: 0 | CD344: 0 | CE344: 0 | CF344: 0 | CG344: 0 | CH344: 0 | CI344: 0 | CJ344: 0 | CK344: 0 | CL344: 0 | CM344: 0 | CN344: 0 | CO344: 0 | CP344: 0 | CQ344: 0 | CR344: 0 | CS344: 0 | CT344: 0 | CU344: 0 | CV344: 0 | CW344: 0 | CX344: 0 | CY344: 0 | CZ344: 0 | DA344: 0 | DB344: 0 | DC344: 0 | DD344: 0 | DE344: 0 | DF344: 0 | DG344: 0 | DH344: 0 | DI344: 0 | DJ344: 0 | DK344: 0 | DL344: 0 | DM344: 0 | DN344: 0 | DO344: 0 | DP344: 0 | DQ344: 0 | DR344: 0 | DS344: 0 | DT344: 0 | DU344: 0 | DV344: 0 | DW344: 0 | DX344: 0 | DY344: 0 | DZ344: 0 | EA344: 0 | EB344: 0 | EC344: 0 | ED344: 0 | EE344: 0 | EF344: 0 | EG344: 0 | EH344: 0 | EI344: 0 | EJ344: 0 | EK344: 0 | EL344: 0 | EM344: 0 | EN344: 0 | EO344: 0 | EP344: 0 | EQ344: 0 | ER344: 0 | ES344: 0 | ET344: 0 | EU344: 0 | EV344: 0 | EW344: 0 | EX344: 0 | EY344: 0 | EZ344: 0 | FA344: 0 | FB344: 0 | FC344: 0 | FD344: 0 | FE344: 0 | FF344: 0 | FG344: 0 | FH344: 0 | FI344: 0 | FJ344: 0 | FK344: 0 | FL344: 0 | FM344: 0 | FN344: 0 | FO344: 0 | FP344: 0 | FQ344: 0 | FR344: 0 | FS344: 0 | FT344: 0 | FU344: 0 | FV344: 0 | FW344: 0 | FX344: 0 | FY344: 0 | FZ344: 0 | GA344: 0 | GB344: 0 | GC344: 0 | GD344: 0 | GE344: 0 | GF344: 0 | GG344: 0 | GH344: 0 | GI344: 0 | GJ344: 0 | GK344: 0 | GL344: 0 | GM344: 0 | GN344: 0 | GO344: 0 | GP344: 0 | GQ344: 0 | GR344: 0 | GS344: 0 | GT344: 0 | GU344: 0 | GV344: 0 | GW344: 0 | GX344: 0 | GY344: 0 | GZ344: 0 | HA344: 0 | HB344: 0 | HC344: 0 | HD344: 0 | HE344: 0 | HF344: 0 | HG344: 0 | HH344: 0 | HI344: 0 | HJ344: 0 | HK344: 0 | HL344: 0 | HM344: 0 | HN344: 0 | HO344: 0 | HP344: 0 | HQ344: 0 | HR344: 0 | HS344: 0 | HT344: 0 | HU344: 0 | HV344: 0 | HW344: 0
A345: 3 | B345: 608 | C345: 560 | D345: 472 | E345: 308 | F345: 3 | G345: 32 | H345: 1 | I345: 7 | J345: 0 | K345: 0 | L345: 0 | M345: 0 | N345: 5 | O345: 2 | P345: 0 | Q345: 1 | R345: 4 | S345: 4 | T345: 4 | U345: 1 | V345: 1 | W345: 9 | X345: 1 | Y345: 1 | Z345: 1 | AA345: 9 | AB345: 0 | AC345: 0 | AD345: 1 | AE345: 9 | AF345: 0 | AG345: 0 | AH345: 1 | AI345: 9 | AJ345: 0 | AK345: 0 | AL345: 2 | AM345: 60 | AN345: 0 | AO345: 0 | AP345: 0 | AQ345: 0 | AR345: 0 | AS345: 0 | AT345: 0 | AU345: 0 | AV345: 0 | AW345: 0 | AX345: 0 | AY345: 0 | AZ345: 0 | BA345: 0 | BB345: 0 | BC345: 0 | BD345: 0 | BE345: 0 | BF345: 0 | BG345: 0 | BH345: 9 | BI345: 0 | BJ345: 0 | BK345: 0 | BL345: 0 | BM345: 0 | BN345: 0 | BO345: 0 | BP345: 0 | BQ345: 0 | BR345: 0 | BS345: 0 | BT345: 0 | BU345: 0 | BV345: 0 | BW345: 0 | BX345: 0 | BY345: 0 | BZ345: 0 | CA345: 0 | CB345: 0 | CC345: 0 | CD345: 0 | CE345: 0 | CF345: 0 | CG345: 0 | CH345: 0 | CI345: 0 | CJ345: 0 | CK345: 0 | CL345: 0 | CM345: 0 | CN345: 0 | CO345: 0 | CP345: 0 | CQ345: 0 | CR345: 0 | CS345: 0 | CT345: 0 | CU345: 0 | CV345: 0 | CW345: 0 | CX345: 0 | CY345: 0 | CZ345: 0 | DA345: 0 | DB345: 0 | DC345: 0 | DD345: 0 | DE345: 0 | DF345: 0 | DG345: 0 | DH345: 0 | DI345: 0 | DJ345: 0 | DK345: 0 | DL345: 0 | DM345: 0 | DN345: 0 | DO345: 0 | DP345: 0 | DQ345: 0 | DR345: 0 | DS345: 0 | DT345: 0 | DU345: 0 | DV345: 0 | DW345: 0 | DX345: 0 | DY345: 0 | DZ345: 0 | EA345: 0 | EB345: 0 | EC345: 0 | ED345: 0 | EE345: 0 | EF345: 0 | EG345: 0 | EH345: 0 | EI345: 0 | EJ345: 0 | EK345: 0 | EL345: 0 | EM345: 0 | EN345: 0 | EO345: 0 | EP345: 0 | EQ345: 0 | ER345: 0 | ES345: 0 | ET345: 0 | EU345: 0 | EV345: 0 | EW345: 0 | EX345: 0 | EY345: 0 | EZ345: 0 | FA345: 0 | FB345: 0 | FC345: 0 | FD345: 0 | FE345: 0 | FF345: 0 | FG345: 0 | FH345: 0 | FI345: 0 | FJ345: 0 | FK345: 0 | FL345: 0 | FM345: 0 | FN345: 0 | FO345: 0 | FP345: 0 | FQ345: 0 | FR345: 0 | FS345: 0 | FT345: 0 | FU345: 0 | FV345: 0 | FW345: 0 | FX345: 0 | FY345: 0 | FZ345: 0 | GA345: 0 | GB345: 0 | GC345: 0 | GD345: 0 | GE345: 0 | GF345: 0 | GG345: 0 | GH345: 0 | GI345: 0 | GJ345: 0 | GK345: 0 | GL345: 0 | GM345: 0 | GN345: 0 | GO345: 0 | GP345: 0 | GQ345: 0 | GR345: 0 | GS345: 0 | GT345: 0 | GU345: 0 | GV345: 0 | GW345: 0 | GX345: 0 | GY345: 0 | GZ345: 0 | HA345: 0 | HB345: 0 | HC345: 0 | HD345: 0 | HE345: 0 | HF345: 0 | HG345: 0 | HH345: 0 | HI345: 0 | HJ345: 0 | HK345: 0 | HL345: 0 | HM345: 0 | HN345: 0 | HO345: 0 | HP345: 0 | HQ345: 0 | HR345: 0 | HS345: 0 | HT345: 0 | HU345: 0 | HV345: 0 | HW345: 0
A346: T | B346: 2530 | C346: 2283 | D346: 1166 | E346: 788 | F346: 6 | G346: 62 | H346: 1 | I346: 7 | J346: 0 | K346: 0 | L346: 1 | M346: 0 | N346: 15 | O346: 5 | P346: 0 | Q346: 2 | R346: 5 | S346: 5 | T346: 4 | U346: 1 | V346: 1 | W346: 9 | X346: 1 | Y346: 1 | Z346: 1 | AA346: 9 | AB346: 0 | AC346: 0 | AD346: 1 | AE346: 9 | AF346: 0 | AG346: 0 | AH346: 1 | AI346: 9 | AJ346: 0 | AK346: 0 | AL346: 2 | AM346: 60 | AN346: 0 | AO346: 0 | AP346: 0 | AQ346: 0 | AR346: 0 | AS346: 0 | AT346: 0 | AU346: 0 | AV346: 0 | AW346: 0 | AX346: 0 | AY346: 0 | AZ346: 0 | BA346: 0 | BB346: 0 | BC346: 0 | BD346: 0 | BE346: 0 | BF346: 0 | BG346: 0 | BH346: 9 | BI346: 0 | BJ346: 0 | BK346: 0 | BL346: 0 | BM346: 0 | BN346: 0 | BO346: 0 | BP346: 0 | BQ346: 0 | BR346: 0 | BS346: 0 | BT346: 0 | BU346: 0 | BV346: 0 | BW346: 0 | BX346: 0 | BY346: 0 | BZ346: 0 | CA346: 0 | CB346: 0 | CC346: 0 | CD346: 0 | CE346: 0 | CF346: 0 | CG346: 0 | CH346: 0 | CI346: 0 | CJ346: 0 | CK346: 0 | CL346: 0 | CM346: 0 | CN346: 0 | CO346: 0 | CP346: 0 | CQ346: 0 | CR346: 0 | CS346: 0 | CT346: 0 | CU346: 0 | CV346: 0 | CW346: 0 | CX346: 0 | CY346: 0 | CZ346: 0 | DA346: 0 | DB346: 0 | DC346: 0 | DD346: 0 | DE346: 0 | DF346: 0 | DG346: 0 | DH346: 0 | DI346: 0 | DJ346: 0 | DK346: 0 | DL346: 0 | DM346: 0 | DN346: 0 | DO346: 0 | DP346: 0 | DQ346: 0 | DR346: 0 | DS346: 0 | DT346: 0 | DU346: 0 | DV346: 0 | DW346: 0 | DX346: 0 | DY346: 0 | DZ346: 0 | EA346: 0 | EB346: 0 | EC346: 0 | ED346: 0 | EE346: 0 | EF346: 0 | EG346: 0 | EH346: 0 | EI346: 0 | EJ346: 0 | EK346: 0 | EL346: 0 | EM346: 0 | EN346: 0 | EO346: 0 | EP346: 0 | EQ346: 0 | ER346: 0 | ES346: 0 | ET346: 0 | EU346: 0 | EV346: 0 | EW346: 0 | EX346: 0 | EY346: 0 | EZ346: 0 | FA346: 0 | FB346: 0 | FC346: 0 | FD346: 0 | FE346: 0 | FF346: 0 | FG346: 0 | FH346: 0 | FI346: 0 | FJ346: 0 | FK346: 0 | FL346: 0 | FM346: 0 | FN346: 0 | FO346: 0 | FP346: 0 | FQ346: 0 | FR346: 0 | FS346: 0 | FT346: 0 | FU346: 0 | FV346: 0 | FW346: 0 | FX346: 0 | FY346: 0 | FZ346: 0 | GA346: 0 | GB346: 0 | GC346: 0 | GD346: 0 | GE346: 0 | GF346: 0 | GG346: 0 | GH346: 0 | GI346: 0 | GJ346: 0 | GK346: 0 | GL346: 0 | GM346: 0 | GN346: 0 | GO346: 0 | GP346: 0 | GQ346: 0 | GR346: 0 | GS346: 0 | GT346: 0 | GU346: 0 | GV346: 0 | GW346: 0 | GX346: 0 | GY346: 0 | GZ346: 0 | HA346: 0 | HB346: 0 | HC346: 0 | HD346: 0 | HE346: 0 | HF346: 0 | HG346: 0 | HH346: 0 | HI346: 0 | HJ346: 0 | HK346: 0 | HL346: 0 | HM346: 0 | HN346: 0 | HO346: 0 | HP346: 0 | HQ346: 0 | HR346: 0 | HS346: 0 | HT346: 0 | HU346: 0 | HV346: 0 | HW346: 0
A356: TOTAL
A357: =COUNT(A343:A354) -> 3 | B357: =SUM(B343:B354) -> 5060 | C357: =SUM(C343:C354) -> 4566 | D357: 2332 | E357: 1576 | F357: 12 | G357: 124 | H357: 2 | I357: 14 | J357: 0 | K357: 0 | L357: 2 | M357: 0 | N357: 30 | O357: 10 | P357: 0 | Q357: 4 | R357: 10 | S357: 10 | T357: 8 | U357: 2 | V357: 2 | W357: 18 | X357: 2 | Y357: 2 | Z357: 2 | AA357: 18 | AB357: 0 | AC357: 0 | AD357: 2 | AE357: 18 | AF357: 0 | AG357: 0 | AH357: 2 | AI357: 18 | AJ357: 0 | AK357: 0 | AL357: 4 | AM357: 120 | AN357: 0 | AO357: 0 | AP357: 0 | AQ357: 0 | AR357: 0 | AS357: 0 | AT357: 0 | AU357: 0 | AV357: 0 | AW357: 0 | AX357: 0 | AY357: 0 | AZ357: 0 | BA357: 0 | BB357: 0 | BC357: 0 | BD357: 0 | BE357: 0 | BF357: 0 | BG357: 0 | BH357: 18 | BI357: 0 | BJ357: 0 | BK357: 0 | BL357: 0 | BM357: 0 | BN357: 0 | BO357: =SUM(BO343:BO354) -> 0 | BP357: 0 | BQ357: 0 | BR357: 0 | BS357: 0 | BT357: 0 | BU357: 0 | BV357: 0 | BW357: 0 | BX357: 0 | BY357: 0 | BZ357: 0 | CA357: 0 | CB357: 0 | CC357: 0 | CD357: 0 | CE357: 0 | CF357: 0 | CG357: 0 | CH357: 0 | CI357: 0 | CJ357: 0 | CK357: 0 | CL357: 0 | CM357: 0 | CN357: 0 | CO357: 0 | CP357: 0 | CQ357: 0 | CR357: 0 | CS357: 0 | CT357: 0 | CU357: 0 | CV357: 0 | CW357: 0 | CX357: 0 | CY357: 0 | CZ357: 0 | DA357: 0 | DB357: 0 | DC357: 0 | DD357: 0 | DE357: 0 | DF357: 0 | DG357: 0 | DH357: 0 | DI357: 0 | DJ357: 0 | DK357: 0 | DL357: 0 | DM357: 0 | DN357: 0 | DO357: 0 | DP357: 0 | DQ357: 0 | DR357: 0 | DS357: 0 | DT357: 0 | DU357: 0 | DV357: 0 | DW357: 0 | DX357: 0 | DY357: 0 | DZ357: 0 | EA357: =SUM(EA343:EA354) -> 0 | EB357: 0 | EC357: 0 | ED357: 0 | EE357: 0 | EF357: 0 | EG357: 0 | EH357: 0 | EI357: 0 | EJ357: 0 | EK357: 0 | EL357: 0 | EM357: 0 | EN357: 0 | EO357: 0 | EP357: 0 | EQ357: 0 | ER357: 0 | ES357: 0 | ET357: 0 | EU357: 0 | EV357: 0 | EW357: 0 | EX357: 0 | EY357: 0 | EZ357: 0 | FA357: 0 | FB357: 0 | FC357: 0 | FD357: 0 | FE357: 0 | FF357: 0 | FG357: 0 | FH357: 0 | FI357: 0 | FJ357: 0 | FK357: 0 | FL357: 0 | FM357: 0 | FN357: 0 | FO357: 0 | FP357: 0 | FQ357: 0 | FR357: 0 | FS357: 0 | FT357: 0 | FU357: 0 | FV357: 0 | FW357: 0 | FX357: 0 | FY357: 0 | FZ357: 0 | GA357: 0 | GB357: 0 | GC357: 0 | GD357: 0 | GE357: 0 | GF357: 0 | GG357: 0 | GH357: 0 | GI357: 0 | GJ357: 0 | GK357: 0 | GL357: 0 | GM357: =SUM(GM343:GM354) -> 0 | GN357: 0 | GO357: 0 | GP357: 0 | GQ357: 0 | GR357: 0 | GS357: 0 | GT357: 0 | GU357: 0 | GV357: 0 | GW357: 0 | GX357: 0 | GY357: 0 | GZ357: 0 | HA357: 0 | HB357: 0 | HC357: 0 | HD357: 0 | HE357: 0 | HF357: 0 | HG357: 0 | HH357: 0 | HI357: 0 | HJ357: 0 | HK357: 0 | HL357: 0 | HM357: 0 | HN357: 0 | HO357: 0 | HP357: 0 | HQ357: 0 | HR357: 0 | HS357: 0 | HT357: 0 | HU357: 0 | HV357: 0 | HW357: 0
A358: =CONCATENATE(A343,"-",A344,"-",A345,"-",A346,"-",A347,"-",A348,"-",A349,"-",A350,"-",A351,"-",A352,"-",A353,"-",A354) -> 1-2-3-T--------
B359: BAS001 | C359: BAS002 | D359: BAS003 | E359: BAS004 | F359: BAS005 | G359: BAS006 | H359: BAS007 | I359: BAS008 | J359: BAS009 | K359: BAS010 | L359: BAS011 | M359: BAS012 | N359: BAS013 | O359: BAS014 | P359: BAS015 | Q359: BAS016 | R359: BAS017 | S359: BAS018 | T359: BAS019 | U359: BAS020 | V359: BAS021 | W359: BAS022 | X359: BAS023 | Y359: BAS024 | Z359: BAS025 | AA359: BAS026 | AB359: BAS027 | AC359: BAS028 | AD359: BAS029 | AE359: BAS030 | AF359: BAS031 | AG359: BAS032 | AH359: BAS033 | AI359: BAS034 | AJ359: BAS035 | AK359: BAS036 | AL359: BAS037 | AM359: BAS038 | AN359: BAS039 | AO359: BAS040 | AP359: BAS041 | AQ359: BAS042 | AR359: BAS043 | AS359: BAS044 | AT359: BAS045 | AU359: BAS046 | AV359: BAS047 | AW359: BAS048 | AX359: BAS049 | AY359: BAS050 | AZ359: BAS051 | BA359: BAS052 | BB359: BAS053 | BC359: BAS054 | BD359: BAS055 | BE359: BAS056 | BF359: BAS057 | BG359: BAS058 | BH359: BAS059 | BI359: BAS060 | BJ359: BAS061 | BK359: BAS062 | BL359: BAS063 | BM359: BAS064 | BN359: BAS065 | BO359: BAS066 | BP359: BAS067 | BQ359: BAS068 | BR359: BAS069 | BS359: BAS070 | BT359: BAS071 | BU359: BAS072 | BV359: BAS073 | BW359: BAS074 | BX359: BAS075 | BY359: BAS076 | BZ359: BAS077 | CA359: BAS078 | CB359: BAS079 | CC359: BAS080 | CD359: BAS081 | CE359: BAS082 | CF359: BAS083 | CG359: BAS084 | CH359: BAS085 | CI359: BAS086 | CJ359: BAS087 | CK359: BAS088 | CL359: BAS089 | CM359: BAS090 | CN359: BAS091 | CO359: BAS092 | CP359: BAS093 | CQ359: BAS094 | CR359: BAS095 | CS359: BAS096 | CT359: BAS097 | CU359: BAS098 | CV359: BAS099 | CW359: BAS100 | CX359: BAS101 | CY359: BAS102 | CZ359: BAS103 | DA359: BAS104 | DB359: BAS105 | DC359: BAS106 | DD359: BAS107 | DE359: BAS108 | DF359: BAS109 | DG359: BAS110 | DH359: BAS111 | DI359: BAS112 | DJ359: BAS113 | DK359: BAS114 | DL359: BAS115 | DM359: BAS116 | DN359: BAS117 | DO359: BAS118 | DP359: BAS119 | DQ359: BAS120 | DR359: BAS121 | DS359: BAS122 | DT359: BAS123 | DU359: BAS124 | DV359: BAS125 | DW359: BAS126 | DX359: BAS127 | DY359: BAS128 | DZ359: BAS129 | EA359: BAS130 | EB359: BAS131 | EC359: BAS132 | ED359: BAS133 | EE359: BAS134 | EF359: BAS135 | EG359: BAS136 | EH359: BAS137 | EI359: BAS138 | EJ359: BAS139 | EK359: BAS140 | EL359: BAS141 | EM359: BAS142 | EN359: BAS143 | EO359: BAS144 | EP359: BAS145 | EQ359: BAS146 | ER359: BAS147 | ES359: BAS148 | ET359: BAS149 | EU359: BAS150 | EV359: BAS151 | EW359: BAS152 | EX359: BAS153 | EY359: BAS154 | EZ359: BAS155 | FA359: BAS156 | FB359: BAS157 | FC359: BAS158 | FD359: BAS159 | FE359: BAS160 | FF359: BAS161 | FG359: BAS162 | FH359: BAS163 | FI359: BAS164 | FJ359: BAS165 | FK359: BAS166 | FL359: BAS167 | FM359: BAS168 | FN359: BAS169 | FO359: BAS170 | FP359: BAS171 | FQ359: BAS172 | FR359: BAS173 | FS359: BAS174 | FT359: BAS175 | FU359: BAS176 | FV359: BAS177 | FW359: BAS178 | FX359: BAS179 | FY359: BAS180 | FZ359: BAS181 | GA359: BAS182 | GB359: BAS183 | GC359: BAS184 | GD359: BAS185 | GE359: BAS186 | GF359: BAS187 | GG359: BAS188 | GH359: BAS189 | GI359: BAS190 | GJ359: BAS191 | GK359: BAS192 | GL359: BAS193 | GM359: BAS194 | GN359: BAS195 | GO359: BAS196 | GP359: BAS197 | GQ359: BAS198 | GR359: BAS199 | GS359: BAS200 | GT359: BAS201 | GU359: BAS202 | GV359: BAS203 | GW359: BAS204 | GX359: BAS205 | GY359: BAS206 | GZ359: BAS207 | HA359: BAS208 | HB359: BAS209 | HC359: BAS210 | HD359: BAS211 | HE359: BAS212 | HF359: BAS213 | HG359: BAS214 | HH359: BAS215 | HI359: BAS216 | HJ359: BAS217 | HK359: BAS218 | HL359: BAS219 | HM359: BAS220 | HN359: BAS221 | HO359: BAS222 | HP359: BAS223 | HQ359: BAS224 | HR359: BAS225 | HS359: BAS226 | HT359: BAS227 | HU359: BAS228 | HV359: BAS229 | HW359: BAS230
B360: =IF(B359=B342,"SI","NO") -> SI | C360: =IF(C359=C342,"SI","NO") -> SI | D360: SI | E360: SI | F360: SI | G360: SI | H360: SI | I360: SI | J360: SI | K360: SI | L360: SI | M360: SI | N360: SI | O360: SI | P360: SI | Q360: SI | R360: SI | S360: SI | T360: SI | U360: SI | V360: SI | W360: SI | X360: SI | Y360: SI | Z360: SI | AA360: SI | AB360: SI | AC360: SI | AD360: SI | AE360: SI | AF360: SI | AG360: SI | AH360: SI | AI360: SI | AJ360: SI | AK360: SI | AL360: SI | AM360: SI | AN360: SI | AO360: SI | AP360: SI | AQ360: SI | AR360: SI | AS360: SI | AT360: SI | AU360: SI | AV360: SI | AW360: SI | AX360: SI | AY360: SI | AZ360: SI | BA360: SI | BB360: SI | BC360: SI | BD360: SI | BE360: SI | BF360: SI | BG360: SI | BH360: SI | BI360: SI | BJ360: SI | BK360: SI | BL360: SI | BM360: SI | BN360: SI | BO360: =IF(BO359=BO342,"SI","NO") -> SI | BP360: SI | BQ360: SI | BR360: SI | BS360: SI | BT360: SI | BU360: SI | BV360: SI | BW360: SI | BX360: SI | BY360: SI | BZ360: SI | CA360: SI | CB360: SI | CC360: SI | CD360: SI | CE360: SI | CF360: SI | CG360: SI | CH360: SI | CI360: SI | CJ360: SI | CK360: SI | CL360: SI | CM360: SI | CN360: SI | CO360: SI | CP360: SI | CQ360: SI | CR360: SI | CS360: SI | CT360: SI | CU360: SI | CV360: SI | CW360: SI | CX360: SI | CY360: SI | CZ360: SI | DA360: SI | DB360: SI | DC360: SI | DD360: SI | DE360: SI | DF360: SI | DG360: SI | DH360: SI | DI360: SI | DJ360: SI | DK360: SI | DL360: SI | DM360: SI | DN360: SI | DO360: SI | DP360: SI | DQ360: SI | DR360: SI | DS360: SI | DT360: SI | DU360: SI | DV360: SI | DW360: SI | DX360: SI | DY360: SI | DZ360: SI | EA360: =IF(EA359=EA342,"SI","NO") -> SI | EB360: SI | EC360: SI | ED360: SI | EE360: SI | EF360: SI | EG360: SI | EH360: SI | EI360: SI | EJ360: SI | EK360: SI | EL360: SI | EM360: SI | EN360: SI | EO360: SI | EP360: SI | EQ360: SI | ER360: SI | ES360: SI | ET360: SI | EU360: SI | EV360: SI | EW360: SI | EX360: SI | EY360: SI | EZ360: SI | FA360: SI | FB360: SI | FC360: SI | FD360: SI | FE360: SI | FF360: SI | FG360: SI | FH360: SI | FI360: SI | FJ360: SI | FK360: SI | FL360: SI | FM360: SI | FN360: SI | FO360: SI | FP360: SI | FQ360: SI | FR360: SI | FS360: SI | FT360: SI | FU360: SI | FV360: SI | FW360: SI | FX360: SI | FY360: SI | FZ360: SI | GA360: SI | GB360: SI | GC360: SI | GD360: SI | GE360: SI | GF360: SI | GG360: SI | GH360: SI | GI360: SI | GJ360: SI | GK360: SI | GL360: SI | GM360: =IF(GM359=GM342,"SI","NO") -> SI | GN360: SI | GO360: SI | GP360: SI | GQ360: SI | GR360: SI | GS360: SI | GT360: SI | GU360: SI | GV360: SI | GW360: SI | GX360: SI | GY360: SI | GZ360: SI | HA360: SI | HB360: SI | HC360: SI | HD360: SI | HE360: SI | HF360: SI | HG360: SI | HH360: SI | HI360: SI | HJ360: SI | HK360: SI | HL360: SI | HM360: SI | HN360: SI | HO360: SI | HP360: SI | HQ360: SI | HR360: SI | HS360: SI | HT360: SI | HU360: SI | HV360: SI | HW360: SI
A363: PP131-6
A364: ANNO | B364: 2025
A365: cod_red | B365: 03
A366: codmic | B366: (Todas)
A367: cod_prov | B367: (Todas)
A368: coddist | B368: (Todas)
A369: cod_estab | B369: (Todas)
A370: cod_eje | B370: (Todas)
B372: Valores
A373: Etiquetas de fila | B373: BAS001 | C373: BAS002 | D373: BAS003 | E373: BAS004 | F373: BAS005 | G373: BAS006 | H373: BAS007 | I373: BAS008 | J373: BAS009 | K373: BAS010 | L373: BAS011 | M373: BAS012 | N373: BAS013 | O373: BAS014 | P373: BAS015 | Q373: BAS016 | R373: BAS017 | S373: BAS018 | T373: BAS019 | U373: BAS020 | V373: BAS021 | W373: BAS022 | X373: BAS023 | Y373: BAS024 | Z373: BAS025 | AA373: BAS026 | AB373: BAS027 | AC373: BAS028 | AD373: BAS029 | AE373: BAS030 | AF373: BAS031 | AG373: BAS032 | AH373: BAS033 | AI373: BAS034 | AJ373: BAS035 | AK373: BAS036 | AL373: BAS037 | AM373: BAS038 | AN373: BAS039 | AO373: BAS040 | AP373: BAS041 | AQ373: BAS042 | AR373: BAS043 | AS373: BAS044 | AT373: BAS045 | AU373: BAS046 | AV373: BAS047 | AW373: BAS048 | AX373: BAS049 | AY373: BAS050 | AZ373: BAS051 | BA373: BAS052 | BB373: BAS053 | BC373: BAS054 | BD373: BAS055 | BE373: BAS056 | BF373: BAS057 | BG373: BAS058 | BH373: BAS059 | BI373: BAS060 | BJ373: BAS061 | BK373: BAS062 | BL373: BAS063 | BM373: BAS064 | BN373: BAS065 | BO373: BAS066 | BP373: BAS067 | BQ373: BAS068 | BR373: BAS069 | BS373: BAS070 | BT373: BAS071 | BU373: BAS072 | BV373: BAS073 | BW373: BAS074 | BX373: BAS075 | BY373: BAS076 | BZ373: BAS077 | CA373: BAS078 | CB373: BAS079 | CC373: BAS080 | CD373: BAS081 | CE373: BAS082 | CF373: BAS083 | CG373: BAS084 | CH373: BAS085 | CI373: BAS086 | CJ373: BAS087 | CK373: BAS088 | CL373: BAS089 | CM373: BAS090 | CN373: BAS091 | CO373: BAS092 | CP373: BAS093 | CQ373: BAS094 | CR373: BAS095 | CS373: BAS096 | CT373: BAS097 | CU373: BAS098 | CV373: BAS099 | CW373: BAS100 | CX373: BAS101 | CY373: BAS102 | CZ373: BAS103 | DA373: BAS104 | DB373: BAS105 | DC373: BAS106 | DD373: BAS107 | DE373: BAS108 | DF373: BAS109 | DG373: BAS110 | DH373: BAS111 | DI373: BAS112 | DJ373: BAS113 | DK373: BAS114 | DL373: BAS115 | DM373: BAS116 | DN373: BAS117 | DO373: BAS118 | DP373: BAS119 | DQ373: BAS120 | DR373: BAS121 | DS373: BAS122 | DT373: BAS123 | DU373: BAS124 | DV373: BAS125 | DW373: BAS126 | DX373: BAS127 | DY373: BAS128 | DZ373: BAS129 | EA373: BAS130 | EB373: BAS131 | EC373: BAS132 | ED373: BAS133 | EE373: BAS134 | EF373: BAS135 | EG373: BAS136 | EH373: BAS137 | EI373: BAS138 | EJ373: BAS139 | EK373: BAS140 | EL373: BAS141 | EM373: BAS142 | EN373: BAS143 | EO373: BAS144 | EP373: BAS145 | EQ373: BAS146 | ER373: BAS147 | ES373: BAS148 | ET373: BAS149 | EU373: BAS150 | EV373: BAS151 | EW373: BAS152 | EX373: BAS153 | EY373: BAS154 | EZ373: BAS155 | FA373: BAS156 | FB373: BAS157 | FC373: BAS158 | FD373: BAS159 | FE373: BAS160 | FF373: BAS161 | FG373: BAS162 | FH373: BAS163 | FI373: BAS164 | FJ373: BAS165 | FK373: BAS166 | FL373: BAS167 | FM373: BAS168 | FN373: BAS169 | FO373: BAS170 | FP373: BAS171 | FQ373: BAS172 | FR373: BAS173 | FS373: BAS174 | FT373: BAS175 | FU373: BAS176 | FV373: BAS177 | FW373: BAS178 | FX373: BAS179 | FY373: BAS180 | FZ373: BAS181 | GA373: BAS182 | GB373: BAS183 | GC373: BAS184 | GD373: BAS185 | GE373: BAS186 | GF373: BAS187 | GG373: BAS188 | GH373: BAS189 | GI373: BAS190 | GJ373: BAS191 | GK373: BAS192 | GL373: BAS193 | GM373: BAS194 | GN373: BAS195 | GO373: BAS196 | GP373: BAS197 | GQ373: BAS198 | GR373: BAS199 | GS373: BAS200 | GT373: BAS201 | GU373: BAS202 | GV373: BAS203 | GW373: BAS204 | GX373: BAS205 | GY373: BAS206 | GZ373: BAS207 | HA373: BAS208 | HB373: BAS209 | HC373: BAS210 | HD373: BAS211 | HE373: BAS212 | HF373: BAS213 | HG373: BAS214 | HH373: BAS215 | HI373: BAS216 | HJ373: BAS217 | HK373: BAS218 | HL373: BAS219 | HM373: BAS220 | HN373: BAS221 | HO373: BAS222 | HP373: BAS223 | HQ373: BAS224 | HR373: BAS225 | HS373: BAS226 | HT373: BAS227 | HU373: BAS228 | HV373: BAS229 | HW373: BAS230
A374: 1 | B374: 19 | C374: 0 | D374: 8 | E374: 6 | F374: 7 | G374: 9 | H374: 9 | I374: 5 | J374: 0 | K374: 0 | L374: 0 | M374: 1 | N374: 30 | O374: 52 | P374: 38 | Q374: 26 | R374: 25 | S374: 2 | T374: 0 | U374: 0 | V374: 0 | W374: 1 | X374: 11 | Y374: 0 | Z374: 3 | AA374: 3 | AB374: 0 | AC374: 0 | AD374: 15 | AE374: 1 | AF374: 0 | AG374: 0 | AH374: 0 | AI374: 0 | AJ374: 9 | AK374: 0 | AL374: 1 | AM374: 0 | AN374: 0 | AO374: 0 | AP374: 10 | AQ374: 0 | AR374: 0 | AS374: 0 | AT374: 0 | AU374: 0 | AV374: 0 | AW374: 0 | AX374: 32 | AY374: 0 | AZ374: 0 | BA374: 0 | BB374: 1 | BC374: 1 | BD374: 0 | BE374: 0 | BF374: 0 | BG374: 0 | BH374: 0 | BI374: 0 | BJ374: 0 | BK374: 0 | BL374: 0 | BM374: 0 | BN374: 0 | BO374: 0 | BP374: 0 | BQ374: 0 | BR374: 0 | BS374: 0 | BT374: 0 | BU374: 0 | BV374: 0 | BW374: 0 | BX374: 0 | BY374: 0 | BZ374: 0 | CA374: 0 | CB374: 0 | CC374: 0 | CD374: 0 | CE374: 0 | CF374: 5 | CG374: 44 | CH374: 0 | CI374: 0 | CJ374: 0 | CK374: 0 | CL374: 34 | CM374: 0 | CN374: 0 | CO374: 0 | CP374: 0 | CQ374: 0 | CR374: 0 | CS374: 0 | CT374: 0 | CU374: 0 | CV374: 0 | CW374: 0 | CX374: 0 | CY374: 0 | CZ374: 0 | DA374: 0 | DB374: 0 | DC374: 0 | DD374: 0 | DE374: 0 | DF374: 0 | DG374: 0 | DH374: 0 | DI374: 0 | DJ374: 0 | DK374: 0 | DL374: 0 | DM374: 0 | DN374: 0 | DO374: 0 | DP374: 0 | DQ374: 0 | DR374: 0 | DS374: 0 | DT374: 0 | DU374: 0 | DV374: 0 | DW374: 0 | DX374: 0 | DY374: 0 | DZ374: 0 | EA374: 0 | EB374: 0 | EC374: 0 | ED374: 0 | EE374: 0 | EF374: 0 | EG374: 0 | EH374: 0 | EI374: 0 | EJ374: 0 | EK374: 0 | EL374: 0 | EM374: 0 | EN374: 0 | EO374: 0 | EP374: 0 | EQ374: 0 | ER374: 0 | ES374: 0 | ET374: 0 | EU374: 0 | EV374: 0 | EW374: 0 | EX374: 0 | EY374: 0 | EZ374: 0 | FA374: 0 | FB374: 0 | FC374: 0 | FD374: 0 | FE374: 0 | FF374: 0 | FG374: 0 | FH374: 0 | FI374: 0 | FJ374: 0 | FK374: 0 | FL374: 0 | FM374: 0 | FN374: 0 | FO374: 0 | FP374: 0 | FQ374: 0 | FR374: 0 | FS374: 0 | FT374: 0 | FU374: 0 | FV374: 0 | FW374: 0 | FX374: 0 | FY374: 0 | FZ374: 0 | GA374: 0 | GB374: 0 | GC374: 0 | GD374: 0 | GE374: 0 | GF374: 0 | GG374: 0 | GH374: 0 | GI374: 0 | GJ374: 0 | GK374: 0 | GL374: 0 | GM374: 0 | GN374: 0 | GO374: 0 | GP374: 0 | GQ374: 0 | GR374: 0 | GS374: 0 | GT374: 0 | GU374: 0 | GV374: 0 | GW374: 0 | GX374: 0 | GY374: 0 | GZ374: 0 | HA374: 0 | HB374: 0 | HC374: 0 | HD374: 0 | HE374: 0 | HF374: 0 | HG374: 0 | HH374: 0 | HI374: 0 | HJ374: 0 | HK374: 0 | HL374: 0 | HM374: 0 | HN374: 0 | HO374: 0 | HP374: 0 | HQ374: 0 | HR374: 0 | HS374: 0 | HT374: 0 | HU374: 0 | HV374: 0 | HW374: 0
A375: 2 | B375: 17 | C375: 1 | D375: 5 | E375: 1 | F375: 6 | G375: 9 | H375: 7 | I375: 2 | J375: 0 | K375: 1 | L375: 0 | M375: 1 | N375: 40 | O375: 28 | P375: 43 | Q375: 35 | R375: 24 | S375: 1 | T375: 0 | U375: 1 | V375: 0 | W375: 0 | X375: 15 | Y375: 0 | Z375: 2 | AA375: 3 | AB375: 0 | AC375: 0 | AD375: 17 | AE375: 1 | AF375: 0 | AG375: 0 | AH375: 0 | AI375: 0 | AJ375: 14 | AK375: 0 | AL375: 0 | AM375: 0 | AN375: 0 | AO375: 0 | AP375: 8 | AQ375: 0 | AR375: 1 | AS375: 0 | AT375: 0 | AU375: 0 | AV375: 5 | AW375: 0 | AX375: 31 | AY375: 20 | AZ375: 0 | BA375: 1 | BB375: 3 | BC375: 3 | BD375: 1 | BE375: 1 | BF375: 0 | BG375: 0 | BH375: 0 | BI375: 0 | BJ375: 1 | BK375: 1 | BL375: 0 | BM375: 0 | BN375: 0 | BO375: 0 | BP375: 0 | BQ375: 0 | BR375: 0 | BS375: 0 | BT375: 0 | BU375: 0 | BV375: 0 | BW375: 0 | BX375: 0 | BY375: 0 | BZ375: 0 | CA375: 0 | CB375: 0 | CC375: 0 | CD375: 0 | CE375: 0 | CF375: 9 | CG375: 27 | CH375: 1 | CI375: 19 | CJ375: 0 | CK375: 0 | CL375: 43 | CM375: 1 | CN375: 0 | CO375: 0 | CP375: 0 | CQ375: 0 | CR375: 0 | CS375: 0 | CT375: 0 | CU375: 0 | CV375: 0 | CW375: 0 | CX375: 0 | CY375: 0 | CZ375: 0 | DA375: 0 | DB375: 0 | DC375: 0 | DD375: 0 | DE375: 0 | DF375: 0 | DG375: 0 | DH375: 0 | DI375: 0 | DJ375: 0 | DK375: 0 | DL375: 0 | DM375: 0 | DN375: 0 | DO375: 0 | DP375: 0 | DQ375: 0 | DR375: 0 | DS375: 0 | DT375: 0 | DU375: 0 | DV375: 0 | DW375: 0 | DX375: 0 | DY375: 0 | DZ375: 0 | EA375: 0 | EB375: 0 | EC375: 0 | ED375: 0 | EE375: 0 | EF375: 0 | EG375: 0 | EH375: 0 | EI375: 0 | EJ375: 0 | EK375: 0 | EL375: 0 | EM375: 0 | EN375: 0 | EO375: 0 | EP375: 0 | EQ375: 0 | ER375: 0 | ES375: 0 | ET375: 0 | EU375: 0 | EV375: 0 | EW375: 0 | EX375: 0 | EY375: 0 | EZ375: 0 | FA375: 0 | FB375: 0 | FC375: 0 | FD375: 0 | FE375: 0 | FF375: 0 | FG375: 0 | FH375: 0 | FI375: 0 | FJ375: 0 | FK375: 0 | FL375: 0 | FM375: 0 | FN375: 0 | FO375: 0 | FP375: 0 | FQ375: 0 | FR375: 0 | FS375: 0 | FT375: 0 | FU375: 0 | FV375: 0 | FW375: 0 | FX375: 0 | FY375: 0 | FZ375: 0 | GA375: 0 | GB375: 0 | GC375: 0 | GD375: 0 | GE375: 0 | GF375: 0 | GG375: 0 | GH375: 0 | GI375: 0 | GJ375: 0 | GK375: 0 | GL375: 0 | GM375: 0 | GN375: 0 | GO375: 0 | GP375: 0 | GQ375: 0 | GR375: 0 | GS375: 0 | GT375: 0 | GU375: 0 | GV375: 0 | GW375: 0 | GX375: 0 | GY375: 0 | GZ375: 0 | HA375: 0 | HB375: 0 | HC375: 0 | HD375: 0 | HE375: 0 | HF375: 0 | HG375: 0 | HH375: 0 | HI375: 0 | HJ375: 0 | HK375: 0 | HL375: 0 | HM375: 0 | HN375: 0 | HO375: 0 | HP375: 0 | HQ375: 0 | HR375: 0 | HS375: 0 | HT375: 0 | HU375: 0 | HV375: 0 | HW375: 0
A376: 3 | B376: 23 | C376: 4 | D376: 6 | E376: 2 | F376: 5 | G376: 7 | H376: 2 | I376: 2 | J376: 0 | K376: 1 | L376: 0 | M376: 1 | N376: 32 | O376: 32 | P376: 28 | Q376: 29 | R376: 26 | S376: 3 | T376: 0 | U376: 0 | V376: 0 | W376: 2 | X376: 21 | Y376: 0 | Z376: 1 | AA376: 6 | AB376: 0 | AC376: 0 | AD376: 16 | AE376: 0 | AF376: 4 | AG376: 0 | AH376: 0 | AI376: 0 | AJ376: 12 | AK376: 0 | AL376: 3 | AM376: 1 | AN376: 0 | AO376: 0 | AP376: 7 | AQ376: 1 | AR376: 0 | AS376: 2 | AT376: 0 | AU376: 0 | AV376: 1 | AW376: 0 | AX376: 49 | AY376: 10 | AZ376: 16 | BA376: 0 | BB376: 8 | BC376: 14 | BD376: 4 | BE376: 8 | BF376: 1 | BG376: 3 | BH376: 0 | BI376: 0 | BJ376: 15 | BK376: 15 | BL376: 2 | BM376: 36 | BN376: 0 | BO376: 0 | BP376: 0 | BQ376: 0 | BR376: 0 | BS376: 0 | BT376: 0 | BU376: 0 | BV376: 0 | BW376: 0 | BX376: 0 | BY376: 0 | BZ376: 0 | CA376: 0 | CB376: 0 | CC376: 0 | CD376: 0 | CE376: 0 | CF376: 4 | CG376: 10 | CH376: 0 | CI376: 0 | CJ376: 1 | CK376: 17 | CL376: 41 | CM376: 8 | CN376: 0 | CO376: 0 | CP376: 0 | CQ376: 0 | CR376: 0 | CS376: 0 | CT376: 0 | CU376: 0 | CV376: 0 | CW376: 0 | CX376: 0 | CY376: 0 | CZ376: 0 | DA376: 0 | DB376: 0 | DC376: 0 | DD376: 0 | DE376: 0 | DF376: 0 | DG376: 0 | DH376: 0 | DI376: 0 | DJ376: 0 | DK376: 0 | DL376: 0 | DM376: 0 | DN376: 0 | DO376: 0 | DP376: 0 | DQ376: 0 | DR376: 0 | DS376: 0 | DT376: 0 | DU376: 0 | DV376: 0 | DW376: 0 | DX376: 0 | DY376: 0 | DZ376: 0 | EA376: 0 | EB376: 0 | EC376: 0 | ED376: 0 | EE376: 0 | EF376: 0 | EG376: 0 | EH376: 0 | EI376: 0 | EJ376: 0 | EK376: 0 | EL376: 0 | EM376: 0 | EN376: 0 | EO376: 0 | EP376: 0 | EQ376: 0 | ER376: 0 | ES376: 0 | ET376: 0 | EU376: 0 | EV376: 0 | EW376: 0 | EX376: 0 | EY376: 0 | EZ376: 0 | FA376: 0 | FB376: 0 | FC376: 0 | FD376: 0 | FE376: 0 | FF376: 0 | FG376: 0 | FH376: 0 | FI376: 0 | FJ376: 0 | FK376: 0 | FL376: 0 | FM376: 0 | FN376: 0 | FO376: 0 | FP376: 0 | FQ376: 0 | FR376: 0 | FS376: 0 | FT376: 0 | FU376: 0 | FV376: 0 | FW376: 0 | FX376: 0 | FY376: 0 | FZ376: 0 | GA376: 0 | GB376: 0 | GC376: 0 | GD376: 0 | GE376: 0 | GF376: 0 | GG376: 0 | GH376: 0 | GI376: 0 | GJ376: 0 | GK376: 0 | GL376: 0 | GM376: 0 | GN376: 0 | GO376: 0 | GP376: 0 | GQ376: 0 | GR376: 0 | GS376: 0 | GT376: 0 | GU376: 0 | GV376: 0 | GW376: 0 | GX376: 0 | GY376: 0 | GZ376: 0 | HA376: 0 | HB376: 0 | HC376: 0 | HD376: 0 | HE376: 0 | HF376: 0 | HG376: 0 | HH376: 0 | HI376: 0 | HJ376: 0 | HK376: 0 | HL376: 0 | HM376: 0 | HN376: 0 | HO376: 0 | HP376: 0 | HQ376: 0 | HR376: 0 | HS376: 0 | HT376: 0 | HU376: 0 | HV376: 0 | HW376: 0
... 63 more rows

Sheet PPoR_1001
B5: "REPORTE MENSUAL DE ACTIVIDADES - PROMOCIÓN DE LA SALUD" 2021-2024
B8: DIRESA/DISA/GERESA | D8: EJECUTORA | H8: MES
B9: CUSCO | D9: =+TABLAS!O14 ->  | H9: =+TABLAS!N26 -> ENE - MAR
B10: RED
B11: =+TABLAS!O9 -> 03 - LA CONVENCION | H11: AÑO
B12: MICRO RED | D12: PROVINCIA | H12: =+TABLAS!J16 -> 2025
B13: =+TABLAS!O10 ->  | D13: =+TABLAS!O12 ->  | H13: =+TABLAS!M20 -> 0
B14: IPRESS | D14: DISTRITO
B15: =+TABLAS!O11 ->  | D15: =+TABLAS!O13 ->  | H15: =IF(H13=1,MID(A16,1,9)&"_"&MID(A16,13,20)&"_"&MID(H9,1,3)&"_"&H12,MID(A16,1,9)&"_"&MID(A16,13,20)&"_"&MID(H9,1,3)&"_"&MID(H9,7,3)&"_"&H12) -> __ENE_MAR_2025
B18: PRODUCTO: FAMILIAS SALUDABLES CON CONOCIMIENTOS PARA EL CUIDADO INFANTIL, LACTANCIA MATERNA EXCLUSIVA Y LA ADECUADA ALIMENTACION Y PROTECCION DEL MENOR DE 36 MESES
B19: ACTIVIDAD: FAMILIAS CON NIÑO/AS MENORES DE 36 MESES DESARROLLAN PRACTICAS SALUDABLES | AL19: ",TABLAS!$A$75)
B20: SUB PRODUCTO: FAMILIAS CON NIÑOS (AS) MENORES DE 12 MESES Y GESTANTES RECIBEN ACOMPAÑAMIENTO A TRAVES DE SESIONES DEMOSTRATIVAS EN PREPARACIÓN DE ALIMENTOS. | AK20: =+IMPORTARDATOSDINAMICOS(" BAS
B22: 1.1. EN FAMILIAS CON NIÑAS Y NIÑOS DE 6 MESES A 11 MESES
C24: 1 | D24: 2 | E24: 3
B25: TIPOS DE ACTIVIDAD/ EDADES | C25: 6 - 8 meses | D25: 9 - 11 meses | E25: S/D
A26: 1 | B26: Preparacion de alimentos (ALI) | C26: =+GETPIVOTDATA(" BAS001",TABLAS!$A$75) -> 63 | D26: =+GETPIVOTDATA(" BAS002",TABLAS!$A$75) -> 48 | E26: =+GETPIVOTDATA(" BAS003",TABLAS!$A$75) -> 7 | S26: 1 | T26: =+S26+1 -> 2 | U26: =+T26+1 -> 3 | AA26: =IF(LEN(S26)=1,CONCATENATE("00",S26),IF(LEN(S26)=2,CONCATENATE("0",S26),S26)) -> 001 | AB26: =IF(LEN(T26)=1,CONCATENATE("00",T26),IF(LEN(T26)=2,CONCATENATE("0",T26),T26)) -> 002 | AC26: =IF(LEN(U26)=1,CONCATENATE("00",U26),IF(LEN(U26)=2,CONCATENATE("0",U26),U26)) -> 003 | AK26: =+$AK$20&AA26&$AL$19 -> =+IMPORTARDATOSDINAMICOS(" BAS001",TABLAS!$A$75) | AL26: =+$AK$20&AB26&$AL$19 -> =+IMPORTARDATOSDINAMICOS(" BAS002",TABLAS!$A$75) | AM26: =+IMPORTARDATOSDINAMICOS(" BAS003",TABLAS!$A$75)
B29: 1.2. SESIONES DEMOSTRATIVAS A GESTANTES
C31: 1 | D31: 2 | E31: 3
C32: GESTANTE (NORMAL/RIESGO)
B33: TIPOS DE ACTIVIDAD/ EDADES | C33: I Trim | D33: II Trim | E33: III Trim
A34: 1 | B34: Preparacion de alimentos (ALI) | C34: =+GETPIVOTDATA(" BAS004",TABLAS!$A$75) -> 6 | D34: =+GETPIVOTDATA(" BAS005",TABLAS!$A$75) -> 7 | E34: =+GETPIVOTDATA(" BAS006",TABLAS!$A$75) -> 17 | S34: =+U26+1 -> 4 | T34: =+S34+1 -> 5 | U34: =+T34+1 -> 6 | AA34: =IF(LEN(S34)=1,CONCATENATE("00",S34),IF(LEN(S34)=2,CONCATENATE("0",S34),S34)) -> 004 | AB34: 005 | AC34: 006 | AK34: =+$AK$20&AA34&$AL$19 -> =+IMPORTARDATOSDINAMICOS(" BAS004",TABLAS!$A$75) | AL34: =+IMPORTARDATOSDINAMICOS(" BAS005",TABLAS!$A$75) | AM34: =+IMPORTARDATOSDINAMICOS(" BAS006",TABLAS!$A$75)
B37: 1.3. CUANDO LA SESION DEMOSTRATIVA SE REALICE EN CENTROS DE PROMOCION Y VIGILANCIA COMUNAL
C39: 1 | D39: 2 | E39: 3 | F39: 4 | G39: 5 | H39: 6
C40: Familias con niñas y niños de 6 a 11 meses | F40: Gestante
B41: TIPOS DE ACTIVIDAD/ EDADES | C41: 6 - 8 meses | D41: 9 - 11 meses | E41: S/D | F41: I Trim | G41: II Trim | H41: III Trim
A42: 1 | B42: Preparacion de alimentos (ALI) | C42: =+GETPIVOTDATA(" BAS007",TABLAS!$A$75) -> 3 | D42: =+GETPIVOTDATA(" BAS008",TABLAS!$A$75) -> 0 | E42: =+GETPIVOTDATA(" BAS009",TABLAS!$A$75) -> 0 | F42: =+GETPIVOTDATA(" BAS010",TABLAS!$A$75) -> 0 | G42: =+GETPIVOTDATA(" BAS011",TABLAS!$A$75) -> 1 | H42: =+GETPIVOTDATA(" BAS012",TABLAS!$A$75) -> 0 | S42: =+U34+1 -> 7 | T42: =+S42+1 -> 8 | U42: =+T42+1 -> 9 | V42: =+U42+1 -> 10 | W42: 11 | X42: =+W42+1 -> 12 | AA42: =IF(LEN(S42)=1,CONCATENATE("00",S42),IF(LEN(S42)=2,CONCATENATE("0",S42),S42)) -> 007 | AB42: 008 | AC42: 009 | AD42: 010 | AE42: 011 | AF42: 012 | AK42: =+$AK$20&AA42&$AL$19 -> =+IMPORTARDATOSDINAMICOS(" BAS007",TABLAS!$A$75) | AL42: =+IMPORTARDATOSDINAMICOS(" BAS008",TABLAS!$A$75) | AM42: =+IMPORTARDATOSDINAMICOS(" BAS009",TABLAS!$A$75) | AN42: =+IMPORTARDATOSDINAMICOS(" BAS010",TABLAS!$A$75) | AO42: =+IMPORTARDATOSDINAMICOS(" BAS011",TABLAS!$A$75) | AP42: =+IMPORTARDATOSDINAMICOS(" BAS012",TABLAS!$A$75)
B44: 1.4. CUANDO LA SESION DEMOSTRATIVA SEA PROMOVIDA POR EL GOBIERNO LOCAL
C46: 1 | D46: 2 | E46: 3 | F46: 4 | G46: 5 | H46: 6
C47: Familias con niñas y niños de 6 a 11 meses | F47: Gestante
B48: TIPOS DE ACTIVIDAD/ EDADES | C48: 6 - 8 meses | D48: 9 - 11 meses | E48: S/D | F48: I Trim | G48: II Trim | H48: III Trim
A49: 1 | B49: Preparacion de alimentos (ALI) | C49: =+GETPIVOTDATA(" BAS013",TABLAS!$A$75) -> 33 | D49: =+GETPIVOTDATA(" BAS014",TABLAS!$A$75) -> 29 | E49: =+GETPIVOTDATA(" BAS015",TABLAS!$A$75) -> 0 | F49: =+GETPIVOTDATA(" BAS016",TABLAS!$A$75) -> 0 | G49: =+GETPIVOTDATA(" BAS017",TABLAS!$A$75) -> 6 | H49: =+GETPIVOTDATA(" BAS018",TABLAS!$A$75) -> 10 | S49: =+X42+1 -> 13 | T49: =+S49+1 -> 14 | U49: =+T49+1 -> 15 | V49: =+U49+1 -> 16 | W49: 17 | X49: =+W49+1 -> 18 | AA49: =IF(LEN(S49)=1,CONCATENATE("00",S49),IF(LEN(S49)=2,CONCATENATE("0",S49),S49)) -> 013 | AB49: 014 | AC49: 015 | AD49: 016 | AE49: 017 | AF49: 018 | AK49: =+$AK$20&AA49&$AL$19 -> =+IMPORTARDATOSDINAMICOS(" BAS013",TABLAS!$A$75) | AL49: =+IMPORTARDATOSDINAMICOS(" BAS014",TABLAS!$A$75) | AM49: =+IMPORTARDATOSDINAMICOS(" BAS015",TABLAS!$A$75) | AN49: =+IMPORTARDATOSDINAMICOS(" BAS016",TABLAS!$A$75) | AO49: =+IMPORTARDATOSDINAMICOS(" BAS017",TABLAS!$A$75) | AP49: =+IMPORTARDATOSDINAMICOS(" BAS018",TABLAS!$A$75)
B52: SUB PRODUCTO 3325107: FAMILIAS CON NIÑOS MENORES DE 12 MESES RECIBEN ACOMPAÑAMIENTO A TRAVÉS DE LA CONSEJERÍA EN LA VISITA DOMICILIARIA. (Subproducto trazador de la Actividad 1 y del Producto)
B54: Visita domiciliaria al Recién Nacido (dentro de los 28 días de nacido):
D56: 1 | E56: 2
B57: TIPOS DE ACTIVIDAD DE VD/ EDADES | D57: Oportuno >=1 dia y <=7 dias | E57: Inoportuno >=1 dia y <=28 dias
A58: 1 | B58: Consejeria en lactancia Materna exclusiva | D58: =+GETPIVOTDATA(" BAS019",TABLAS!$A$75) -> 139 | E58: =+GETPIVOTDATA(" BAS020",TABLAS!$A$75) -> 171 | S58: =+X49+1 -> 19 | T58: =+S58+1 -> 20 | AA58: =IF(LEN(S58)=1,CONCATENATE("00",S58),IF(LEN(S58)=2,CONCATENATE("0",S58),S58)) -> 019 | AB58: 020 | AK58: =+$AK$20&AA58&$AL$19 -> =+IMPORTARDATOSDINAMICOS(" BAS019",TABLAS!$A$75) | AL58: =+IMPORTARDATOSDINAMICOS(" BAS020",TABLAS!$A$75)
A59: 2 | B59: Consejería en Corte y cuidado del cordón umbilical | D59: =+GETPIVOTDATA(" BAS021",TABLAS!$A$75) -> 126 | E59: =+GETPIVOTDATA(" BAS022",TABLAS!$A$75) -> 155 | S59: =+T58+1 -> 21 | T59: =+S59+1 -> 22 | AA59: 021 | AB59: 022 | AK59: =+IMPORTARDATOSDINAMICOS(" BAS021",TABLAS!$A$75) | AL59: =+IMPORTARDATOSDINAMICOS(" BAS022",TABLAS!$A$75)
A60: 3 | B60: Consejería en Higiene del recién nacido y cuidado en el hogar | D60: =+GETPIVOTDATA(" BAS023",TABLAS!$A$75) -> 4 | E60: =+GETPIVOTDATA(" BAS024",TABLAS!$A$75) -> 9 | S60: =+T59+1 -> 23 | T60: 24 | AA60: 023 | AB60: 024 | AK60: =+IMPORTARDATOSDINAMICOS(" BAS023",TABLAS!$A$75) | AL60: =+IMPORTARDATOSDINAMICOS(" BAS024",TABLAS!$A$75)
A61: 4 | B61: Consejería en Identificación de signos de alarma | D61: =+GETPIVOTDATA(" BAS025",TABLAS!$A$75) -> 20 | E61: =+GETPIVOTDATA(" BAS026",TABLAS!$A$75) -> 24 | S61: 25 | T61: 26 | AA61: 025 | AB61: 026 | AK61: =+IMPORTARDATOSDINAMICOS(" BAS025",TABLAS!$A$75) | AL61: =+IMPORTARDATOSDINAMICOS(" BAS026",TABLAS!$A$75)
B63: Visita domiciliaria a Niñas (os) de 2 a 5 meses de edad:
C65: 1 | D65: 2 | E65: 3 | F65: 4
B66: TIPOS DE ACTIVIDAD DE VD/ EDADES | C66: 2 meses | D66: 3 meses | E66: 4 meses | F66: 5 meses
A67: 1 | B67: Consejeria integral | C67: =+GETPIVOTDATA(" BAS027",TABLAS!$A$75) -> 65 | D67: =+GETPIVOTDATA(" BAS028",TABLAS!$A$75) -> 60 | E67: =+GETPIVOTDATA(" BAS029",TABLAS!$A$75) -> 211 | F67: =+GETPIVOTDATA(" BAS030",TABLAS!$A$75) -> 137 | S67: =+T61+1 -> 27 | T67: =+S67+1 -> 28 | U67: 29 | V67: 30 | AA67: =IF(LEN(S67)=1,CONCATENATE("00",S67),IF(LEN(S67)=2,CONCATENATE("0",S67),S67)) -> 027 | AB67: 028 | AC67: 029 | AD67: 030 | AK67: =+$AK$20&AA67&$AL$19 -> =+IMPORTARDATOSDINAMICOS(" BAS027",TABLAS!$A$75) | AL67: =+IMPORTARDATOSDINAMICOS(" BAS028",TABLAS!$A$75) | AM67: =+IMPORTARDATOSDINAMICOS(" BAS029",TABLAS!$A$75) | AN67: =+IMPORTARDATOSDINAMICOS(" BAS030",TABLAS!$A$75)
B69: Visita domiciliaria a Niñas (os) de 6 a 8 meses de edad sin Dx. Anemia:
C71: 1 | D71: 2 | E71: 3
B72: TIPOS DE ACTIVIDAD DE VD/ EDADES | C72: 6 meses | D72: 7 meses | E72: 8 meses
A73: 1 | B73: Consejeria integral | C73: =+GETPIVOTDATA(" BAS031",TABLAS!$A$75) -> 135 | D73: =+GETPIVOTDATA(" BAS032",TABLAS!$A$75) -> 97 | E73: =+GETPIVOTDATA(" BAS033",TABLAS!$A$75) -> 107 | S73: =+V67+1 -> 31 | T73: =+S73+1 -> 32 | U73: 33 | AA73: =IF(LEN(S73)=1,CONCATENATE("00",S73),IF(LEN(S73)=2,CONCATENATE("0",S73),S73)) -> 031 | AB73: 032 | AC73: 033 | AD73: 0 | AK73: =+$AK$20&AA73&$AL$19 -> =+IMPORTARDATOSDINAMICOS(" BAS031",TABLAS!$A$75) | AL73: =+IMPORTARDATOSDINAMICOS(" BAS032",TABLAS!$A$75) | AM73: =+IMPORTARDATOSDINAMICOS(" BAS033",TABLAS!$A$75) | AN73: =+IMPORTARDATOSDINAMICOS(" BAS0",TABLAS!$A$75)
B76: Visita domiciliaria a Niñas (os) de 9 a 11 meses de edad sin Dx. Anemia:
C78: 1 | D78: 2 | E78: 3
B79: TIPOS DE ACTIVIDAD DE VD/ EDADES | C79: 9 meses | D79: 10 meses | E79: 11 meses
A80: 1 | B80: Consejeria integral | C80: =+GETPIVOTDATA(" BAS034",TABLAS!$A$75) -> 105 | D80: =+GETPIVOTDATA(" BAS035",TABLAS!$A$75) -> 85 | E80: =+GETPIVOTDATA(" BAS036",TABLAS!$A$75) -> 69 | S80: =+U73+1 -> 34 | T80: =+S80+1 -> 35 | U80: 36 | AA80: =IF(LEN(S80)=1,CONCATENATE("00",S80),IF(LEN(S80)=2,CONCATENATE("0",S80),S80)) -> 034 | AB80: 035 | AC80: 036 | AK80: =+$AK$20&AA80&$AL$19 -> =+IMPORTARDATOSDINAMICOS(" BAS034",TABLAS!$A$75) | AL80: =+IMPORTARDATOSDINAMICOS(" BAS035",TABLAS!$A$75) | AM80: =+IMPORTARDATOSDINAMICOS(" BAS036",TABLAS!$A$75)
B82: Visita domiciliaria a Niñas (os) de 6 a 8 meses de edad con Dx. Anemia:
C84: 1 | D84: 2 | E84: 3
B85: TIPOS DE ACTIVIDAD DE VD/ EDADES | C85: 6 meses | D85: 7 meses | E85: 8 meses
A86: 1 | B86: Consejeria integral | C86: =+GETPIVOTDATA(" BAS037",TABLAS!$A$75) -> 16 | D86: =+GETPIVOTDATA(" BAS038",TABLAS!$A$75) -> 5 | E86: =+GETPIVOTDATA(" BAS039",TABLAS!$A$75) -> 5 | S86: =+U80+1 -> 37 | T86: =+S86+1 -> 38 | U86: 39 | AA86: =IF(LEN(S86)=1,CONCATENATE("00",S86),IF(LEN(S86)=2,CONCATENATE("0",S86),S86)) -> 037 | AB86: 038 | AC86: 039 | AK86: =+$AK$20&AA86&$AL$19 -> =+IMPORTARDATOSDINAMICOS(" BAS037",TABLAS!$A$75) | AL86: =+IMPORTARDATOSDINAMICOS(" BAS038",TABLAS!$A$75) | AM86: =+IMPORTARDATOSDINAMICOS(" BAS039",TABLAS!$A$75)
B88: Visita domiciliaria a Niñas (os) de 9 a 11 meses de edad con Dx. Anemia:
C90: 1 | D90: 2 | E90: 3
B91: TIPOS DE ACTIVIDAD DE VD/ EDADES | C91: 9 meses | D91: 10 meses | E91: 11 meses
A92: 1 | B92: Consejeria integral | C92: =+GETPIVOTDATA(" BAS040",TABLAS!$A$75) -> 8 | D92: =+GETPIVOTDATA(" BAS041",TABLAS!$A$75) -> 8 | E92: =+GETPIVOTDATA(" BAS042",TABLAS!$A$75) -> 8 | S92: =+U86+1 -> 40 | T92: =+S92+1 -> 41 | U92: 42 | AA92: =IF(LEN(S92)=1,CONCATENATE("00",S92),IF(LEN(S92)=2,CONCATENATE("0",S92),S92)) -> 040 | AB92: 041 | AC92: 042 | AK92: =+$AK$20&AA92&$AL$19 -> =+IMPORTARDATOSDINAMICOS(" BAS040",TABLAS!$A$75) | AL92: =+IMPORTARDATOSDINAMICOS(" BAS041",TABLAS!$A$75) | AM92: =+IMPORTARDATOSDINAMICOS(" BAS042",TABLAS!$A$75)
B95: SUB PRODUCTO 3325112 - FAMILIAS CON NIÑOS (AS) MENORES DE 12 MESES Y GESTANTES QUE RECIBEN ACOMPAÑAMIENTO A TRAVES DE LAS SESIONES DE GRUPOS DE APOYO COMUNAL
B96: Reunión de coordinación entre el personal de salud encargado y actores claves de la comunidad para promover la implementación/reactivación (continuidad) de los grupos de apoyo.
C98: 1 | D98: 2
B99: TIPOS DE ACTIVIDAD | C99: Nº | D99: Participantes | M99: 81251157
A100: 1 | B100: Reunión de Coordinación -implementación | C100: =+GETPIVOTDATA(" BAS043",TABLAS!$A$75) -> 5 | D100: =+GETPIVOTDATA(" BAS044",TABLAS!$A$75) -> 33 | S100: =+U92+1 -> 43 | T100: =+S100+1 -> 44 | AA100: =IF(LEN(S100)=1,CONCATENATE("00",S100),IF(LEN(S100)=2,CONCATENATE("0",S100),S100)) -> 043 | AB100: 044 | AK100: =+$AK$20&AA100&$AL$19 -> =+IMPORTARDATOSDINAMICOS(" BAS043",TABLAS!$A$75) | AL100: =+IMPORTARDATOSDINAMICOS(" BAS044",TABLAS!$A$75)
A101: 2 | B101: Reunión de Coordinación - Reactivación | C101: =+GETPIVOTDATA(" BAS045",TABLAS!$A$75) -> 14 | D101: =+GETPIVOTDATA(" BAS046",TABLAS!$A$75) -> 52 | S101: =+T100+1 -> 45 | T101: =+S101+1 -> 46 | AA101: 045 | AB101: 046 | AK101: =+IMPORTARDATOSDINAMICOS(" BAS045",TABLAS!$A$75) | AL101: =+IMPORTARDATOSDINAMICOS(" BAS046",TABLAS!$A$75)
B103: Taller de capacitación en prácticas saludables para el cuidado infantil con énfasis en lactancia materna, alimentación y nutrición infantil.
C105: 1 | D105: 2 | H105: 3 | I105: 4
B106: TIPOS DE ACTIVIDAD | C106: LME | E106: TIPOS DE ACTIVIDAD | H106: ALI
C107: N° DE ASISTENCIA TÉCNICA | D107: N° PARTICIPANTES | H107: N° DE ASISTENCIA TÉCNICA | I107: N° PARTICIPANTES
A108: 1 | B108: Sesión 1: Habilidades comunicacionales y conducción de grupos de apoyo | C108: =+GETPIVOTDATA(" BAS047",TABLAS!$A$75) -> 2 | D108: =+GETPIVOTDATA(" BAS048",TABLAS!$A$75) -> 21 | E108: Sesión 5: Alimentación complementaria | H108: =+GETPIVOTDATA(" BAS055",TABLAS!$A$75) -> 0 | I108: =+GETPIVOTDATA(" BAS056",TABLAS!$A$75) -> 0 | S108: =+T101+1 -> 47 | T108: =+S108+1 -> 48 | V108: =+T111+1 -> 55 | W108: =+V108+1 -> 56 | AA108: =IF(LEN(S108)=1,CONCATENATE("00",S108),IF(LEN(S108)=2,CONCATENATE("0",S108),S108)) -> 047 | AB108: 048 | AD108: =IF(LEN(V108)=1,CONCATENATE("00",V108),IF(LEN(V108)=2,CONCATENATE("0",V108),V108)) -> 055 | AE108: 056 | AK108: =+$AK$20&AA108&$AL$19 -> =+IMPORTARDATOSDINAMICOS(" BAS047",TABLAS!$A$75) | AL108: =+IMPORTARDATOSDINAMICOS(" BAS048",TABLAS!$A$75) | AN108: =+$AK$20&AD108&$AL$19 -> =+IMPORTARDATOSDINAMICOS(" BAS055",TABLAS!$A$75) | AO108: =+IMPORTARDATOSDINAMICOS(" BAS056",TABLAS!$A$75)
A109: 2 | B109: Sesión 2: Lactancia materna y embarazo | C109: =+GETPIVOTDATA(" BAS049",TABLAS!$A$75) -> 1 | D109: =+GETPIVOTDATA(" BAS050",TABLAS!$A$75) -> 20 | E109: Sesión 6: Anemia y suplementación con hierro | H109: =+GETPIVOTDATA(" BAS057",TABLAS!$A$75) -> 0 | I109: =+GETPIVOTDATA(" BAS058",TABLAS!$A$75) -> 0 | S109: =+T108+1 -> 49 | T109: =+S109+1 -> 50 | V109: =+W108+1 -> 57 | W109: =+V109+1 -> 58 | AA109: 049 | AB109: 050 | AD109: 057 | AE109: 058 | AK109: =+IMPORTARDATOSDINAMICOS(" BAS049",TABLAS!$A$75) | AL109: =+IMPORTARDATOSDINAMICOS(" BAS050",TABLAS!$A$75) | AN109: =+IMPORTARDATOSDINAMICOS(" BAS057",TABLAS!$A$75) | AO109: =+IMPORTARDATOSDINAMICOS(" BAS058",TABLAS!$A$75)
A110: 3 | B110: Sesión 3: Lactancia materna y el niño o niña menor de seis mes | C110: =+GETPIVOTDATA(" BAS051",TABLAS!$A$75) -> 1 | D110: =+GETPIVOTDATA(" BAS052",TABLAS!$A$75) -> 20 | E110: Sesión 7: Desnutrición crónica, cuidado infantil, entre otros temas de prioridad | H110: =+GETPIVOTDATA(" BAS059",TABLAS!$A$75) -> 0 | I110: =+GETPIVOTDATA(" BAS060",TABLAS!$A$75) -> 0 | S110: =+T109+1 -> 51 | T110: =+S110+1 -> 52 | V110: =+W109+1 -> 59 | W110: =+V110+1 -> 60 | AA110: 051 | AB110: 052 | AD110: 059 | AE110: 060 | AK110: =+IMPORTARDATOSDINAMICOS(" BAS051",TABLAS!$A$75) | AL110: =+IMPORTARDATOSDINAMICOS(" BAS052",TABLAS!$A$75) | AN110: =+IMPORTARDATOSDINAMICOS(" BAS059",TABLAS!$A$75) | AO110: =+IMPORTARDATOSDINAMICOS(" BAS060",TABLAS!$A$75)
A111: 4 | B111: Sesión 4: Lactancia materna y el niño o niña de seis (6) a veinticuatro (24) meses. | C111: =+GETPIVOTDATA(" BAS053",TABLAS!$A$75) -> 1 | D111: =+GETPIVOTDATA(" BAS054",TABLAS!$A$75) -> 20 | S111: 53 | T111: 54 | AA111: 053 | AB111: 054 | AK111: =+IMPORTARDATOSDINAMICOS(" BAS053",TABLAS!$A$75) | AL111: =+IMPORTARDATOSDINAMICOS(" BAS054",TABLAS!$A$75)
B113: Asistencia técnica
C114: 1 | D114: 2 | E114: 3 | F114: 4
B115: TIPOS DE ACTIVIDAD | C115: LME | E115: ALI
C116: N° DE ASISTENCIA TÉCNICA | D116: N° PARTICIPANTES | E116: N° DE ASISTENCIA TÉCNICA | F116: N° PARTICIPANTES
A117: 1 | B117: Asistencia técnica | C117: =+GETPIVOTDATA(" BAS061",TABLAS!$A$75) -> 0 | D117: =+GETPIVOTDATA(" BAS062",TABLAS!$A$75) -> 0 | E117: =+GETPIVOTDATA(" BAS063",TABLAS!$A$75) -> 0 | F117: =+GETPIVOTDATA(" BAS064",TABLAS!$A$75) -> 0 | S117: =+W110+1 -> 61 | T117: =+S117+1 -> 62 | U117: =+T117+1 -> 63 | V117: =+U117+1 -> 64 | AA117: =IF(LEN(S117)=1,CONCATENATE("00",S117),IF(LEN(S117)=2,CONCATENATE("0",S117),S117)) -> 061 | AB117: 062 | AC117: 063 | AD117: 064 | AK117: =+$AK$20&AA117&$AL$19 -> =+IMPORTARDATOSDINAMICOS(" BAS061",TABLAS!$A$75) | AL117: =+IMPORTARDATOSDINAMICOS(" BAS062",TABLAS!$A$75) | AM117: =+IMPORTARDATOSDINAMICOS(" BAS063",TABLAS!$A$75) | AN117: =+IMPORTARDATOSDINAMICOS(" BAS064",TABLAS!$A$75)
B119: Funcionamiento de los Grupos de apoyo
C121: 1 | D121: 2 | E121: 3 | F121: 4
B122: TIPOS DE ACTIVIDAD | C122: LME | E122: ALI
C123: N° DE SESIÓN | D123: N° DE PARTICIPANTES | E123: N° DE SESIÓN | F123: N° PARTICIPANTES
A124: 1 | B124: 1ra sesion | C124: =+GETPIVOTDATA(" BAS065",TABLAS!$A$75) -> 0 | D124: =+GETPIVOTDATA(" BAS066",TABLAS!$A$75) -> 0 | E124: =+GETPIVOTDATA(" BAS073",TABLAS!$A$75) -> 0 | F124: =+GETPIVOTDATA(" BAS074",TABLAS!$A$75) -> 0 | S124: =+V117+1 -> 65 | T124: =+S124+1 -> 66 | V124: =+T127+1 -> 73 | W124: =+V124+1 -> 74 | AA124: =IF(LEN(S124)=1,CONCATENATE("00",S124),IF(LEN(S124)=2,CONCATENATE("0",S124),S124)) -> 065 | AB124: 066 | AD124: =IF(LEN(V124)=1,CONCATENATE("00",V124),IF(LEN(V124)=2,CONCATENATE("0",V124),V124)) -> 073 | AE124: 074 | AK124: =+$AK$20&AA124&$AL$19 -> =+IMPORTARDATOSDINAMICOS(" BAS065",TABLAS!$A$75) | AL124: =+IMPORTARDATOSDINAMICOS(" BAS066",TABLAS!$A$75) | AN124: =+$AK$20&AD124&$AL$19 -> =+IMPORTARDATOSDINAMICOS(" BAS073",TABLAS!$A$75) | AO124: =+IMPORTARDATOSDINAMICOS(" BAS074",TABLAS!$A$75)
A125: 2 | B125: 2da sesion | C125: =+GETPIVOTDATA(" BAS067",TABLAS!$A$75) -> 0 | D125: =+GETPIVOTDATA(" BAS068",TABLAS!$A$75) -> 0 | E125: =+GETPIVOTDATA(" BAS075",TABLAS!$A$75) -> 0 | F125: =+GETPIVOTDATA(" BAS076",TABLAS!$A$75) -> 0 | S125: =+T124+1 -> 67 | T125: =+S125+1 -> 68 | V125: =+W124+1 -> 75 | W125: =+V125+1 -> 76 | AA125: 067 | AB125: 068 | AD125: 075 | AE125: 076 | AK125: =+IMPORTARDATOSDINAMICOS(" BAS067",TABLAS!$A$75) | AL125: =+IMPORTARDATOSDINAMICOS(" BAS068",TABLAS!$A$75) | AN125: =+IMPORTARDATOSDINAMICOS(" BAS075",TABLAS!$A$75) | AO125: =+IMPORTARDATOSDINAMICOS(" BAS076",TABLAS!$A$75)
A126: 3 | B126: 3ra sesion | C126: =+GETPIVOTDATA(" BAS069",TABLAS!$A$75) -> 0 | D126: =+GETPIVOTDATA(" BAS070",TABLAS!$A$75) -> 0 | E126: =+GETPIVOTDATA(" BAS077",TABLAS!$A$75) -> 0 | F126: =+GETPIVOTDATA(" BAS078",TABLAS!$A$75) -> 0 | S126: =+T125+1 -> 69 | T126: =+S126+1 -> 70 | V126: =+W125+1 -> 77 | W126: =+V126+1 -> 78 | AA126: 069 | AB126: 070 | AD126: 077 | AE126: 078 | AK126: =+IMPORTARDATOSDINAMICOS(" BAS069",TABLAS!$A$75) | AL126: =+IMPORTARDATOSDINAMICOS(" BAS070",TABLAS!$A$75) | AN126: =+IMPORTARDATOSDINAMICOS(" BAS077",TABLAS!$A$75) | AO126: =+IMPORTARDATOSDINAMICOS(" BAS078",TABLAS!$A$75)
A127: 4 | B127: 4ta sesion | C127: =+GETPIVOTDATA(" BAS071",TABLAS!$A$75) -> 0 | D127: =+GETPIVOTDATA(" BAS072",TABLAS!$A$75) -> 0 | S127: 71 | T127: 72 | AA127: 071 | AB127: 072 | AK127: =+IMPORTARDATOSDINAMICOS(" BAS071",TABLAS!$A$75) | AL127: =+IMPORTARDATOSDINAMICOS(" BAS072",TABLAS!$A$75)
B129: Monitoreo
C130: 1 | D130: 2
B131: TIPOS DE ACTIVIDAD | C131: N° DE SESIÓN | D131: N° DE PARTICIPANTES
A132: 1 | B132: 1er Monitoreo | C132: =+GETPIVOTDATA(" BAS079",TABLAS!$A$75) -> 0 | D132: =+GETPIVOTDATA(" BAS080",TABLAS!$A$75) -> 0 | S132: =+W126+1 -> 79 | T132: =+S132+1 -> 80 | AA132: =IF(LEN(S132)=1,CONCATENATE("00",S132),IF(LEN(S132)=2,CONCATENATE("0",S132),S132)) -> 079 | AB132: 080 | AK132: =+$AK$20&AA132&$AL$19 -> =+IMPORTARDATOSDINAMICOS(" BAS079",TABLAS!$A$75) | AL132: =+IMPORTARDATOSDINAMICOS(" BAS080",TABLAS!$A$75)
A133: 2 | B133: 2do Monitoreo | C133: =+GETPIVOTDATA(" BAS081",TABLAS!$A$75) -> 0 | D133: =+GETPIVOTDATA(" BAS082",TABLAS!$A$75) -> 0 | S133: =+T132+1 -> 81 | T133: =+S133+1 -> 82 | AA133: 081 | AB133: 082 | AK133: =+IMPORTARDATOSDINAMICOS(" BAS081",TABLAS!$A$75) | AL133: =+IMPORTARDATOSDINAMICOS(" BAS082",TABLAS!$A$75)
B135: ACTIVIDAD: CAPACITACION A ACTORES SOCIALES QUE PROMUEVEN EL CUIDADO INFANTIL, LACTANCIA MATERNA EXCLUSIVA Y LA ADECUADA ALIMENTACION Y PROTECCION DEL MENOR DE 36 MESES
B136: SUB PRODUCTO: COMITES MULTISECTORIALES CAPACITADOS PARA LA PROMOCIÓN DEL CUIDADO INFANTIL, LACTANCIA MATERNA EXCLUSIVA Y LA ADECUADA ALIMENTACIÓN Y PROTECCIÓN DEL MENOR DE 36 MESES EN SU DISTRITO.
B138: Reunión de coordinación con la Municipalidad
E139: 1 | F139: 2
B140: Reuniones | E140: Reuniones | F140: Participantes | S140: =+T133+1 -> 83 | T140: =+S140+1 -> 84 | AA140: =IF(LEN(S140)=1,CONCATENATE("00",S140),IF(LEN(S140)=2,CONCATENATE("0",S140),S140)) -> 083 | AB140: 084 | AK140: =+$AK$20&AA140&$AL$19 -> =+IMPORTARDATOSDINAMICOS(" BAS083",TABLAS!$A$75) | AL140: =+IMPORTARDATOSDINAMICOS(" BAS084",TABLAS!$A$75)
A141: 1 | B141: Reunión de coordinación con la Municipalidad | E141: =+GETPIVOTDATA(" BAS083",TABLAS!$A$75) -> 3 | F141: =+GETPIVOTDATA(" BAS084",TABLAS!$A$75) -> 24 | S141: =+T140+1 -> 85 | T141: =+S141+1 -> 86 | AA141: 085 | AB141: 086 | AK141: =+IMPORTARDATOSDINAMICOS(" BAS085",TABLAS!$A$75) | AL141: =+IMPORTARDATOSDINAMICOS(" BAS086",TABLAS!$A$75)
A142: 2 | B142: Reunión tecnica con la Municipalidad para conformación del Comité Multisectorial | E142: =+GETPIVOTDATA(" BAS085",TABLAS!$A$75) -> 7 | F142: =+GETPIVOTDATA(" BAS086",TABLAS!$A$75) -> 68 | S142: =+T141+1 -> 87 | T142: =+S142+1 -> 88 | AA142: 087 | AB142: 088 | AK142: =+IMPORTARDATOSDINAMICOS(" BAS087",TABLAS!$A$75) | AL142: =+IMPORTARDATOSDINAMICOS(" BAS088",TABLAS!$A$75)
A143: 3 | B143: Reunión de socialización de la informacion para el analisis de anemia y DCI. | E143: =+GETPIVOTDATA(" BAS087",TABLAS!$A$75) -> 5 | F143: =+GETPIVOTDATA(" BAS088",TABLAS!$A$75) -> 53 | S143: 89 | T143: 90 | AA143: 089 | AB143: 090 | AK143: =+IMPORTARDATOSDINAMICOS(" BAS089",TABLAS!$A$75) | AL143: =+IMPORTARDATOSDINAMICOS(" BAS090",TABLAS!$A$75)
A144: 4 | B144: Taller de planificación para la elaboración del plan de trabajo multisectorial para contribuir en la reducción de la Anemia y DCI en el distrito. | E144: =+GETPIVOTDATA(" BAS089",TABLAS!$A$75) -> 0 | F144: =+GETPIVOTDATA(" BAS090",TABLAS!$A$75) -> 0
B146: Reunión técnica con la Municipalidad para la conformación o reactivación del Comité Multisectorial
C148: 1 | D148: 2
B149: Actividad | C149: Reuniones | D149: Participantes
A150: 1 | B150: Reunión técnica | C150: =+GETPIVOTDATA(" BAS091",TABLAS!$A$75) -> 7 | D150: =+GETPIVOTDATA(" BAS092",TABLAS!$A$75) -> 68 | S150: =+T143+1 -> 91 | T150: =+S150+1 -> 92 | AA150: =IF(LEN(S150)=1,CONCATENATE("00",S150),IF(LEN(S150)=2,CONCATENATE("0",S150),S150)) -> 091 | AB150: 092 | AK150: =+$AK$20&AA150&$AL$19 -> =+IMPORTARDATOSDINAMICOS(" BAS091",TABLAS!$A$75) | AL150: =+IMPORTARDATOSDINAMICOS(" BAS092",TABLAS!$A$75)
B152: Reunión de socialización de la información para el análisis de la situación de Anemia y DCI en el distrito.
C154: 1 | D154: 2
B155: Actividad | C155: Reuniones | D155: Participantes
A156: 1 | B156: Reunión de socialización | C156: =+GETPIVOTDATA(" BAS093",TABLAS!$A$75) -> 5 | D156: =+GETPIVOTDATA(" BAS094",TABLAS!$A$75) -> 53 | S156: =+T150+1 -> 93 | T156: =+S156+1 -> 94 | AA156: =IF(LEN(S156)=1,CONCATENATE("00",S156),IF(LEN(S156)=2,CONCATENATE("0",S156),S156)) -> 093 | AB156: 094 | AK156: =+$AK$20&AA156&$AL$19 -> =+IMPORTARDATOSDINAMICOS(" BAS093",TABLAS!$A$75) | AL156: =+IMPORTARDATOSDINAMICOS(" BAS094",TABLAS!$A$75)
B158: Taller de planificación para la elaboración del plan de trabajo multisectorial para contribuir en la reducción de la Anemia y DCI en el distrito.
C160: 1 | D160: 2
B161: Actividad | C161: Reuniones | D161: Participantes
A162: 1 | B162: Taller de planificación | C162: =+GETPIVOTDATA(" BAS095",TABLAS!$A$75) -> 0 | D162: =+GETPIVOTDATA(" BAS096",TABLAS!$A$75) -> 0 | S162: =+T156+1 -> 95 | T162: =+S162+1 -> 96 | AA162: =IF(LEN(S162)=1,CONCATENATE("00",S162),IF(LEN(S162)=2,CONCATENATE("0",S162),S162)) -> 095 | AB162: 096 | AK162: =+$AK$20&AA162&$AL$19 -> =+IMPORTARDATOSDINAMICOS(" BAS095",TABLAS!$A$75) | AL162: =+IMPORTARDATOSDINAMICOS(" BAS096",TABLAS!$A$75)
B164: Asistencia técnica para la implementación de la sala situacional municipal, políticas públicas o planes de intervención
E166: 1 | F166: 2
B167: Asistencia Técnica | E167: Asistencia tecnica | F167: Participantes
A168: 1 | B168: Tema 1: Implementación de la sala situacional municipal. | E168: =+GETPIVOTDATA(" BAS097",TABLAS!$A$75) -> 0 | F168: =+GETPIVOTDATA(" BAS098",TABLAS!$A$75) -> 0 | S168: =+T162+1 -> 97 | T168: =+S168+1 -> 98 | AA168: =IF(LEN(S168)=1,CONCATENATE("00",S168),IF(LEN(S168)=2,CONCATENATE("0",S168),S168)) -> 097 | AB168: 098 | AK168: =+$AK$20&AA168&$AL$19 -> =+IMPORTARDATOSDINAMICOS(" BAS097",TABLAS!$A$75) | AL168: =+IMPORTARDATOSDINAMICOS(" BAS098",TABLAS!$A$75)
A169: 2 | B169: Tema 2: Implementación de políticas públicas o planes | E169: =+GETPIVOTDATA(" BAS099",TABLAS!$A$75) -> 0 | F169: =+GETPIVOTDATA(" BAS100",TABLAS!$A$75) -> 0 | S169: =+T168+1 -> 99 | T169: =+S169+1 -> 100 | AA169: 099 | AB169: 100 | AK169: =+IMPORTARDATOSDINAMICOS(" BAS099",TABLAS!$A$75) | AL169: =+IMPORTARDATOSDINAMICOS(" BAS100",TABLAS!$A$75)
A170: 3 | B170: Tema 3: Implementación de visitas domiciliarias por actor social | E170: =+GETPIVOTDATA(" BAS101",TABLAS!$A$75) -> 0 | F170: =+GETPIVOTDATA(" BAS102",TABLAS!$A$75) -> 0 | S170: =+T169+1 -> 101 | T170: =+S170+1 -> 102 | AA170: 101 | AB170: 102 | AK170: =+IMPORTARDATOSDINAMICOS(" BAS101",TABLAS!$A$75) | AL170: =+IMPORTARDATOSDINAMICOS(" BAS102",TABLAS!$A$75)
A171: 4 | B171: Tema 4: Programación multianual y formulación anual del presupuesto | E171: =+GETPIVOTDATA(" BAS103",TABLAS!$A$75) -> 0 | F171: =+GETPIVOTDATA(" BAS104",TABLAS!$A$75) -> 0 | S171: 103 | T171: 104 | AA171: 103 | AB171: 104 | AK171: =+IMPORTARDATOSDINAMICOS(" BAS103",TABLAS!$A$75) | AL171: =+IMPORTARDATOSDINAMICOS(" BAS104",TABLAS!$A$75)
A172: 5 | B172: Tema 5: Actualización y homologación del padrón nominal del menor de 6 años | E172: =+GETPIVOTDATA(" BAS105",TABLAS!$A$75) -> 0 | F172: =+GETPIVOTDATA(" BAS106",TABLAS!$A$75) -> 0 | S172: 105 | T172: 106 | AA172: 105 | AB172: 106 | AK172: =+IMPORTARDATOSDINAMICOS(" BAS105",TABLAS!$A$75) | AL172: =+IMPORTARDATOSDINAMICOS(" BAS106",TABLAS!$A$75)
A173: 6 | B173: Tema 6: Implementación y funcionamiento de los CPVC | E173: =+GETPIVOTDATA(" BAS107",TABLAS!$A$75) -> 0 | F173: =+GETPIVOTDATA(" BAS108",TABLAS!$A$75) -> 0 | S173: 107 | T173: 108 | AA173: 107 | AB173: 108 | AK173: =+IMPORTARDATOSDINAMICOS(" BAS107",TABLAS!$A$75) | AL173: =+IMPORTARDATOSDINAMICOS(" BAS108",TABLAS!$A$75)
A174: 7 | B174: Tema 7: Implementación y funcionamiento de los EPSJ | E174: =+GETPIVOTDATA(" BAS109",TABLAS!$A$75) -> 0 | F174: =+GETPIVOTDATA(" BAS110",TABLAS!$A$75) -> 0 | S174: 109 | T174: 110 | AA174: 109 | AB174: 110 | AK174: =+IMPORTARDATOSDINAMICOS(" BAS109",TABLAS!$A$75) | AL174: =+IMPORTARDATOSDINAMICOS(" BAS110",TABLAS!$A$75)
B176: Reunión de Monitoreo
C177: 1
B178: TIPOS DE ACTIVIDAD | C178: N°
A179: 1 | B179: 1er Monitoreo | C179: =+GETPIVOTDATA(" BAS111",TABLAS!$A$75) -> 0 | S179: =+T174+1 -> 111 | AA179: =IF(LEN(S179)=1,CONCATENATE("00",S179),IF(LEN(S179)=2,CONCATENATE("0",S179),S179)) -> 111 | AB179: 0 | AK179: =+$AK$20&AA179&$AL$19 -> =+IMPORTARDATOSDINAMICOS(" BAS111",TABLAS!$A$75) | AL179: =+IMPORTARDATOSDINAMICOS(" BAS0",TABLAS!$A$75)
A180: 2 | B180: 2do Monitoreo | C180: =+GETPIVOTDATA(" BAS112",TABLAS!$A$75) -> 0 | S180: =+S179+1 -> 112 | AA180: 112 | AB180: 0 | AK180: =+IMPORTARDATOSDINAMICOS(" BAS112",TABLAS!$A$75) | AL180: =+IMPORTARDATOSDINAMICOS(" BAS0",TABLAS!$A$75)
B182: Reunión de Evaluación
C183: 1 | D183: 2
B184: TIPOS DE ACTIVIDAD | C184: N° de participantes | D184: N°
A185: 1 | B185: Evaluación | C185: =+GETPIVOTDATA(" BAS113",TABLAS!$A$75) -> 0 | D185: =+GETPIVOTDATA(" BAS114",TABLAS!$A$75) -> 0 | S185: =+S180+1 -> 113 | T185: =+S185+1 -> 114 | AA185: =IF(LEN(S185)=1,CONCATENATE("00",S185),IF(LEN(S185)=2,CONCATENATE("0",S185),S185)) -> 113 | AB185: 114 | AK185: =+$AK$20&AA185&$AL$19 -> =+IMPORTARDATOSDINAMICOS(" BAS113",TABLAS!$A$75) | AL185: =+IMPORTARDATOSDINAMICOS(" BAS114",TABLAS!$A$75)
B188: SUB PRODUCTO: ACTORES SOCIALES CAPACITADOS PARA LA PROMOCIÓN DEL CUIDADO INFANTIL, LACTANCIA MATERNA EXCLUSIVA Y LA ADECUADA ALIMENTACIÓN Y PROTECCIÓN DEL MENOR DE 36 MESES DEL DISTRITO. (Subproducto trazador de la Actividad 2)
B189: Reunión de coordinación con la Comunidad para la identificación y selección del actor social de su jurisdicción
D191: 1 | E191: 2
B192: TIPOS DE ACTIVIDAD | D192: Reuniones | E192: Participantes
A193: 1 | B193: Cuando se realice la selección de Actores Sociales del Compromiso 1 | D193: =+GETPIVOTDATA(" BAS115",TABLAS!$A$75) -> 8 | E193: =+GETPIVOTDATA(" BAS116",TABLAS!$A$75) -> 105 | S193: =+T185+1 -> 115 | T193: =+S193+1 -> 116 | AA193: =IF(LEN(S193)=1,CONCATENATE("00",S193),IF(LEN(S193)=2,CONCATENATE("0",S193),S193)) -> 115 | AB193: 116 | AK193: =+$AK$20&AA193&$AL$19 -> =+IMPORTARDATOSDINAMICOS(" BAS115",TABLAS!$A$75) | AL193: =+IMPORTARDATOSDINAMICOS(" BAS116",TABLAS!$A$75)
A194: 2 | B194: Cuando se realice la selección de Agentes Comunitarios de Salud u otros lideres de la comunidad | D194: =+GETPIVOTDATA(" BAS117",TABLAS!$A$75) -> 54 | E194: =+GETPIVOTDATA(" BAS118",TABLAS!$A$75) -> 342 | S194: =+T193+1 -> 117 | T194: =+S194+1 -> 118 | AA194: 117 | AB194: 118 | AK194: =+IMPORTARDATOSDINAMICOS(" BAS117",TABLAS!$A$75) | AL194: =+IMPORTARDATOSDINAMICOS(" BAS118",TABLAS!$A$75)
B196: Taller de capacitación través de sesiones educativas para Agentes Comunitarios de Salud, autoridades y lideres comunales sobre Vigilancia Comunitaria
B198: Sesión educativa y demostrativa
D199: 1 | E199: 2
B200: Taller de capacitación | D200: Taller de Capacitación | E200: Participantes
A201: 1 | B201: Sesiones educativas en vigilancia Comunitaria | D201: =+GETPIVOTDATA(" BAS119",TABLAS!$A$75) -> 10 | E201: =+GETPIVOTDATA(" BAS120",TABLAS!$A$75) -> 132 | S201: =+T194+1 -> 119 | T201: =+S201+1 -> 120 | AA201: =IF(LEN(S201)=1,CONCATENATE("00",S201),IF(LEN(S201)=2,CONCATENATE("0",S201),S201)) -> 119 | AB201: 120 | AK201: =+$AK$20&AA201&$AL$19 -> =+IMPORTARDATOSDINAMICOS(" BAS119",TABLAS!$A$75) | AL201: =+IMPORTARDATOSDINAMICOS(" BAS120",TABLAS!$A$75)
A202: 2 | B202: Sesiones demostrativas de preparación de alimentos | D202: =+GETPIVOTDATA(" BAS121",TABLAS!$A$75) -> 5 | E202: =+GETPIVOTDATA(" BAS122",TABLAS!$A$75) -> 52 | S202: =+T201+1 -> 121 | T202: =+S202+1 -> 122 | AA202: 121 | AB202: 122 | AK202: =+IMPORTARDATOSDINAMICOS(" BAS121",TABLAS!$A$75) | AL202: =+IMPORTARDATOSDINAMICOS(" BAS122",TABLAS!$A$75)
B204: Taller de capacitación a los actores sociales en protocolo de visitas domiciliarias en la promoción de prácticas saludables para el cuidado materno infantil, prevención y control de la anemia.
D206: 1 | E206: 2
B207: Temas | D207: N° de talleres | E207: N° de AS participantes
A208: 1 | B208: Protocolo de la Visita domiciliaria | D208: =+GETPIVOTDATA(" BAS123",TABLAS!$A$75) -> 1 | E208: =+GETPIVOTDATA(" BAS124",TABLAS!$A$75) -> 5 | S208: =+T202+1 -> 123 | T208: =+S208+1 -> 124 | AA208: =IF(LEN(S208)=1,CONCATENATE("00",S208),IF(LEN(S208)=2,CONCATENATE("0",S208),S208)) -> 123 | AB208: 124 | AK208: =+$AK$20&AA208&$AL$19 -> =+IMPORTARDATOSDINAMICOS(" BAS123",TABLAS!$A$75) | AL208: =+IMPORTARDATOSDINAMICOS(" BAS124",TABLAS!$A$75)
A209: 2 | B209: Anemia prevención y tratamiento | D209: =+GETPIVOTDATA(" BAS125",TABLAS!$A$75) -> 7 | E209: =+GETPIVOTDATA(" BAS126",TABLAS!$A$75) -> 59 | S209: =+T208+1 -> 125 | T209: =+S209+1 -> 126 | AA209: 125 | AB209: 126 | AK209: =+IMPORTARDATOSDINAMICOS(" BAS125",TABLAS!$A$75) | AL209: =+IMPORTARDATOSDINAMICOS(" BAS126",TABLAS!$A$75)
A210: 3 | B210: Lactancia Materna | D210: =+GETPIVOTDATA(" BAS127",TABLAS!$A$75) -> 6 | E210: =+GETPIVOTDATA(" BAS128",TABLAS!$A$75) -> 52 | S210: =+T209+1 -> 127 | T210: =+S210+1 -> 128 | AA210: 127 | AB210: 128 | AK210: =+IMPORTARDATOSDINAMICOS(" BAS127",TABLAS!$A$75) | AL210: =+IMPORTARDATOSDINAMICOS(" BAS128",TABLAS!$A$75)
A211: 4 | B211: Lavado de manos y consumo de agua segura | D211: =+GETPIVOTDATA(" BAS129",TABLAS!$A$75) -> 3 | E211: =+GETPIVOTDATA(" BAS130",TABLAS!$A$75) -> 27 | S211: 129 | T211: 130 | AA211: 129 | AB211: 130 | AK211: =+IMPORTARDATOSDINAMICOS(" BAS129",TABLAS!$A$75) | AL211: =+IMPORTARDATOSDINAMICOS(" BAS130",TABLAS!$A$75)
